Workbook

Sheet Control
A1: Sheets | B1: Text File Names | C1: Description | E1: Notes: 50 sheets maximum
A2: NToe_Ponds | B2: NToe_Ponds.txt | C2: Loading to the north toe from the pond(s) | E2: Referenced text files must be in same root folder as this spreadsheet
A3: NToe_Dams | B3: NToe_Dams.txt | C3: Loading to the north toe from the new dams
A4: NToe_Beaches | B4: NToe_Beaches.txt | C4: Loading to the north toe from the new flotation tailings beaches
A5: NToe_LTVSMC | B5: NToe_LTVSMC.txt | C5: Loading to the north toe from the existing LTVSMC tailings
A6: NToe_Buttress | B6: NToe_Buttress.txt | C6: Loading to the north toe from the north buttress
A7: NWToe_Ponds | B7: NWToe_Ponds.txt | C7: Loading to the north-west toe from the pond(s)
A8: NWToe_Dams | B8: NWToe_Dams.txt | C8: Loading to the north-west toe from the new dams
A9: NWToe_Beaches | B9: NWToe_Beaches.txt | C9: Loading to the north-west toe from the new flotation tailings beaches
A10: NWToe_LTVSMC | B10: NWToe_LTVSMC.txt | C10: Loading to the north-west toe from the existing LTVSMC tailings
A11: WToe_Ponds | B11: WToe_Ponds.txt | C11: Loading to the west toe from the pond(s)
A12: WToe_Dams | B12: WToe_Dams.txt | C12: Loading to the west toe from the new dams
A13: WToe_Beaches | B13: WToe_Beaches.txt | C13: Loading to the west toe from the new flotation tailings beaches
A14: WToe_LTVSMC | B14: WToe_LTVSMC.txt | C14: Loading to the west toe from the existing LTVSMC tailings
A15: SToe_Ponds | B15: SToe_Ponds.txt | C15: Loading to the south toe from the pond(s)
A16: SToe_Dams | B16: SToe_Dams.txt | C16: Loading to the south toe from the new dams
A17: SToe_Beaches | B17: SToe_Beaches.txt | C17: Loading to the south toe from the new flotation tailings beaches
A18: SToe_LTVSMC | B18: SToe_LTVSMC.txt | C18: Loading to the south toe from the existing LTVSMC tailings
A19: SToe_Buttress | B19: SToe_Buttress.txt | C19: Loading to the south toe from the south buttress

Sheet PlotControl
A2: Model Name: | B2: Plant Site Version 6.0 | C2: =B2 & " Model " & IF(B4="P50", "Median", IF(B4="P10", "10th Percentile", "90th Percentile")) & " Loading Rates " & B6 & " to the " & B8 -> Plant Site Version 6.0 Model Median Loading Rates Ag to the North Toe
A4: Plot: | B4: P50 | C4: =MATCH(B4,$B$28:$B$30,0)+1 -> 3 | V4: Directory to save PDFs to: | W4: P:\Mpls\23 MN\69\2369862\WorkFiles\APA\Support Docs\Surface WQ\Workfiles\Models\GoldSim\Tailings Basin\2012 MODEL\Base Model\Output_Data\Toe\Culpability\plots
V5: Starting figure caption | W5: Figure A-1-0001
A6: Constituent to Plot (dropdown): | B6: Ag | C6: =MATCH(B6,$A$28:$A$55,0) -> 1
V7: Note: This loops through the plots, constituent, and location drop down menus.
A8: Location to Plot (dropdown): | B8: North Toe | C8: =(MATCH(B8,$A$12:$A$15,0))-1 -> 0 | D8: =C8*44 -> 0
A11: Locations | B11: Sources
A12: North Toe | B12: FTB Pond | C12: 0 | D12: =(C12*108) -> 0 | E12: 1
A13: Northwest Toe | B13: Cell 1E Pond (Early Years) | C13: 1 | D13: =(C13*108) -> 108 | E13: =E12+1 -> 2
A14: South Toe | B14: North Dam Seepage | C14: 2 | D14: 216 | E14: =E13+1 -> 3
A15: West Toe | B15: North Beach Seepage | C15: 3 | D15: 324 | E15: 4
B16: East Dam Seepage | C16: 4 | D16: 432 | E16: 5
B17: East Beach Seepage | C17: 5 | D17: 540 | E17: 6
B18: South Dam Seepage | C18: 6 | D18: 648 | E18: 7
B19: South Beach Seepage | C19: 7 | D19: 756 | E19: 8
B20: Closure Beach Seepage | C20: 8 | D20: 864 | E20: 9
B21: Cell 2W LTVSMC Tailings | C21: 9 | D21: 972 | E21: 10
B22: Cell 2E LTVSMC Tailings | C22: 10 | D22: 1080 | E22: 11
B23: Cell 1E LTVSMC Tailings | C23: 11 | D23: 1188 | E23: 12
B24: North Buttress | C24: 12 | D24: 1296 | E24: 13
B25: South Buttress | C25: 12 | D25: 1296 | E25: 14
E26: Annual Project Results (tonne/yr loading)
A27: Constituent | B27: Percentile | D27: Time | E27: =$B$12 -> FTB Pond | F27: =$B$13 -> Cell 1E Pond (Early Years) | G27: =$B$14 -> North Dam Seepage | H27: =$B$15 -> North Beach Seepage | I27: =$B$16 -> East Dam Seepage | J27: =$B$17 -> East Beach Seepage | K27: =$B$18 -> South Dam Seepage | L27: =$B$19 -> South Beach Seepage | M27: =$B$20 -> Closure Beach Seepage | N27: =$B$21 -> Cell 2W LTVSMC Tailings | O27: =$B$22 -> Cell 2E LTVSMC Tailings | P27: =$B$23 -> Cell 1E LTVSMC Tailings | Q27: =$B$24 -> North Buttress | R27: =$B$25 -> South Buttress
A28: Ag | B28: P10 | D28: 0 | E28: =VLOOKUP($D28,Point_Sources_All!$A$5:$FS$205,((3*($E$12-1)+$C$4)+($D$8)))/1000*365.25 -> 0.00012162825 | F28: =VLOOKUP($D28,Point_Sources_All!$A$5:$FS$205,((3*($E$13-1)+$C$4)+($D$8)))/1000*365.25 -> 0.00014596851 | G28: =VLOOKUP($D28,Point_Sources_All!$A$5:$FS$205,((3*($E$14-1)+$C$4)+($D$8)))/1000*365.25 -> 0 | H28: =VLOOKUP($D28,Point_Sources_All!$A$5:$FS$205,((3*($E$15-1)+$C$4)+($D$8)))/1000*365.25 -> 0 | I28: =VLOOKUP($D28,Point_Sources_All!$A$5:$FS$205,((3*($E$16-1)+$C$4)+($D$8)))/1000*365.25 -> 0 | J28: =VLOOKUP($D28,Point_Sources_All!$A$5:$FS$205,((3*($E$17-1)+$C$4)+($D$8)))/1000*365.25 -> 0 | K28: =VLOOKUP($D28,Point_Sources_All!$A$5:$FS$205,((3*($E$18-1)+$C$4)+($D$8)))/1000*365.25 -> 0 | L28: =VLOOKUP($D28,Point_Sources_All!$A$5:$FS$205,((3*($E$19-1)+$C$4)+($D$8)))/1000*365.25 -> 0 | M28: =VLOOKUP($D28,Point_Sources_All!$A$5:$FS$205,((3*($E$20-1)+$C$4)+($D$8)))/1000*365.25 -> 0 | N28: =VLOOKUP($D28,Point_Sources_All!$A$5:$FS$205,((3*($E$21-1)+$C$4)+($D$8)))/1000*365.25 -> 2.30728425e-05 | O28: =VLOOKUP($D28,Point_Sources_All!$A$5:$FS$205,((3*($E$22-1)+$C$4)+($D$8)))/1000*365.25 -> 7.332759e-05 | P28: =VLOOKUP($D28,Point_Sources_All!$A$5:$FS$205,((3*($E$23-1)+$C$4)+($D$8)))/1000*365.25 -> 2.680314075e-05 | Q28: =VLOOKUP($D28,Point_Sources_All!$A$5:$FS$205,((3*($E$24-1)+$C$4)+($D$8)))/1000*365.25 -> 4.072452275e-09 | R28: =VLOOKUP($D28,Point_Sources_All!$A$5:$FS$205,((3*($E$25-1)+$C$4)+($D$8)))/1000*365.25 -> 0
A29: Al | B29: P50 | D29: 1 | E29: =VLOOKUP($D29,Point_Sources_All!$A$5:$FS$205,((3*($E$12-1)+$C$4)+($D$8)))/1000*365.25 -> 0.00012162825 | F29: =VLOOKUP($D29,Point_Sources_All!$A$5:$FS$205,((3*($E$13-1)+$C$4)+($D$8)))/1000*365.25 -> 0.0001459666837 | G29: =VLOOKUP($D29,Point_Sources_All!$A$5:$FS$205,((3*($E$14-1)+$C$4)+($D$8)))/1000*365.25 -> 0 | H29: =VLOOKUP($D29,Point_Sources_All!$A$5:$FS$205,((3*($E$15-1)+$C$4)+($D$8)))/1000*365.25 -> 0 | I29: =VLOOKUP($D29,Point_Sources_All!$A$5:$FS$205,((3*($E$16-1)+$C$4)+($D$8)))/1000*365.25 -> 0 | J29: =VLOOKUP($D29,Point_Sources_All!$A$5:$FS$205,((3*($E$17-1)+$C$4)+($D$8)))/1000*365.25 -> 0 | K29: =VLOOKUP($D29,Point_Sources_All!$A$5:$FS$205,((3*($E$18-1)+$C$4)+($D$8)))/1000*365.25 -> 0 | L29: =VLOOKUP($D29,Point_Sources_All!$A$5:$FS$205,((3*($E$19-1)+$C$4)+($D$8)))/1000*365.25 -> 0 | M29: =VLOOKUP($D29,Point_Sources_All!$A$5:$FS$205,((3*($E$20-1)+$C$4)+($D$8)))/1000*365.25 -> 0 | N29: =VLOOKUP($D29,Point_Sources_All!$A$5:$FS$205,((3*($E$21-1)+$C$4)+($D$8)))/1000*365.25 -> 2.30728425e-05 | O29: =VLOOKUP($D29,Point_Sources_All!$A$5:$FS$205,((3*($E$22-1)+$C$4)+($D$8)))/1000*365.25 -> 7.332759e-05 | P29: =VLOOKUP($D29,Point_Sources_All!$A$5:$FS$205,((3*($E$23-1)+$C$4)+($D$8)))/1000*365.25 -> 2.680314075e-05 | Q29: =VLOOKUP($D29,Point_Sources_All!$A$5:$FS$205,((3*($E$24-1)+$C$4)+($D$8)))/1000*365.25 -> 1.513382938e-08 | R29: =VLOOKUP($D29,Point_Sources_All!$A$5:$FS$205,((3*($E$25-1)+$C$4)+($D$8)))/1000*365.25 -> 0
A30: Alkalinity | B30: P90 | D30: 2 | E30: =VLOOKUP($D30,Point_Sources_All!$A$5:$FS$205,((3*($E$12-1)+$C$4)+($D$8)))/1000*365.25 -> 0.0001213604 | F30: =VLOOKUP($D30,Point_Sources_All!$A$5:$FS$205,((3*($E$13-1)+$C$4)+($D$8)))/1000*365.25 -> 0.0001458208881 | G30: =VLOOKUP($D30,Point_Sources_All!$A$5:$FS$205,((3*($E$14-1)+$C$4)+($D$8)))/1000*365.25 -> 0 | H30: =VLOOKUP($D30,Point_Sources_All!$A$5:$FS$205,((3*($E$15-1)+$C$4)+($D$8)))/1000*365.25 -> 0 | I30: =VLOOKUP($D30,Point_Sources_All!$A$5:$FS$205,((3*($E$16-1)+$C$4)+($D$8)))/1000*365.25 -> 0 | J30: =VLOOKUP($D30,Point_Sources_All!$A$5:$FS$205,((3*($E$17-1)+$C$4)+($D$8)))/1000*365.25 -> 0 | K30: =VLOOKUP($D30,Point_Sources_All!$A$5:$FS$205,((3*($E$18-1)+$C$4)+($D$8)))/1000*365.25 -> 0 | L30: =VLOOKUP($D30,Point_Sources_All!$A$5:$FS$205,((3*($E$19-1)+$C$4)+($D$8)))/1000*365.25 -> 0 | M30: =VLOOKUP($D30,Point_Sources_All!$A$5:$FS$205,((3*($E$20-1)+$C$4)+($D$8)))/1000*365.25 -> 0 | N30: =VLOOKUP($D30,Point_Sources_All!$A$5:$FS$205,((3*($E$21-1)+$C$4)+($D$8)))/1000*365.25 -> 2.307339038e-05 | O30: =VLOOKUP($D30,Point_Sources_All!$A$5:$FS$205,((3*($E$22-1)+$C$4)+($D$8)))/1000*365.25 -> 7.245616437e-05 | P30: =VLOOKUP($D30,Point_Sources_All!$A$5:$FS$205,((3*($E$23-1)+$C$4)+($D$8)))/1000*365.25 -> 2.680183194e-05 | Q30: =VLOOKUP($D30,Point_Sources_All!$A$5:$FS$205,((3*($E$24-1)+$C$4)+($D$8)))/1000*365.25 -> 3.313544956e-08 | R30: =VLOOKUP($D30,Point_Sources_All!$A$5:$FS$205,((3*($E$25-1)+$C$4)+($D$8)))/1000*365.25 -> 0
A31: As | D31: 3 | E31: =VLOOKUP($D31,Point_Sources_All!$A$5:$FS$205,((3*($E$12-1)+$C$4)+($D$8)))/1000*365.25 -> 0.0001160533175 | F31: =VLOOKUP($D31,Point_Sources_All!$A$5:$FS$205,((3*($E$13-1)+$C$4)+($D$8)))/1000*365.25 -> 0.00014626558 | G31: =VLOOKUP($D31,Point_Sources_All!$A$5:$FS$205,((3*($E$14-1)+$C$4)+($D$8)))/1000*365.25 -> 0 | H31: =VLOOKUP($D31,Point_Sources_All!$A$5:$FS$205,((3*($E$15-1)+$C$4)+($D$8)))/1000*365.25 -> 6.393010319e-07 | I31: =VLOOKUP($D31,Point_Sources_All!$A$5:$FS$205,((3*($E$16-1)+$C$4)+($D$8)))/1000*365.25 -> 0 | J31: =VLOOKUP($D31,Point_Sources_All!$A$5:$FS$205,((3*($E$17-1)+$C$4)+($D$8)))/1000*365.25 -> 0 | K31: =VLOOKUP($D31,Point_Sources_All!$A$5:$FS$205,((3*($E$18-1)+$C$4)+($D$8)))/1000*365.25 -> 0 | L31: =VLOOKUP($D31,Point_Sources_All!$A$5:$FS$205,((3*($E$19-1)+$C$4)+($D$8)))/1000*365.25 -> 0 | M31: =VLOOKUP($D31,Point_Sources_All!$A$5:$FS$205,((3*($E$20-1)+$C$4)+($D$8)))/1000*365.25 -> 0 | N31: =VLOOKUP($D31,Point_Sources_All!$A$5:$FS$205,((3*($E$21-1)+$C$4)+($D$8)))/1000*365.25 -> 2.305613231e-05 | O31: =VLOOKUP($D31,Point_Sources_All!$A$5:$FS$205,((3*($E$22-1)+$C$4)+($D$8)))/1000*365.25 -> 8.59236015e-05 | P31: =VLOOKUP($D31,Point_Sources_All!$A$5:$FS$205,((3*($E$23-1)+$C$4)+($D$8)))/1000*365.25 -> 2.681909e-05 | Q31: =VLOOKUP($D31,Point_Sources_All!$A$5:$FS$205,((3*($E$24-1)+$C$4)+($D$8)))/1000*365.25 -> 4.832470563e-08 | R31: =VLOOKUP($D31,Point_Sources_All!$A$5:$FS$205,((3*($E$25-1)+$C$4)+($D$8)))/1000*365.25 -> 0
A32: B | D32: 4 | E32: =VLOOKUP($D32,Point_Sources_All!$A$5:$FS$205,((3*($E$12-1)+$C$4)+($D$8)))/1000*365.25 -> 9.42649375e-05 | F32: =VLOOKUP($D32,Point_Sources_All!$A$5:$FS$205,((3*($E$13-1)+$C$4)+($D$8)))/1000*365.25 -> 0.0001603286181 | G32: =VLOOKUP($D32,Point_Sources_All!$A$5:$FS$205,((3*($E$14-1)+$C$4)+($D$8)))/1000*365.25 -> 0 | H32: =VLOOKUP($D32,Point_Sources_All!$A$5:$FS$205,((3*($E$15-1)+$C$4)+($D$8)))/1000*365.25 -> 1.286311578e-05 | I32: =VLOOKUP($D32,Point_Sources_All!$A$5:$FS$205,((3*($E$16-1)+$C$4)+($D$8)))/1000*365.25 -> 0 | J32: =VLOOKUP($D32,Point_Sources_All!$A$5:$FS$205,((3*($E$17-1)+$C$4)+($D$8)))/1000*365.25 -> 0 | K32: =VLOOKUP($D32,Point_Sources_All!$A$5:$FS$205,((3*($E$18-1)+$C$4)+($D$8)))/1000*365.25 -> 0 | L32: =VLOOKUP($D32,Point_Sources_All!$A$5:$FS$205,((3*($E$19-1)+$C$4)+($D$8)))/1000*365.25 -> 0 | M32: =VLOOKUP($D32,Point_Sources_All!$A$5:$FS$205,((3*($E$20-1)+$C$4)+($D$8)))/1000*365.25 -> 0 | N32: =VLOOKUP($D32,Point_Sources_All!$A$5:$FS$205,((3*($E$21-1)+$C$4)+($D$8)))/1000*365.25 -> 2.284766588e-05 | O32: =VLOOKUP($D32,Point_Sources_All!$A$5:$FS$205,((3*($E$22-1)+$C$4)+($D$8)))/1000*365.25 -> 0.0001747858219 | P32: =VLOOKUP($D32,Point_Sources_All!$A$5:$FS$205,((3*($E$23-1)+$C$4)+($D$8)))/1000*365.25 -> 2.71470845e-05 | Q32: =VLOOKUP($D32,Point_Sources_All!$A$5:$FS$205,((3*($E$24-1)+$C$4)+($D$8)))/1000*365.25 -> 7.131901938e-08 | R32: =VLOOKUP($D32,Point_Sources_All!$A$5:$FS$205,((3*($E$25-1)+$C$4)+($D$8)))/1000*365.25 -> 0
A33: Ba | D33: 5 | E33: =VLOOKUP($D33,Point_Sources_All!$A$5:$FS$205,((3*($E$12-1)+$C$4)+($D$8)))/1000*365.25 -> 6.611664187e-05 | F33: =VLOOKUP($D33,Point_Sources_All!$A$5:$FS$205,((3*($E$13-1)+$C$4)+($D$8)))/1000*365.25 -> 0.0001982172181 | G33: =VLOOKUP($D33,Point_Sources_All!$A$5:$FS$205,((3*($E$14-1)+$C$4)+($D$8)))/1000*365.25 -> 2.463077985e-08 | H33: =VLOOKUP($D33,Point_Sources_All!$A$5:$FS$205,((3*($E$15-1)+$C$4)+($D$8)))/1000*365.25 -> 7.049997669e-05 | I33: =VLOOKUP($D33,Point_Sources_All!$A$5:$FS$205,((3*($E$16-1)+$C$4)+($D$8)))/1000*365.25 -> 0 | J33: =VLOOKUP($D33,Point_Sources_All!$A$5:$FS$205,((3*($E$17-1)+$C$4)+($D$8)))/1000*365.25 -> 0 | K33: =VLOOKUP($D33,Point_Sources_All!$A$5:$FS$205,((3*($E$18-1)+$C$4)+($D$8)))/1000*365.25 -> 0 | L33: =VLOOKUP($D33,Point_Sources_All!$A$5:$FS$205,((3*($E$19-1)+$C$4)+($D$8)))/1000*365.25 -> 0 | M33: =VLOOKUP($D33,Point_Sources_All!$A$5:$FS$205,((3*($E$20-1)+$C$4)+($D$8)))/1000*365.25 -> 0 | N33: =VLOOKUP($D33,Point_Sources_All!$A$5:$FS$205,((3*($E$21-1)+$C$4)+($D$8)))/1000*365.25 -> 2.197937531e-05 | O33: =VLOOKUP($D33,Point_Sources_All!$A$5:$FS$205,((3*($E$22-1)+$C$4)+($D$8)))/1000*365.25 -> 0.0003933185494 | P33: =VLOOKUP($D33,Point_Sources_All!$A$5:$FS$205,((3*($E$23-1)+$C$4)+($D$8)))/1000*365.25 -> 2.869872738e-05 | Q33: =VLOOKUP($D33,Point_Sources_All!$A$5:$FS$205,((3*($E$24-1)+$C$4)+($D$8)))/1000*365.25 -> 7.030849437e-08 | R33: =VLOOKUP($D33,Point_Sources_All!$A$5:$FS$205,((3*($E$25-1)+$C$4)+($D$8)))/1000*365.25 -> 0
A34: Be | D34: 6 | E34: =VLOOKUP($D34,Point_Sources_All!$A$5:$FS$205,((3*($E$12-1)+$C$4)+($D$8)))/1000*365.25 -> 5.544008e-05 | F34: =VLOOKUP($D34,Point_Sources_All!$A$5:$FS$205,((3*($E$13-1)+$C$4)+($D$8)))/1000*365.25 -> 0.0002266921081 | G34: =VLOOKUP($D34,Point_Sources_All!$A$5:$FS$205,((3*($E$14-1)+$C$4)+($D$8)))/1000*365.25 -> 1.971808212e-07 | H34: =VLOOKUP($D34,Point_Sources_All!$A$5:$FS$205,((3*($E$15-1)+$C$4)+($D$8)))/1000*365.25 -> 0.0001996508244 | I34: =VLOOKUP($D34,Point_Sources_All!$A$5:$FS$205,((3*($E$16-1)+$C$4)+($D$8)))/1000*365.25 -> 0 | J34: =VLOOKUP($D34,Point_Sources_All!$A$5:$FS$205,((3*($E$17-1)+$C$4)+($D$8)))/1000*365.25 -> 0 | K34: =VLOOKUP($D34,Point_Sources_All!$A$5:$FS$205,((3*($E$18-1)+$C$4)+($D$8)))/1000*365.25 -> 0 | L34: =VLOOKUP($D34,Point_Sources_All!$A$5:$FS$205,((3*($E$19-1)+$C$4)+($D$8)))/1000*365.25 -> 0 | M34: =VLOOKUP($D34,Point_Sources_All!$A$5:$FS$205,((3*($E$20-1)+$C$4)+($D$8)))/1000*365.25 -> 0 | N34: =VLOOKUP($D34,Point_Sources_All!$A$5:$FS$205,((3*($E$21-1)+$C$4)+($D$8)))/1000*365.25 -> 2.010932575e-05 | O34: =VLOOKUP($D34,Point_Sources_All!$A$5:$FS$205,((3*($E$22-1)+$C$4)+($D$8)))/1000*365.25 -> 0.0005771284813 | P34: =VLOOKUP($D34,Point_Sources_All!$A$5:$FS$205,((3*($E$23-1)+$C$4)+($D$8)))/1000*365.25 -> 3.175334356e-05 | Q34: =VLOOKUP($D34,Point_Sources_All!$A$5:$FS$205,((3*($E$24-1)+$C$4)+($D$8)))/1000*365.25 -> 6.130903875e-08 | R34: =VLOOKUP($D34,Point_Sources_All!$A$5:$FS$205,((3*($E$25-1)+$C$4)+($D$8)))/1000*365.25 -> 0
A35: Ca | D35: 7 | E35: =VLOOKUP($D35,Point_Sources_All!$A$5:$FS$205,((3*($E$12-1)+$C$4)+($D$8)))/1000*365.25 -> 0.000285905525 | F35: =VLOOKUP($D35,Point_Sources_All!$A$5:$FS$205,((3*($E$13-1)+$C$4)+($D$8)))/1000*365.25 -> 0 | G35: =VLOOKUP($D35,Point_Sources_All!$A$5:$FS$205,((3*($E$14-1)+$C$4)+($D$8)))/1000*365.25 -> 7.769878025e-07 | H35: =VLOOKUP($D35,Point_Sources_All!$A$5:$FS$205,((3*($E$15-1)+$C$4)+($D$8)))/1000*365.25 -> 0.0003594568306 | I35: =VLOOKUP($D35,Point_Sources_All!$A$5:$FS$205,((3*($E$16-1)+$C$4)+($D$8)))/1000*365.25 -> 0 | J35: =VLOOKUP($D35,Point_Sources_All!$A$5:$FS$205,((3*($E$17-1)+$C$4)+($D$8)))/1000*365.25 -> 0 | K35: =VLOOKUP($D35,Point_Sources_All!$A$5:$FS$205,((3*($E$18-1)+$C$4)+($D$8)))/1000*365.25 -> 0 | L35: =VLOOKUP($D35,Point_Sources_All!$A$5:$FS$205,((3*($E$19-1)+$C$4)+($D$8)))/1000*365.25 -> 0 | M35: =VLOOKUP($D35,Point_Sources_All!$A$5:$FS$205,((3*($E$20-1)+$C$4)+($D$8)))/1000*365.25 -> 0 | N35: =VLOOKUP($D35,Point_Sources_All!$A$5:$FS$205,((3*($E$21-1)+$C$4)+($D$8)))/1000*365.25 -> 1.75629245e-05 | O35: =VLOOKUP($D35,Point_Sources_All!$A$5:$FS$205,((3*($E$22-1)+$C$4)+($D$8)))/1000*365.25 -> 0.0005433611187 | P35: =VLOOKUP($D35,Point_Sources_All!$A$5:$FS$205,((3*($E$23-1)+$C$4)+($D$8)))/1000*365.25 -> 3.413803038e-05 | Q35: =VLOOKUP($D35,Point_Sources_All!$A$5:$FS$205,((3*($E$24-1)+$C$4)+($D$8)))/1000*365.25 -> 6.343996813e-08 | R35: =VLOOKUP($D35,Point_Sources_All!$A$5:$FS$205,((3*($E$25-1)+$C$4)+($D$8)))/1000*365.25 -> 0
A36: Cd | D36: 8 | E36: =VLOOKUP($D36,Point_Sources_All!$A$5:$FS$205,((3*($E$12-1)+$C$4)+($D$8)))/1000*365.25 -> 0.0002781625294 | F36: =VLOOKUP($D36,Point_Sources_All!$A$5:$FS$205,((3*($E$13-1)+$C$4)+($D$8)))/1000*365.25 -> 0 | G36: =VLOOKUP($D36,Point_Sources_All!$A$5:$FS$205,((3*($E$14-1)+$C$4)+($D$8)))/1000*365.25 -> 1.996346925e-06 | H36: =VLOOKUP($D36,Point_Sources_All!$A$5:$FS$205,((3*($E$15-1)+$C$4)+($D$8)))/1000*365.25 -> 0.0004816947438 | I36: =VLOOKUP($D36,Point_Sources_All!$A$5:$FS$205,((3*($E$16-1)+$C$4)+($D$8)))/1000*365.25 -> 0 | J36: =VLOOKUP($D36,Point_Sources_All!$A$5:$FS$205,((3*($E$17-1)+$C$4)+($D$8)))/1000*365.25 -> 0 | K36: =VLOOKUP($D36,Point_Sources_All!$A$5:$FS$205,((3*($E$18-1)+$C$4)+($D$8)))/1000*365.25 -> 0 | L36: =VLOOKUP($D36,Point_Sources_All!$A$5:$FS$205,((3*($E$19-1)+$C$4)+($D$8)))/1000*365.25 -> 0 | M36: =VLOOKUP($D36,Point_Sources_All!$A$5:$FS$205,((3*($E$20-1)+$C$4)+($D$8)))/1000*365.25 -> 0 | N36: =VLOOKUP($D36,Point_Sources_All!$A$5:$FS$205,((3*($E$21-1)+$C$4)+($D$8)))/1000*365.25 -> 1.501974962e-05 | O36: =VLOOKUP($D36,Point_Sources_All!$A$5:$FS$205,((3*($E$22-1)+$C$4)+($D$8)))/1000*365.25 -> 0.00033272327 | P36: =VLOOKUP($D36,Point_Sources_All!$A$5:$FS$205,((3*($E$23-1)+$C$4)+($D$8)))/1000*365.25 -> 3.355149975e-05 | Q36: =VLOOKUP($D36,Point_Sources_All!$A$5:$FS$205,((3*($E$24-1)+$C$4)+($D$8)))/1000*365.25 -> 7.194390125e-08 | R36: =VLOOKUP($D36,Point_Sources_All!$A$5:$FS$205,((3*($E$25-1)+$C$4)+($D$8)))/1000*365.25 -> 0
A37: Cl | D37: 9 | E37: =VLOOKUP($D37,Point_Sources_All!$A$5:$FS$205,((3*($E$12-1)+$C$4)+($D$8)))/1000*365.25 -> 0.0002662118538 | F37: =VLOOKUP($D37,Point_Sources_All!$A$5:$FS$205,((3*($E$13-1)+$C$4)+($D$8)))/1000*365.25 -> 0 | G37: =VLOOKUP($D37,Point_Sources_All!$A$5:$FS$205,((3*($E$14-1)+$C$4)+($D$8)))/1000*365.25 -> 3.804008744e-06 | H37: =VLOOKUP($D37,Point_Sources_All!$A$5:$FS$205,((3*($E$15-1)+$C$4)+($D$8)))/1000*365.25 -> 0.0005474914875 | I37: =VLOOKUP($D37,Point_Sources_All!$A$5:$FS$205,((3*($E$16-1)+$C$4)+($D$8)))/1000*365.25 -> 0 | J37: =VLOOKUP($D37,Point_Sources_All!$A$5:$FS$205,((3*($E$17-1)+$C$4)+($D$8)))/1000*365.25 -> 4.614325e-10 | K37: =VLOOKUP($D37,Point_Sources_All!$A$5:$FS$205,((3*($E$18-1)+$C$4)+($D$8)))/1000*365.25 -> 0 | L37: =VLOOKUP($D37,Point_Sources_All!$A$5:$FS$205,((3*($E$19-1)+$C$4)+($D$8)))/1000*365.25 -> 0 | M37: =VLOOKUP($D37,Point_Sources_All!$A$5:$FS$205,((3*($E$20-1)+$C$4)+($D$8)))/1000*365.25 -> 0 | N37: =VLOOKUP($D37,Point_Sources_All!$A$5:$FS$205,((3*($E$21-1)+$C$4)+($D$8)))/1000*365.25 -> 1.279507275e-05 | O37: =VLOOKUP($D37,Point_Sources_All!$A$5:$FS$205,((3*($E$22-1)+$C$4)+($D$8)))/1000*365.25 -> 0.0001481557487 | P37: =VLOOKUP($D37,Point_Sources_All!$A$5:$FS$205,((3*($E$23-1)+$C$4)+($D$8)))/1000*365.25 -> 3.03442395e-05 | Q37: =VLOOKUP($D37,Point_Sources_All!$A$5:$FS$205,((3*($E$24-1)+$C$4)+($D$8)))/1000*365.25 -> 7.443125375e-08 | R37: =VLOOKUP($D37,Point_Sources_All!$A$5:$FS$205,((3*($E$25-1)+$C$4)+($D$8)))/1000*365.25 -> 0
A38: Co | D38: 10 | E38: =VLOOKUP($D38,Point_Sources_All!$A$5:$FS$205,((3*($E$12-1)+$C$4)+($D$8)))/1000*365.25 -> 0.0002573167988 | F38: =VLOOKUP($D38,Point_Sources_All!$A$5:$FS$205,((3*($E$13-1)+$C$4)+($D$8)))/1000*365.25 -> 0 | G38: =VLOOKUP($D38,Point_Sources_All!$A$5:$FS$205,((3*($E$14-1)+$C$4)+($D$8)))/1000*365.25 -> 5.740451625e-06 | H38: =VLOOKUP($D38,Point_Sources_All!$A$5:$FS$205,((3*($E$15-1)+$C$4)+($D$8)))/1000*365.25 -> 0.0005737316563 | I38: =VLOOKUP($D38,Point_Sources_All!$A$5:$FS$205,((3*($E$16-1)+$C$4)+($D$8)))/1000*365.25 -> 0 | J38: =VLOOKUP($D38,Point_Sources_All!$A$5:$FS$205,((3*($E$17-1)+$C$4)+($D$8)))/1000*365.25 -> 5.853508675e-08 | K38: =VLOOKUP($D38,Point_Sources_All!$A$5:$FS$205,((3*($E$18-1)+$C$4)+($D$8)))/1000*365.25 -> 0 | L38: =VLOOKUP($D38,Point_Sources_All!$A$5:$FS$205,((3*($E$19-1)+$C$4)+($D$8)))/1000*365.25 -> 2.0290855e-08 | M38: =VLOOKUP($D38,Point_Sources_All!$A$5:$FS$205,((3*($E$20-1)+$C$4)+($D$8)))/1000*365.25 -> 0 | N38: =VLOOKUP($D38,Point_Sources_All!$A$5:$FS$205,((3*($E$21-1)+$C$4)+($D$8)))/1000*365.25 -> 1.085632575e-05 | O38: =VLOOKUP($D38,Point_Sources_All!$A$5:$FS$205,((3*($E$22-1)+$C$4)+($D$8)))/1000*365.25 -> 5.757423575e-05 | P38: =VLOOKUP($D38,Point_Sources_All!$A$5:$FS$205,((3*($E$23-1)+$C$4)+($D$8)))/1000*365.25 -> 2.639725669e-05 | Q38: =VLOOKUP($D38,Point_Sources_All!$A$5:$FS$205,((3*($E$24-1)+$C$4)+($D$8)))/1000*365.25 -> 6.736214438e-08 | R38: =VLOOKUP($D38,Point_Sources_All!$A$5:$FS$205,((3*($E$25-1)+$C$4)+($D$8)))/1000*365.25 -> 0
A39: Cr | D39: 11 | E39: =VLOOKUP($D39,Point_Sources_All!$A$5:$FS$205,((3*($E$12-1)+$C$4)+($D$8)))/1000*365.25 -> 0.0002556567375 | F39: =VLOOKUP($D39,Point_Sources_All!$A$5:$FS$205,((3*($E$13-1)+$C$4)+($D$8)))/1000*365.25 -> 0 | G39: =VLOOKUP($D39,Point_Sources_All!$A$5:$FS$205,((3*($E$14-1)+$C$4)+($D$8)))/1000*365.25 -> 7.185989375e-06 | H39: =VLOOKUP($D39,Point_Sources_All!$A$5:$FS$205,((3*($E$15-1)+$C$4)+($D$8)))/1000*365.25 -> 0.0005758866313 | I39: =VLOOKUP($D39,Point_Sources_All!$A$5:$FS$205,((3*($E$16-1)+$C$4)+($D$8)))/1000*365.25 -> 0 | J39: =VLOOKUP($D39,Point_Sources_All!$A$5:$FS$205,((3*($E$17-1)+$C$4)+($D$8)))/1000*365.25 -> 8.166828681e-07 | K39: =VLOOKUP($D39,Point_Sources_All!$A$5:$FS$205,((3*($E$18-1)+$C$4)+($D$8)))/1000*365.25 -> 0 | L39: =VLOOKUP($D39,Point_Sources_All!$A$5:$FS$205,((3*($E$19-1)+$C$4)+($D$8)))/1000*365.25 -> 3.85687929e-07 | M39: =VLOOKUP($D39,Point_Sources_All!$A$5:$FS$205,((3*($E$20-1)+$C$4)+($D$8)))/1000*365.25 -> 0 | N39: =VLOOKUP($D39,Point_Sources_All!$A$5:$FS$205,((3*($E$21-1)+$C$4)+($D$8)))/1000*365.25 -> 9.103338813e-06 | O39: =VLOOKUP($D39,Point_Sources_All!$A$5:$FS$205,((3*($E$22-1)+$C$4)+($D$8)))/1000*365.25 -> 2.072863756e-05 | P39: =VLOOKUP($D39,Point_Sources_All!$A$5:$FS$205,((3*($E$23-1)+$C$4)+($D$8)))/1000*365.25 -> 2.450976644e-05 | Q39: =VLOOKUP($D39,Point_Sources_All!$A$5:$FS$205,((3*($E$24-1)+$C$4)+($D$8)))/1000*365.25 -> 6.365759625e-08 | R39: =VLOOKUP($D39,Point_Sources_All!$A$5:$FS$205,((3*($E$25-1)+$C$4)+($D$8)))/1000*365.25 -> 0
A40: Cu | D40: 12 | E40: =VLOOKUP($D40,Point_Sources_All!$A$5:$FS$205,((3*($E$12-1)+$C$4)+($D$8)))/1000*365.25 -> 0.0002464104946 | F40: =VLOOKUP($D40,Point_Sources_All!$A$5:$FS$205,((3*($E$13-1)+$C$4)+($D$8)))/1000*365.25 -> 0 | G40: =VLOOKUP($D40,Point_Sources_All!$A$5:$FS$205,((3*($E$14-1)+$C$4)+($D$8)))/1000*365.25 -> 7.969907187e-06 | H40: =VLOOKUP($D40,Point_Sources_All!$A$5:$FS$205,((3*($E$15-1)+$C$4)+($D$8)))/1000*365.25 -> 0.0005394986 | I40: =VLOOKUP($D40,Point_Sources_All!$A$5:$FS$205,((3*($E$16-1)+$C$4)+($D$8)))/1000*365.25 -> 0 | J40: =VLOOKUP($D40,Point_Sources_All!$A$5:$FS$205,((3*($E$17-1)+$C$4)+($D$8)))/1000*365.25 -> 4.221809088e-06 | K40: =VLOOKUP($D40,Point_Sources_All!$A$5:$FS$205,((3*($E$18-1)+$C$4)+($D$8)))/1000*365.25 -> 0 | L40: =VLOOKUP($D40,Point_Sources_All!$A$5:$FS$205,((3*($E$19-1)+$C$4)+($D$8)))/1000*365.25 -> 2.530254156e-06 | M40: =VLOOKUP($D40,Point_Sources_All!$A$5:$FS$205,((3*($E$20-1)+$C$4)+($D$8)))/1000*365.25 -> 0 | N40: =VLOOKUP($D40,Point_Sources_All!$A$5:$FS$205,((3*($E$21-1)+$C$4)+($D$8)))/1000*365.25 -> 7.409187562e-06 | O40: =VLOOKUP($D40,Point_Sources_All!$A$5:$FS$205,((3*($E$22-1)+$C$4)+($D$8)))/1000*365.25 -> 8.993155062e-06 | P40: =VLOOKUP($D40,Point_Sources_All!$A$5:$FS$205,((3*($E$23-1)+$C$4)+($D$8)))/1000*365.25 -> 2.626223594e-05 | Q40: =VLOOKUP($D40,Point_Sources_All!$A$5:$FS$205,((3*($E$24-1)+$C$4)+($D$8)))/1000*365.25 -> 7.177132062e-08 | R40: =VLOOKUP($D40,Point_Sources_All!$A$5:$FS$205,((3*($E$25-1)+$C$4)+($D$8)))/1000*365.25 -> 0
A41: F | D41: 13 | E41: =VLOOKUP($D41,Point_Sources_All!$A$5:$FS$205,((3*($E$12-1)+$C$4)+($D$8)))/1000*365.25 -> 0.0002302807198 | F41: =VLOOKUP($D41,Point_Sources_All!$A$5:$FS$205,((3*($E$13-1)+$C$4)+($D$8)))/1000*365.25 -> 0 | G41: =VLOOKUP($D41,Point_Sources_All!$A$5:$FS$205,((3*($E$14-1)+$C$4)+($D$8)))/1000*365.25 -> 8.095674937e-06 | H41: =VLOOKUP($D41,Point_Sources_All!$A$5:$FS$205,((3*($E$15-1)+$C$4)+($D$8)))/1000*365.25 -> 0.0004613290125 | I41: =VLOOKUP($D41,Point_Sources_All!$A$5:$FS$205,((3*($E$16-1)+$C$4)+($D$8)))/1000*365.25 -> 0 | J41: =VLOOKUP($D41,Point_Sources_All!$A$5:$FS$205,((3*($E$17-1)+$C$4)+($D$8)))/1000*365.25 -> 1.148464706e-05 | K41: =VLOOKUP($D41,Point_Sources_All!$A$5:$FS$205,((3*($E$18-1)+$C$4)+($D$8)))/1000*365.25 -> 2.309503144e-11 | L41: =VLOOKUP($D41,Point_Sources_All!$A$5:$FS$205,((3*($E$19-1)+$C$4)+($D$8)))/1000*365.25 -> 7.698800375e-06 | M41: =VLOOKUP($D41,Point_Sources_All!$A$5:$FS$205,((3*($E$20-1)+$C$4)+($D$8)))/1000*365.25 -> 0 | N41: =VLOOKUP($D41,Point_Sources_All!$A$5:$FS$205,((3*($E$21-1)+$C$4)+($D$8)))/1000*365.25 -> 5.80053525e-06 | O41: =VLOOKUP($D41,Point_Sources_All!$A$5:$FS$205,((3*($E$22-1)+$C$4)+($D$8)))/1000*365.25 -> 6.317090063e-06 | P41: =VLOOKUP($D41,Point_Sources_All!$A$5:$FS$205,((3*($E$23-1)+$C$4)+($D$8)))/1000*365.25 -> 2.7151224e-05 | Q41: =VLOOKUP($D41,Point_Sources_All!$A$5:$FS$205,((3*($E$24-1)+$C$4)+($D$8)))/1000*365.25 -> 6.4310785e-08 | R41: =VLOOKUP($D41,Point_Sources_All!$A$5:$FS$205,((3*($E$25-1)+$C$4)+($D$8)))/1000*365.25 -> 0
A42: Fe | D42: 14 | E42: =VLOOKUP($D42,Point_Sources_All!$A$5:$FS$205,((3*($E$12-1)+$C$4)+($D$8)))/1000*365.25 -> 0.0002233096314 | F42: =VLOOKUP($D42,Point_Sources_All!$A$5:$FS$205,((3*($E$13-1)+$C$4)+($D$8)))/1000*365.25 -> 0 | G42: =VLOOKUP($D42,Point_Sources_All!$A$5:$FS$205,((3*($E$14-1)+$C$4)+($D$8)))/1000*365.25 -> 7.938526125e-06 | H42: =VLOOKUP($D42,Point_Sources_All!$A$5:$FS$205,((3*($E$15-1)+$C$4)+($D$8)))/1000*365.25 -> 0.0003643040025 | I42: =VLOOKUP($D42,Point_Sources_All!$A$5:$FS$205,((3*($E$16-1)+$C$4)+($D$8)))/1000*365.25 -> 0 | J42: =VLOOKUP($D42,Point_Sources_All!$A$5:$FS$205,((3*($E$17-1)+$C$4)+($D$8)))/1000*365.25 -> 2.019935987e-05 | K42: =VLOOKUP($D42,Point_Sources_All!$A$5:$FS$205,((3*($E$18-1)+$C$4)+($D$8)))/1000*365.25 -> 2.248390731e-10 | L42: =VLOOKUP($D42,Point_Sources_All!$A$5:$FS$205,((3*($E$19-1)+$C$4)+($D$8)))/1000*365.25 -> 1.418771013e-05 | M42: =VLOOKUP($D42,Point_Sources_All!$A$5:$FS$205,((3*($E$20-1)+$C$4)+($D$8)))/1000*365.25 -> 0 | N42: =VLOOKUP($D42,Point_Sources_All!$A$5:$FS$205,((3*($E$21-1)+$C$4)+($D$8)))/1000*365.25 -> 4.2686037e-06 | O42: =VLOOKUP($D42,Point_Sources_All!$A$5:$FS$205,((3*($E$22-1)+$C$4)+($D$8)))/1000*365.25 -> 5.110608437e-06 | P42: =VLOOKUP($D42,Point_Sources_All!$A$5:$FS$205,((3*($E$23-1)+$C$4)+($D$8)))/1000*365.25 -> 2.2029932e-05 | Q42: =VLOOKUP($D42,Point_Sources_All!$A$5:$FS$205,((3*($E$24-1)+$C$4)+($D$8)))/1000*365.25 -> 5.802878937e-08 | R42: =VLOOKUP($D42,Point_Sources_All!$A$5:$FS$205,((3*($E$25-1)+$C$4)+($D$8)))/1000*365.25 -> 0
A43: K | D43: 15 | E43: =VLOOKUP($D43,Point_Sources_All!$A$5:$FS$205,((3*($E$12-1)+$C$4)+($D$8)))/1000*365.25 -> 0.0002250682075 | F43: =VLOOKUP($D43,Point_Sources_All!$A$5:$FS$205,((3*($E$13-1)+$C$4)+($D$8)))/1000*365.25 -> 0 | G43: =VLOOKUP($D43,Point_Sources_All!$A$5:$FS$205,((3*($E$14-1)+$C$4)+($D$8)))/1000*365.25 -> 7.754501e-06 | H43: =VLOOKUP($D43,Point_Sources_All!$A$5:$FS$205,((3*($E$15-1)+$C$4)+($D$8)))/1000*365.25 -> 0.0002901217275 | I43: =VLOOKUP($D43,Point_Sources_All!$A$5:$FS$205,((3*($E$16-1)+$C$4)+($D$8)))/1000*365.25 -> 0 | J43: =VLOOKUP($D43,Point_Sources_All!$A$5:$FS$205,((3*($E$17-1)+$C$4)+($D$8)))/1000*365.25 -> 2.768811106e-05 | K43: =VLOOKUP($D43,Point_Sources_All!$A$5:$FS$205,((3*($E$18-1)+$C$4)+($D$8)))/1000*365.25 -> 1.066788719e-09 | L43: =VLOOKUP($D43,Point_Sources_All!$A$5:$FS$205,((3*($E$19-1)+$C$4)+($D$8)))/1000*365.25 -> 1.904748312e-05 | M43: =VLOOKUP($D43,Point_Sources_All!$A$5:$FS$205,((3*($E$20-1)+$C$4)+($D$8)))/1000*365.25 -> 0 | N43: =VLOOKUP($D43,Point_Sources_All!$A$5:$FS$205,((3*($E$21-1)+$C$4)+($D$8)))/1000*365.25 -> 2.933511463e-06 | O43: =VLOOKUP($D43,Point_Sources_All!$A$5:$FS$205,((3*($E$22-1)+$C$4)+($D$8)))/1000*365.25 -> 4.296861875e-06 | P43: =VLOOKUP($D43,Point_Sources_All!$A$5:$FS$205,((3*($E$23-1)+$C$4)+($D$8)))/1000*365.25 -> 1.280496494e-05 | Q43: =VLOOKUP($D43,Point_Sources_All!$A$5:$FS$205,((3*($E$24-1)+$C$4)+($D$8)))/1000*365.25 -> 5.571675687e-08 | R43: =VLOOKUP($D43,Point_Sources_All!$A$5:$FS$205,((3*($E$25-1)+$C$4)+($D$8)))/1000*365.25 -> 0
A44: Mg | D44: 16 | E44: =VLOOKUP($D44,Point_Sources_All!$A$5:$FS$205,((3*($E$12-1)+$C$4)+($D$8)))/1000*365.25 -> 0.0002292579042 | F44: =VLOOKUP($D44,Point_Sources_All!$A$5:$FS$205,((3*($E$13-1)+$C$4)+($D$8)))/1000*365.25 -> 0 | G44: =VLOOKUP($D44,Point_Sources_All!$A$5:$FS$205,((3*($E$14-1)+$C$4)+($D$8)))/1000*365.25 -> 7.646569625e-06 | H44: =VLOOKUP($D44,Point_Sources_All!$A$5:$FS$205,((3*($E$15-1)+$C$4)+($D$8)))/1000*365.25 -> 0.0002506902506 | I44: =VLOOKUP($D44,Point_Sources_All!$A$5:$FS$205,((3*($E$16-1)+$C$4)+($D$8)))/1000*365.25 -> 0 | J44: =VLOOKUP($D44,Point_Sources_All!$A$5:$FS$205,((3*($E$17-1)+$C$4)+($D$8)))/1000*365.25 -> 3.259786244e-05 | K44: =VLOOKUP($D44,Point_Sources_All!$A$5:$FS$205,((3*($E$18-1)+$C$4)+($D$8)))/1000*365.25 -> 3.451238119e-09 | L44: =VLOOKUP($D44,Point_Sources_All!$A$5:$FS$205,((3*($E$19-1)+$C$4)+($D$8)))/1000*365.25 -> 2.124297044e-05 | M44: =VLOOKUP($D44,Point_Sources_All!$A$5:$FS$205,((3*($E$20-1)+$C$4)+($D$8)))/1000*365.25 -> 0 | N44: =VLOOKUP($D44,Point_Sources_All!$A$5:$FS$205,((3*($E$21-1)+$C$4)+($D$8)))/1000*365.25 -> 1.884735656e-06 | O44: =VLOOKUP($D44,Point_Sources_All!$A$5:$FS$205,((3*($E$22-1)+$C$4)+($D$8)))/1000*365.25 -> 3.828580938e-06 | P44: =VLOOKUP($D44,Point_Sources_All!$A$5:$FS$205,((3*($E$23-1)+$C$4)+($D$8)))/1000*365.25 -> 5.639587837e-06 | Q44: =VLOOKUP($D44,Point_Sources_All!$A$5:$FS$205,((3*($E$24-1)+$C$4)+($D$8)))/1000*365.25 -> 6.319220687e-08 | R44: =VLOOKUP($D44,Point_Sources_All!$A$5:$FS$205,((3*($E$25-1)+$C$4)+($D$8)))/1000*365.25 -> 0
A45: Mn | D45: 17 | E45: =VLOOKUP($D45,Point_Sources_All!$A$5:$FS$205,((3*($E$12-1)+$C$4)+($D$8)))/1000*365.25 -> 0.0002335966563 | F45: =VLOOKUP($D45,Point_Sources_All!$A$5:$FS$205,((3*($E$13-1)+$C$4)+($D$8)))/1000*365.25 -> 0 | G45: =VLOOKUP($D45,Point_Sources_All!$A$5:$FS$205,((3*($E$14-1)+$C$4)+($D$8)))/1000*365.25 -> 7.697735062e-06 | H45: =VLOOKUP($D45,Point_Sources_All!$A$5:$FS$205,((3*($E$15-1)+$C$4)+($D$8)))/1000*365.25 -> 0.0002364403263 | I45: =VLOOKUP($D45,Point_Sources_All!$A$5:$FS$205,((3*($E$16-1)+$C$4)+($D$8)))/1000*365.25 -> 0 | J45: =VLOOKUP($D45,Point_Sources_All!$A$5:$FS$205,((3*($E$17-1)+$C$4)+($D$8)))/1000*365.25 -> 3.45207515e-05 | K45: =VLOOKUP($D45,Point_Sources_All!$A$5:$FS$205,((3*($E$18-1)+$C$4)+($D$8)))/1000*365.25 -> 8.550472063e-09 | L45: =VLOOKUP($D45,Point_Sources_All!$A$5:$FS$205,((3*($E$19-1)+$C$4)+($D$8)))/1000*365.25 -> 2.168687094e-05 | M45: =VLOOKUP($D45,Point_Sources_All!$A$5:$FS$205,((3*($E$20-1)+$C$4)+($D$8)))/1000*365.25 -> 0 | N45: =VLOOKUP($D45,Point_Sources_All!$A$5:$FS$205,((3*($E$21-1)+$C$4)+($D$8)))/1000*365.25 -> 1.1627612e-06 | O45: =VLOOKUP($D45,Point_Sources_All!$A$5:$FS$205,((3*($E$22-1)+$C$4)+($D$8)))/1000*365.25 -> 3.634569269e-06 | P45: =VLOOKUP($D45,Point_Sources_All!$A$5:$FS$205,((3*($E$23-1)+$C$4)+($D$8)))/1000*365.25 -> 2.159233206e-06 | Q45: =VLOOKUP($D45,Point_Sources_All!$A$5:$FS$205,((3*($E$24-1)+$C$4)+($D$8)))/1000*365.25 -> 5.840012688e-08 | R45: =VLOOKUP($D45,Point_Sources_All!$A$5:$FS$205,((3*($E$25-1)+$C$4)+($D$8)))/1000*365.25 -> 0
A46: Na | D46: 18 | E46: =VLOOKUP($D46,Point_Sources_All!$A$5:$FS$205,((3*($E$12-1)+$C$4)+($D$8)))/1000*365.25 -> 0.0002375509906 | F46: =VLOOKUP($D46,Point_Sources_All!$A$5:$FS$205,((3*($E$13-1)+$C$4)+($D$8)))/1000*365.25 -> 0 | G46: =VLOOKUP($D46,Point_Sources_All!$A$5:$FS$205,((3*($E$14-1)+$C$4)+($D$8)))/1000*365.25 -> 7.819850312e-06 | H46: =VLOOKUP($D46,Point_Sources_All!$A$5:$FS$205,((3*($E$15-1)+$C$4)+($D$8)))/1000*365.25 -> 0.0002328757906 | I46: =VLOOKUP($D46,Point_Sources_All!$A$5:$FS$205,((3*($E$16-1)+$C$4)+($D$8)))/1000*365.25 -> 0 | J46: =VLOOKUP($D46,Point_Sources_All!$A$5:$FS$205,((3*($E$17-1)+$C$4)+($D$8)))/1000*365.25 -> 3.453517887e-05 | K46: =VLOOKUP($D46,Point_Sources_All!$A$5:$FS$205,((3*($E$18-1)+$C$4)+($D$8)))/1000*365.25 -> 1.742403819e-08 | L46: =VLOOKUP($D46,Point_Sources_All!$A$5:$FS$205,((3*($E$19-1)+$C$4)+($D$8)))/1000*365.25 -> 2.116021088e-05 | M46: =VLOOKUP($D46,Point_Sources_All!$A$5:$FS$205,((3*($E$20-1)+$C$4)+($D$8)))/1000*365.25 -> 0 | N46: =VLOOKUP($D46,Point_Sources_All!$A$5:$FS$205,((3*($E$21-1)+$C$4)+($D$8)))/1000*365.25 -> 7.310204812e-07 | O46: =VLOOKUP($D46,Point_Sources_All!$A$5:$FS$205,((3*($E$22-1)+$C$4)+($D$8)))/1000*365.25 -> 3.660292e-06 | P46: =VLOOKUP($D46,Point_Sources_All!$A$5:$FS$205,((3*($E$23-1)+$C$4)+($D$8)))/1000*365.25 -> 7.540890625e-07 | Q46: =VLOOKUP($D46,Point_Sources_All!$A$5:$FS$205,((3*($E$24-1)+$C$4)+($D$8)))/1000*365.25 -> 7.057634438e-08 | R46: =VLOOKUP($D46,Point_Sources_All!$A$5:$FS$205,((3*($E$25-1)+$C$4)+($D$8)))/1000*365.25 -> 0
A47: Ni | D47: 19 | E47: =VLOOKUP($D47,Point_Sources_All!$A$5:$FS$205,((3*($E$12-1)+$C$4)+($D$8)))/1000*365.25 -> 0.0002406598769 | F47: =VLOOKUP($D47,Point_Sources_All!$A$5:$FS$205,((3*($E$13-1)+$C$4)+($D$8)))/1000*365.25 -> 0 | G47: =VLOOKUP($D47,Point_Sources_All!$A$5:$FS$205,((3*($E$14-1)+$C$4)+($D$8)))/1000*365.25 -> 8.027281875e-06 | H47: =VLOOKUP($D47,Point_Sources_All!$A$5:$FS$205,((3*($E$15-1)+$C$4)+($D$8)))/1000*365.25 -> 0.0002327783906 | I47: =VLOOKUP($D47,Point_Sources_All!$A$5:$FS$205,((3*($E$16-1)+$C$4)+($D$8)))/1000*365.25 -> 0 | J47: =VLOOKUP($D47,Point_Sources_All!$A$5:$FS$205,((3*($E$17-1)+$C$4)+($D$8)))/1000*365.25 -> 3.348852456e-05 | K47: =VLOOKUP($D47,Point_Sources_All!$A$5:$FS$205,((3*($E$18-1)+$C$4)+($D$8)))/1000*365.25 -> 3.1179688e-08 | L47: =VLOOKUP($D47,Point_Sources_All!$A$5:$FS$205,((3*($E$19-1)+$C$4)+($D$8)))/1000*365.25 -> 2.053061119e-05 | M47: =VLOOKUP($D47,Point_Sources_All!$A$5:$FS$205,((3*($E$20-1)+$C$4)+($D$8)))/1000*365.25 -> 0 | N47: =VLOOKUP($D47,Point_Sources_All!$A$5:$FS$205,((3*($E$21-1)+$C$4)+($D$8)))/1000*365.25 -> 5.132432125e-07 | O47: =VLOOKUP($D47,Point_Sources_All!$A$5:$FS$205,((3*($E$22-1)+$C$4)+($D$8)))/1000*365.25 -> 3.797626e-06 | P47: =VLOOKUP($D47,Point_Sources_All!$A$5:$FS$205,((3*($E$23-1)+$C$4)+($D$8)))/1000*365.25 -> 2.947941881e-07 | Q47: =VLOOKUP($D47,Point_Sources_All!$A$5:$FS$205,((3*($E$24-1)+$C$4)+($D$8)))/1000*365.25 -> 5.404421625e-08 | R47: =VLOOKUP($D47,Point_Sources_All!$A$5:$FS$205,((3*($E$25-1)+$C$4)+($D$8)))/1000*365.25 -> 0
A48: Pb | D48: 20 | E48: =VLOOKUP($D48,Point_Sources_All!$A$5:$FS$205,((3*($E$12-1)+$C$4)+($D$8)))/1000*365.25 -> 0.0002428781619 | F48: =VLOOKUP($D48,Point_Sources_All!$A$5:$FS$205,((3*($E$13-1)+$C$4)+($D$8)))/1000*365.25 -> 0 | G48: =VLOOKUP($D48,Point_Sources_All!$A$5:$FS$205,((3*($E$14-1)+$C$4)+($D$8)))/1000*365.25 -> 8.30980275e-06 | H48: =VLOOKUP($D48,Point_Sources_All!$A$5:$FS$205,((3*($E$15-1)+$C$4)+($D$8)))/1000*365.25 -> 0.0002331819919 | I48: =VLOOKUP($D48,Point_Sources_All!$A$5:$FS$205,((3*($E$16-1)+$C$4)+($D$8)))/1000*365.25 -> 0 | J48: =VLOOKUP($D48,Point_Sources_All!$A$5:$FS$205,((3*($E$17-1)+$C$4)+($D$8)))/1000*365.25 -> 3.199349544e-05 | K48: =VLOOKUP($D48,Point_Sources_All!$A$5:$FS$205,((3*($E$18-1)+$C$4)+($D$8)))/1000*365.25 -> 5.00404675e-08 | L48: =VLOOKUP($D48,Point_Sources_All!$A$5:$FS$205,((3*($E$19-1)+$C$4)+($D$8)))/1000*365.25 -> 1.996416931e-05 | M48: =VLOOKUP($D48,Point_Sources_All!$A$5:$FS$205,((3*($E$20-1)+$C$4)+($D$8)))/1000*365.25 -> 0 | N48: =VLOOKUP($D48,Point_Sources_All!$A$5:$FS$205,((3*($E$21-1)+$C$4)+($D$8)))/1000*365.25 -> 4.190421938e-07 | O48: =VLOOKUP($D48,Point_Sources_All!$A$5:$FS$205,((3*($E$22-1)+$C$4)+($D$8)))/1000*365.25 -> 4.014401875e-06 | P48: =VLOOKUP($D48,Point_Sources_All!$A$5:$FS$205,((3*($E$23-1)+$C$4)+($D$8)))/1000*365.25 -> 1.737141175e-07 | Q48: =VLOOKUP($D48,Point_Sources_All!$A$5:$FS$205,((3*($E$24-1)+$C$4)+($D$8)))/1000*365.25 -> 6.977249e-08 | R48: =VLOOKUP($D48,Point_Sources_All!$A$5:$FS$205,((3*($E$25-1)+$C$4)+($D$8)))/1000*365.25 -> 0
A49: Sb | D49: 21 | E49: =VLOOKUP($D49,Point_Sources_All!$A$5:$FS$205,((3*($E$12-1)+$C$4)+($D$8)))/1000*365.25 -> 0.0002431895375 | F49: =VLOOKUP($D49,Point_Sources_All!$A$5:$FS$205,((3*($E$13-1)+$C$4)+($D$8)))/1000*365.25 -> 0 | G49: =VLOOKUP($D49,Point_Sources_All!$A$5:$FS$205,((3*($E$14-1)+$C$4)+($D$8)))/1000*365.25 -> 8.648602563e-06 | H49: =VLOOKUP($D49,Point_Sources_All!$A$5:$FS$205,((3*($E$15-1)+$C$4)+($D$8)))/1000*365.25 -> 0.0002328843131 | I49: =VLOOKUP($D49,Point_Sources_All!$A$5:$FS$205,((3*($E$16-1)+$C$4)+($D$8)))/1000*365.25 -> 0 | J49: =VLOOKUP($D49,Point_Sources_All!$A$5:$FS$205,((3*($E$17-1)+$C$4)+($D$8)))/1000*365.25 -> 3.037358125e-05 | K49: =VLOOKUP($D49,Point_Sources_All!$A$5:$FS$205,((3*($E$18-1)+$C$4)+($D$8)))/1000*365.25 -> 7.537238125e-08 | L49: =VLOOKUP($D49,Point_Sources_All!$A$5:$FS$205,((3*($E$19-1)+$C$4)+($D$8)))/1000*365.25 -> 1.929661406e-05 | M49: =VLOOKUP($D49,Point_Sources_All!$A$5:$FS$205,((3*($E$20-1)+$C$4)+($D$8)))/1000*365.25 -> 8.484593138e-08 | N49: =VLOOKUP($D49,Point_Sources_All!$A$5:$FS$205,((3*($E$21-1)+$C$4)+($D$8)))/1000*365.25 -> 3.905100813e-07 | O49: =VLOOKUP($D49,Point_Sources_All!$A$5:$FS$205,((3*($E$22-1)+$C$4)+($D$8)))/1000*365.25 -> 4.131068813e-06 | P49: =VLOOKUP($D49,Point_Sources_All!$A$5:$FS$205,((3*($E$23-1)+$C$4)+($D$8)))/1000*365.25 -> 1.131940187e-07 | Q49: =VLOOKUP($D49,Point_Sources_All!$A$5:$FS$205,((3*($E$24-1)+$C$4)+($D$8)))/1000*365.25 -> 5.91863275e-08 | R49: =VLOOKUP($D49,Point_Sources_All!$A$5:$FS$205,((3*($E$25-1)+$C$4)+($D$8)))/1000*365.25 -> 0
A50: Se | D50: 22 | E50: =VLOOKUP($D50,Point_Sources_All!$A$5:$FS$205,((3*($E$12-1)+$C$4)+($D$8)))/1000*365.25 -> 0.0002368442319 | F50: =VLOOKUP($D50,Point_Sources_All!$A$5:$FS$205,((3*($E$13-1)+$C$4)+($D$8)))/1000*365.25 -> 0 | G50: =VLOOKUP($D50,Point_Sources_All!$A$5:$FS$205,((3*($E$14-1)+$C$4)+($D$8)))/1000*365.25 -> 8.86766125e-06 | H50: =VLOOKUP($D50,Point_Sources_All!$A$5:$FS$205,((3*($E$15-1)+$C$4)+($D$8)))/1000*365.25 -> 0.0002285746675 | I50: =VLOOKUP($D50,Point_Sources_All!$A$5:$FS$205,((3*($E$16-1)+$C$4)+($D$8)))/1000*365.25 -> 0 | J50: =VLOOKUP($D50,Point_Sources_All!$A$5:$FS$205,((3*($E$17-1)+$C$4)+($D$8)))/1000*365.25 -> 2.878474375e-05 | K50: =VLOOKUP($D50,Point_Sources_All!$A$5:$FS$205,((3*($E$18-1)+$C$4)+($D$8)))/1000*365.25 -> 1.087066181e-07 | L50: =VLOOKUP($D50,Point_Sources_All!$A$5:$FS$205,((3*($E$19-1)+$C$4)+($D$8)))/1000*365.25 -> 1.862960669e-05 | M50: =VLOOKUP($D50,Point_Sources_All!$A$5:$FS$205,((3*($E$20-1)+$C$4)+($D$8)))/1000*365.25 -> 1.676524285e-06 | N50: =VLOOKUP($D50,Point_Sources_All!$A$5:$FS$205,((3*($E$21-1)+$C$4)+($D$8)))/1000*365.25 -> 3.85789225e-07 | O50: =VLOOKUP($D50,Point_Sources_All!$A$5:$FS$205,((3*($E$22-1)+$C$4)+($D$8)))/1000*365.25 -> 4.2230205e-06 | P50: =VLOOKUP($D50,Point_Sources_All!$A$5:$FS$205,((3*($E$23-1)+$C$4)+($D$8)))/1000*365.25 -> 7.404013187e-08 | Q50: =VLOOKUP($D50,Point_Sources_All!$A$5:$FS$205,((3*($E$24-1)+$C$4)+($D$8)))/1000*365.25 -> 6.043122125e-08 | R50: =VLOOKUP($D50,Point_Sources_All!$A$5:$FS$205,((3*($E$25-1)+$C$4)+($D$8)))/1000*365.25 -> 0
A51: SO4 | D51: 23 | E51: =VLOOKUP($D51,Point_Sources_All!$A$5:$FS$205,((3*($E$12-1)+$C$4)+($D$8)))/1000*365.25 -> 0.0002261232313 | F51: =VLOOKUP($D51,Point_Sources_All!$A$5:$FS$205,((3*($E$13-1)+$C$4)+($D$8)))/1000*365.25 -> 0 | G51: =VLOOKUP($D51,Point_Sources_All!$A$5:$FS$205,((3*($E$14-1)+$C$4)+($D$8)))/1000*365.25 -> 9.219214375e-06 | H51: =VLOOKUP($D51,Point_Sources_All!$A$5:$FS$205,((3*($E$15-1)+$C$4)+($D$8)))/1000*365.25 -> 0.000213347395 | I51: =VLOOKUP($D51,Point_Sources_All!$A$5:$FS$205,((3*($E$16-1)+$C$4)+($D$8)))/1000*365.25 -> 0 | J51: =VLOOKUP($D51,Point_Sources_All!$A$5:$FS$205,((3*($E$17-1)+$C$4)+($D$8)))/1000*365.25 -> 2.670784094e-05 | K51: =VLOOKUP($D51,Point_Sources_All!$A$5:$FS$205,((3*($E$18-1)+$C$4)+($D$8)))/1000*365.25 -> 1.511803231e-07 | L51: =VLOOKUP($D51,Point_Sources_All!$A$5:$FS$205,((3*($E$19-1)+$C$4)+($D$8)))/1000*365.25 -> 1.723900863e-05 | M51: =VLOOKUP($D51,Point_Sources_All!$A$5:$FS$205,((3*($E$20-1)+$C$4)+($D$8)))/1000*365.25 -> 9.213370375e-06 | N51: =VLOOKUP($D51,Point_Sources_All!$A$5:$FS$205,((3*($E$21-1)+$C$4)+($D$8)))/1000*365.25 -> 3.913440688e-07 | O51: =VLOOKUP($D51,Point_Sources_All!$A$5:$FS$205,((3*($E$22-1)+$C$4)+($D$8)))/1000*365.25 -> 4.268068e-06 | P51: =VLOOKUP($D51,Point_Sources_All!$A$5:$FS$205,((3*($E$23-1)+$C$4)+($D$8)))/1000*365.25 -> 4.464350306e-08 | Q51: =VLOOKUP($D51,Point_Sources_All!$A$5:$FS$205,((3*($E$24-1)+$C$4)+($D$8)))/1000*365.25 -> 6.858634062e-08 | R51: =VLOOKUP($D51,Point_Sources_All!$A$5:$FS$205,((3*($E$25-1)+$C$4)+($D$8)))/1000*365.25 -> 0
A52: Tl | D52: 24 | E52: =VLOOKUP($D52,Point_Sources_All!$A$5:$FS$205,((3*($E$12-1)+$C$4)+($D$8)))/1000*365.25 -> 0.0002212194456 | F52: =VLOOKUP($D52,Point_Sources_All!$A$5:$FS$205,((3*($E$13-1)+$C$4)+($D$8)))/1000*365.25 -> 0 | G52: =VLOOKUP($D52,Point_Sources_All!$A$5:$FS$205,((3*($E$14-1)+$C$4)+($D$8)))/1000*365.25 -> 9.493030125e-06 | H52: =VLOOKUP($D52,Point_Sources_All!$A$5:$FS$205,((3*($E$15-1)+$C$4)+($D$8)))/1000*365.25 -> 0.0001813502775 | I52: =VLOOKUP($D52,Point_Sources_All!$A$5:$FS$205,((3*($E$16-1)+$C$4)+($D$8)))/1000*365.25 -> 0 | J52: =VLOOKUP($D52,Point_Sources_All!$A$5:$FS$205,((3*($E$17-1)+$C$4)+($D$8)))/1000*365.25 -> 2.408641125e-05 | K52: =VLOOKUP($D52,Point_Sources_All!$A$5:$FS$205,((3*($E$18-1)+$C$4)+($D$8)))/1000*365.25 -> 2.022988869e-07 | L52: =VLOOKUP($D52,Point_Sources_All!$A$5:$FS$205,((3*($E$19-1)+$C$4)+($D$8)))/1000*365.25 -> 1.490445237e-05 | M52: =VLOOKUP($D52,Point_Sources_All!$A$5:$FS$205,((3*($E$20-1)+$C$4)+($D$8)))/1000*365.25 -> 2.409557294e-05 | N52: =VLOOKUP($D52,Point_Sources_All!$A$5:$FS$205,((3*($E$21-1)+$C$4)+($D$8)))/1000*365.25 -> 3.977846437e-07 | O52: =VLOOKUP($D52,Point_Sources_All!$A$5:$FS$205,((3*($E$22-1)+$C$4)+($D$8)))/1000*365.25 -> 4.333356437e-06 | P52: =VLOOKUP($D52,Point_Sources_All!$A$5:$FS$205,((3*($E$23-1)+$C$4)+($D$8)))/1000*365.25 -> 2.276922844e-08 | Q52: =VLOOKUP($D52,Point_Sources_All!$A$5:$FS$205,((3*($E$24-1)+$C$4)+($D$8)))/1000*365.25 -> 6.047292062e-08 | R52: =VLOOKUP($D52,Point_Sources_All!$A$5:$FS$205,((3*($E$25-1)+$C$4)+($D$8)))/1000*365.25 -> 0
A53: V | D53: 25 | E53: =VLOOKUP($D53,Point_Sources_All!$A$5:$FS$205,((3*($E$12-1)+$C$4)+($D$8)))/1000*365.25 -> 0.0002217575806 | F53: =VLOOKUP($D53,Point_Sources_All!$A$5:$FS$205,((3*($E$13-1)+$C$4)+($D$8)))/1000*365.25 -> 0 | G53: =VLOOKUP($D53,Point_Sources_All!$A$5:$FS$205,((3*($E$14-1)+$C$4)+($D$8)))/1000*365.25 -> 9.827629562e-06 | H53: =VLOOKUP($D53,Point_Sources_All!$A$5:$FS$205,((3*($E$15-1)+$C$4)+($D$8)))/1000*365.25 -> 0.0001371742031 | I53: =VLOOKUP($D53,Point_Sources_All!$A$5:$FS$205,((3*($E$16-1)+$C$4)+($D$8)))/1000*365.25 -> 8.699436231e-11 | J53: =VLOOKUP($D53,Point_Sources_All!$A$5:$FS$205,((3*($E$17-1)+$C$4)+($D$8)))/1000*365.25 -> 2.039887769e-05 | K53: =VLOOKUP($D53,Point_Sources_All!$A$5:$FS$205,((3*($E$18-1)+$C$4)+($D$8)))/1000*365.25 -> 2.645037012e-07 | L53: =VLOOKUP($D53,Point_Sources_All!$A$5:$FS$205,((3*($E$19-1)+$C$4)+($D$8)))/1000*365.25 -> 1.175998469e-05 | M53: =VLOOKUP($D53,Point_Sources_All!$A$5:$FS$205,((3*($E$20-1)+$C$4)+($D$8)))/1000*365.25 -> 3.615323637e-05 | N53: =VLOOKUP($D53,Point_Sources_All!$A$5:$FS$205,((3*($E$21-1)+$C$4)+($D$8)))/1000*365.25 -> 4.046391688e-07 | O53: =VLOOKUP($D53,Point_Sources_All!$A$5:$FS$205,((3*($E$22-1)+$C$4)+($D$8)))/1000*365.25 -> 4.379895375e-06 | P53: =VLOOKUP($D53,Point_Sources_All!$A$5:$FS$205,((3*($E$23-1)+$C$4)+($D$8)))/1000*365.25 -> 9.764076063e-09 | Q53: =VLOOKUP($D53,Point_Sources_All!$A$5:$FS$205,((3*($E$24-1)+$C$4)+($D$8)))/1000*365.25 -> 6.986684625e-08 | R53: =VLOOKUP($D53,Point_Sources_All!$A$5:$FS$205,((3*($E$25-1)+$C$4)+($D$8)))/1000*365.25 -> 0
A54: Zn | D54: 26 | E54: =VLOOKUP($D54,Point_Sources_All!$A$5:$FS$205,((3*($E$12-1)+$C$4)+($D$8)))/1000*365.25 -> 0.0002226110481 | F54: =VLOOKUP($D54,Point_Sources_All!$A$5:$FS$205,((3*($E$13-1)+$C$4)+($D$8)))/1000*365.25 -> 0 | G54: =VLOOKUP($D54,Point_Sources_All!$A$5:$FS$205,((3*($E$14-1)+$C$4)+($D$8)))/1000*365.25 -> 1.004912325e-05 | H54: =VLOOKUP($D54,Point_Sources_All!$A$5:$FS$205,((3*($E$15-1)+$C$4)+($D$8)))/1000*365.25 -> 8.750446438e-05 | I54: =VLOOKUP($D54,Point_Sources_All!$A$5:$FS$205,((3*($E$16-1)+$C$4)+($D$8)))/1000*365.25 -> 7.475882213e-10 | J54: =VLOOKUP($D54,Point_Sources_All!$A$5:$FS$205,((3*($E$17-1)+$C$4)+($D$8)))/1000*365.25 -> 1.483581581e-05 | K54: =VLOOKUP($D54,Point_Sources_All!$A$5:$FS$205,((3*($E$18-1)+$C$4)+($D$8)))/1000*365.25 -> 3.303104894e-07 | L54: =VLOOKUP($D54,Point_Sources_All!$A$5:$FS$205,((3*($E$19-1)+$C$4)+($D$8)))/1000*365.25 -> 8.306272e-06 | M54: =VLOOKUP($D54,Point_Sources_All!$A$5:$FS$205,((3*($E$20-1)+$C$4)+($D$8)))/1000*365.25 -> 3.526598325e-05 | N54: =VLOOKUP($D54,Point_Sources_All!$A$5:$FS$205,((3*($E$21-1)+$C$4)+($D$8)))/1000*365.25 -> 4.087208375e-07 | O54: =VLOOKUP($D54,Point_Sources_All!$A$5:$FS$205,((3*($E$22-1)+$C$4)+($D$8)))/1000*365.25 -> 4.398888375e-06 | P54: =VLOOKUP($D54,Point_Sources_All!$A$5:$FS$205,((3*($E$23-1)+$C$4)+($D$8)))/1000*365.25 -> 3.447956956e-09 | Q54: =VLOOKUP($D54,Point_Sources_All!$A$5:$FS$205,((3*($E$24-1)+$C$4)+($D$8)))/1000*365.25 -> 6.886088687e-08 | R54: =VLOOKUP($D54,Point_Sources_All!$A$5:$FS$205,((3*($E$25-1)+$C$4)+($D$8)))/1000*365.25 -> 0
D55: 27 | E55: =VLOOKUP($D55,Point_Sources_All!$A$5:$FS$205,((3*($E$12-1)+$C$4)+($D$8)))/1000*365.25 -> 0.0002226031344 | F55: =VLOOKUP($D55,Point_Sources_All!$A$5:$FS$205,((3*($E$13-1)+$C$4)+($D$8)))/1000*365.25 -> 0 | G55: =VLOOKUP($D55,Point_Sources_All!$A$5:$FS$205,((3*($E$14-1)+$C$4)+($D$8)))/1000*365.25 -> 1.01931535e-05 | H55: =VLOOKUP($D55,Point_Sources_All!$A$5:$FS$205,((3*($E$15-1)+$C$4)+($D$8)))/1000*365.25 -> 4.763286125e-05 | I55: =VLOOKUP($D55,Point_Sources_All!$A$5:$FS$205,((3*($E$16-1)+$C$4)+($D$8)))/1000*365.25 -> 3.244037881e-09 | J55: =VLOOKUP($D55,Point_Sources_All!$A$5:$FS$205,((3*($E$17-1)+$C$4)+($D$8)))/1000*365.25 -> 9.043163875e-06 | K55: =VLOOKUP($D55,Point_Sources_All!$A$5:$FS$205,((3*($E$18-1)+$C$4)+($D$8)))/1000*365.25 -> 3.943908625e-07 | L55: =VLOOKUP($D55,Point_Sources_All!$A$5:$FS$205,((3*($E$19-1)+$C$4)+($D$8)))/1000*365.25 -> 5.068391625e-06 | M55: =VLOOKUP($D55,Point_Sources_All!$A$5:$FS$205,((3*($E$20-1)+$C$4)+($D$8)))/1000*365.25 -> 2.5195432e-05 | N55: =VLOOKUP($D55,Point_Sources_All!$A$5:$FS$205,((3*($E$21-1)+$C$4)+($D$8)))/1000*365.25 -> 4.121511437e-07 | O55: =VLOOKUP($D55,Point_Sources_All!$A$5:$FS$205,((3*($E$22-1)+$C$4)+($D$8)))/1000*365.25 -> 4.482287125e-06 | P55: =VLOOKUP($D55,Point_Sources_All!$A$5:$FS$205,((3*($E$23-1)+$C$4)+($D$8)))/1000*365.25 -> 1.006659438e-09 | Q55: =VLOOKUP($D55,Point_Sources_All!$A$5:$FS$205,((3*($E$24-1)+$C$4)+($D$8)))/1000*365.25 -> 5.611701e-08 | R55: =VLOOKUP($D55,Point_Sources_All!$A$5:$FS$205,((3*($E$25-1)+$C$4)+($D$8)))/1000*365.25 -> 0
D56: 28 | E56: =VLOOKUP($D56,Point_Sources_All!$A$5:$FS$205,((3*($E$12-1)+$C$4)+($D$8)))/1000*365.25 -> 0.0002222324056 | F56: =VLOOKUP($D56,Point_Sources_All!$A$5:$FS$205,((3*($E$13-1)+$C$4)+($D$8)))/1000*365.25 -> 0 | G56: =VLOOKUP($D56,Point_Sources_All!$A$5:$FS$205,((3*($E$14-1)+$C$4)+($D$8)))/1000*365.25 -> 1.034762381e-05 | H56: =VLOOKUP($D56,Point_Sources_All!$A$5:$FS$205,((3*($E$15-1)+$C$4)+($D$8)))/1000*365.25 -> 2.525938119e-05 | I56: =VLOOKUP($D56,Point_Sources_All!$A$5:$FS$205,((3*($E$16-1)+$C$4)+($D$8)))/1000*365.25 -> 9.393895188e-09 | J56: =VLOOKUP($D56,Point_Sources_All!$A$5:$FS$205,((3*($E$17-1)+$C$4)+($D$8)))/1000*365.25 -> 5.002768375e-06 | K56: =VLOOKUP($D56,Point_Sources_All!$A$5:$FS$205,((3*($E$18-1)+$C$4)+($D$8)))/1000*365.25 -> 4.449232e-07 | L56: =VLOOKUP($D56,Point_Sources_All!$A$5:$FS$205,((3*($E$19-1)+$C$4)+($D$8)))/1000*365.25 -> 2.715548525e-06 | M56: =VLOOKUP($D56,Point_Sources_All!$A$5:$FS$205,((3*($E$20-1)+$C$4)+($D$8)))/1000*365.25 -> 1.53405e-05 | N56: =VLOOKUP($D56,Point_Sources_All!$A$5:$FS$205,((3*($E$21-1)+$C$4)+($D$8)))/1000*365.25 -> 4.224024937e-07 | O56: =VLOOKUP($D56,Point_Sources_All!$A$5:$FS$205,((3*($E$22-1)+$C$4)+($D$8)))/1000*365.25 -> 4.524077812e-06 | P56: =VLOOKUP($D56,Point_Sources_All!$A$5:$FS$205,((3*($E$23-1)+$C$4)+($D$8)))/1000*365.25 -> 2.447290663e-10 | Q56: =VLOOKUP($D56,Point_Sources_All!$A$5:$FS$205,((3*($E$24-1)+$C$4)+($D$8)))/1000*365.25 -> 5.546229937e-08 | R56: =VLOOKUP($D56,Point_Sources_All!$A$5:$FS$205,((3*($E$25-1)+$C$4)+($D$8)))/1000*365.25 -> 0
D57: 29 | E57: =VLOOKUP($D57,Point_Sources_All!$A$5:$FS$205,((3*($E$12-1)+$C$4)+($D$8)))/1000*365.25 -> 0.0002217898444 | F57: =VLOOKUP($D57,Point_Sources_All!$A$5:$FS$205,((3*($E$13-1)+$C$4)+($D$8)))/1000*365.25 -> 0 | G57: =VLOOKUP($D57,Point_Sources_All!$A$5:$FS$205,((3*($E$14-1)+$C$4)+($D$8)))/1000*365.25 -> 1.031356425e-05 | H57: =VLOOKUP($D57,Point_Sources_All!$A$5:$FS$205,((3*($E$15-1)+$C$4)+($D$8)))/1000*365.25 -> 1.57167075e-05 | I57: =VLOOKUP($D57,Point_Sources_All!$A$5:$FS$205,((3*($E$16-1)+$C$4)+($D$8)))/1000*365.25 -> 2.023408906e-08 | J57: =VLOOKUP($D57,Point_Sources_All!$A$5:$FS$205,((3*($E$17-1)+$C$4)+($D$8)))/1000*365.25 -> 3.074278812e-06 | K57: =VLOOKUP($D57,Point_Sources_All!$A$5:$FS$205,((3*($E$18-1)+$C$4)+($D$8)))/1000*365.25 -> 4.734766188e-07 | L57: =VLOOKUP($D57,Point_Sources_All!$A$5:$FS$205,((3*($E$19-1)+$C$4)+($D$8)))/1000*365.25 -> 1.461867469e-06 | M57: =VLOOKUP($D57,Point_Sources_All!$A$5:$FS$205,((3*($E$20-1)+$C$4)+($D$8)))/1000*365.25 -> 9.891609188e-06 | N57: =VLOOKUP($D57,Point_Sources_All!$A$5:$FS$205,((3*($E$21-1)+$C$4)+($D$8)))/1000*365.25 -> 4.313176375e-07 | O57: =VLOOKUP($D57,Point_Sources_All!$A$5:$FS$205,((3*($E$22-1)+$C$4)+($D$8)))/1000*365.25 -> 4.485300438e-06 | P57: =VLOOKUP($D57,Point_Sources_All!$A$5:$FS$205,((3*($E$23-1)+$C$4)+($D$8)))/1000*365.25 -> 5.141879925e-11 | Q57: =VLOOKUP($D57,Point_Sources_All!$A$5:$FS$205,((3*($E$24-1)+$C$4)+($D$8)))/1000*365.25 -> 6.852059563e-08 | R57: =VLOOKUP($D57,Point_Sources_All!$A$5:$FS$205,((3*($E$25-1)+$C$4)+($D$8)))/1000*365.25 -> 0
D58: 30 | E58: =VLOOKUP($D58,Point_Sources_All!$A$5:$FS$205,((3*($E$12-1)+$C$4)+($D$8)))/1000*365.25 -> 0.0002213357169 | F58: =VLOOKUP($D58,Point_Sources_All!$A$5:$FS$205,((3*($E$13-1)+$C$4)+($D$8)))/1000*365.25 -> 0 | G58: =VLOOKUP($D58,Point_Sources_All!$A$5:$FS$205,((3*($E$14-1)+$C$4)+($D$8)))/1000*365.25 -> 1.021178125e-05 | H58: =VLOOKUP($D58,Point_Sources_All!$A$5:$FS$205,((3*($E$15-1)+$C$4)+($D$8)))/1000*365.25 -> 1.25969855e-05 | I58: =VLOOKUP($D58,Point_Sources_All!$A$5:$FS$205,((3*($E$16-1)+$C$4)+($D$8)))/1000*365.25 -> 3.509115025e-08 | J58: =VLOOKUP($D58,Point_Sources_All!$A$5:$FS$205,((3*($E$17-1)+$C$4)+($D$8)))/1000*365.25 -> 2.389827706e-06 | K58: =VLOOKUP($D58,Point_Sources_All!$A$5:$FS$205,((3*($E$18-1)+$C$4)+($D$8)))/1000*365.25 -> 4.78806225e-07 | L58: =VLOOKUP($D58,Point_Sources_All!$A$5:$FS$205,((3*($E$19-1)+$C$4)+($D$8)))/1000*365.25 -> 9.406100625e-07 | M58: =VLOOKUP($D58,Point_Sources_All!$A$5:$FS$205,((3*($E$20-1)+$C$4)+($D$8)))/1000*365.25 -> 7.859693e-06 | N58: =VLOOKUP($D58,Point_Sources_All!$A$5:$FS$205,((3*($E$21-1)+$C$4)+($D$8)))/1000*365.25 -> 4.485939625e-07 | O58: =VLOOKUP($D58,Point_Sources_All!$A$5:$FS$205,((3*($E$22-1)+$C$4)+($D$8)))/1000*365.25 -> 4.491266188e-06 | P58: =VLOOKUP($D58,Point_Sources_All!$A$5:$FS$205,((3*($E$23-1)+$C$4)+($D$8)))/1000*365.25 -> 9.269174487e-12 | Q58: =VLOOKUP($D58,Point_Sources_All!$A$5:$FS$205,((3*($E$24-1)+$C$4)+($D$8)))/1000*365.25 -> 6.37689975e-08 | R58: =VLOOKUP($D58,Point_Sources_All!$A$5:$FS$205,((3*($E$25-1)+$C$4)+($D$8)))/1000*365.25 -> 0
D59: 31 | E59: =VLOOKUP($D59,Point_Sources_All!$A$5:$FS$205,((3*($E$12-1)+$C$4)+($D$8)))/1000*365.25 -> 0.0002208818938 | F59: =VLOOKUP($D59,Point_Sources_All!$A$5:$FS$205,((3*($E$13-1)+$C$4)+($D$8)))/1000*365.25 -> 0 | G59: =VLOOKUP($D59,Point_Sources_All!$A$5:$FS$205,((3*($E$14-1)+$C$4)+($D$8)))/1000*365.25 -> 9.90180575e-06 | H59: =VLOOKUP($D59,Point_Sources_All!$A$5:$FS$205,((3*($E$15-1)+$C$4)+($D$8)))/1000*365.25 -> 1.170233606e-05 | I59: =VLOOKUP($D59,Point_Sources_All!$A$5:$FS$205,((3*($E$16-1)+$C$4)+($D$8)))/1000*365.25 -> 5.148777062e-08 | J59: =VLOOKUP($D59,Point_Sources_All!$A$5:$FS$205,((3*($E$17-1)+$C$4)+($D$8)))/1000*365.25 -> 2.278986506e-06 | K59: =VLOOKUP($D59,Point_Sources_All!$A$5:$FS$205,((3*($E$18-1)+$C$4)+($D$8)))/1000*365.25 -> 4.613868437e-07 | L59: =VLOOKUP($D59,Point_Sources_All!$A$5:$FS$205,((3*($E$19-1)+$C$4)+($D$8)))/1000*365.25 -> 7.47703275e-07 | M59: =VLOOKUP($D59,Point_Sources_All!$A$5:$FS$205,((3*($E$20-1)+$C$4)+($D$8)))/1000*365.25 -> 7.323719062e-06 | N59: =VLOOKUP($D59,Point_Sources_All!$A$5:$FS$205,((3*($E$21-1)+$C$4)+($D$8)))/1000*365.25 -> 4.818104062e-07 | O59: =VLOOKUP($D59,Point_Sources_All!$A$5:$FS$205,((3*($E$22-1)+$C$4)+($D$8)))/1000*365.25 -> 4.482043625e-06 | P59: =VLOOKUP($D59,Point_Sources_All!$A$5:$FS$205,((3*($E$23-1)+$C$4)+($D$8)))/1000*365.25 -> 1.136947156e-12 | Q59: =VLOOKUP($D59,Point_Sources_All!$A$5:$FS$205,((3*($E$24-1)+$C$4)+($D$8)))/1000*365.25 -> 6.2021885e-08 | R59: =VLOOKUP($D59,Point_Sources_All!$A$5:$FS$205,((3*($E$25-1)+$C$4)+($D$8)))/1000*365.25 -> 0
D60: 32 | E60: =VLOOKUP($D60,Point_Sources_All!$A$5:$FS$205,((3*($E$12-1)+$C$4)+($D$8)))/1000*365.25 -> 0.0002202420975 | F60: =VLOOKUP($D60,Point_Sources_All!$A$5:$FS$205,((3*($E$13-1)+$C$4)+($D$8)))/1000*365.25 -> 0 | G60: =VLOOKUP($D60,Point_Sources_All!$A$5:$FS$205,((3*($E$14-1)+$C$4)+($D$8)))/1000*365.25 -> 9.545869625e-06 | H60: =VLOOKUP($D60,Point_Sources_All!$A$5:$FS$205,((3*($E$15-1)+$C$4)+($D$8)))/1000*365.25 -> 1.162435519e-05 | I60: =VLOOKUP($D60,Point_Sources_All!$A$5:$FS$205,((3*($E$16-1)+$C$4)+($D$8)))/1000*365.25 -> 6.573130312e-08 | J60: =VLOOKUP($D60,Point_Sources_All!$A$5:$FS$205,((3*($E$17-1)+$C$4)+($D$8)))/1000*365.25 -> 2.375586e-06 | K60: =VLOOKUP($D60,Point_Sources_All!$A$5:$FS$205,((3*($E$18-1)+$C$4)+($D$8)))/1000*365.25 -> 4.330799688e-07 | L60: =VLOOKUP($D60,Point_Sources_All!$A$5:$FS$205,((3*($E$19-1)+$C$4)+($D$8)))/1000*365.25 -> 6.865817313e-07 | M60: =VLOOKUP($D60,Point_Sources_All!$A$5:$FS$205,((3*($E$20-1)+$C$4)+($D$8)))/1000*365.25 -> 7.354095688e-06 | N60: =VLOOKUP($D60,Point_Sources_All!$A$5:$FS$205,((3*($E$21-1)+$C$4)+($D$8)))/1000*365.25 -> 5.247516312e-07 | O60: =VLOOKUP($D60,Point_Sources_All!$A$5:$FS$205,((3*($E$22-1)+$C$4)+($D$8)))/1000*365.25 -> 4.501249687e-06 | P60: =VLOOKUP($D60,Point_Sources_All!$A$5:$FS$205,((3*($E$23-1)+$C$4)+($D$8)))/1000*365.25 -> 1.254131531e-14 | Q60: =VLOOKUP($D60,Point_Sources_All!$A$5:$FS$205,((3*($E$24-1)+$C$4)+($D$8)))/1000*365.25 -> 6.699385062e-08 | R60: =VLOOKUP($D60,Point_Sources_All!$A$5:$FS$205,((3*($E$25-1)+$C$4)+($D$8)))/1000*365.25 -> 0
D61: 33 | E61: =VLOOKUP($D61,Point_Sources_All!$A$5:$FS$205,((3*($E$12-1)+$C$4)+($D$8)))/1000*365.25 -> 0.0002140906788 | F61: =VLOOKUP($D61,Point_Sources_All!$A$5:$FS$205,((3*($E$13-1)+$C$4)+($D$8)))/1000*365.25 -> 0 | G61: =VLOOKUP($D61,Point_Sources_All!$A$5:$FS$205,((3*($E$14-1)+$C$4)+($D$8)))/1000*365.25 -> 9.216870688e-06 | H61: =VLOOKUP($D61,Point_Sources_All!$A$5:$FS$205,((3*($E$15-1)+$C$4)+($D$8)))/1000*365.25 -> 1.1708454e-05 | I61: =VLOOKUP($D61,Point_Sources_All!$A$5:$FS$205,((3*($E$16-1)+$C$4)+($D$8)))/1000*365.25 -> 7.69593925e-08 | J61: =VLOOKUP($D61,Point_Sources_All!$A$5:$FS$205,((3*($E$17-1)+$C$4)+($D$8)))/1000*365.25 -> 2.5307442e-06 | K61: =VLOOKUP($D61,Point_Sources_All!$A$5:$FS$205,((3*($E$18-1)+$C$4)+($D$8)))/1000*365.25 -> 3.9775725e-07 | L61: =VLOOKUP($D61,Point_Sources_All!$A$5:$FS$205,((3*($E$19-1)+$C$4)+($D$8)))/1000*365.25 -> 6.554228625e-07 | M61: =VLOOKUP($D61,Point_Sources_All!$A$5:$FS$205,((3*($E$20-1)+$C$4)+($D$8)))/1000*365.25 -> 7.540373187e-06 | N61: =VLOOKUP($D61,Point_Sources_All!$A$5:$FS$205,((3*($E$21-1)+$C$4)+($D$8)))/1000*365.25 -> 5.722706562e-07 | O61: =VLOOKUP($D61,Point_Sources_All!$A$5:$FS$205,((3*($E$22-1)+$C$4)+($D$8)))/1000*365.25 -> 4.558533063e-06 | P61: =VLOOKUP($D61,Point_Sources_All!$A$5:$FS$205,((3*($E$23-1)+$C$4)+($D$8)))/1000*365.25 -> 0 | Q61: =VLOOKUP($D61,Point_Sources_All!$A$5:$FS$205,((3*($E$24-1)+$C$4)+($D$8)))/1000*365.25 -> 6.521812688e-08 | R61: =VLOOKUP($D61,Point_Sources_All!$A$5:$FS$205,((3*($E$25-1)+$C$4)+($D$8)))/1000*365.25 -> 0
D62: 34 | E62: =VLOOKUP($D62,Point_Sources_All!$A$5:$FS$205,((3*($E$12-1)+$C$4)+($D$8)))/1000*365.25 -> 0.0001851574 | F62: =VLOOKUP($D62,Point_Sources_All!$A$5:$FS$205,((3*($E$13-1)+$C$4)+($D$8)))/1000*365.25 -> 0 | G62: =VLOOKUP($D62,Point_Sources_All!$A$5:$FS$205,((3*($E$14-1)+$C$4)+($D$8)))/1000*365.25 -> 8.872135562e-06 | H62: =VLOOKUP($D62,Point_Sources_All!$A$5:$FS$205,((3*($E$15-1)+$C$4)+($D$8)))/1000*365.25 -> 1.169503106e-05 | I62: =VLOOKUP($D62,Point_Sources_All!$A$5:$FS$205,((3*($E$16-1)+$C$4)+($D$8)))/1000*365.25 -> 8.437214125e-08 | J62: =VLOOKUP($D62,Point_Sources_All!$A$5:$FS$205,((3*($E$17-1)+$C$4)+($D$8)))/1000*365.25 -> 2.667999063e-06 | K62: =VLOOKUP($D62,Point_Sources_All!$A$5:$FS$205,((3*($E$18-1)+$C$4)+($D$8)))/1000*365.25 -> 3.590179219e-07 | L62: =VLOOKUP($D62,Point_Sources_All!$A$5:$FS$205,((3*($E$19-1)+$C$4)+($D$8)))/1000*365.25 -> 6.253140875e-07 | M62: =VLOOKUP($D62,Point_Sources_All!$A$5:$FS$205,((3*($E$20-1)+$C$4)+($D$8)))/1000*365.25 -> 7.66087525e-06 | N62: =VLOOKUP($D62,Point_Sources_All!$A$5:$FS$205,((3*($E$21-1)+$C$4)+($D$8)))/1000*365.25 -> 6.231743313e-07 | O62: =VLOOKUP($D62,Point_Sources_All!$A$5:$FS$205,((3*($E$22-1)+$C$4)+($D$8)))/1000*365.25 -> 4.621903938e-06 | P62: =VLOOKUP($D62,Point_Sources_All!$A$5:$FS$205,((3*($E$23-1)+$C$4)+($D$8)))/1000*365.25 -> 0 | Q62: =VLOOKUP($D62,Point_Sources_All!$A$5:$FS$205,((3*($E$24-1)+$C$4)+($D$8)))/1000*365.25 -> 6.260598063e-08 | R62: =VLOOKUP($D62,Point_Sources_All!$A$5:$FS$205,((3*($E$25-1)+$C$4)+($D$8)))/1000*365.25 -> 0
D63: 35 | E63: =VLOOKUP($D63,Point_Sources_All!$A$5:$FS$205,((3*($E$12-1)+$C$4)+($D$8)))/1000*365.25 -> 0.0001395221519 | F63: =VLOOKUP($D63,Point_Sources_All!$A$5:$FS$205,((3*($E$13-1)+$C$4)+($D$8)))/1000*365.25 -> 0 | G63: =VLOOKUP($D63,Point_Sources_All!$A$5:$FS$205,((3*($E$14-1)+$C$4)+($D$8)))/1000*365.25 -> 8.499428375e-06 | H63: =VLOOKUP($D63,Point_Sources_All!$A$5:$FS$205,((3*($E$15-1)+$C$4)+($D$8)))/1000*365.25 -> 1.165786688e-05 | I63: =VLOOKUP($D63,Point_Sources_All!$A$5:$FS$205,((3*($E$16-1)+$C$4)+($D$8)))/1000*365.25 -> 8.865561063e-08 | J63: =VLOOKUP($D63,Point_Sources_All!$A$5:$FS$205,((3*($E$17-1)+$C$4)+($D$8)))/1000*365.25 -> 2.808206363e-06 | K63: =VLOOKUP($D63,Point_Sources_All!$A$5:$FS$205,((3*($E$18-1)+$C$4)+($D$8)))/1000*365.25 -> 3.221313244e-07 | L63: =VLOOKUP($D63,Point_Sources_All!$A$5:$FS$205,((3*($E$19-1)+$C$4)+($D$8)))/1000*365.25 -> 5.935464688e-07 | M63: =VLOOKUP($D63,Point_Sources_All!$A$5:$FS$205,((3*($E$20-1)+$C$4)+($D$8)))/1000*365.25 -> 7.780646813e-06 | N63: =VLOOKUP($D63,Point_Sources_All!$A$5:$FS$205,((3*($E$21-1)+$C$4)+($D$8)))/1000*365.25 -> 6.822383e-07 | O63: =VLOOKUP($D63,Point_Sources_All!$A$5:$FS$205,((3*($E$22-1)+$C$4)+($D$8)))/1000*365.25 -> 4.699123875e-06 | P63: =VLOOKUP($D63,Point_Sources_All!$A$5:$FS$205,((3*($E$23-1)+$C$4)+($D$8)))/1000*365.25 -> 0 | Q63: =VLOOKUP($D63,Point_Sources_All!$A$5:$FS$205,((3*($E$24-1)+$C$4)+($D$8)))/1000*365.25 -> 6.65814225e-08 | R63: =VLOOKUP($D63,Point_Sources_All!$A$5:$FS$205,((3*($E$25-1)+$C$4)+($D$8)))/1000*365.25 -> 0
D64: 36 | E64: =VLOOKUP($D64,Point_Sources_All!$A$5:$FS$205,((3*($E$12-1)+$C$4)+($D$8)))/1000*365.25 -> 0.0001089726419 | F64: =VLOOKUP($D64,Point_Sources_All!$A$5:$FS$205,((3*($E$13-1)+$C$4)+($D$8)))/1000*365.25 -> 0 | G64: =VLOOKUP($D64,Point_Sources_All!$A$5:$FS$205,((3*($E$14-1)+$C$4)+($D$8)))/1000*365.25 -> 8.101214562e-06 | H64: =VLOOKUP($D64,Point_Sources_All!$A$5:$FS$205,((3*($E$15-1)+$C$4)+($D$8)))/1000*365.25 -> 1.173651737e-05 | I64: =VLOOKUP($D64,Point_Sources_All!$A$5:$FS$205,((3*($E$16-1)+$C$4)+($D$8)))/1000*365.25 -> 9.05077325e-08 | J64: =VLOOKUP($D64,Point_Sources_All!$A$5:$FS$205,((3*($E$17-1)+$C$4)+($D$8)))/1000*365.25 -> 2.975061694e-06 | K64: =VLOOKUP($D64,Point_Sources_All!$A$5:$FS$205,((3*($E$18-1)+$C$4)+($D$8)))/1000*365.25 -> 2.880047994e-07 | L64: =VLOOKUP($D64,Point_Sources_All!$A$5:$FS$205,((3*($E$19-1)+$C$4)+($D$8)))/1000*365.25 -> 5.689134e-07 | M64: =VLOOKUP($D64,Point_Sources_All!$A$5:$FS$205,((3*($E$20-1)+$C$4)+($D$8)))/1000*365.25 -> 7.974594563e-06 | N64: =VLOOKUP($D64,Point_Sources_All!$A$5:$FS$205,((3*($E$21-1)+$C$4)+($D$8)))/1000*365.25 -> 7.3768325e-07 | O64: =VLOOKUP($D64,Point_Sources_All!$A$5:$FS$205,((3*($E$22-1)+$C$4)+($D$8)))/1000*365.25 -> 4.771778187e-06 | P64: =VLOOKUP($D64,Point_Sources_All!$A$5:$FS$205,((3*($E$23-1)+$C$4)+($D$8)))/1000*365.25 -> 0 | Q64: =VLOOKUP($D64,Point_Sources_All!$A$5:$FS$205,((3*($E$24-1)+$C$4)+($D$8)))/1000*365.25 -> 6.218898688e-08 | R64: =VLOOKUP($D64,Point_Sources_All!$A$5:$FS$205,((3*($E$25-1)+$C$4)+($D$8)))/1000*365.25 -> 0
D65: 37 | E65: =VLOOKUP($D65,Point_Sources_All!$A$5:$FS$205,((3*($E$12-1)+$C$4)+($D$8)))/1000*365.25 -> 9.896235687e-05 | F65: =VLOOKUP($D65,Point_Sources_All!$A$5:$FS$205,((3*($E$13-1)+$C$4)+($D$8)))/1000*365.25 -> 0 | G65: =VLOOKUP($D65,Point_Sources_All!$A$5:$FS$205,((3*($E$14-1)+$C$4)+($D$8)))/1000*365.25 -> 7.755201062e-06 | H65: =VLOOKUP($D65,Point_Sources_All!$A$5:$FS$205,((3*($E$15-1)+$C$4)+($D$8)))/1000*365.25 -> 1.187783869e-05 | I65: =VLOOKUP($D65,Point_Sources_All!$A$5:$FS$205,((3*($E$16-1)+$C$4)+($D$8)))/1000*365.25 -> 9.06903575e-08 | J65: =VLOOKUP($D65,Point_Sources_All!$A$5:$FS$205,((3*($E$17-1)+$C$4)+($D$8)))/1000*365.25 -> 3.155988281e-06 | K65: =VLOOKUP($D65,Point_Sources_All!$A$5:$FS$205,((3*($E$18-1)+$C$4)+($D$8)))/1000*365.25 -> 2.563902812e-07 | L65: =VLOOKUP($D65,Point_Sources_All!$A$5:$FS$205,((3*($E$19-1)+$C$4)+($D$8)))/1000*365.25 -> 5.467153312e-07 | M65: =VLOOKUP($D65,Point_Sources_All!$A$5:$FS$205,((3*($E$20-1)+$C$4)+($D$8)))/1000*365.25 -> 8.209054625e-06 | N65: =VLOOKUP($D65,Point_Sources_All!$A$5:$FS$205,((3*($E$21-1)+$C$4)+($D$8)))/1000*365.25 -> 7.927964312e-07 | O65: =VLOOKUP($D65,Point_Sources_All!$A$5:$FS$205,((3*($E$22-1)+$C$4)+($D$8)))/1000*365.25 -> 4.720643187e-06 | P65: =VLOOKUP($D65,Point_Sources_All!$A$5:$FS$205,((3*($E$23-1)+$C$4)+($D$8)))/1000*365.25 -> 0 | Q65: =VLOOKUP($D65,Point_Sources_All!$A$5:$FS$205,((3*($E$24-1)+$C$4)+($D$8)))/1000*365.25 -> 6.59531925e-08 | R65: =VLOOKUP($D65,Point_Sources_All!$A$5:$FS$205,((3*($E$25-1)+$C$4)+($D$8)))/1000*365.25 -> 0
D66: 38 | E66: =VLOOKUP($D66,Point_Sources_All!$A$5:$FS$205,((3*($E$12-1)+$C$4)+($D$8)))/1000*365.25 -> 9.771472375e-05 | F66: =VLOOKUP($D66,Point_Sources_All!$A$5:$FS$205,((3*($E$13-1)+$C$4)+($D$8)))/1000*365.25 -> 0 | G66: =VLOOKUP($D66,Point_Sources_All!$A$5:$FS$205,((3*($E$14-1)+$C$4)+($D$8)))/1000*365.25 -> 7.377776063e-06 | H66: =VLOOKUP($D66,Point_Sources_All!$A$5:$FS$205,((3*($E$15-1)+$C$4)+($D$8)))/1000*365.25 -> 1.1889618e-05 | I66: =VLOOKUP($D66,Point_Sources_All!$A$5:$FS$205,((3*($E$16-1)+$C$4)+($D$8)))/1000*365.25 -> 9.02715375e-08 | J66: =VLOOKUP($D66,Point_Sources_All!$A$5:$FS$205,((3*($E$17-1)+$C$4)+($D$8)))/1000*365.25 -> 3.301436919e-06 | K66: =VLOOKUP($D66,Point_Sources_All!$A$5:$FS$205,((3*($E$18-1)+$C$4)+($D$8)))/1000*365.25 -> 2.262084563e-07 | L66: =VLOOKUP($D66,Point_Sources_All!$A$5:$FS$205,((3*($E$19-1)+$C$4)+($D$8)))/1000*365.25 -> 5.189289375e-07 | M66: =VLOOKUP($D66,Point_Sources_All!$A$5:$FS$205,((3*($E$20-1)+$C$4)+($D$8)))/1000*365.25 -> 8.3527805e-06 | N66: =VLOOKUP($D66,Point_Sources_All!$A$5:$FS$205,((3*($E$21-1)+$C$4)+($D$8)))/1000*365.25 -> 8.422147562e-07 | O66: =VLOOKUP($D66,Point_Sources_All!$A$5:$FS$205,((3*($E$22-1)+$C$4)+($D$8)))/1000*365.25 -> 4.743714812e-06 | P66: =VLOOKUP($D66,Point_Sources_All!$A$5:$FS$205,((3*($E$23-1)+$C$4)+($D$8)))/1000*365.25 -> 0 | Q66: =VLOOKUP($D66,Point_Sources_All!$A$5:$FS$205,((3*($E$24-1)+$C$4)+($D$8)))/1000*365.25 -> 6.052831687e-08 | R66: =VLOOKUP($D66,Point_Sources_All!$A$5:$FS$205,((3*($E$25-1)+$C$4)+($D$8)))/1000*365.25 -> 0
D67: 39 | E67: =VLOOKUP($D67,Point_Sources_All!$A$5:$FS$205,((3*($E$12-1)+$C$4)+($D$8)))/1000*365.25 -> 9.8468965e-05 | F67: =VLOOKUP($D67,Point_Sources_All!$A$5:$FS$205,((3*($E$13-1)+$C$4)+($D$8)))/1000*365.25 -> 0 | G67: =VLOOKUP($D67,Point_Sources_All!$A$5:$FS$205,((3*($E$14-1)+$C$4)+($D$8)))/1000*365.25 -> 7.013287e-06 | H67: =VLOOKUP($D67,Point_Sources_All!$A$5:$FS$205,((3*($E$15-1)+$C$4)+($D$8)))/1000*365.25 -> 1.176780713e-05 | I67: =VLOOKUP($D67,Point_Sources_All!$A$5:$FS$205,((3*($E$16-1)+$C$4)+($D$8)))/1000*365.25 -> 8.949385937e-08 | J67: =VLOOKUP($D67,Point_Sources_All!$A$5:$FS$205,((3*($E$17-1)+$C$4)+($D$8)))/1000*365.25 -> 3.409821813e-06 | K67: =VLOOKUP($D67,Point_Sources_All!$A$5:$FS$205,((3*($E$18-1)+$C$4)+($D$8)))/1000*365.25 -> 2.019062431e-07 | L67: =VLOOKUP($D67,Point_Sources_All!$A$5:$FS$205,((3*($E$19-1)+$C$4)+($D$8)))/1000*365.25 -> 4.86379075e-07 | M67: =VLOOKUP($D67,Point_Sources_All!$A$5:$FS$205,((3*($E$20-1)+$C$4)+($D$8)))/1000*365.25 -> 8.403002375e-06 | N67: =VLOOKUP($D67,Point_Sources_All!$A$5:$FS$205,((3*($E$21-1)+$C$4)+($D$8)))/1000*365.25 -> 9.059204437e-07 | O67: =VLOOKUP($D67,Point_Sources_All!$A$5:$FS$205,((3*($E$22-1)+$C$4)+($D$8)))/1000*365.25 -> 4.687831563e-06 | P67: =VLOOKUP($D67,Point_Sources_All!$A$5:$FS$205,((3*($E$23-1)+$C$4)+($D$8)))/1000*365.25 -> 0 | Q67: =VLOOKUP($D67,Point_Sources_All!$A$5:$FS$205,((3*($E$24-1)+$C$4)+($D$8)))/1000*365.25 -> 6.318124937e-08 | R67: =VLOOKUP($D67,Point_Sources_All!$A$5:$FS$205,((3*($E$25-1)+$C$4)+($D$8)))/1000*365.25 -> 0
D68: 40 | E68: =VLOOKUP($D68,Point_Sources_All!$A$5:$FS$205,((3*($E$12-1)+$C$4)+($D$8)))/1000*365.25 -> 9.949988312e-05 | F68: =VLOOKUP($D68,Point_Sources_All!$A$5:$FS$205,((3*($E$13-1)+$C$4)+($D$8)))/1000*365.25 -> 0 | G68: =VLOOKUP($D68,Point_Sources_All!$A$5:$FS$205,((3*($E$14-1)+$C$4)+($D$8)))/1000*365.25 -> 6.713234125e-06 | H68: =VLOOKUP($D68,Point_Sources_All!$A$5:$FS$205,((3*($E$15-1)+$C$4)+($D$8)))/1000*365.25 -> 1.164800512e-05 | I68: =VLOOKUP($D68,Point_Sources_All!$A$5:$FS$205,((3*($E$16-1)+$C$4)+($D$8)))/1000*365.25 -> 8.936510875e-08 | J68: =VLOOKUP($D68,Point_Sources_All!$A$5:$FS$205,((3*($E$17-1)+$C$4)+($D$8)))/1000*365.25 -> 3.517104869e-06 | K68: =VLOOKUP($D68,Point_Sources_All!$A$5:$FS$205,((3*($E$18-1)+$C$4)+($D$8)))/1000*365.25 -> 1.800046356e-07 | L68: =VLOOKUP($D68,Point_Sources_All!$A$5:$FS$205,((3*($E$19-1)+$C$4)+($D$8)))/1000*365.25 -> 4.520060062e-07 | M68: =VLOOKUP($D68,Point_Sources_All!$A$5:$FS$205,((3*($E$20-1)+$C$4)+($D$8)))/1000*365.25 -> 8.454533063e-06 | N68: =VLOOKUP($D68,Point_Sources_All!$A$5:$FS$205,((3*($E$21-1)+$C$4)+($D$8)))/1000*365.25 -> 9.689047625e-07 | O68: =VLOOKUP($D68,Point_Sources_All!$A$5:$FS$205,((3*($E$22-1)+$C$4)+($D$8)))/1000*365.25 -> 4.670056062e-06 | P68: =VLOOKUP($D68,Point_Sources_All!$A$5:$FS$205,((3*($E$23-1)+$C$4)+($D$8)))/1000*365.25 -> 0 | Q68: =VLOOKUP($D68,Point_Sources_All!$A$5:$FS$205,((3*($E$24-1)+$C$4)+($D$8)))/1000*365.25 -> 6.272012125e-08 | R68: =VLOOKUP($D68,Point_Sources_All!$A$5:$FS$205,((3*($E$25-1)+$C$4)+($D$8)))/1000*365.25 -> 0
D69: 41 | E69: =VLOOKUP($D69,Point_Sources_All!$A$5:$FS$205,((3*($E$12-1)+$C$4)+($D$8)))/1000*365.25 -> 0.0001005648912 | F69: =VLOOKUP($D69,Point_Sources_All!$A$5:$FS$205,((3*($E$13-1)+$C$4)+($D$8)))/1000*365.25 -> 0 | G69: =VLOOKUP($D69,Point_Sources_All!$A$5:$FS$205,((3*($E$14-1)+$C$4)+($D$8)))/1000*365.25 -> 6.442675188e-06 | H69: =VLOOKUP($D69,Point_Sources_All!$A$5:$FS$205,((3*($E$15-1)+$C$4)+($D$8)))/1000*365.25 -> 1.158536475e-05 | I69: =VLOOKUP($D69,Point_Sources_All!$A$5:$FS$205,((3*($E$16-1)+$C$4)+($D$8)))/1000*365.25 -> 8.982715e-08 | J69: =VLOOKUP($D69,Point_Sources_All!$A$5:$FS$205,((3*($E$17-1)+$C$4)+($D$8)))/1000*365.25 -> 3.639774081e-06 | K69: =VLOOKUP($D69,Point_Sources_All!$A$5:$FS$205,((3*($E$18-1)+$C$4)+($D$8)))/1000*365.25 -> 1.613467525e-07 | L69: =VLOOKUP($D69,Point_Sources_All!$A$5:$FS$205,((3*($E$19-1)+$C$4)+($D$8)))/1000*365.25 -> 4.224816313e-07 | M69: =VLOOKUP($D69,Point_Sources_All!$A$5:$FS$205,((3*($E$20-1)+$C$4)+($D$8)))/1000*365.25 -> 8.5500155e-06 | N69: =VLOOKUP($D69,Point_Sources_All!$A$5:$FS$205,((3*($E$21-1)+$C$4)+($D$8)))/1000*365.25 -> 1.026005513e-06 | O69: =VLOOKUP($D69,Point_Sources_All!$A$5:$FS$205,((3*($E$22-1)+$C$4)+($D$8)))/1000*365.25 -> 4.764594937e-06 | P69: =VLOOKUP($D69,Point_Sources_All!$A$5:$FS$205,((3*($E$23-1)+$C$4)+($D$8)))/1000*365.25 -> 0 | Q69: =VLOOKUP($D69,Point_Sources_All!$A$5:$FS$205,((3*($E$24-1)+$C$4)+($D$8)))/1000*365.25 -> 5.4950645e-08 | R69: =VLOOKUP($D69,Point_Sources_All!$A$5:$FS$205,((3*($E$25-1)+$C$4)+($D$8)))/1000*365.25 -> 0
D70: 42 | E70: =VLOOKUP($D70,Point_Sources_All!$A$5:$FS$205,((3*($E$12-1)+$C$4)+($D$8)))/1000*365.25 -> 0.0001016347694 | F70: =VLOOKUP($D70,Point_Sources_All!$A$5:$FS$205,((3*($E$13-1)+$C$4)+($D$8)))/1000*365.25 -> 0 | G70: =VLOOKUP($D70,Point_Sources_All!$A$5:$FS$205,((3*($E$14-1)+$C$4)+($D$8)))/1000*365.25 -> 6.168555062e-06 | H70: =VLOOKUP($D70,Point_Sources_All!$A$5:$FS$205,((3*($E$15-1)+$C$4)+($D$8)))/1000*365.25 -> 1.1562354e-05 | I70: =VLOOKUP($D70,Point_Sources_All!$A$5:$FS$205,((3*($E$16-1)+$C$4)+($D$8)))/1000*365.25 -> 9.00596925e-08 | J70: =VLOOKUP($D70,Point_Sources_All!$A$5:$FS$205,((3*($E$17-1)+$C$4)+($D$8)))/1000*365.25 -> 3.771541062e-06 | K70: =VLOOKUP($D70,Point_Sources_All!$A$5:$FS$205,((3*($E$18-1)+$C$4)+($D$8)))/1000*365.25 -> 1.4345072e-07 | L70: =VLOOKUP($D70,Point_Sources_All!$A$5:$FS$205,((3*($E$19-1)+$C$4)+($D$8)))/1000*365.25 -> 3.934990437e-07 | M70: =VLOOKUP($D70,Point_Sources_All!$A$5:$FS$205,((3*($E$20-1)+$C$4)+($D$8)))/1000*365.25 -> 8.659133938e-06 | N70: =VLOOKUP($D70,Point_Sources_All!$A$5:$FS$205,((3*($E$21-1)+$C$4)+($D$8)))/1000*365.25 -> 1.085818244e-06 | O70: =VLOOKUP($D70,Point_Sources_All!$A$5:$FS$205,((3*($E$22-1)+$C$4)+($D$8)))/1000*365.25 -> 4.822700125e-06 | P70: =VLOOKUP($D70,Point_Sources_All!$A$5:$FS$205,((3*($E$23-1)+$C$4)+($D$8)))/1000*365.25 -> 0 | Q70: =VLOOKUP($D70,Point_Sources_All!$A$5:$FS$205,((3*($E$24-1)+$C$4)+($D$8)))/1000*365.25 -> 6.086830375e-08 | R70: =VLOOKUP($D70,Point_Sources_All!$A$5:$FS$205,((3*($E$25-1)+$C$4)+($D$8)))/1000*365.25 -> 0
D71: 43 | E71: =VLOOKUP($D71,Point_Sources_All!$A$5:$FS$205,((3*($E$12-1)+$C$4)+($D$8)))/1000*365.25 -> 0.0001027101262 | F71: =VLOOKUP($D71,Point_Sources_All!$A$5:$FS$205,((3*($E$13-1)+$C$4)+($D$8)))/1000*365.25 -> 0 | G71: =VLOOKUP($D71,Point_Sources_All!$A$5:$FS$205,((3*($E$14-1)+$C$4)+($D$8)))/1000*365.25 -> 5.951109563e-06 | H71: =VLOOKUP($D71,Point_Sources_All!$A$5:$FS$205,((3*($E$15-1)+$C$4)+($D$8)))/1000*365.25 -> 1.158302106e-05 | I71: =VLOOKUP($D71,Point_Sources_All!$A$5:$FS$205,((3*($E$16-1)+$C$4)+($D$8)))/1000*365.25 -> 9.158917687e-08 | J71: =VLOOKUP($D71,Point_Sources_All!$A$5:$FS$205,((3*($E$17-1)+$C$4)+($D$8)))/1000*365.25 -> 3.920867438e-06 | K71: =VLOOKUP($D71,Point_Sources_All!$A$5:$FS$205,((3*($E$18-1)+$C$4)+($D$8)))/1000*365.25 -> 1.291493563e-07 | L71: =VLOOKUP($D71,Point_Sources_All!$A$5:$FS$205,((3*($E$19-1)+$C$4)+($D$8)))/1000*365.25 -> 3.659004494e-07 | M71: =VLOOKUP($D71,Point_Sources_All!$A$5:$FS$205,((3*($E$20-1)+$C$4)+($D$8)))/1000*365.25 -> 8.811382312e-06 | N71: =VLOOKUP($D71,Point_Sources_All!$A$5:$FS$205,((3*($E$21-1)+$C$4)+($D$8)))/1000*365.25 -> 1.130750081e-06 | O71: =VLOOKUP($D71,Point_Sources_All!$A$5:$FS$205,((3*($E$22-1)+$C$4)+($D$8)))/1000*365.25 -> 4.85356375e-06 | P71: =VLOOKUP($D71,Point_Sources_All!$A$5:$FS$205,((3*($E$23-1)+$C$4)+($D$8)))/1000*365.25 -> 0 | Q71: =VLOOKUP($D71,Point_Sources_All!$A$5:$FS$205,((3*($E$24-1)+$C$4)+($D$8)))/1000*365.25 -> 7.034988938e-08 | R71: =VLOOKUP($D71,Point_Sources_All!$A$5:$FS$205,((3*($E$25-1)+$C$4)+($D$8)))/1000*365.25 -> 0
D72: 44 | E72: =VLOOKUP($D72,Point_Sources_All!$A$5:$FS$205,((3*($E$12-1)+$C$4)+($D$8)))/1000*365.25 -> 0.0001037696556 | F72: =VLOOKUP($D72,Point_Sources_All!$A$5:$FS$205,((3*($E$13-1)+$C$4)+($D$8)))/1000*365.25 -> 0 | G72: =VLOOKUP($D72,Point_Sources_All!$A$5:$FS$205,((3*($E$14-1)+$C$4)+($D$8)))/1000*365.25 -> 5.783398937e-06 | H72: =VLOOKUP($D72,Point_Sources_All!$A$5:$FS$205,((3*($E$15-1)+$C$4)+($D$8)))/1000*365.25 -> 1.16083755e-05 | I72: =VLOOKUP($D72,Point_Sources_All!$A$5:$FS$205,((3*($E$16-1)+$C$4)+($D$8)))/1000*365.25 -> 9.34784325e-08 | J72: =VLOOKUP($D72,Point_Sources_All!$A$5:$FS$205,((3*($E$17-1)+$C$4)+($D$8)))/1000*365.25 -> 4.070285125e-06 | K72: =VLOOKUP($D72,Point_Sources_All!$A$5:$FS$205,((3*($E$18-1)+$C$4)+($D$8)))/1000*365.25 -> 1.160414469e-07 | L72: =VLOOKUP($D72,Point_Sources_All!$A$5:$FS$205,((3*($E$19-1)+$C$4)+($D$8)))/1000*365.25 -> 3.392484613e-07 | M72: =VLOOKUP($D72,Point_Sources_All!$A$5:$FS$205,((3*($E$20-1)+$C$4)+($D$8)))/1000*365.25 -> 8.967587562e-06 | N72: =VLOOKUP($D72,Point_Sources_All!$A$5:$FS$205,((3*($E$21-1)+$C$4)+($D$8)))/1000*365.25 -> 1.177718187e-06 | O72: =VLOOKUP($D72,Point_Sources_All!$A$5:$FS$205,((3*($E$22-1)+$C$4)+($D$8)))/1000*365.25 -> 4.812686187e-06 | P72: =VLOOKUP($D72,Point_Sources_All!$A$5:$FS$205,((3*($E$23-1)+$C$4)+($D$8)))/1000*365.25 -> 0 | Q72: =VLOOKUP($D72,Point_Sources_All!$A$5:$FS$205,((3*($E$24-1)+$C$4)+($D$8)))/1000*365.25 -> 6.533135438e-08 | R72: =VLOOKUP($D72,Point_Sources_All!$A$5:$FS$205,((3*($E$25-1)+$C$4)+($D$8)))/1000*365.25 -> 0
D73: 45 | E73: =VLOOKUP($D73,Point_Sources_All!$A$5:$FS$205,((3*($E$12-1)+$C$4)+($D$8)))/1000*365.25 -> 0.0001047710494 | F73: =VLOOKUP($D73,Point_Sources_All!$A$5:$FS$205,((3*($E$13-1)+$C$4)+($D$8)))/1000*365.25 -> 0 | G73: =VLOOKUP($D73,Point_Sources_All!$A$5:$FS$205,((3*($E$14-1)+$C$4)+($D$8)))/1000*365.25 -> 5.587046625e-06 | H73: =VLOOKUP($D73,Point_Sources_All!$A$5:$FS$205,((3*($E$15-1)+$C$4)+($D$8)))/1000*365.25 -> 1.156783275e-05 | I73: =VLOOKUP($D73,Point_Sources_All!$A$5:$FS$205,((3*($E$16-1)+$C$4)+($D$8)))/1000*365.25 -> 9.53363375e-08 | J73: =VLOOKUP($D73,Point_Sources_All!$A$5:$FS$205,((3*($E$17-1)+$C$4)+($D$8)))/1000*365.25 -> 4.190452375e-06 | K73: =VLOOKUP($D73,Point_Sources_All!$A$5:$FS$205,((3*($E$18-1)+$C$4)+($D$8)))/1000*365.25 -> 1.051353862e-07 | L73: =VLOOKUP($D73,Point_Sources_All!$A$5:$FS$205,((3*($E$19-1)+$C$4)+($D$8)))/1000*365.25 -> 3.112039575e-07 | M73: =VLOOKUP($D73,Point_Sources_All!$A$5:$FS$205,((3*($E$20-1)+$C$4)+($D$8)))/1000*365.25 -> 9.065078875e-06 | N73: =VLOOKUP($D73,Point_Sources_All!$A$5:$FS$205,((3*($E$21-1)+$C$4)+($D$8)))/1000*365.25 -> 1.233711013e-06 | O73: =VLOOKUP($D73,Point_Sources_All!$A$5:$FS$205,((3*($E$22-1)+$C$4)+($D$8)))/1000*365.25 -> 4.80827275e-06 | P73: =VLOOKUP($D73,Point_Sources_All!$A$5:$FS$205,((3*($E$23-1)+$C$4)+($D$8)))/1000*365.25 -> 0 | Q73: =VLOOKUP($D73,Point_Sources_All!$A$5:$FS$205,((3*($E$24-1)+$C$4)+($D$8)))/1000*365.25 -> 6.721391375e-08 | R73: =VLOOKUP($D73,Point_Sources_All!$A$5:$FS$205,((3*($E$25-1)+$C$4)+($D$8)))/1000*365.25 -> 0
D74: 46 | E74: =VLOOKUP($D74,Point_Sources_All!$A$5:$FS$205,((3*($E$12-1)+$C$4)+($D$8)))/1000*365.25 -> 0.0001057036544 | F74: =VLOOKUP($D74,Point_Sources_All!$A$5:$FS$205,((3*($E$13-1)+$C$4)+($D$8)))/1000*365.25 -> 0 | G74: =VLOOKUP($D74,Point_Sources_All!$A$5:$FS$205,((3*($E$14-1)+$C$4)+($D$8)))/1000*365.25 -> 5.327566938e-06 | H74: =VLOOKUP($D74,Point_Sources_All!$A$5:$FS$205,((3*($E$15-1)+$C$4)+($D$8)))/1000*365.25 -> 1.145402694e-05 | I74: =VLOOKUP($D74,Point_Sources_All!$A$5:$FS$205,((3*($E$16-1)+$C$4)+($D$8)))/1000*365.25 -> 9.858736687e-08 | J74: =VLOOKUP($D74,Point_Sources_All!$A$5:$FS$205,((3*($E$17-1)+$C$4)+($D$8)))/1000*365.25 -> 4.286178312e-06 | K74: =VLOOKUP($D74,Point_Sources_All!$A$5:$FS$205,((3*($E$18-1)+$C$4)+($D$8)))/1000*365.25 -> 9.527941938e-08 | L74: =VLOOKUP($D74,Point_Sources_All!$A$5:$FS$205,((3*($E$19-1)+$C$4)+($D$8)))/1000*365.25 -> 2.807128875e-07 | M74: =VLOOKUP($D74,Point_Sources_All!$A$5:$FS$205,((3*($E$20-1)+$C$4)+($D$8)))/1000*365.25 -> 9.10604775e-06 | N74: =VLOOKUP($D74,Point_Sources_All!$A$5:$FS$205,((3*($E$21-1)+$C$4)+($D$8)))/1000*365.25 -> 1.301391837e-06 | O74: =VLOOKUP($D74,Point_Sources_All!$A$5:$FS$205,((3*($E$22-1)+$C$4)+($D$8)))/1000*365.25 -> 4.797832687e-06 | P74: =VLOOKUP($D74,Point_Sources_All!$A$5:$FS$205,((3*($E$23-1)+$C$4)+($D$8)))/1000*365.25 -> 0 | Q74: =VLOOKUP($D74,Point_Sources_All!$A$5:$FS$205,((3*($E$24-1)+$C$4)+($D$8)))/1000*365.25 -> 6.43607025e-08 | R74: =VLOOKUP($D74,Point_Sources_All!$A$5:$FS$205,((3*($E$25-1)+$C$4)+($D$8)))/1000*365.25 -> 0
D75: 47 | E75: =VLOOKUP($D75,Point_Sources_All!$A$5:$FS$205,((3*($E$12-1)+$C$4)+($D$8)))/1000*365.25 -> 0.0001065957775 | F75: =VLOOKUP($D75,Point_Sources_All!$A$5:$FS$205,((3*($E$13-1)+$C$4)+($D$8)))/1000*365.25 -> 0 | G75: =VLOOKUP($D75,Point_Sources_All!$A$5:$FS$205,((3*($E$14-1)+$C$4)+($D$8)))/1000*365.25 -> 5.098403e-06 | H75: =VLOOKUP($D75,Point_Sources_All!$A$5:$FS$205,((3*($E$15-1)+$C$4)+($D$8)))/1000*365.25 -> 1.13634145e-05 | I75: =VLOOKUP($D75,Point_Sources_All!$A$5:$FS$205,((3*($E$16-1)+$C$4)+($D$8)))/1000*365.25 -> 9.950901437e-08 | J75: =VLOOKUP($D75,Point_Sources_All!$A$5:$FS$205,((3*($E$17-1)+$C$4)+($D$8)))/1000*365.25 -> 4.385404562e-06 | K75: =VLOOKUP($D75,Point_Sources_All!$A$5:$FS$205,((3*($E$18-1)+$C$4)+($D$8)))/1000*365.25 -> 8.492762562e-08 | L75: =VLOOKUP($D75,Point_Sources_All!$A$5:$FS$205,((3*($E$19-1)+$C$4)+($D$8)))/1000*365.25 -> 2.522681306e-07 | M75: =VLOOKUP($D75,Point_Sources_All!$A$5:$FS$205,((3*($E$20-1)+$C$4)+($D$8)))/1000*365.25 -> 9.161596188e-06 | N75: =VLOOKUP($D75,Point_Sources_All!$A$5:$FS$205,((3*($E$21-1)+$C$4)+($D$8)))/1000*365.25 -> 1.357883838e-06 | O75: =VLOOKUP($D75,Point_Sources_All!$A$5:$FS$205,((3*($E$22-1)+$C$4)+($D$8)))/1000*365.25 -> 4.877305e-06 | P75: =VLOOKUP($D75,Point_Sources_All!$A$5:$FS$205,((3*($E$23-1)+$C$4)+($D$8)))/1000*365.25 -> 0 | Q75: =VLOOKUP($D75,Point_Sources_All!$A$5:$FS$205,((3*($E$24-1)+$C$4)+($D$8)))/1000*365.25 -> 6.583052938e-08 | R75: =VLOOKUP($D75,Point_Sources_All!$A$5:$FS$205,((3*($E$25-1)+$C$4)+($D$8)))/1000*365.25 -> 0
D76: 48 | E76: =VLOOKUP($D76,Point_Sources_All!$A$5:$FS$205,((3*($E$12-1)+$C$4)+($D$8)))/1000*365.25 -> 0.0001074748125 | F76: =VLOOKUP($D76,Point_Sources_All!$A$5:$FS$205,((3*($E$13-1)+$C$4)+($D$8)))/1000*365.25 -> 0 | G76: =VLOOKUP($D76,Point_Sources_All!$A$5:$FS$205,((3*($E$14-1)+$C$4)+($D$8)))/1000*365.25 -> 4.902415938e-06 | H76: =VLOOKUP($D76,Point_Sources_All!$A$5:$FS$205,((3*($E$15-1)+$C$4)+($D$8)))/1000*365.25 -> 1.133888187e-05 | I76: =VLOOKUP($D76,Point_Sources_All!$A$5:$FS$205,((3*($E$16-1)+$C$4)+($D$8)))/1000*365.25 -> 1.037279563e-07 | J76: =VLOOKUP($D76,Point_Sources_All!$A$5:$FS$205,((3*($E$17-1)+$C$4)+($D$8)))/1000*365.25 -> 4.519451313e-06 | K76: =VLOOKUP($D76,Point_Sources_All!$A$5:$FS$205,((3*($E$18-1)+$C$4)+($D$8)))/1000*365.25 -> 7.506678875e-08 | L76: =VLOOKUP($D76,Point_Sources_All!$A$5:$FS$205,((3*($E$19-1)+$C$4)+($D$8)))/1000*365.25 -> 2.244068606e-07 | M76: =VLOOKUP($D76,Point_Sources_All!$A$5:$FS$205,((3*($E$20-1)+$C$4)+($D$8)))/1000*365.25 -> 9.2766195e-06 | N76: =VLOOKUP($D76,Point_Sources_All!$A$5:$FS$205,((3*($E$21-1)+$C$4)+($D$8)))/1000*365.25 -> 1.410342869e-06 | O76: =VLOOKUP($D76,Point_Sources_All!$A$5:$FS$205,((3*($E$22-1)+$C$4)+($D$8)))/1000*365.25 -> 4.874109062e-06 | P76: =VLOOKUP($D76,Point_Sources_All!$A$5:$FS$205,((3*($E$23-1)+$C$4)+($D$8)))/1000*365.25 -> 0 | Q76: =VLOOKUP($D76,Point_Sources_All!$A$5:$FS$205,((3*($E$24-1)+$C$4)+($D$8)))/1000*365.25 -> 5.977894562e-08 | R76: =VLOOKUP($D76,Point_Sources_All!$A$5:$FS$205,((3*($E$25-1)+$C$4)+($D$8)))/1000*365.25 -> 0
D77: 49 | E77: =VLOOKUP($D77,Point_Sources_All!$A$5:$FS$205,((3*($E$12-1)+$C$4)+($D$8)))/1000*365.25 -> 0.0001083547606 | F77: =VLOOKUP($D77,Point_Sources_All!$A$5:$FS$205,((3*($E$13-1)+$C$4)+($D$8)))/1000*365.25 -> 0 | G77: =VLOOKUP($D77,Point_Sources_All!$A$5:$FS$205,((3*($E$14-1)+$C$4)+($D$8)))/1000*365.25 -> 4.742375563e-06 | H77: =VLOOKUP($D77,Point_Sources_All!$A$5:$FS$205,((3*($E$15-1)+$C$4)+($D$8)))/1000*365.25 -> 1.141540175e-05 | I77: =VLOOKUP($D77,Point_Sources_All!$A$5:$FS$205,((3*($E$16-1)+$C$4)+($D$8)))/1000*365.25 -> 1.079962069e-07 | J77: =VLOOKUP($D77,Point_Sources_All!$A$5:$FS$205,((3*($E$17-1)+$C$4)+($D$8)))/1000*365.25 -> 4.686248812e-06 | K77: =VLOOKUP($D77,Point_Sources_All!$A$5:$FS$205,((3*($E$18-1)+$C$4)+($D$8)))/1000*365.25 -> 6.558976875e-08 | L77: =VLOOKUP($D77,Point_Sources_All!$A$5:$FS$205,((3*($E$19-1)+$C$4)+($D$8)))/1000*365.25 -> 1.989763294e-07 | M77: =VLOOKUP($D77,Point_Sources_All!$A$5:$FS$205,((3*($E$20-1)+$C$4)+($D$8)))/1000*365.25 -> 9.4714195e-06 | N77: =VLOOKUP($D77,Point_Sources_All!$A$5:$FS$205,((3*($E$21-1)+$C$4)+($D$8)))/1000*365.25 -> 1.465882175e-06 | O77: =VLOOKUP($D77,Point_Sources_All!$A$5:$FS$205,((3*($E$22-1)+$C$4)+($D$8)))/1000*365.25 -> 4.887805938e-06 | P77: =VLOOKUP($D77,Point_Sources_All!$A$5:$FS$205,((3*($E$23-1)+$C$4)+($D$8)))/1000*365.25 -> 0 | Q77: =VLOOKUP($D77,Point_Sources_All!$A$5:$FS$205,((3*($E$24-1)+$C$4)+($D$8)))/1000*365.25 -> 6.90334675e-08 | R77: =VLOOKUP($D77,Point_Sources_All!$A$5:$FS$205,((3*($E$25-1)+$C$4)+($D$8)))/1000*365.25 -> 0
D78: 50 | E78: =VLOOKUP($D78,Point_Sources_All!$A$5:$FS$205,((3*($E$12-1)+$C$4)+($D$8)))/1000*365.25 -> 0.000109231665 | F78: =VLOOKUP($D78,Point_Sources_All!$A$5:$FS$205,((3*($E$13-1)+$C$4)+($D$8)))/1000*365.25 -> 0 | G78: =VLOOKUP($D78,Point_Sources_All!$A$5:$FS$205,((3*($E$14-1)+$C$4)+($D$8)))/1000*365.25 -> 4.5911925e-06 | H78: =VLOOKUP($D78,Point_Sources_All!$A$5:$FS$205,((3*($E$15-1)+$C$4)+($D$8)))/1000*365.25 -> 1.141969344e-05 | I78: =VLOOKUP($D78,Point_Sources_All!$A$5:$FS$205,((3*($E$16-1)+$C$4)+($D$8)))/1000*365.25 -> 1.111130069e-07 | J78: =VLOOKUP($D78,Point_Sources_All!$A$5:$FS$205,((3*($E$17-1)+$C$4)+($D$8)))/1000*365.25 -> 4.818347563e-06 | K78: =VLOOKUP($D78,Point_Sources_All!$A$5:$FS$205,((3*($E$18-1)+$C$4)+($D$8)))/1000*365.25 -> 5.760996937e-08 | L78: =VLOOKUP($D78,Point_Sources_All!$A$5:$FS$205,((3*($E$19-1)+$C$4)+($D$8)))/1000*365.25 -> 1.728512144e-07 | M78: =VLOOKUP($D78,Point_Sources_All!$A$5:$FS$205,((3*($E$20-1)+$C$4)+($D$8)))/1000*365.25 -> 9.596852437e-06 | N78: =VLOOKUP($D78,Point_Sources_All!$A$5:$FS$205,((3*($E$21-1)+$C$4)+($D$8)))/1000*365.25 -> 1.534579613e-06 | O78: =VLOOKUP($D78,Point_Sources_All!$A$5:$FS$205,((3*($E$22-1)+$C$4)+($D$8)))/1000*365.25 -> 4.8556335e-06 | P78: =VLOOKUP($D78,Point_Sources_All!$A$5:$FS$205,((3*($E$23-1)+$C$4)+($D$8)))/1000*365.25 -> 0 | Q78: =VLOOKUP($D78,Point_Sources_All!$A$5:$FS$205,((3*($E$24-1)+$C$4)+($D$8)))/1000*365.25 -> 6.489214125e-08 | R78: =VLOOKUP($D78,Point_Sources_All!$A$5:$FS$205,((3*($E$25-1)+$C$4)+($D$8)))/1000*365.25 -> 0
D79: 51 | E79: =VLOOKUP($D79,Point_Sources_All!$A$5:$FS$205,((3*($E$12-1)+$C$4)+($D$8)))/1000*365.25 -> 0.000110108265 | F79: =VLOOKUP($D79,Point_Sources_All!$A$5:$FS$205,((3*($E$13-1)+$C$4)+($D$8)))/1000*365.25 -> 0 | G79: =VLOOKUP($D79,Point_Sources_All!$A$5:$FS$205,((3*($E$14-1)+$C$4)+($D$8)))/1000*365.25 -> 4.433434937e-06 | H79: =VLOOKUP($D79,Point_Sources_All!$A$5:$FS$205,((3*($E$15-1)+$C$4)+($D$8)))/1000*365.25 -> 1.147989881e-05 | I79: =VLOOKUP($D79,Point_Sources_All!$A$5:$FS$205,((3*($E$16-1)+$C$4)+($D$8)))/1000*365.25 -> 1.144456087e-07 | J79: =VLOOKUP($D79,Point_Sources_All!$A$5:$FS$205,((3*($E$17-1)+$C$4)+($D$8)))/1000*365.25 -> 4.982192625e-06 | K79: =VLOOKUP($D79,Point_Sources_All!$A$5:$FS$205,((3*($E$18-1)+$C$4)+($D$8)))/1000*365.25 -> 4.96192125e-08 | L79: =VLOOKUP($D79,Point_Sources_All!$A$5:$FS$205,((3*($E$19-1)+$C$4)+($D$8)))/1000*365.25 -> 1.459033737e-07 | M79: =VLOOKUP($D79,Point_Sources_All!$A$5:$FS$205,((3*($E$20-1)+$C$4)+($D$8)))/1000*365.25 -> 9.774881375e-06 | N79: =VLOOKUP($D79,Point_Sources_All!$A$5:$FS$205,((3*($E$21-1)+$C$4)+($D$8)))/1000*365.25 -> 1.595975094e-06 | O79: =VLOOKUP($D79,Point_Sources_All!$A$5:$FS$205,((3*($E$22-1)+$C$4)+($D$8)))/1000*365.25 -> 4.820478188e-06 | P79: =VLOOKUP($D79,Point_Sources_All!$A$5:$FS$205,((3*($E$23-1)+$C$4)+($D$8)))/1000*365.25 -> 0 | Q79: =VLOOKUP($D79,Point_Sources_All!$A$5:$FS$205,((3*($E$24-1)+$C$4)+($D$8)))/1000*365.25 -> 5.301999438e-08 | R79: =VLOOKUP($D79,Point_Sources_All!$A$5:$FS$205,((3*($E$25-1)+$C$4)+($D$8)))/1000*365.25 -> 0
D80: 52 | E80: =VLOOKUP($D80,Point_Sources_All!$A$5:$FS$205,((3*($E$12-1)+$C$4)+($D$8)))/1000*365.25 -> 0.000110984865 | F80: =VLOOKUP($D80,Point_Sources_All!$A$5:$FS$205,((3*($E$13-1)+$C$4)+($D$8)))/1000*365.25 -> 0 | G80: =VLOOKUP($D80,Point_Sources_All!$A$5:$FS$205,((3*($E$14-1)+$C$4)+($D$8)))/1000*365.25 -> 4.252301375e-06 | H80: =VLOOKUP($D80,Point_Sources_All!$A$5:$FS$205,((3*($E$15-1)+$C$4)+($D$8)))/1000*365.25 -> 1.149965275e-05 | I80: =VLOOKUP($D80,Point_Sources_All!$A$5:$FS$205,((3*($E$16-1)+$C$4)+($D$8)))/1000*365.25 -> 1.200731981e-07 | J80: =VLOOKUP($D80,Point_Sources_All!$A$5:$FS$205,((3*($E$17-1)+$C$4)+($D$8)))/1000*365.25 -> 5.123696562e-06 | K80: =VLOOKUP($D80,Point_Sources_All!$A$5:$FS$205,((3*($E$18-1)+$C$4)+($D$8)))/1000*365.25 -> 4.293331125e-08 | L80: =VLOOKUP($D80,Point_Sources_All!$A$5:$FS$205,((3*($E$19-1)+$C$4)+($D$8)))/1000*365.25 -> 1.202966094e-07 | M80: =VLOOKUP($D80,Point_Sources_All!$A$5:$FS$205,((3*($E$20-1)+$C$4)+($D$8)))/1000*365.25 -> 9.925486125e-06 | N80: =VLOOKUP($D80,Point_Sources_All!$A$5:$FS$205,((3*($E$21-1)+$C$4)+($D$8)))/1000*365.25 -> 1.66045085e-06 | O80: =VLOOKUP($D80,Point_Sources_All!$A$5:$FS$205,((3*($E$22-1)+$C$4)+($D$8)))/1000*365.25 -> 4.865677875e-06 | P80: =VLOOKUP($D80,Point_Sources_All!$A$5:$FS$205,((3*($E$23-1)+$C$4)+($D$8)))/1000*365.25 -> 0 | Q80: =VLOOKUP($D80,Point_Sources_All!$A$5:$FS$205,((3*($E$24-1)+$C$4)+($D$8)))/1000*365.25 -> 6.628283062e-08 | R80: =VLOOKUP($D80,Point_Sources_All!$A$5:$FS$205,((3*($E$25-1)+$C$4)+($D$8)))/1000*365.25 -> 0
D81: 53 | E81: =VLOOKUP($D81,Point_Sources_All!$A$5:$FS$205,((3*($E$12-1)+$C$4)+($D$8)))/1000*365.25 -> 0.0001118438112 | F81: =VLOOKUP($D81,Point_Sources_All!$A$5:$FS$205,((3*($E$13-1)+$C$4)+($D$8)))/1000*365.25 -> 0 | G81: =VLOOKUP($D81,Point_Sources_All!$A$5:$FS$205,((3*($E$14-1)+$C$4)+($D$8)))/1000*365.25 -> 4.123276813e-06 | H81: =VLOOKUP($D81,Point_Sources_All!$A$5:$FS$205,((3*($E$15-1)+$C$4)+($D$8)))/1000*365.25 -> 1.158856069e-05 | I81: =VLOOKUP($D81,Point_Sources_All!$A$5:$FS$205,((3*($E$16-1)+$C$4)+($D$8)))/1000*365.25 -> 1.230725094e-07 | J81: =VLOOKUP($D81,Point_Sources_All!$A$5:$FS$205,((3*($E$17-1)+$C$4)+($D$8)))/1000*365.25 -> 5.29868175e-06 | K81: =VLOOKUP($D81,Point_Sources_All!$A$5:$FS$205,((3*($E$18-1)+$C$4)+($D$8)))/1000*365.25 -> 3.653699237e-08 | L81: =VLOOKUP($D81,Point_Sources_All!$A$5:$FS$205,((3*($E$19-1)+$C$4)+($D$8)))/1000*365.25 -> 9.393438625e-08 | M81: =VLOOKUP($D81,Point_Sources_All!$A$5:$FS$205,((3*($E$20-1)+$C$4)+($D$8)))/1000*365.25 -> 1.012950869e-05 | N81: =VLOOKUP($D81,Point_Sources_All!$A$5:$FS$205,((3*($E$21-1)+$C$4)+($D$8)))/1000*365.25 -> 1.704116488e-06 | O81: =VLOOKUP($D81,Point_Sources_All!$A$5:$FS$205,((3*($E$22-1)+$C$4)+($D$8)))/1000*365.25 -> 4.865830062e-06 | P81: =VLOOKUP($D81,Point_Sources_All!$A$5:$FS$205,((3*($E$23-1)+$C$4)+($D$8)))/1000*365.25 -> 0 | Q81: =VLOOKUP($D81,Point_Sources_All!$A$5:$FS$205,((3*($E$24-1)+$C$4)+($D$8)))/1000*365.25 -> 5.245933562e-08 | R81: =VLOOKUP($D81,Point_Sources_All!$A$5:$FS$205,((3*($E$25-1)+$C$4)+($D$8)))/1000*365.25 -> 0
D82: 54 | E82: =VLOOKUP($D82,Point_Sources_All!$A$5:$FS$205,((3*($E$12-1)+$C$4)+($D$8)))/1000*365.25 -> 0.0001125703544 | F82: =VLOOKUP($D82,Point_Sources_All!$A$5:$FS$205,((3*($E$13-1)+$C$4)+($D$8)))/1000*365.25 -> 0 | G82: =VLOOKUP($D82,Point_Sources_All!$A$5:$FS$205,((3*($E$14-1)+$C$4)+($D$8)))/1000*365.25 -> 3.981164125e-06 | H82: =VLOOKUP($D82,Point_Sources_All!$A$5:$FS$205,((3*($E$15-1)+$C$4)+($D$8)))/1000*365.25 -> 1.155647956e-05 | I82: =VLOOKUP($D82,Point_Sources_All!$A$5:$FS$205,((3*($E$16-1)+$C$4)+($D$8)))/1000*365.25 -> 1.25648435e-07 | J82: =VLOOKUP($D82,Point_Sources_All!$A$5:$FS$205,((3*($E$17-1)+$C$4)+($D$8)))/1000*365.25 -> 5.4161705e-06 | K82: =VLOOKUP($D82,Point_Sources_All!$A$5:$FS$205,((3*($E$18-1)+$C$4)+($D$8)))/1000*365.25 -> 3.023536456e-08 | L82: =VLOOKUP($D82,Point_Sources_All!$A$5:$FS$205,((3*($E$19-1)+$C$4)+($D$8)))/1000*365.25 -> 6.80253775e-08 | M82: =VLOOKUP($D82,Point_Sources_All!$A$5:$FS$205,((3*($E$20-1)+$C$4)+($D$8)))/1000*365.25 -> 1.022727394e-05 | N82: =VLOOKUP($D82,Point_Sources_All!$A$5:$FS$205,((3*($E$21-1)+$C$4)+($D$8)))/1000*365.25 -> 1.756855544e-06 | O82: =VLOOKUP($D82,Point_Sources_All!$A$5:$FS$205,((3*($E$22-1)+$C$4)+($D$8)))/1000*365.25 -> 4.868630312e-06 | P82: =VLOOKUP($D82,Point_Sources_All!$A$5:$FS$205,((3*($E$23-1)+$C$4)+($D$8)))/1000*365.25 -> 0 | Q82: =VLOOKUP($D82,Point_Sources_All!$A$5:$FS$205,((3*($E$24-1)+$C$4)+($D$8)))/1000*365.25 -> 6.35693275e-08 | R82: =VLOOKUP($D82,Point_Sources_All!$A$5:$FS$205,((3*($E$25-1)+$C$4)+($D$8)))/1000*365.25 -> 0
D83: 55 | E83: =VLOOKUP($D83,Point_Sources_All!$A$5:$FS$205,((3*($E$12-1)+$C$4)+($D$8)))/1000*365.25 -> 0.0001130074369 | F83: =VLOOKUP($D83,Point_Sources_All!$A$5:$FS$205,((3*($E$13-1)+$C$4)+($D$8)))/1000*365.25 -> 0 | G83: =VLOOKUP($D83,Point_Sources_All!$A$5:$FS$205,((3*($E$14-1)+$C$4)+($D$8)))/1000*365.25 -> 3.852748312e-06 | H83: =VLOOKUP($D83,Point_Sources_All!$A$5:$FS$205,((3*($E$15-1)+$C$4)+($D$8)))/1000*365.25 -> 1.154071294e-05 | I83: =VLOOKUP($D83,Point_Sources_All!$A$5:$FS$205,((3*($E$16-1)+$C$4)+($D$8)))/1000*365.25 -> 1.27917855e-07 | J83: =VLOOKUP($D83,Point_Sources_All!$A$5:$FS$205,((3*($E$17-1)+$C$4)+($D$8)))/1000*365.25 -> 5.531772125e-06 | K83: =VLOOKUP($D83,Point_Sources_All!$A$5:$FS$205,((3*($E$18-1)+$C$4)+($D$8)))/1000*365.25 -> 2.395412987e-08 | L83: =VLOOKUP($D83,Point_Sources_All!$A$5:$FS$205,((3*($E$19-1)+$C$4)+($D$8)))/1000*365.25 -> 4.323321194e-08 | M83: =VLOOKUP($D83,Point_Sources_All!$A$5:$FS$205,((3*($E$20-1)+$C$4)+($D$8)))/1000*365.25 -> 1.033347038e-05 | N83: =VLOOKUP($D83,Point_Sources_All!$A$5:$FS$205,((3*($E$21-1)+$C$4)+($D$8)))/1000*365.25 -> 1.813110131e-06 | O83: =VLOOKUP($D83,Point_Sources_All!$A$5:$FS$205,((3*($E$22-1)+$C$4)+($D$8)))/1000*365.25 -> 4.879100812e-06 | P83: =VLOOKUP($D83,Point_Sources_All!$A$5:$FS$205,((3*($E$23-1)+$C$4)+($D$8)))/1000*365.25 -> 0 | Q83: =VLOOKUP($D83,Point_Sources_All!$A$5:$FS$205,((3*($E$24-1)+$C$4)+($D$8)))/1000*365.25 -> 7.196490313e-08 | R83: =VLOOKUP($D83,Point_Sources_All!$A$5:$FS$205,((3*($E$25-1)+$C$4)+($D$8)))/1000*365.25 -> 0
D84: 56 | E84: =VLOOKUP($D84,Point_Sources_All!$A$5:$FS$205,((3*($E$12-1)+$C$4)+($D$8)))/1000*365.25 -> 0.0001131745387 | F84: =VLOOKUP($D84,Point_Sources_All!$A$5:$FS$205,((3*($E$13-1)+$C$4)+($D$8)))/1000*365.25 -> 0 | G84: =VLOOKUP($D84,Point_Sources_All!$A$5:$FS$205,((3*($E$14-1)+$C$4)+($D$8)))/1000*365.25 -> 3.733402875e-06 | H84: =VLOOKUP($D84,Point_Sources_All!$A$5:$FS$205,((3*($E$15-1)+$C$4)+($D$8)))/1000*365.25 -> 1.146254944e-05 | I84: =VLOOKUP($D84,Point_Sources_All!$A$5:$FS$205,((3*($E$16-1)+$C$4)+($D$8)))/1000*365.25 -> 1.316339694e-07 | J84: =VLOOKUP($D84,Point_Sources_All!$A$5:$FS$205,((3*($E$17-1)+$C$4)+($D$8)))/1000*365.25 -> 5.593682e-06 | K84: =VLOOKUP($D84,Point_Sources_All!$A$5:$FS$205,((3*($E$18-1)+$C$4)+($D$8)))/1000*365.25 -> 1.837950175e-08 | L84: =VLOOKUP($D84,Point_Sources_All!$A$5:$FS$205,((3*($E$19-1)+$C$4)+($D$8)))/1000*365.25 -> 2.324216631e-08 | M84: =VLOOKUP($D84,Point_Sources_All!$A$5:$FS$205,((3*($E$20-1)+$C$4)+($D$8)))/1000*365.25 -> 1.035696813e-05 | N84: =VLOOKUP($D84,Point_Sources_All!$A$5:$FS$205,((3*($E$21-1)+$C$4)+($D$8)))/1000*365.25 -> 1.866941894e-06 | O84: =VLOOKUP($D84,Point_Sources_All!$A$5:$FS$205,((3*($E$22-1)+$C$4)+($D$8)))/1000*365.25 -> 4.884579562e-06 | P84: =VLOOKUP($D84,Point_Sources_All!$A$5:$FS$205,((3*($E$23-1)+$C$4)+($D$8)))/1000*365.25 -> 0 | Q84: =VLOOKUP($D84,Point_Sources_All!$A$5:$FS$205,((3*($E$24-1)+$C$4)+($D$8)))/1000*365.25 -> 6.003096813e-08 | R84: =VLOOKUP($D84,Point_Sources_All!$A$5:$FS$205,((3*($E$25-1)+$C$4)+($D$8)))/1000*365.25 -> 0
D85: 57 | E85: =VLOOKUP($D85,Point_Sources_All!$A$5:$FS$205,((3*($E$12-1)+$C$4)+($D$8)))/1000*365.25 -> 0.000113215325 | F85: =VLOOKUP($D85,Point_Sources_All!$A$5:$FS$205,((3*($E$13-1)+$C$4)+($D$8)))/1000*365.25 -> 0 | G85: =VLOOKUP($D85,Point_Sources_All!$A$5:$FS$205,((3*($E$14-1)+$C$4)+($D$8)))/1000*365.25 -> 3.60192505e-06 | H85: =VLOOKUP($D85,Point_Sources_All!$A$5:$FS$205,((3*($E$15-1)+$C$4)+($D$8)))/1000*365.25 -> 1.143880819e-05 | I85: =VLOOKUP($D85,Point_Sources_All!$A$5:$FS$205,((3*($E$16-1)+$C$4)+($D$8)))/1000*365.25 -> 1.352335081e-07 | J85: =VLOOKUP($D85,Point_Sources_All!$A$5:$FS$205,((3*($E$17-1)+$C$4)+($D$8)))/1000*365.25 -> 5.650204438e-06 | K85: =VLOOKUP($D85,Point_Sources_All!$A$5:$FS$205,((3*($E$18-1)+$C$4)+($D$8)))/1000*365.25 -> 1.329427819e-08 | L85: =VLOOKUP($D85,Point_Sources_All!$A$5:$FS$205,((3*($E$19-1)+$C$4)+($D$8)))/1000*365.25 -> 1.014317513e-08 | M85: =VLOOKUP($D85,Point_Sources_All!$A$5:$FS$205,((3*($E$20-1)+$C$4)+($D$8)))/1000*365.25 -> 1.040161994e-05 | N85: =VLOOKUP($D85,Point_Sources_All!$A$5:$FS$205,((3*($E$21-1)+$C$4)+($D$8)))/1000*365.25 -> 1.951966006e-06 | O85: =VLOOKUP($D85,Point_Sources_All!$A$5:$FS$205,((3*($E$22-1)+$C$4)+($D$8)))/1000*365.25 -> 4.988006187e-06 | P85: =VLOOKUP($D85,Point_Sources_All!$A$5:$FS$205,((3*($E$23-1)+$C$4)+($D$8)))/1000*365.25 -> 0 | Q85: =VLOOKUP($D85,Point_Sources_All!$A$5:$FS$205,((3*($E$24-1)+$C$4)+($D$8)))/1000*365.25 -> 6.674487188e-08 | R85: =VLOOKUP($D85,Point_Sources_All!$A$5:$FS$205,((3*($E$25-1)+$C$4)+($D$8)))/1000*365.25 -> 0
D86: 58 | E86: =VLOOKUP($D86,Point_Sources_All!$A$5:$FS$205,((3*($E$12-1)+$C$4)+($D$8)))/1000*365.25 -> 0.0001132256737 | F86: =VLOOKUP($D86,Point_Sources_All!$A$5:$FS$205,((3*($E$13-1)+$C$4)+($D$8)))/1000*365.25 -> 0 | G86: =VLOOKUP($D86,Point_Sources_All!$A$5:$FS$205,((3*($E$14-1)+$C$4)+($D$8)))/1000*365.25 -> 3.465714194e-06 | H86: =VLOOKUP($D86,Point_Sources_All!$A$5:$FS$205,((3*($E$15-1)+$C$4)+($D$8)))/1000*365.25 -> 1.146662806e-05 | I86: =VLOOKUP($D86,Point_Sources_All!$A$5:$FS$205,((3*($E$16-1)+$C$4)+($D$8)))/1000*365.25 -> 1.388236112e-07 | J86: =VLOOKUP($D86,Point_Sources_All!$A$5:$FS$205,((3*($E$17-1)+$C$4)+($D$8)))/1000*365.25 -> 5.6957085e-06 | K86: =VLOOKUP($D86,Point_Sources_All!$A$5:$FS$205,((3*($E$18-1)+$C$4)+($D$8)))/1000*365.25 -> 8.903394875e-09 | L86: =VLOOKUP($D86,Point_Sources_All!$A$5:$FS$205,((3*($E$19-1)+$C$4)+($D$8)))/1000*365.25 -> 3.650119787e-09 | M86: =VLOOKUP($D86,Point_Sources_All!$A$5:$FS$205,((3*($E$20-1)+$C$4)+($D$8)))/1000*365.25 -> 1.045744231e-05 | N86: =VLOOKUP($D86,Point_Sources_All!$A$5:$FS$205,((3*($E$21-1)+$C$4)+($D$8)))/1000*365.25 -> 2.045932656e-06 | O86: =VLOOKUP($D86,Point_Sources_All!$A$5:$FS$205,((3*($E$22-1)+$C$4)+($D$8)))/1000*365.25 -> 5.135902e-06 | P86: =VLOOKUP($D86,Point_Sources_All!$A$5:$FS$205,((3*($E$23-1)+$C$4)+($D$8)))/1000*365.25 -> 0 | Q86: =VLOOKUP($D86,Point_Sources_All!$A$5:$FS$205,((3*($E$24-1)+$C$4)+($D$8)))/1000*365.25 -> 6.482396125e-08 | R86: =VLOOKUP($D86,Point_Sources_All!$A$5:$FS$205,((3*($E$25-1)+$C$4)+($D$8)))/1000*365.25 -> 0
D87: 59 | E87: =VLOOKUP($D87,Point_Sources_All!$A$5:$FS$205,((3*($E$12-1)+$C$4)+($D$8)))/1000*365.25 -> 0.0001132314569 | F87: =VLOOKUP($D87,Point_Sources_All!$A$5:$FS$205,((3*($E$13-1)+$C$4)+($D$8)))/1000*365.25 -> 0 | G87: =VLOOKUP($D87,Point_Sources_All!$A$5:$FS$205,((3*($E$14-1)+$C$4)+($D$8)))/1000*365.25 -> 3.364710394e-06 | H87: =VLOOKUP($D87,Point_Sources_All!$A$5:$FS$205,((3*($E$15-1)+$C$4)+($D$8)))/1000*365.25 -> 1.145134844e-05 | I87: =VLOOKUP($D87,Point_Sources_All!$A$5:$FS$205,((3*($E$16-1)+$C$4)+($D$8)))/1000*365.25 -> 1.436053425e-07 | J87: =VLOOKUP($D87,Point_Sources_All!$A$5:$FS$205,((3*($E$17-1)+$C$4)+($D$8)))/1000*365.25 -> 5.701613375e-06 | K87: =VLOOKUP($D87,Point_Sources_All!$A$5:$FS$205,((3*($E$18-1)+$C$4)+($D$8)))/1000*365.25 -> 5.437811562e-09 | L87: =VLOOKUP($D87,Point_Sources_All!$A$5:$FS$205,((3*($E$19-1)+$C$4)+($D$8)))/1000*365.25 -> 1.081657437e-09 | M87: =VLOOKUP($D87,Point_Sources_All!$A$5:$FS$205,((3*($E$20-1)+$C$4)+($D$8)))/1000*365.25 -> 1.045649875e-05 | N87: =VLOOKUP($D87,Point_Sources_All!$A$5:$FS$205,((3*($E$21-1)+$C$4)+($D$8)))/1000*365.25 -> 2.122863438e-06 | O87: =VLOOKUP($D87,Point_Sources_All!$A$5:$FS$205,((3*($E$22-1)+$C$4)+($D$8)))/1000*365.25 -> 5.2330585e-06 | P87: =VLOOKUP($D87,Point_Sources_All!$A$5:$FS$205,((3*($E$23-1)+$C$4)+($D$8)))/1000*365.25 -> 0 | Q87: =VLOOKUP($D87,Point_Sources_All!$A$5:$FS$205,((3*($E$24-1)+$C$4)+($D$8)))/1000*365.25 -> 6.413303e-08 | R87: =VLOOKUP($D87,Point_Sources_All!$A$5:$FS$205,((3*($E$25-1)+$C$4)+($D$8)))/1000*365.25 -> 0
D88: 60 | E88: =VLOOKUP($D88,Point_Sources_All!$A$5:$FS$205,((3*($E$12-1)+$C$4)+($D$8)))/1000*365.25 -> 0.0001132366312 | F88: =VLOOKUP($D88,Point_Sources_All!$A$5:$FS$205,((3*($E$13-1)+$C$4)+($D$8)))/1000*365.25 -> 0 | G88: =VLOOKUP($D88,Point_Sources_All!$A$5:$FS$205,((3*($E$14-1)+$C$4)+($D$8)))/1000*365.25 -> 3.294621963e-06 | H88: =VLOOKUP($D88,Point_Sources_All!$A$5:$FS$205,((3*($E$15-1)+$C$4)+($D$8)))/1000*365.25 -> 1.148044669e-05 | I88: =VLOOKUP($D88,Point_Sources_All!$A$5:$FS$205,((3*($E$16-1)+$C$4)+($D$8)))/1000*365.25 -> 1.451110856e-07 | J88: =VLOOKUP($D88,Point_Sources_All!$A$5:$FS$205,((3*($E$17-1)+$C$4)+($D$8)))/1000*365.25 -> 5.720636813e-06 | K88: =VLOOKUP($D88,Point_Sources_All!$A$5:$FS$205,((3*($E$18-1)+$C$4)+($D$8)))/1000*365.25 -> 3.008463806e-09 | L88: =VLOOKUP($D88,Point_Sources_All!$A$5:$FS$205,((3*($E$19-1)+$C$4)+($D$8)))/1000*365.25 -> 2.642288506e-10 | M88: =VLOOKUP($D88,Point_Sources_All!$A$5:$FS$205,((3*($E$20-1)+$C$4)+($D$8)))/1000*365.25 -> 1.048751456e-05 | N88: =VLOOKUP($D88,Point_Sources_All!$A$5:$FS$205,((3*($E$21-1)+$C$4)+($D$8)))/1000*365.25 -> 2.181309525e-06 | O88: =VLOOKUP($D88,Point_Sources_All!$A$5:$FS$205,((3*($E$22-1)+$C$4)+($D$8)))/1000*365.25 -> 5.337611313e-06 | P88: =VLOOKUP($D88,Point_Sources_All!$A$5:$FS$205,((3*($E$23-1)+$C$4)+($D$8)))/1000*365.25 -> 0 | Q88: =VLOOKUP($D88,Point_Sources_All!$A$5:$FS$205,((3*($E$24-1)+$C$4)+($D$8)))/1000*365.25 -> 6.082721313e-08 | R88: =VLOOKUP($D88,Point_Sources_All!$A$5:$FS$205,((3*($E$25-1)+$C$4)+($D$8)))/1000*365.25 -> 0
D89: 61 | E89: =VLOOKUP($D89,Point_Sources_All!$A$5:$FS$205,((3*($E$12-1)+$C$4)+($D$8)))/1000*365.25 -> 0.0001132411969 | F89: =VLOOKUP($D89,Point_Sources_All!$A$5:$FS$205,((3*($E$13-1)+$C$4)+($D$8)))/1000*365.25 -> 0 | G89: =VLOOKUP($D89,Point_Sources_All!$A$5:$FS$205,((3*($E$14-1)+$C$4)+($D$8)))/1000*365.25 -> 3.192288044e-06 | H89: =VLOOKUP($D89,Point_Sources_All!$A$5:$FS$205,((3*($E$15-1)+$C$4)+($D$8)))/1000*365.25 -> 1.14505875e-05 | I89: =VLOOKUP($D89,Point_Sources_All!$A$5:$FS$205,((3*($E$16-1)+$C$4)+($D$8)))/1000*365.25 -> 1.478425469e-07 | J89: =VLOOKUP($D89,Point_Sources_All!$A$5:$FS$205,((3*($E$17-1)+$C$4)+($D$8)))/1000*365.25 -> 5.70678775e-06 | K89: =VLOOKUP($D89,Point_Sources_All!$A$5:$FS$205,((3*($E$18-1)+$C$4)+($D$8)))/1000*365.25 -> 1.508281612e-09 | L89: =VLOOKUP($D89,Point_Sources_All!$A$5:$FS$205,((3*($E$19-1)+$C$4)+($D$8)))/1000*365.25 -> 5.602938044e-11 | M89: =VLOOKUP($D89,Point_Sources_All!$A$5:$FS$205,((3*($E$20-1)+$C$4)+($D$8)))/1000*365.25 -> 1.046121656e-05 | N89: =VLOOKUP($D89,Point_Sources_All!$A$5:$FS$205,((3*($E$21-1)+$C$4)+($D$8)))/1000*365.25 -> 2.210505175e-06 | O89: =VLOOKUP($D89,Point_Sources_All!$A$5:$FS$205,((3*($E$22-1)+$C$4)+($D$8)))/1000*365.25 -> 5.422531937e-06 | P89: =VLOOKUP($D89,Point_Sources_All!$A$5:$FS$205,((3*($E$23-1)+$C$4)+($D$8)))/1000*365.25 -> 0 | Q89: =VLOOKUP($D89,Point_Sources_All!$A$5:$FS$205,((3*($E$24-1)+$C$4)+($D$8)))/1000*365.25 -> 6.597662938e-08 | R89: =VLOOKUP($D89,Point_Sources_All!$A$5:$FS$205,((3*($E$25-1)+$C$4)+($D$8)))/1000*365.25 -> 0
D90: 62 | E90: =VLOOKUP($D90,Point_Sources_All!$A$5:$FS$205,((3*($E$12-1)+$C$4)+($D$8)))/1000*365.25 -> 0.0001132454581 | F90: =VLOOKUP($D90,Point_Sources_All!$A$5:$FS$205,((3*($E$13-1)+$C$4)+($D$8)))/1000*365.25 -> 0 | G90: =VLOOKUP($D90,Point_Sources_All!$A$5:$FS$205,((3*($E$14-1)+$C$4)+($D$8)))/1000*365.25 -> 3.060791956e-06 | H90: =VLOOKUP($D90,Point_Sources_All!$A$5:$FS$205,((3*($E$15-1)+$C$4)+($D$8)))/1000*365.25 -> 1.14471785e-05 | I90: =VLOOKUP($D90,Point_Sources_All!$A$5:$FS$205,((3*($E$16-1)+$C$4)+($D$8)))/1000*365.25 -> 1.510929675e-07 | J90: =VLOOKUP($D90,Point_Sources_All!$A$5:$FS$205,((3*($E$17-1)+$C$4)+($D$8)))/1000*365.25 -> 5.705265875e-06 | K90: =VLOOKUP($D90,Point_Sources_All!$A$5:$FS$205,((3*($E$18-1)+$C$4)+($D$8)))/1000*365.25 -> 6.863778e-10 | L90: =VLOOKUP($D90,Point_Sources_All!$A$5:$FS$205,((3*($E$19-1)+$C$4)+($D$8)))/1000*365.25 -> 1.011389425e-11 | M90: =VLOOKUP($D90,Point_Sources_All!$A$5:$FS$205,((3*($E$20-1)+$C$4)+($D$8)))/1000*365.25 -> 1.045829456e-05 | N90: =VLOOKUP($D90,Point_Sources_All!$A$5:$FS$205,((3*($E$21-1)+$C$4)+($D$8)))/1000*365.25 -> 2.212495788e-06 | O90: =VLOOKUP($D90,Point_Sources_All!$A$5:$FS$205,((3*($E$22-1)+$C$4)+($D$8)))/1000*365.25 -> 5.413431125e-06 | P90: =VLOOKUP($D90,Point_Sources_All!$A$5:$FS$205,((3*($E$23-1)+$C$4)+($D$8)))/1000*365.25 -> 0 | Q90: =VLOOKUP($D90,Point_Sources_All!$A$5:$FS$205,((3*($E$24-1)+$C$4)+($D$8)))/1000*365.25 -> 6.43631375e-08 | R90: =VLOOKUP($D90,Point_Sources_All!$A$5:$FS$205,((3*($E$25-1)+$C$4)+($D$8)))/1000*365.25 -> 0
D91: 63 | E91: =VLOOKUP($D91,Point_Sources_All!$A$5:$FS$205,((3*($E$12-1)+$C$4)+($D$8)))/1000*365.25 -> 0.0001132509369 | F91: =VLOOKUP($D91,Point_Sources_All!$A$5:$FS$205,((3*($E$13-1)+$C$4)+($D$8)))/1000*365.25 -> 0 | G91: =VLOOKUP($D91,Point_Sources_All!$A$5:$FS$205,((3*($E$14-1)+$C$4)+($D$8)))/1000*365.25 -> 2.995339156e-06 | H91: =VLOOKUP($D91,Point_Sources_All!$A$5:$FS$205,((3*($E$15-1)+$C$4)+($D$8)))/1000*365.25 -> 1.147929006e-05 | I91: =VLOOKUP($D91,Point_Sources_All!$A$5:$FS$205,((3*($E$16-1)+$C$4)+($D$8)))/1000*365.25 -> 1.526461931e-07 | J91: =VLOOKUP($D91,Point_Sources_All!$A$5:$FS$205,((3*($E$17-1)+$C$4)+($D$8)))/1000*365.25 -> 5.721336875e-06 | K91: =VLOOKUP($D91,Point_Sources_All!$A$5:$FS$205,((3*($E$18-1)+$C$4)+($D$8)))/1000*365.25 -> 2.838662125e-10 | L91: =VLOOKUP($D91,Point_Sources_All!$A$5:$FS$205,((3*($E$19-1)+$C$4)+($D$8)))/1000*365.25 -> 1.265188866e-12 | M91: =VLOOKUP($D91,Point_Sources_All!$A$5:$FS$205,((3*($E$20-1)+$C$4)+($D$8)))/1000*365.25 -> 1.048769719e-05 | N91: =VLOOKUP($D91,Point_Sources_All!$A$5:$FS$205,((3*($E$21-1)+$C$4)+($D$8)))/1000*365.25 -> 2.217521019e-06 | O91: =VLOOKUP($D91,Point_Sources_All!$A$5:$FS$205,((3*($E$22-1)+$C$4)+($D$8)))/1000*365.25 -> 5.450047437e-06 | P91: =VLOOKUP($D91,Point_Sources_All!$A$5:$FS$205,((3*($E$23-1)+$C$4)+($D$8)))/1000*365.25 -> 0 | Q91: =VLOOKUP($D91,Point_Sources_All!$A$5:$FS$205,((3*($E$24-1)+$C$4)+($D$8)))/1000*365.25 -> 5.801631e-08 | R91: =VLOOKUP($D91,Point_Sources_All!$A$5:$FS$205,((3*($E$25-1)+$C$4)+($D$8)))/1000*365.25 -> 0
D92: 64 | E92: =VLOOKUP($D92,Point_Sources_All!$A$5:$FS$205,((3*($E$12-1)+$C$4)+($D$8)))/1000*365.25 -> 0.0001132536763 | F92: =VLOOKUP($D92,Point_Sources_All!$A$5:$FS$205,((3*($E$13-1)+$C$4)+($D$8)))/1000*365.25 -> 0 | G92: =VLOOKUP($D92,Point_Sources_All!$A$5:$FS$205,((3*($E$14-1)+$C$4)+($D$8)))/1000*365.25 -> 2.922547875e-06 | H92: =VLOOKUP($D92,Point_Sources_All!$A$5:$FS$205,((3*($E$15-1)+$C$4)+($D$8)))/1000*365.25 -> 1.144093881e-05 | I92: =VLOOKUP($D92,Point_Sources_All!$A$5:$FS$205,((3*($E$16-1)+$C$4)+($D$8)))/1000*365.25 -> 1.528209044e-07 | J92: =VLOOKUP($D92,Point_Sources_All!$A$5:$FS$205,((3*($E$17-1)+$C$4)+($D$8)))/1000*365.25 -> 5.702283e-06 | K92: =VLOOKUP($D92,Point_Sources_All!$A$5:$FS$205,((3*($E$18-1)+$C$4)+($D$8)))/1000*365.25 -> 1.08277145e-10 | L92: =VLOOKUP($D92,Point_Sources_All!$A$5:$FS$205,((3*($E$19-1)+$C$4)+($D$8)))/1000*365.25 -> 3.279884125e-14 | M92: =VLOOKUP($D92,Point_Sources_All!$A$5:$FS$205,((3*($E$20-1)+$C$4)+($D$8)))/1000*365.25 -> 1.045263319e-05 | N92: =VLOOKUP($D92,Point_Sources_All!$A$5:$FS$205,((3*($E$21-1)+$C$4)+($D$8)))/1000*365.25 -> 2.238559419e-06 | O92: =VLOOKUP($D92,Point_Sources_All!$A$5:$FS$205,((3*($E$22-1)+$C$4)+($D$8)))/1000*365.25 -> 5.445207875e-06 | P92: =VLOOKUP($D92,Point_Sources_All!$A$5:$FS$205,((3*($E$23-1)+$C$4)+($D$8)))/1000*365.25 -> 0 | Q92: =VLOOKUP($D92,Point_Sources_All!$A$5:$FS$205,((3*($E$24-1)+$C$4)+($D$8)))/1000*365.25 -> 6.012197625e-08 | R92: =VLOOKUP($D92,Point_Sources_All!$A$5:$FS$205,((3*($E$25-1)+$C$4)+($D$8)))/1000*365.25 -> 0
D93: 65 | E93: =VLOOKUP($D93,Point_Sources_All!$A$5:$FS$205,((3*($E$12-1)+$C$4)+($D$8)))/1000*365.25 -> 0.0001132570244 | F93: =VLOOKUP($D93,Point_Sources_All!$A$5:$FS$205,((3*($E$13-1)+$C$4)+($D$8)))/1000*365.25 -> 0 | G93: =VLOOKUP($D93,Point_Sources_All!$A$5:$FS$205,((3*($E$14-1)+$C$4)+($D$8)))/1000*365.25 -> 2.88111635e-06 | H93: =VLOOKUP($D93,Point_Sources_All!$A$5:$FS$205,((3*($E$15-1)+$C$4)+($D$8)))/1000*365.25 -> 1.144647844e-05 | I93: =VLOOKUP($D93,Point_Sources_All!$A$5:$FS$205,((3*($E$16-1)+$C$4)+($D$8)))/1000*365.25 -> 1.542097675e-07 | J93: =VLOOKUP($D93,Point_Sources_All!$A$5:$FS$205,((3*($E$17-1)+$C$4)+($D$8)))/1000*365.25 -> 5.705113688e-06 | K93: =VLOOKUP($D93,Point_Sources_All!$A$5:$FS$205,((3*($E$18-1)+$C$4)+($D$8)))/1000*365.25 -> 3.788214725e-11 | L93: =VLOOKUP($D93,Point_Sources_All!$A$5:$FS$205,((3*($E$19-1)+$C$4)+($D$8)))/1000*365.25 -> 0 | M93: =VLOOKUP($D93,Point_Sources_All!$A$5:$FS$205,((3*($E$20-1)+$C$4)+($D$8)))/1000*365.25 -> 1.045780756e-05 | N93: =VLOOKUP($D93,Point_Sources_All!$A$5:$FS$205,((3*($E$21-1)+$C$4)+($D$8)))/1000*365.25 -> 2.261755837e-06 | O93: =VLOOKUP($D93,Point_Sources_All!$A$5:$FS$205,((3*($E$22-1)+$C$4)+($D$8)))/1000*365.25 -> 5.511196375e-06 | P93: =VLOOKUP($D93,Point_Sources_All!$A$5:$FS$205,((3*($E$23-1)+$C$4)+($D$8)))/1000*365.25 -> 0 | Q93: =VLOOKUP($D93,Point_Sources_All!$A$5:$FS$205,((3*($E$24-1)+$C$4)+($D$8)))/1000*365.25 -> 7.17582325e-08 | R93: =VLOOKUP($D93,Point_Sources_All!$A$5:$FS$205,((3*($E$25-1)+$C$4)+($D$8)))/1000*365.25 -> 0
D94: 66 | E94: =VLOOKUP($D94,Point_Sources_All!$A$5:$FS$205,((3*($E$12-1)+$C$4)+($D$8)))/1000*365.25 -> 0.0001132612856 | F94: =VLOOKUP($D94,Point_Sources_All!$A$5:$FS$205,((3*($E$13-1)+$C$4)+($D$8)))/1000*365.25 -> 0 | G94: =VLOOKUP($D94,Point_Sources_All!$A$5:$FS$205,((3*($E$14-1)+$C$4)+($D$8)))/1000*365.25 -> 2.8360445e-06 | H94: =VLOOKUP($D94,Point_Sources_All!$A$5:$FS$205,((3*($E$15-1)+$C$4)+($D$8)))/1000*365.25 -> 1.148339912e-05 | I94: =VLOOKUP($D94,Point_Sources_All!$A$5:$FS$205,((3*($E$16-1)+$C$4)+($D$8)))/1000*365.25 -> 1.56022625e-07 | J94: =VLOOKUP($D94,Point_Sources_All!$A$5:$FS$205,((3*($E$17-1)+$C$4)+($D$8)))/1000*365.25 -> 5.723437063e-06 | K94: =VLOOKUP($D94,Point_Sources_All!$A$5:$FS$205,((3*($E$18-1)+$C$4)+($D$8)))/1000*365.25 -> 1.233193575e-11 | L94: =VLOOKUP($D94,Point_Sources_All!$A$5:$FS$205,((3*($E$19-1)+$C$4)+($D$8)))/1000*365.25 -> 0 | M94: =VLOOKUP($D94,Point_Sources_All!$A$5:$FS$205,((3*($E$20-1)+$C$4)+($D$8)))/1000*365.25 -> 1.049141056e-05 | N94: =VLOOKUP($D94,Point_Sources_All!$A$5:$FS$205,((3*($E$21-1)+$C$4)+($D$8)))/1000*365.25 -> 2.276131469e-06 | O94: =VLOOKUP($D94,Point_Sources_All!$A$5:$FS$205,((3*($E$22-1)+$C$4)+($D$8)))/1000*365.25 -> 5.548451875e-06 | P94: =VLOOKUP($D94,Point_Sources_All!$A$5:$FS$205,((3*($E$23-1)+$C$4)+($D$8)))/1000*365.25 -> 0 | Q94: =VLOOKUP($D94,Point_Sources_All!$A$5:$FS$205,((3*($E$24-1)+$C$4)+($D$8)))/1000*365.25 -> 7.41214e-08 | R94: =VLOOKUP($D94,Point_Sources_All!$A$5:$FS$205,((3*($E$25-1)+$C$4)+($D$8)))/1000*365.25 -> 0
D95: 67 | E95: =VLOOKUP($D95,Point_Sources_All!$A$5:$FS$205,((3*($E$12-1)+$C$4)+($D$8)))/1000*365.25 -> 0.0001132637206 | F95: =VLOOKUP($D95,Point_Sources_All!$A$5:$FS$205,((3*($E$13-1)+$C$4)+($D$8)))/1000*365.25 -> 0 | G95: =VLOOKUP($D95,Point_Sources_All!$A$5:$FS$205,((3*($E$14-1)+$C$4)+($D$8)))/1000*365.25 -> 2.76482075e-06 | H95: =VLOOKUP($D95,Point_Sources_All!$A$5:$FS$205,((3*($E$15-1)+$C$4)+($D$8)))/1000*365.25 -> 1.15635715e-05 | I95: =VLOOKUP($D95,Point_Sources_All!$A$5:$FS$205,((3*($E$16-1)+$C$4)+($D$8)))/1000*365.25 -> 1.586697744e-07 | J95: =VLOOKUP($D95,Point_Sources_All!$A$5:$FS$205,((3*($E$17-1)+$C$4)+($D$8)))/1000*365.25 -> 5.763340625e-06 | K95: =VLOOKUP($D95,Point_Sources_All!$A$5:$FS$205,((3*($E$18-1)+$C$4)+($D$8)))/1000*365.25 -> 3.852422631e-12 | L95: =VLOOKUP($D95,Point_Sources_All!$A$5:$FS$205,((3*($E$19-1)+$C$4)+($D$8)))/1000*365.25 -> 0 | M95: =VLOOKUP($D95,Point_Sources_All!$A$5:$FS$205,((3*($E$20-1)+$C$4)+($D$8)))/1000*365.25 -> 1.056461275e-05 | N95: =VLOOKUP($D95,Point_Sources_All!$A$5:$FS$205,((3*($E$21-1)+$C$4)+($D$8)))/1000*365.25 -> 2.258471631e-06 | O95: =VLOOKUP($D95,Point_Sources_All!$A$5:$FS$205,((3*($E$22-1)+$C$4)+($D$8)))/1000*365.25 -> 5.49007275e-06 | P95: =VLOOKUP($D95,Point_Sources_All!$A$5:$FS$205,((3*($E$23-1)+$C$4)+($D$8)))/1000*365.25 -> 0 | Q95: =VLOOKUP($D95,Point_Sources_All!$A$5:$FS$205,((3*($E$24-1)+$C$4)+($D$8)))/1000*365.25 -> 6.5294525e-08 | R95: =VLOOKUP($D95,Point_Sources_All!$A$5:$FS$205,((3*($E$25-1)+$C$4)+($D$8)))/1000*365.25 -> 0
D96: 68 | E96: =VLOOKUP($D96,Point_Sources_All!$A$5:$FS$205,((3*($E$12-1)+$C$4)+($D$8)))/1000*365.25 -> 0.000113264025 | F96: =VLOOKUP($D96,Point_Sources_All!$A$5:$FS$205,((3*($E$13-1)+$C$4)+($D$8)))/1000*365.25 -> 0 | G96: =VLOOKUP($D96,Point_Sources_All!$A$5:$FS$205,((3*($E$14-1)+$C$4)+($D$8)))/1000*365.25 -> 2.692884763e-06 | H96: =VLOOKUP($D96,Point_Sources_All!$A$5:$FS$205,((3*($E$15-1)+$C$4)+($D$8)))/1000*365.25 -> 1.162292462e-05 | I96: =VLOOKUP($D96,Point_Sources_All!$A$5:$FS$205,((3*($E$16-1)+$C$4)+($D$8)))/1000*365.25 -> 1.58998195e-07 | J96: =VLOOKUP($D96,Point_Sources_All!$A$5:$FS$205,((3*($E$17-1)+$C$4)+($D$8)))/1000*365.25 -> 5.792956313e-06 | K96: =VLOOKUP($D96,Point_Sources_All!$A$5:$FS$205,((3*($E$18-1)+$C$4)+($D$8)))/1000*365.25 -> 1.030260675e-12 | L96: =VLOOKUP($D96,Point_Sources_All!$A$5:$FS$205,((3*($E$19-1)+$C$4)+($D$8)))/1000*365.25 -> 0 | M96: =VLOOKUP($D96,Point_Sources_All!$A$5:$FS$205,((3*($E$20-1)+$C$4)+($D$8)))/1000*365.25 -> 1.061894369e-05 | N96: =VLOOKUP($D96,Point_Sources_All!$A$5:$FS$205,((3*($E$21-1)+$C$4)+($D$8)))/1000*365.25 -> 2.255132638e-06 | O96: =VLOOKUP($D96,Point_Sources_All!$A$5:$FS$205,((3*($E$22-1)+$C$4)+($D$8)))/1000*365.25 -> 5.5009085e-06 | P96: =VLOOKUP($D96,Point_Sources_All!$A$5:$FS$205,((3*($E$23-1)+$C$4)+($D$8)))/1000*365.25 -> 0 | Q96: =VLOOKUP($D96,Point_Sources_All!$A$5:$FS$205,((3*($E$24-1)+$C$4)+($D$8)))/1000*365.25 -> 6.120281188e-08 | R96: =VLOOKUP($D96,Point_Sources_All!$A$5:$FS$205,((3*($E$25-1)+$C$4)+($D$8)))/1000*365.25 -> 0
D97: 69 | E97: =VLOOKUP($D97,Point_Sources_All!$A$5:$FS$205,((3*($E$12-1)+$C$4)+($D$8)))/1000*365.25 -> 0.0001132609812 | F97: =VLOOKUP($D97,Point_Sources_All!$A$5:$FS$205,((3*($E$13-1)+$C$4)+($D$8)))/1000*365.25 -> 0 | G97: =VLOOKUP($D97,Point_Sources_All!$A$5:$FS$205,((3*($E$14-1)+$C$4)+($D$8)))/1000*365.25 -> 2.64224285e-06 | H97: =VLOOKUP($D97,Point_Sources_All!$A$5:$FS$205,((3*($E$15-1)+$C$4)+($D$8)))/1000*365.25 -> 1.148187725e-05 | I97: =VLOOKUP($D97,Point_Sources_All!$A$5:$FS$205,((3*($E$16-1)+$C$4)+($D$8)))/1000*365.25 -> 1.608436206e-07 | J97: =VLOOKUP($D97,Point_Sources_All!$A$5:$FS$205,((3*($E$17-1)+$C$4)+($D$8)))/1000*365.25 -> 5.722706562e-06 | K97: =VLOOKUP($D97,Point_Sources_All!$A$5:$FS$205,((3*($E$18-1)+$C$4)+($D$8)))/1000*365.25 -> 1.8080849e-13 | L97: =VLOOKUP($D97,Point_Sources_All!$A$5:$FS$205,((3*($E$19-1)+$C$4)+($D$8)))/1000*365.25 -> 0 | M97: =VLOOKUP($D97,Point_Sources_All!$A$5:$FS$205,((3*($E$20-1)+$C$4)+($D$8)))/1000*365.25 -> 1.049001044e-05 | N97: =VLOOKUP($D97,Point_Sources_All!$A$5:$FS$205,((3*($E$21-1)+$C$4)+($D$8)))/1000*365.25 -> 2.250956613e-06 | O97: =VLOOKUP($D97,Point_Sources_All!$A$5:$FS$205,((3*($E$22-1)+$C$4)+($D$8)))/1000*365.25 -> 5.498260437e-06 | P97: =VLOOKUP($D97,Point_Sources_All!$A$5:$FS$205,((3*($E$23-1)+$C$4)+($D$8)))/1000*365.25 -> 0 | Q97: =VLOOKUP($D97,Point_Sources_All!$A$5:$FS$205,((3*($E$24-1)+$C$4)+($D$8)))/1000*365.25 -> 6.878905437e-08 | R97: =VLOOKUP($D97,Point_Sources_All!$A$5:$FS$205,((3*($E$25-1)+$C$4)+($D$8)))/1000*365.25 -> 0
D98: 70 | E98: =VLOOKUP($D98,Point_Sources_All!$A$5:$FS$205,((3*($E$12-1)+$C$4)+($D$8)))/1000*365.25 -> 0.0001132606769 | F98: =VLOOKUP($D98,Point_Sources_All!$A$5:$FS$205,((3*($E$13-1)+$C$4)+($D$8)))/1000*365.25 -> 0 | G98: =VLOOKUP($D98,Point_Sources_All!$A$5:$FS$205,((3*($E$14-1)+$C$4)+($D$8)))/1000*365.25 -> 2.588633281e-06 | H98: =VLOOKUP($D98,Point_Sources_All!$A$5:$FS$205,((3*($E$15-1)+$C$4)+($D$8)))/1000*365.25 -> 1.150336613e-05 | I98: =VLOOKUP($D98,Point_Sources_All!$A$5:$FS$205,((3*($E$16-1)+$C$4)+($D$8)))/1000*365.25 -> 1.616447356e-07 | J98: =VLOOKUP($D98,Point_Sources_All!$A$5:$FS$205,((3*($E$17-1)+$C$4)+($D$8)))/1000*365.25 -> 5.733420562e-06 | K98: =VLOOKUP($D98,Point_Sources_All!$A$5:$FS$205,((3*($E$18-1)+$C$4)+($D$8)))/1000*365.25 -> 0 | L98: =VLOOKUP($D98,Point_Sources_All!$A$5:$FS$205,((3*($E$19-1)+$C$4)+($D$8)))/1000*365.25 -> 0 | M98: =VLOOKUP($D98,Point_Sources_All!$A$5:$FS$205,((3*($E$20-1)+$C$4)+($D$8)))/1000*365.25 -> 1.050973394e-05 | N98: =VLOOKUP($D98,Point_Sources_All!$A$5:$FS$205,((3*($E$21-1)+$C$4)+($D$8)))/1000*365.25 -> 2.242400631e-06 | O98: =VLOOKUP($D98,Point_Sources_All!$A$5:$FS$205,((3*($E$22-1)+$C$4)+($D$8)))/1000*365.25 -> 5.457017625e-06 | P98: =VLOOKUP($D98,Point_Sources_All!$A$5:$FS$205,((3*($E$23-1)+$C$4)+($D$8)))/1000*365.25 -> 0 | Q98: =VLOOKUP($D98,Point_Sources_All!$A$5:$FS$205,((3*($E$24-1)+$C$4)+($D$8)))/1000*365.25 -> 5.6492e-08 | R98: =VLOOKUP($D98,Point_Sources_All!$A$5:$FS$205,((3*($E$25-1)+$C$4)+($D$8)))/1000*365.25 -> 0
D99: 71 | E99: =VLOOKUP($D99,Point_Sources_All!$A$5:$FS$205,((3*($E$12-1)+$C$4)+($D$8)))/1000*365.25 -> 0.0001132570244 | F99: =VLOOKUP($D99,Point_Sources_All!$A$5:$FS$205,((3*($E$13-1)+$C$4)+($D$8)))/1000*365.25 -> 0 | G99: =VLOOKUP($D99,Point_Sources_All!$A$5:$FS$205,((3*($E$14-1)+$C$4)+($D$8)))/1000*365.25 -> 2.549977656e-06 | H99: =VLOOKUP($D99,Point_Sources_All!$A$5:$FS$205,((3*($E$15-1)+$C$4)+($D$8)))/1000*365.25 -> 1.148820825e-05 | I99: =VLOOKUP($D99,Point_Sources_All!$A$5:$FS$205,((3*($E$16-1)+$C$4)+($D$8)))/1000*365.25 -> 1.607842675e-07 | J99: =VLOOKUP($D99,Point_Sources_All!$A$5:$FS$205,((3*($E$17-1)+$C$4)+($D$8)))/1000*365.25 -> 5.725872062e-06 | K99: =VLOOKUP($D99,Point_Sources_All!$A$5:$FS$205,((3*($E$18-1)+$C$4)+($D$8)))/1000*365.25 -> 0 | L99: =VLOOKUP($D99,Point_Sources_All!$A$5:$FS$205,((3*($E$19-1)+$C$4)+($D$8)))/1000*365.25 -> 0 | M99: =VLOOKUP($D99,Point_Sources_All!$A$5:$FS$205,((3*($E$20-1)+$C$4)+($D$8)))/1000*365.25 -> 1.049588488e-05 | N99: =VLOOKUP($D99,Point_Sources_All!$A$5:$FS$205,((3*($E$21-1)+$C$4)+($D$8)))/1000*365.25 -> 2.264376506e-06 | O99: =VLOOKUP($D99,Point_Sources_All!$A$5:$FS$205,((3*($E$22-1)+$C$4)+($D$8)))/1000*365.25 -> 5.49542975e-06 | P99: =VLOOKUP($D99,Point_Sources_All!$A$5:$FS$205,((3*($E$23-1)+$C$4)+($D$8)))/1000*365.25 -> 0 | Q99: =VLOOKUP($D99,Point_Sources_All!$A$5:$FS$205,((3*($E$24-1)+$C$4)+($D$8)))/1000*365.25 -> 7.094950812e-08 | R99: =VLOOKUP($D99,Point_Sources_All!$A$5:$FS$205,((3*($E$25-1)+$C$4)+($D$8)))/1000*365.25 -> 0
D100: 72 | E100: =VLOOKUP($D100,Point_Sources_All!$A$5:$FS$205,((3*($E$12-1)+$C$4)+($D$8)))/1000*365.25 -> 0.0001132573287 | F100: =VLOOKUP($D100,Point_Sources_All!$A$5:$FS$205,((3*($E$13-1)+$C$4)+($D$8)))/1000*365.25 -> 0 | G100: =VLOOKUP($D100,Point_Sources_All!$A$5:$FS$205,((3*($E$14-1)+$C$4)+($D$8)))/1000*365.25 -> 2.534305387e-06 | H100: =VLOOKUP($D100,Point_Sources_All!$A$5:$FS$205,((3*($E$15-1)+$C$4)+($D$8)))/1000*365.25 -> 1.155011813e-05 | I100: =VLOOKUP($D100,Point_Sources_All!$A$5:$FS$205,((3*($E$16-1)+$C$4)+($D$8)))/1000*365.25 -> 1.630016394e-07 | J100: =VLOOKUP($D100,Point_Sources_All!$A$5:$FS$205,((3*($E$17-1)+$C$4)+($D$8)))/1000*365.25 -> 5.756674812e-06 | K100: =VLOOKUP($D100,Point_Sources_All!$A$5:$FS$205,((3*($E$18-1)+$C$4)+($D$8)))/1000*365.25 -> 0 | L100: =VLOOKUP($D100,Point_Sources_All!$A$5:$FS$205,((3*($E$19-1)+$C$4)+($D$8)))/1000*365.25 -> 0 | M100: =VLOOKUP($D100,Point_Sources_All!$A$5:$FS$205,((3*($E$20-1)+$C$4)+($D$8)))/1000*365.25 -> 1.055240731e-05 | N100: =VLOOKUP($D100,Point_Sources_All!$A$5:$FS$205,((3*($E$21-1)+$C$4)+($D$8)))/1000*365.25 -> 2.271480619e-06 | O100: =VLOOKUP($D100,Point_Sources_All!$A$5:$FS$205,((3*($E$22-1)+$C$4)+($D$8)))/1000*365.25 -> 5.58333325e-06 | P100: =VLOOKUP($D100,Point_Sources_All!$A$5:$FS$205,((3*($E$23-1)+$C$4)+($D$8)))/1000*365.25 -> 0 | Q100: =VLOOKUP($D100,Point_Sources_All!$A$5:$FS$205,((3*($E$24-1)+$C$4)+($D$8)))/1000*365.25 -> 6.50108475e-08 | R100: =VLOOKUP($D100,Point_Sources_All!$A$5:$FS$205,((3*($E$25-1)+$C$4)+($D$8)))/1000*365.25 -> 0
D101: 73 | E101: =VLOOKUP($D101,Point_Sources_All!$A$5:$FS$205,((3*($E$12-1)+$C$4)+($D$8)))/1000*365.25 -> 0.0001132603725 | F101: =VLOOKUP($D101,Point_Sources_All!$A$5:$FS$205,((3*($E$13-1)+$C$4)+($D$8)))/1000*365.25 -> 0 | G101: =VLOOKUP($D101,Point_Sources_All!$A$5:$FS$205,((3*($E$14-1)+$C$4)+($D$8)))/1000*365.25 -> 2.507995213e-06 | H101: =VLOOKUP($D101,Point_Sources_All!$A$5:$FS$205,((3*($E$15-1)+$C$4)+($D$8)))/1000*365.25 -> 1.152640731e-05 | I101: =VLOOKUP($D101,Point_Sources_All!$A$5:$FS$205,((3*($E$16-1)+$C$4)+($D$8)))/1000*365.25 -> 1.647079656e-07 | J101: =VLOOKUP($D101,Point_Sources_All!$A$5:$FS$205,((3*($E$17-1)+$C$4)+($D$8)))/1000*365.25 -> 5.7448955e-06 | K101: =VLOOKUP($D101,Point_Sources_All!$A$5:$FS$205,((3*($E$18-1)+$C$4)+($D$8)))/1000*365.25 -> 0 | L101: =VLOOKUP($D101,Point_Sources_All!$A$5:$FS$205,((3*($E$19-1)+$C$4)+($D$8)))/1000*365.25 -> 0 | M101: =VLOOKUP($D101,Point_Sources_All!$A$5:$FS$205,((3*($E$20-1)+$C$4)+($D$8)))/1000*365.25 -> 1.053067494e-05 | N101: =VLOOKUP($D101,Point_Sources_All!$A$5:$FS$205,((3*($E$21-1)+$C$4)+($D$8)))/1000*365.25 -> 2.274542631e-06 | O101: =VLOOKUP($D101,Point_Sources_All!$A$5:$FS$205,((3*($E$22-1)+$C$4)+($D$8)))/1000*365.25 -> 5.6377555e-06 | P101: =VLOOKUP($D101,Point_Sources_All!$A$5:$FS$205,((3*($E$23-1)+$C$4)+($D$8)))/1000*365.25 -> 0 | Q101: =VLOOKUP($D101,Point_Sources_All!$A$5:$FS$205,((3*($E$24-1)+$C$4)+($D$8)))/1000*365.25 -> 5.9484615e-08 | R101: =VLOOKUP($D101,Point_Sources_All!$A$5:$FS$205,((3*($E$25-1)+$C$4)+($D$8)))/1000*365.25 -> 0
D102: 74 | E102: =VLOOKUP($D102,Point_Sources_All!$A$5:$FS$205,((3*($E$12-1)+$C$4)+($D$8)))/1000*365.25 -> 0.00011326159 | F102: =VLOOKUP($D102,Point_Sources_All!$A$5:$FS$205,((3*($E$13-1)+$C$4)+($D$8)))/1000*365.25 -> 0 | G102: =VLOOKUP($D102,Point_Sources_All!$A$5:$FS$205,((3*($E$14-1)+$C$4)+($D$8)))/1000*365.25 -> 2.4425485e-06 | H102: =VLOOKUP($D102,Point_Sources_All!$A$5:$FS$205,((3*($E$15-1)+$C$4)+($D$8)))/1000*365.25 -> 1.143673844e-05 | I102: =VLOOKUP($D102,Point_Sources_All!$A$5:$FS$205,((3*($E$16-1)+$C$4)+($D$8)))/1000*365.25 -> 1.661966637e-07 | J102: =VLOOKUP($D102,Point_Sources_All!$A$5:$FS$205,((3*($E$17-1)+$C$4)+($D$8)))/1000*365.25 -> 5.700152375e-06 | K102: =VLOOKUP($D102,Point_Sources_All!$A$5:$FS$205,((3*($E$18-1)+$C$4)+($D$8)))/1000*365.25 -> 0 | L102: =VLOOKUP($D102,Point_Sources_All!$A$5:$FS$205,((3*($E$19-1)+$C$4)+($D$8)))/1000*365.25 -> 0 | M102: =VLOOKUP($D102,Point_Sources_All!$A$5:$FS$205,((3*($E$20-1)+$C$4)+($D$8)))/1000*365.25 -> 1.044879806e-05 | N102: =VLOOKUP($D102,Point_Sources_All!$A$5:$FS$205,((3*($E$21-1)+$C$4)+($D$8)))/1000*365.25 -> 2.276441931e-06 | O102: =VLOOKUP($D102,Point_Sources_All!$A$5:$FS$205,((3*($E$22-1)+$C$4)+($D$8)))/1000*365.25 -> 5.629902625e-06 | P102: =VLOOKUP($D102,Point_Sources_All!$A$5:$FS$205,((3*($E$23-1)+$C$4)+($D$8)))/1000*365.25 -> 0 | Q102: =VLOOKUP($D102,Point_Sources_All!$A$5:$FS$205,((3*($E$24-1)+$C$4)+($D$8)))/1000*365.25 -> 7.040559e-08 | R102: =VLOOKUP($D102,Point_Sources_All!$A$5:$FS$205,((3*($E$25-1)+$C$4)+($D$8)))/1000*365.25 -> 0
D103: 75 | E103: =VLOOKUP($D103,Point_Sources_All!$A$5:$FS$205,((3*($E$12-1)+$C$4)+($D$8)))/1000*365.25 -> 0.0001132631119 | F103: =VLOOKUP($D103,Point_Sources_All!$A$5:$FS$205,((3*($E$13-1)+$C$4)+($D$8)))/1000*365.25 -> 0 | G103: =VLOOKUP($D103,Point_Sources_All!$A$5:$FS$205,((3*($E$14-1)+$C$4)+($D$8)))/1000*365.25 -> 2.38296405e-06 | H103: =VLOOKUP($D103,Point_Sources_All!$A$5:$FS$205,((3*($E$15-1)+$C$4)+($D$8)))/1000*365.25 -> 1.141537131e-05 | I103: =VLOOKUP($D103,Point_Sources_All!$A$5:$FS$205,((3*($E$16-1)+$C$4)+($D$8)))/1000*365.25 -> 1.656591375e-07 | J103: =VLOOKUP($D103,Point_Sources_All!$A$5:$FS$205,((3*($E$17-1)+$C$4)+($D$8)))/1000*365.25 -> 5.689529688e-06 | K103: =VLOOKUP($D103,Point_Sources_All!$A$5:$FS$205,((3*($E$18-1)+$C$4)+($D$8)))/1000*365.25 -> 0 | L103: =VLOOKUP($D103,Point_Sources_All!$A$5:$FS$205,((3*($E$19-1)+$C$4)+($D$8)))/1000*365.25 -> 0 | M103: =VLOOKUP($D103,Point_Sources_All!$A$5:$FS$205,((3*($E$20-1)+$C$4)+($D$8)))/1000*365.25 -> 1.042928763e-05 | N103: =VLOOKUP($D103,Point_Sources_All!$A$5:$FS$205,((3*($E$21-1)+$C$4)+($D$8)))/1000*365.25 -> 2.263399462e-06 | O103: =VLOOKUP($D103,Point_Sources_All!$A$5:$FS$205,((3*($E$22-1)+$C$4)+($D$8)))/1000*365.25 -> 5.554021938e-06 | P103: =VLOOKUP($D103,Point_Sources_All!$A$5:$FS$205,((3*($E$23-1)+$C$4)+($D$8)))/1000*365.25 -> 0 | Q103: =VLOOKUP($D103,Point_Sources_All!$A$5:$FS$205,((3*($E$24-1)+$C$4)+($D$8)))/1000*365.25 -> 7.194237937e-08 | R103: =VLOOKUP($D103,Point_Sources_All!$A$5:$FS$205,((3*($E$25-1)+$C$4)+($D$8)))/1000*365.25 -> 0
D104: 76 | E104: =VLOOKUP($D104,Point_Sources_All!$A$5:$FS$205,((3*($E$12-1)+$C$4)+($D$8)))/1000*365.25 -> 0.0001132661556 | F104: =VLOOKUP($D104,Point_Sources_All!$A$5:$FS$205,((3*($E$13-1)+$C$4)+($D$8)))/1000*365.25 -> 0 | G104: =VLOOKUP($D104,Point_Sources_All!$A$5:$FS$205,((3*($E$14-1)+$C$4)+($D$8)))/1000*365.25 -> 2.323976175e-06 | H104: =VLOOKUP($D104,Point_Sources_All!$A$5:$FS$205,((3*($E$15-1)+$C$4)+($D$8)))/1000*365.25 -> 1.137598519e-05 | I104: =VLOOKUP($D104,Point_Sources_All!$A$5:$FS$205,((3*($E$16-1)+$C$4)+($D$8)))/1000*365.25 -> 1.652199244e-07 | J104: =VLOOKUP($D104,Point_Sources_All!$A$5:$FS$205,((3*($E$17-1)+$C$4)+($D$8)))/1000*365.25 -> 5.669867063e-06 | K104: =VLOOKUP($D104,Point_Sources_All!$A$5:$FS$205,((3*($E$18-1)+$C$4)+($D$8)))/1000*365.25 -> 0 | L104: =VLOOKUP($D104,Point_Sources_All!$A$5:$FS$205,((3*($E$19-1)+$C$4)+($D$8)))/1000*365.25 -> 0 | M104: =VLOOKUP($D104,Point_Sources_All!$A$5:$FS$205,((3*($E$20-1)+$C$4)+($D$8)))/1000*365.25 -> 1.039324963e-05 | N104: =VLOOKUP($D104,Point_Sources_All!$A$5:$FS$205,((3*($E$21-1)+$C$4)+($D$8)))/1000*365.25 -> 2.241703613e-06 | O104: =VLOOKUP($D104,Point_Sources_All!$A$5:$FS$205,((3*($E$22-1)+$C$4)+($D$8)))/1000*365.25 -> 5.456835e-06 | P104: =VLOOKUP($D104,Point_Sources_All!$A$5:$FS$205,((3*($E$23-1)+$C$4)+($D$8)))/1000*365.25 -> 0 | Q104: =VLOOKUP($D104,Point_Sources_All!$A$5:$FS$205,((3*($E$24-1)+$C$4)+($D$8)))/1000*365.25 -> 5.977103187e-08 | R104: =VLOOKUP($D104,Point_Sources_All!$A$5:$FS$205,((3*($E$25-1)+$C$4)+($D$8)))/1000*365.25 -> 0
D105: 77 | E105: =VLOOKUP($D105,Point_Sources_All!$A$5:$FS$205,((3*($E$12-1)+$C$4)+($D$8)))/1000*365.25 -> 0.0001132652425 | F105: =VLOOKUP($D105,Point_Sources_All!$A$5:$FS$205,((3*($E$13-1)+$C$4)+($D$8)))/1000*365.25 -> 0 | G105: =VLOOKUP($D105,Point_Sources_All!$A$5:$FS$205,((3*($E$14-1)+$C$4)+($D$8)))/1000*365.25 -> 2.259323881e-06 | H105: =VLOOKUP($D105,Point_Sources_All!$A$5:$FS$205,((3*($E$15-1)+$C$4)+($D$8)))/1000*365.25 -> 1.135808794e-05 | I105: =VLOOKUP($D105,Point_Sources_All!$A$5:$FS$205,((3*($E$16-1)+$C$4)+($D$8)))/1000*365.25 -> 1.642696656e-07 | J105: =VLOOKUP($D105,Point_Sources_All!$A$5:$FS$205,((3*($E$17-1)+$C$4)+($D$8)))/1000*365.25 -> 5.660948875e-06 | K105: =VLOOKUP($D105,Point_Sources_All!$A$5:$FS$205,((3*($E$18-1)+$C$4)+($D$8)))/1000*365.25 -> 0 | L105: =VLOOKUP($D105,Point_Sources_All!$A$5:$FS$205,((3*($E$19-1)+$C$4)+($D$8)))/1000*365.25 -> 0 | M105: =VLOOKUP($D105,Point_Sources_All!$A$5:$FS$205,((3*($E$20-1)+$C$4)+($D$8)))/1000*365.25 -> 1.0376996e-05 | N105: =VLOOKUP($D105,Point_Sources_All!$A$5:$FS$205,((3*($E$21-1)+$C$4)+($D$8)))/1000*365.25 -> 2.246436644e-06 | O105: =VLOOKUP($D105,Point_Sources_All!$A$5:$FS$205,((3*($E$22-1)+$C$4)+($D$8)))/1000*365.25 -> 5.411117875e-06 | P105: =VLOOKUP($D105,Point_Sources_All!$A$5:$FS$205,((3*($E$23-1)+$C$4)+($D$8)))/1000*365.25 -> 0 | Q105: =VLOOKUP($D105,Point_Sources_All!$A$5:$FS$205,((3*($E$24-1)+$C$4)+($D$8)))/1000*365.25 -> 5.636720625e-08 | R105: =VLOOKUP($D105,Point_Sources_All!$A$5:$FS$205,((3*($E$25-1)+$C$4)+($D$8)))/1000*365.25 -> 0
D106: 78 | E106: =VLOOKUP($D106,Point_Sources_All!$A$5:$FS$205,((3*($E$12-1)+$C$4)+($D$8)))/1000*365.25 -> 0.0001132698081 | F106: =VLOOKUP($D106,Point_Sources_All!$A$5:$FS$205,((3*($E$13-1)+$C$4)+($D$8)))/1000*365.25 -> 0 | G106: =VLOOKUP($D106,Point_Sources_All!$A$5:$FS$205,((3*($E$14-1)+$C$4)+($D$8)))/1000*365.25 -> 2.234164244e-06 | H106: =VLOOKUP($D106,Point_Sources_All!$A$5:$FS$205,((3*($E$15-1)+$C$4)+($D$8)))/1000*365.25 -> 1.143780375e-05 | I106: =VLOOKUP($D106,Point_Sources_All!$A$5:$FS$205,((3*($E$16-1)+$C$4)+($D$8)))/1000*365.25 -> 1.650732156e-07 | J106: =VLOOKUP($D106,Point_Sources_All!$A$5:$FS$205,((3*($E$17-1)+$C$4)+($D$8)))/1000*365.25 -> 5.700669813e-06 | K106: =VLOOKUP($D106,Point_Sources_All!$A$5:$FS$205,((3*($E$18-1)+$C$4)+($D$8)))/1000*365.25 -> 0 | L106: =VLOOKUP($D106,Point_Sources_All!$A$5:$FS$205,((3*($E$19-1)+$C$4)+($D$8)))/1000*365.25 -> 0 | M106: =VLOOKUP($D106,Point_Sources_All!$A$5:$FS$205,((3*($E$20-1)+$C$4)+($D$8)))/1000*365.25 -> 1.044977206e-05 | N106: =VLOOKUP($D106,Point_Sources_All!$A$5:$FS$205,((3*($E$21-1)+$C$4)+($D$8)))/1000*365.25 -> 2.273860831e-06 | O106: =VLOOKUP($D106,Point_Sources_All!$A$5:$FS$205,((3*($E$22-1)+$C$4)+($D$8)))/1000*365.25 -> 5.457169812e-06 | P106: =VLOOKUP($D106,Point_Sources_All!$A$5:$FS$205,((3*($E$23-1)+$C$4)+($D$8)))/1000*365.25 -> 0 | Q106: =VLOOKUP($D106,Point_Sources_All!$A$5:$FS$205,((3*($E$24-1)+$C$4)+($D$8)))/1000*365.25 -> 7.300343062e-08 | R106: =VLOOKUP($D106,Point_Sources_All!$A$5:$FS$205,((3*($E$25-1)+$C$4)+($D$8)))/1000*365.25 -> 0
D107: 79 | E107: =VLOOKUP($D107,Point_Sources_All!$A$5:$FS$205,((3*($E$12-1)+$C$4)+($D$8)))/1000*365.25 -> 0.0001132704169 | F107: =VLOOKUP($D107,Point_Sources_All!$A$5:$FS$205,((3*($E$13-1)+$C$4)+($D$8)))/1000*365.25 -> 0 | G107: =VLOOKUP($D107,Point_Sources_All!$A$5:$FS$205,((3*($E$14-1)+$C$4)+($D$8)))/1000*365.25 -> 2.224415113e-06 | H107: =VLOOKUP($D107,Point_Sources_All!$A$5:$FS$205,((3*($E$15-1)+$C$4)+($D$8)))/1000*365.25 -> 1.151109725e-05 | I107: =VLOOKUP($D107,Point_Sources_All!$A$5:$FS$205,((3*($E$16-1)+$C$4)+($D$8)))/1000*365.25 -> 1.673934662e-07 | J107: =VLOOKUP($D107,Point_Sources_All!$A$5:$FS$205,((3*($E$17-1)+$C$4)+($D$8)))/1000*365.25 -> 5.73722525e-06 | K107: =VLOOKUP($D107,Point_Sources_All!$A$5:$FS$205,((3*($E$18-1)+$C$4)+($D$8)))/1000*365.25 -> 0 | L107: =VLOOKUP($D107,Point_Sources_All!$A$5:$FS$205,((3*($E$19-1)+$C$4)+($D$8)))/1000*365.25 -> 0 | M107: =VLOOKUP($D107,Point_Sources_All!$A$5:$FS$205,((3*($E$20-1)+$C$4)+($D$8)))/1000*365.25 -> 1.051673456e-05 | N107: =VLOOKUP($D107,Point_Sources_All!$A$5:$FS$205,((3*($E$21-1)+$C$4)+($D$8)))/1000*365.25 -> 2.298189525e-06 | O107: =VLOOKUP($D107,Point_Sources_All!$A$5:$FS$205,((3*($E$22-1)+$C$4)+($D$8)))/1000*365.25 -> 5.465661875e-06 | P107: =VLOOKUP($D107,Point_Sources_All!$A$5:$FS$205,((3*($E$23-1)+$C$4)+($D$8)))/1000*365.25 -> 0 | Q107: =VLOOKUP($D107,Point_Sources_All!$A$5:$FS$205,((3*($E$24-1)+$C$4)+($D$8)))/1000*365.25 -> 5.92715525e-08 | R107: =VLOOKUP($D107,Point_Sources_All!$A$5:$FS$205,((3*($E$25-1)+$C$4)+($D$8)))/1000*365.25 -> 0
D108: 80 | E108: =VLOOKUP($D108,Point_Sources_All!$A$5:$FS$205,((3*($E$12-1)+$C$4)+($D$8)))/1000*365.25 -> 0.0001132661556 | F108: =VLOOKUP($D108,Point_Sources_All!$A$5:$FS$205,((3*($E$13-1)+$C$4)+($D$8)))/1000*365.25 -> 0 | G108: =VLOOKUP($D108,Point_Sources_All!$A$5:$FS$205,((3*($E$14-1)+$C$4)+($D$8)))/1000*365.25 -> 2.176886956e-06 | H108: =VLOOKUP($D108,Point_Sources_All!$A$5:$FS$205,((3*($E$15-1)+$C$4)+($D$8)))/1000*365.25 -> 1.149968319e-05 | I108: =VLOOKUP($D108,Point_Sources_All!$A$5:$FS$205,((3*($E$16-1)+$C$4)+($D$8)))/1000*365.25 -> 1.668775506e-07 | J108: =VLOOKUP($D108,Point_Sources_All!$A$5:$FS$205,((3*($E$17-1)+$C$4)+($D$8)))/1000*365.25 -> 5.731563875e-06 | K108: =VLOOKUP($D108,Point_Sources_All!$A$5:$FS$205,((3*($E$18-1)+$C$4)+($D$8)))/1000*365.25 -> 0 | L108: =VLOOKUP($D108,Point_Sources_All!$A$5:$FS$205,((3*($E$19-1)+$C$4)+($D$8)))/1000*365.25 -> 0 | M108: =VLOOKUP($D108,Point_Sources_All!$A$5:$FS$205,((3*($E$20-1)+$C$4)+($D$8)))/1000*365.25 -> 1.05062945e-05 | N108: =VLOOKUP($D108,Point_Sources_All!$A$5:$FS$205,((3*($E$21-1)+$C$4)+($D$8)))/1000*365.25 -> 2.3011237e-06 | O108: =VLOOKUP($D108,Point_Sources_All!$A$5:$FS$205,((3*($E$22-1)+$C$4)+($D$8)))/1000*365.25 -> 5.54206e-06 | P108: =VLOOKUP($D108,Point_Sources_All!$A$5:$FS$205,((3*($E$23-1)+$C$4)+($D$8)))/1000*365.25 -> 0 | Q108: =VLOOKUP($D108,Point_Sources_All!$A$5:$FS$205,((3*($E$24-1)+$C$4)+($D$8)))/1000*365.25 -> 6.126064313e-08 | R108: =VLOOKUP($D108,Point_Sources_All!$A$5:$FS$205,((3*($E$25-1)+$C$4)+($D$8)))/1000*365.25 -> 0
D109: 81 | E109: =VLOOKUP($D109,Point_Sources_All!$A$5:$FS$205,((3*($E$12-1)+$C$4)+($D$8)))/1000*365.25 -> 0.0001132643294 | F109: =VLOOKUP($D109,Point_Sources_All!$A$5:$FS$205,((3*($E$13-1)+$C$4)+($D$8)))/1000*365.25 -> 0 | G109: =VLOOKUP($D109,Point_Sources_All!$A$5:$FS$205,((3*($E$14-1)+$C$4)+($D$8)))/1000*365.25 -> 2.144477106e-06 | H109: =VLOOKUP($D109,Point_Sources_All!$A$5:$FS$205,((3*($E$15-1)+$C$4)+($D$8)))/1000*365.25 -> 1.165969313e-05 | I109: =VLOOKUP($D109,Point_Sources_All!$A$5:$FS$205,((3*($E$16-1)+$C$4)+($D$8)))/1000*365.25 -> 1.657510588e-07 | J109: =VLOOKUP($D109,Point_Sources_All!$A$5:$FS$205,((3*($E$17-1)+$C$4)+($D$8)))/1000*365.25 -> 5.811310125e-06 | K109: =VLOOKUP($D109,Point_Sources_All!$A$5:$FS$205,((3*($E$18-1)+$C$4)+($D$8)))/1000*365.25 -> 0 | L109: =VLOOKUP($D109,Point_Sources_All!$A$5:$FS$205,((3*($E$19-1)+$C$4)+($D$8)))/1000*365.25 -> 0 | M109: =VLOOKUP($D109,Point_Sources_All!$A$5:$FS$205,((3*($E$20-1)+$C$4)+($D$8)))/1000*365.25 -> 1.065248581e-05 | N109: =VLOOKUP($D109,Point_Sources_All!$A$5:$FS$205,((3*($E$21-1)+$C$4)+($D$8)))/1000*365.25 -> 2.2926499e-06 | O109: =VLOOKUP($D109,Point_Sources_All!$A$5:$FS$205,((3*($E$22-1)+$C$4)+($D$8)))/1000*365.25 -> 5.577093563e-06 | P109: =VLOOKUP($D109,Point_Sources_All!$A$5:$FS$205,((3*($E$23-1)+$C$4)+($D$8)))/1000*365.25 -> 0 | Q109: =VLOOKUP($D109,Point_Sources_All!$A$5:$FS$205,((3*($E$24-1)+$C$4)+($D$8)))/1000*365.25 -> 6.295783812e-08 | R109: =VLOOKUP($D109,Point_Sources_All!$A$5:$FS$205,((3*($E$25-1)+$C$4)+($D$8)))/1000*365.25 -> 0
D110: 82 | E110: =VLOOKUP($D110,Point_Sources_All!$A$5:$FS$205,((3*($E$12-1)+$C$4)+($D$8)))/1000*365.25 -> 0.0001132625031 | F110: =VLOOKUP($D110,Point_Sources_All!$A$5:$FS$205,((3*($E$13-1)+$C$4)+($D$8)))/1000*365.25 -> 0 | G110: =VLOOKUP($D110,Point_Sources_All!$A$5:$FS$205,((3*($E$14-1)+$C$4)+($D$8)))/1000*365.25 -> 2.125210169e-06 | H110: =VLOOKUP($D110,Point_Sources_All!$A$5:$FS$205,((3*($E$15-1)+$C$4)+($D$8)))/1000*365.25 -> 1.162362469e-05 | I110: =VLOOKUP($D110,Point_Sources_All!$A$5:$FS$205,((3*($E$16-1)+$C$4)+($D$8)))/1000*365.25 -> 1.64944465e-07 | J110: =VLOOKUP($D110,Point_Sources_All!$A$5:$FS$205,((3*($E$17-1)+$C$4)+($D$8)))/1000*365.25 -> 5.793352e-06 | K110: =VLOOKUP($D110,Point_Sources_All!$A$5:$FS$205,((3*($E$18-1)+$C$4)+($D$8)))/1000*365.25 -> 0 | L110: =VLOOKUP($D110,Point_Sources_All!$A$5:$FS$205,((3*($E$19-1)+$C$4)+($D$8)))/1000*365.25 -> 0 | M110: =VLOOKUP($D110,Point_Sources_All!$A$5:$FS$205,((3*($E$20-1)+$C$4)+($D$8)))/1000*365.25 -> 1.061955244e-05 | N110: =VLOOKUP($D110,Point_Sources_All!$A$5:$FS$205,((3*($E$21-1)+$C$4)+($D$8)))/1000*365.25 -> 2.266708019e-06 | O110: =VLOOKUP($D110,Point_Sources_All!$A$5:$FS$205,((3*($E$22-1)+$C$4)+($D$8)))/1000*365.25 -> 5.544160187e-06 | P110: =VLOOKUP($D110,Point_Sources_All!$A$5:$FS$205,((3*($E$23-1)+$C$4)+($D$8)))/1000*365.25 -> 0 | Q110: =VLOOKUP($D110,Point_Sources_All!$A$5:$FS$205,((3*($E$24-1)+$C$4)+($D$8)))/1000*365.25 -> 6.062176e-08 | R110: =VLOOKUP($D110,Point_Sources_All!$A$5:$FS$205,((3*($E$25-1)+$C$4)+($D$8)))/1000*365.25 -> 0
D111: 83 | E111: =VLOOKUP($D111,Point_Sources_All!$A$5:$FS$205,((3*($E$12-1)+$C$4)+($D$8)))/1000*365.25 -> 0.0001132658513 | F111: =VLOOKUP($D111,Point_Sources_All!$A$5:$FS$205,((3*($E$13-1)+$C$4)+($D$8)))/1000*365.25 -> 0 | G111: =VLOOKUP($D111,Point_Sources_All!$A$5:$FS$205,((3*($E$14-1)+$C$4)+($D$8)))/1000*365.25 -> 2.080357469e-06 | H111: =VLOOKUP($D111,Point_Sources_All!$A$5:$FS$205,((3*($E$15-1)+$C$4)+($D$8)))/1000*365.25 -> 1.148507319e-05 | I111: =VLOOKUP($D111,Point_Sources_All!$A$5:$FS$205,((3*($E$16-1)+$C$4)+($D$8)))/1000*365.25 -> 1.639080681e-07 | J111: =VLOOKUP($D111,Point_Sources_All!$A$5:$FS$205,((3*($E$17-1)+$C$4)+($D$8)))/1000*365.25 -> 5.724258875e-06 | K111: =VLOOKUP($D111,Point_Sources_All!$A$5:$FS$205,((3*($E$18-1)+$C$4)+($D$8)))/1000*365.25 -> 0 | L111: =VLOOKUP($D111,Point_Sources_All!$A$5:$FS$205,((3*($E$19-1)+$C$4)+($D$8)))/1000*365.25 -> 0 | M111: =VLOOKUP($D111,Point_Sources_All!$A$5:$FS$205,((3*($E$20-1)+$C$4)+($D$8)))/1000*365.25 -> 1.049302375e-05 | N111: =VLOOKUP($D111,Point_Sources_All!$A$5:$FS$205,((3*($E$21-1)+$C$4)+($D$8)))/1000*365.25 -> 2.249145581e-06 | O111: =VLOOKUP($D111,Point_Sources_All!$A$5:$FS$205,((3*($E$22-1)+$C$4)+($D$8)))/1000*365.25 -> 5.53025025e-06 | P111: =VLOOKUP($D111,Point_Sources_All!$A$5:$FS$205,((3*($E$23-1)+$C$4)+($D$8)))/1000*365.25 -> 0 | Q111: =VLOOKUP($D111,Point_Sources_All!$A$5:$FS$205,((3*($E$24-1)+$C$4)+($D$8)))/1000*365.25 -> 6.246322875e-08 | R111: =VLOOKUP($D111,Point_Sources_All!$A$5:$FS$205,((3*($E$25-1)+$C$4)+($D$8)))/1000*365.25 -> 0
D112: 84 | E112: =VLOOKUP($D112,Point_Sources_All!$A$5:$FS$205,((3*($E$12-1)+$C$4)+($D$8)))/1000*365.25 -> 0.0001132682863 | F112: =VLOOKUP($D112,Point_Sources_All!$A$5:$FS$205,((3*($E$13-1)+$C$4)+($D$8)))/1000*365.25 -> 0 | G112: =VLOOKUP($D112,Point_Sources_All!$A$5:$FS$205,((3*($E$14-1)+$C$4)+($D$8)))/1000*365.25 -> 2.037787581e-06 | H112: =VLOOKUP($D112,Point_Sources_All!$A$5:$FS$205,((3*($E$15-1)+$C$4)+($D$8)))/1000*365.25 -> 1.141634531e-05 | I112: =VLOOKUP($D112,Point_Sources_All!$A$5:$FS$205,((3*($E$16-1)+$C$4)+($D$8)))/1000*365.25 -> 1.63756185e-07 | J112: =VLOOKUP($D112,Point_Sources_All!$A$5:$FS$205,((3*($E$17-1)+$C$4)+($D$8)))/1000*365.25 -> 5.68998625e-06 | K112: =VLOOKUP($D112,Point_Sources_All!$A$5:$FS$205,((3*($E$18-1)+$C$4)+($D$8)))/1000*365.25 -> 0 | L112: =VLOOKUP($D112,Point_Sources_All!$A$5:$FS$205,((3*($E$19-1)+$C$4)+($D$8)))/1000*365.25 -> 0 | M112: =VLOOKUP($D112,Point_Sources_All!$A$5:$FS$205,((3*($E$20-1)+$C$4)+($D$8)))/1000*365.25 -> 1.043013988e-05 | N112: =VLOOKUP($D112,Point_Sources_All!$A$5:$FS$205,((3*($E$21-1)+$C$4)+($D$8)))/1000*365.25 -> 2.262197181e-06 | O112: =VLOOKUP($D112,Point_Sources_All!$A$5:$FS$205,((3*($E$22-1)+$C$4)+($D$8)))/1000*365.25 -> 5.459087375e-06 | P112: =VLOOKUP($D112,Point_Sources_All!$A$5:$FS$205,((3*($E$23-1)+$C$4)+($D$8)))/1000*365.25 -> 0 | Q112: =VLOOKUP($D112,Point_Sources_All!$A$5:$FS$205,((3*($E$24-1)+$C$4)+($D$8)))/1000*365.25 -> 6.380126125e-08 | R112: =VLOOKUP($D112,Point_Sources_All!$A$5:$FS$205,((3*($E$25-1)+$C$4)+($D$8)))/1000*365.25 -> 0
D113: 85 | E113: =VLOOKUP($D113,Point_Sources_All!$A$5:$FS$205,((3*($E$12-1)+$C$4)+($D$8)))/1000*365.25 -> 0.0001132691994 | F113: =VLOOKUP($D113,Point_Sources_All!$A$5:$FS$205,((3*($E$13-1)+$C$4)+($D$8)))/1000*365.25 -> 0 | G113: =VLOOKUP($D113,Point_Sources_All!$A$5:$FS$205,((3*($E$14-1)+$C$4)+($D$8)))/1000*365.25 -> 1.999296319e-06 | H113: =VLOOKUP($D113,Point_Sources_All!$A$5:$FS$205,((3*($E$15-1)+$C$4)+($D$8)))/1000*365.25 -> 1.136880194e-05 | I113: =VLOOKUP($D113,Point_Sources_All!$A$5:$FS$205,((3*($E$16-1)+$C$4)+($D$8)))/1000*365.25 -> 1.656746606e-07 | J113: =VLOOKUP($D113,Point_Sources_All!$A$5:$FS$205,((3*($E$17-1)+$C$4)+($D$8)))/1000*365.25 -> 5.666305875e-06 | K113: =VLOOKUP($D113,Point_Sources_All!$A$5:$FS$205,((3*($E$18-1)+$C$4)+($D$8)))/1000*365.25 -> 0 | L113: =VLOOKUP($D113,Point_Sources_All!$A$5:$FS$205,((3*($E$19-1)+$C$4)+($D$8)))/1000*365.25 -> 0 | M113: =VLOOKUP($D113,Point_Sources_All!$A$5:$FS$205,((3*($E$20-1)+$C$4)+($D$8)))/1000*365.25 -> 1.038676644e-05 | N113: =VLOOKUP($D113,Point_Sources_All!$A$5:$FS$205,((3*($E$21-1)+$C$4)+($D$8)))/1000*365.25 -> 2.237816744e-06 | O113: =VLOOKUP($D113,Point_Sources_All!$A$5:$FS$205,((3*($E$22-1)+$C$4)+($D$8)))/1000*365.25 -> 5.395168625e-06 | P113: =VLOOKUP($D113,Point_Sources_All!$A$5:$FS$205,((3*($E$23-1)+$C$4)+($D$8)))/1000*365.25 -> 0 | Q113: =VLOOKUP($D113,Point_Sources_All!$A$5:$FS$205,((3*($E$24-1)+$C$4)+($D$8)))/1000*365.25 -> 6.321716562e-08 | R113: =VLOOKUP($D113,Point_Sources_All!$A$5:$FS$205,((3*($E$25-1)+$C$4)+($D$8)))/1000*365.25 -> 0
D114: 86 | E114: =VLOOKUP($D114,Point_Sources_All!$A$5:$FS$205,((3*($E$12-1)+$C$4)+($D$8)))/1000*365.25 -> 0.0001132673731 | F114: =VLOOKUP($D114,Point_Sources_All!$A$5:$FS$205,((3*($E$13-1)+$C$4)+($D$8)))/1000*365.25 -> 0 | G114: =VLOOKUP($D114,Point_Sources_All!$A$5:$FS$205,((3*($E$14-1)+$C$4)+($D$8)))/1000*365.25 -> 1.955688512e-06 | H114: =VLOOKUP($D114,Point_Sources_All!$A$5:$FS$205,((3*($E$15-1)+$C$4)+($D$8)))/1000*365.25 -> 1.140337894e-05 | I114: =VLOOKUP($D114,Point_Sources_All!$A$5:$FS$205,((3*($E$16-1)+$C$4)+($D$8)))/1000*365.25 -> 1.671520969e-07 | J114: =VLOOKUP($D114,Point_Sources_All!$A$5:$FS$205,((3*($E$17-1)+$C$4)+($D$8)))/1000*365.25 -> 5.6835335e-06 | K114: =VLOOKUP($D114,Point_Sources_All!$A$5:$FS$205,((3*($E$18-1)+$C$4)+($D$8)))/1000*365.25 -> 0 | L114: =VLOOKUP($D114,Point_Sources_All!$A$5:$FS$205,((3*($E$19-1)+$C$4)+($D$8)))/1000*365.25 -> 0 | M114: =VLOOKUP($D114,Point_Sources_All!$A$5:$FS$205,((3*($E$20-1)+$C$4)+($D$8)))/1000*365.25 -> 1.041833013e-05 | N114: =VLOOKUP($D114,Point_Sources_All!$A$5:$FS$205,((3*($E$21-1)+$C$4)+($D$8)))/1000*365.25 -> 2.192370512e-06 | O114: =VLOOKUP($D114,Point_Sources_All!$A$5:$FS$205,((3*($E$22-1)+$C$4)+($D$8)))/1000*365.25 -> 5.395442562e-06 | P114: =VLOOKUP($D114,Point_Sources_All!$A$5:$FS$205,((3*($E$23-1)+$C$4)+($D$8)))/1000*365.25 -> 0 | Q114: =VLOOKUP($D114,Point_Sources_All!$A$5:$FS$205,((3*($E$24-1)+$C$4)+($D$8)))/1000*365.25 -> 6.453206563e-08 | R114: =VLOOKUP($D114,Point_Sources_All!$A$5:$FS$205,((3*($E$25-1)+$C$4)+($D$8)))/1000*365.25 -> 0
D115: 87 | E115: =VLOOKUP($D115,Point_Sources_All!$A$5:$FS$205,((3*($E$12-1)+$C$4)+($D$8)))/1000*365.25 -> 0.0001132643294 | F115: =VLOOKUP($D115,Point_Sources_All!$A$5:$FS$205,((3*($E$13-1)+$C$4)+($D$8)))/1000*365.25 -> 0 | G115: =VLOOKUP($D115,Point_Sources_All!$A$5:$FS$205,((3*($E$14-1)+$C$4)+($D$8)))/1000*365.25 -> 1.914293512e-06 | H115: =VLOOKUP($D115,Point_Sources_All!$A$5:$FS$205,((3*($E$15-1)+$C$4)+($D$8)))/1000*365.25 -> 1.140490081e-05 | I115: =VLOOKUP($D115,Point_Sources_All!$A$5:$FS$205,((3*($E$16-1)+$C$4)+($D$8)))/1000*365.25 -> 1.69220325e-07 | J115: =VLOOKUP($D115,Point_Sources_All!$A$5:$FS$205,((3*($E$17-1)+$C$4)+($D$8)))/1000*365.25 -> 5.684324875e-06 | K115: =VLOOKUP($D115,Point_Sources_All!$A$5:$FS$205,((3*($E$18-1)+$C$4)+($D$8)))/1000*365.25 -> 0 | L115: =VLOOKUP($D115,Point_Sources_All!$A$5:$FS$205,((3*($E$19-1)+$C$4)+($D$8)))/1000*365.25 -> 0 | M115: =VLOOKUP($D115,Point_Sources_All!$A$5:$FS$205,((3*($E$20-1)+$C$4)+($D$8)))/1000*365.25 -> 1.041973025e-05 | N115: =VLOOKUP($D115,Point_Sources_All!$A$5:$FS$205,((3*($E$21-1)+$C$4)+($D$8)))/1000*365.25 -> 2.217119244e-06 | O115: =VLOOKUP($D115,Point_Sources_All!$A$5:$FS$205,((3*($E$22-1)+$C$4)+($D$8)))/1000*365.25 -> 5.477289e-06 | P115: =VLOOKUP($D115,Point_Sources_All!$A$5:$FS$205,((3*($E$23-1)+$C$4)+($D$8)))/1000*365.25 -> 0 | Q115: =VLOOKUP($D115,Point_Sources_All!$A$5:$FS$205,((3*($E$24-1)+$C$4)+($D$8)))/1000*365.25 -> 5.920154625e-08 | R115: =VLOOKUP($D115,Point_Sources_All!$A$5:$FS$205,((3*($E$25-1)+$C$4)+($D$8)))/1000*365.25 -> 0
D116: 88 | E116: =VLOOKUP($D116,Point_Sources_All!$A$5:$FS$205,((3*($E$12-1)+$C$4)+($D$8)))/1000*365.25 -> 0.0001132646337 | F116: =VLOOKUP($D116,Point_Sources_All!$A$5:$FS$205,((3*($E$13-1)+$C$4)+($D$8)))/1000*365.25 -> 0 | G116: =VLOOKUP($D116,Point_Sources_All!$A$5:$FS$205,((3*($E$14-1)+$C$4)+($D$8)))/1000*365.25 -> 1.895732725e-06 | H116: =VLOOKUP($D116,Point_Sources_All!$A$5:$FS$205,((3*($E$15-1)+$C$4)+($D$8)))/1000*365.25 -> 1.137431112e-05 | I116: =VLOOKUP($D116,Point_Sources_All!$A$5:$FS$205,((3*($E$16-1)+$C$4)+($D$8)))/1000*365.25 -> 1.66863245e-07 | J116: =VLOOKUP($D116,Point_Sources_All!$A$5:$FS$205,((3*($E$17-1)+$C$4)+($D$8)))/1000*365.25 -> 5.669075688e-06 | K116: =VLOOKUP($D116,Point_Sources_All!$A$5:$FS$205,((3*($E$18-1)+$C$4)+($D$8)))/1000*365.25 -> 0 | L116: =VLOOKUP($D116,Point_Sources_All!$A$5:$FS$205,((3*($E$19-1)+$C$4)+($D$8)))/1000*365.25 -> 0 | M116: =VLOOKUP($D116,Point_Sources_All!$A$5:$FS$205,((3*($E$20-1)+$C$4)+($D$8)))/1000*365.25 -> 1.039175819e-05 | N116: =VLOOKUP($D116,Point_Sources_All!$A$5:$FS$205,((3*($E$21-1)+$C$4)+($D$8)))/1000*365.25 -> 2.262638525e-06 | O116: =VLOOKUP($D116,Point_Sources_All!$A$5:$FS$205,((3*($E$22-1)+$C$4)+($D$8)))/1000*365.25 -> 5.480758875e-06 | P116: =VLOOKUP($D116,Point_Sources_All!$A$5:$FS$205,((3*($E$23-1)+$C$4)+($D$8)))/1000*365.25 -> 0 | Q116: =VLOOKUP($D116,Point_Sources_All!$A$5:$FS$205,((3*($E$24-1)+$C$4)+($D$8)))/1000*365.25 -> 4.95218125e-08 | R116: =VLOOKUP($D116,Point_Sources_All!$A$5:$FS$205,((3*($E$25-1)+$C$4)+($D$8)))/1000*365.25 -> 0
D117: 89 | E117: =VLOOKUP($D117,Point_Sources_All!$A$5:$FS$205,((3*($E$12-1)+$C$4)+($D$8)))/1000*365.25 -> 0.0001132652425 | F117: =VLOOKUP($D117,Point_Sources_All!$A$5:$FS$205,((3*($E$13-1)+$C$4)+($D$8)))/1000*365.25 -> 0 | G117: =VLOOKUP($D117,Point_Sources_All!$A$5:$FS$205,((3*($E$14-1)+$C$4)+($D$8)))/1000*365.25 -> 1.85939035e-06 | H117: =VLOOKUP($D117,Point_Sources_All!$A$5:$FS$205,((3*($E$15-1)+$C$4)+($D$8)))/1000*365.25 -> 1.145171369e-05 | I117: =VLOOKUP($D117,Point_Sources_All!$A$5:$FS$205,((3*($E$16-1)+$C$4)+($D$8)))/1000*365.25 -> 1.662134044e-07 | J117: =VLOOKUP($D117,Point_Sources_All!$A$5:$FS$205,((3*($E$17-1)+$C$4)+($D$8)))/1000*365.25 -> 5.707670438e-06 | K117: =VLOOKUP($D117,Point_Sources_All!$A$5:$FS$205,((3*($E$18-1)+$C$4)+($D$8)))/1000*365.25 -> 0 | L117: =VLOOKUP($D117,Point_Sources_All!$A$5:$FS$205,((3*($E$19-1)+$C$4)+($D$8)))/1000*365.25 -> 0 | M117: =VLOOKUP($D117,Point_Sources_All!$A$5:$FS$205,((3*($E$20-1)+$C$4)+($D$8)))/1000*365.25 -> 1.046249494e-05 | N117: =VLOOKUP($D117,Point_Sources_All!$A$5:$FS$205,((3*($E$21-1)+$C$4)+($D$8)))/1000*365.25 -> 2.242717181e-06 | O117: =VLOOKUP($D117,Point_Sources_All!$A$5:$FS$205,((3*($E$22-1)+$C$4)+($D$8)))/1000*365.25 -> 5.554539375e-06 | P117: =VLOOKUP($D117,Point_Sources_All!$A$5:$FS$205,((3*($E$23-1)+$C$4)+($D$8)))/1000*365.25 -> 0 | Q117: =VLOOKUP($D117,Point_Sources_All!$A$5:$FS$205,((3*($E$24-1)+$C$4)+($D$8)))/1000*365.25 -> 7.08085825e-08 | R117: =VLOOKUP($D117,Point_Sources_All!$A$5:$FS$205,((3*($E$25-1)+$C$4)+($D$8)))/1000*365.25 -> 0
D118: 90 | E118: =VLOOKUP($D118,Point_Sources_All!$A$5:$FS$205,((3*($E$12-1)+$C$4)+($D$8)))/1000*365.25 -> 0.0001132643294 | F118: =VLOOKUP($D118,Point_Sources_All!$A$5:$FS$205,((3*($E$13-1)+$C$4)+($D$8)))/1000*365.25 -> 0 | G118: =VLOOKUP($D118,Point_Sources_All!$A$5:$FS$205,((3*($E$14-1)+$C$4)+($D$8)))/1000*365.25 -> 1.846521375e-06 | H118: =VLOOKUP($D118,Point_Sources_All!$A$5:$FS$205,((3*($E$15-1)+$C$4)+($D$8)))/1000*365.25 -> 1.153696913e-05 | I118: =VLOOKUP($D118,Point_Sources_All!$A$5:$FS$205,((3*($E$16-1)+$C$4)+($D$8)))/1000*365.25 -> 1.654223338e-07 | J118: =VLOOKUP($D118,Point_Sources_All!$A$5:$FS$205,((3*($E$17-1)+$C$4)+($D$8)))/1000*365.25 -> 5.750161188e-06 | K118: =VLOOKUP($D118,Point_Sources_All!$A$5:$FS$205,((3*($E$18-1)+$C$4)+($D$8)))/1000*365.25 -> 0 | L118: =VLOOKUP($D118,Point_Sources_All!$A$5:$FS$205,((3*($E$19-1)+$C$4)+($D$8)))/1000*365.25 -> 0 | M118: =VLOOKUP($D118,Point_Sources_All!$A$5:$FS$205,((3*($E$20-1)+$C$4)+($D$8)))/1000*365.25 -> 1.054035406e-05 | N118: =VLOOKUP($D118,Point_Sources_All!$A$5:$FS$205,((3*($E$21-1)+$C$4)+($D$8)))/1000*365.25 -> 2.260790969e-06 | O118: =VLOOKUP($D118,Point_Sources_All!$A$5:$FS$205,((3*($E$22-1)+$C$4)+($D$8)))/1000*365.25 -> 5.534815875e-06 | P118: =VLOOKUP($D118,Point_Sources_All!$A$5:$FS$205,((3*($E$23-1)+$C$4)+($D$8)))/1000*365.25 -> 0 | Q118: =VLOOKUP($D118,Point_Sources_All!$A$5:$FS$205,((3*($E$24-1)+$C$4)+($D$8)))/1000*365.25 -> 7.364079187e-08 | R118: =VLOOKUP($D118,Point_Sources_All!$A$5:$FS$205,((3*($E$25-1)+$C$4)+($D$8)))/1000*365.25 -> 0
D119: 91 | E119: =VLOOKUP($D119,Point_Sources_All!$A$5:$FS$205,((3*($E$12-1)+$C$4)+($D$8)))/1000*365.25 -> 0.0001132655469 | F119: =VLOOKUP($D119,Point_Sources_All!$A$5:$FS$205,((3*($E$13-1)+$C$4)+($D$8)))/1000*365.25 -> 0 | G119: =VLOOKUP($D119,Point_Sources_All!$A$5:$FS$205,((3*($E$14-1)+$C$4)+($D$8)))/1000*365.25 -> 1.806118637e-06 | H119: =VLOOKUP($D119,Point_Sources_All!$A$5:$FS$205,((3*($E$15-1)+$C$4)+($D$8)))/1000*365.25 -> 1.159677881e-05 | I119: =VLOOKUP($D119,Point_Sources_All!$A$5:$FS$205,((3*($E$16-1)+$C$4)+($D$8)))/1000*365.25 -> 1.647752325e-07 | J119: =VLOOKUP($D119,Point_Sources_All!$A$5:$FS$205,((3*($E$17-1)+$C$4)+($D$8)))/1000*365.25 -> 5.7799595e-06 | K119: =VLOOKUP($D119,Point_Sources_All!$A$5:$FS$205,((3*($E$18-1)+$C$4)+($D$8)))/1000*365.25 -> 0 | L119: =VLOOKUP($D119,Point_Sources_All!$A$5:$FS$205,((3*($E$19-1)+$C$4)+($D$8)))/1000*365.25 -> 0 | M119: =VLOOKUP($D119,Point_Sources_All!$A$5:$FS$205,((3*($E$20-1)+$C$4)+($D$8)))/1000*365.25 -> 1.059501981e-05 | N119: =VLOOKUP($D119,Point_Sources_All!$A$5:$FS$205,((3*($E$21-1)+$C$4)+($D$8)))/1000*365.25 -> 2.281077562e-06 | O119: =VLOOKUP($D119,Point_Sources_All!$A$5:$FS$205,((3*($E$22-1)+$C$4)+($D$8)))/1000*365.25 -> 5.553748e-06 | P119: =VLOOKUP($D119,Point_Sources_All!$A$5:$FS$205,((3*($E$23-1)+$C$4)+($D$8)))/1000*365.25 -> 0 | Q119: =VLOOKUP($D119,Point_Sources_All!$A$5:$FS$205,((3*($E$24-1)+$C$4)+($D$8)))/1000*365.25 -> 6.528082813e-08 | R119: =VLOOKUP($D119,Point_Sources_All!$A$5:$FS$205,((3*($E$25-1)+$C$4)+($D$8)))/1000*365.25 -> 0
D120: 92 | E120: =VLOOKUP($D120,Point_Sources_All!$A$5:$FS$205,((3*($E$12-1)+$C$4)+($D$8)))/1000*365.25 -> 0.0001132673731 | F120: =VLOOKUP($D120,Point_Sources_All!$A$5:$FS$205,((3*($E$13-1)+$C$4)+($D$8)))/1000*365.25 -> 0 | G120: =VLOOKUP($D120,Point_Sources_All!$A$5:$FS$205,((3*($E$14-1)+$C$4)+($D$8)))/1000*365.25 -> 1.774201875e-06 | H120: =VLOOKUP($D120,Point_Sources_All!$A$5:$FS$205,((3*($E$15-1)+$C$4)+($D$8)))/1000*365.25 -> 1.153690825e-05 | I120: =VLOOKUP($D120,Point_Sources_All!$A$5:$FS$205,((3*($E$16-1)+$C$4)+($D$8)))/1000*365.25 -> 1.621843925e-07 | J120: =VLOOKUP($D120,Point_Sources_All!$A$5:$FS$205,((3*($E$17-1)+$C$4)+($D$8)))/1000*365.25 -> 5.750100312e-06 | K120: =VLOOKUP($D120,Point_Sources_All!$A$5:$FS$205,((3*($E$18-1)+$C$4)+($D$8)))/1000*365.25 -> 0 | L120: =VLOOKUP($D120,Point_Sources_All!$A$5:$FS$205,((3*($E$19-1)+$C$4)+($D$8)))/1000*365.25 -> 0 | M120: =VLOOKUP($D120,Point_Sources_All!$A$5:$FS$205,((3*($E$20-1)+$C$4)+($D$8)))/1000*365.25 -> 1.054029319e-05 | N120: =VLOOKUP($D120,Point_Sources_All!$A$5:$FS$205,((3*($E$21-1)+$C$4)+($D$8)))/1000*365.25 -> 2.278286444e-06 | O120: =VLOOKUP($D120,Point_Sources_All!$A$5:$FS$205,((3*($E$22-1)+$C$4)+($D$8)))/1000*365.25 -> 5.504834937e-06 | P120: =VLOOKUP($D120,Point_Sources_All!$A$5:$FS$205,((3*($E$23-1)+$C$4)+($D$8)))/1000*365.25 -> 0 | Q120: =VLOOKUP($D120,Point_Sources_All!$A$5:$FS$205,((3*($E$24-1)+$C$4)+($D$8)))/1000*365.25 -> 6.570269187e-08 | R120: =VLOOKUP($D120,Point_Sources_All!$A$5:$FS$205,((3*($E$25-1)+$C$4)+($D$8)))/1000*365.25 -> 0
D121: 93 | E121: =VLOOKUP($D121,Point_Sources_All!$A$5:$FS$205,((3*($E$12-1)+$C$4)+($D$8)))/1000*365.25 -> 0.0001132655469 | F121: =VLOOKUP($D121,Point_Sources_All!$A$5:$FS$205,((3*($E$13-1)+$C$4)+($D$8)))/1000*365.25 -> 0 | G121: =VLOOKUP($D121,Point_Sources_All!$A$5:$FS$205,((3*($E$14-1)+$C$4)+($D$8)))/1000*365.25 -> 1.743496525e-06 | H121: =VLOOKUP($D121,Point_Sources_All!$A$5:$FS$205,((3*($E$15-1)+$C$4)+($D$8)))/1000*365.25 -> 1.156491075e-05 | I121: =VLOOKUP($D121,Point_Sources_All!$A$5:$FS$205,((3*($E$16-1)+$C$4)+($D$8)))/1000*365.25 -> 1.636058238e-07 | J121: =VLOOKUP($D121,Point_Sources_All!$A$5:$FS$205,((3*($E$17-1)+$C$4)+($D$8)))/1000*365.25 -> 5.764071125e-06 | K121: =VLOOKUP($D121,Point_Sources_All!$A$5:$FS$205,((3*($E$18-1)+$C$4)+($D$8)))/1000*365.25 -> 0 | L121: =VLOOKUP($D121,Point_Sources_All!$A$5:$FS$205,((3*($E$19-1)+$C$4)+($D$8)))/1000*365.25 -> 0 | M121: =VLOOKUP($D121,Point_Sources_All!$A$5:$FS$205,((3*($E$20-1)+$C$4)+($D$8)))/1000*365.25 -> 1.056589112e-05 | N121: =VLOOKUP($D121,Point_Sources_All!$A$5:$FS$205,((3*($E$21-1)+$C$4)+($D$8)))/1000*365.25 -> 2.263180313e-06 | O121: =VLOOKUP($D121,Point_Sources_All!$A$5:$FS$205,((3*($E$22-1)+$C$4)+($D$8)))/1000*365.25 -> 5.507756938e-06 | P121: =VLOOKUP($D121,Point_Sources_All!$A$5:$FS$205,((3*($E$23-1)+$C$4)+($D$8)))/1000*365.25 -> 0 | Q121: =VLOOKUP($D121,Point_Sources_All!$A$5:$FS$205,((3*($E$24-1)+$C$4)+($D$8)))/1000*365.25 -> 7.117992e-08 | R121: =VLOOKUP($D121,Point_Sources_All!$A$5:$FS$205,((3*($E$25-1)+$C$4)+($D$8)))/1000*365.25 -> 0
D122: 94 | E122: =VLOOKUP($D122,Point_Sources_All!$A$5:$FS$205,((3*($E$12-1)+$C$4)+($D$8)))/1000*365.25 -> 0.0001132658513 | F122: =VLOOKUP($D122,Point_Sources_All!$A$5:$FS$205,((3*($E$13-1)+$C$4)+($D$8)))/1000*365.25 -> 0 | G122: =VLOOKUP($D122,Point_Sources_All!$A$5:$FS$205,((3*($E$14-1)+$C$4)+($D$8)))/1000*365.25 -> 1.724366556e-06 | H122: =VLOOKUP($D122,Point_Sources_All!$A$5:$FS$205,((3*($E$15-1)+$C$4)+($D$8)))/1000*365.25 -> 1.152238956e-05 | I122: =VLOOKUP($D122,Point_Sources_All!$A$5:$FS$205,((3*($E$16-1)+$C$4)+($D$8)))/1000*365.25 -> 1.648531525e-07 | J122: =VLOOKUP($D122,Point_Sources_All!$A$5:$FS$205,((3*($E$17-1)+$C$4)+($D$8)))/1000*365.25 -> 5.742856188e-06 | K122: =VLOOKUP($D122,Point_Sources_All!$A$5:$FS$205,((3*($E$18-1)+$C$4)+($D$8)))/1000*365.25 -> 0 | L122: =VLOOKUP($D122,Point_Sources_All!$A$5:$FS$205,((3*($E$19-1)+$C$4)+($D$8)))/1000*365.25 -> 0 | M122: =VLOOKUP($D122,Point_Sources_All!$A$5:$FS$205,((3*($E$20-1)+$C$4)+($D$8)))/1000*365.25 -> 1.052705287e-05 | N122: =VLOOKUP($D122,Point_Sources_All!$A$5:$FS$205,((3*($E$21-1)+$C$4)+($D$8)))/1000*365.25 -> 2.285627969e-06 | O122: =VLOOKUP($D122,Point_Sources_All!$A$5:$FS$205,((3*($E$22-1)+$C$4)+($D$8)))/1000*365.25 -> 5.573441063e-06 | P122: =VLOOKUP($D122,Point_Sources_All!$A$5:$FS$205,((3*($E$23-1)+$C$4)+($D$8)))/1000*365.25 -> 0 | Q122: =VLOOKUP($D122,Point_Sources_All!$A$5:$FS$205,((3*($E$24-1)+$C$4)+($D$8)))/1000*365.25 -> 6.763029875e-08 | R122: =VLOOKUP($D122,Point_Sources_All!$A$5:$FS$205,((3*($E$25-1)+$C$4)+($D$8)))/1000*365.25 -> 0
D123: 95 | E123: =VLOOKUP($D123,Point_Sources_All!$A$5:$FS$205,((3*($E$12-1)+$C$4)+($D$8)))/1000*365.25 -> 0.00011326646 | F123: =VLOOKUP($D123,Point_Sources_All!$A$5:$FS$205,((3*($E$13-1)+$C$4)+($D$8)))/1000*365.25 -> 0 | G123: =VLOOKUP($D123,Point_Sources_All!$A$5:$FS$205,((3*($E$14-1)+$C$4)+($D$8)))/1000*365.25 -> 1.717658131e-06 | H123: =VLOOKUP($D123,Point_Sources_All!$A$5:$FS$205,((3*($E$15-1)+$C$4)+($D$8)))/1000*365.25 -> 1.148845175e-05 | I123: =VLOOKUP($D123,Point_Sources_All!$A$5:$FS$205,((3*($E$16-1)+$C$4)+($D$8)))/1000*365.25 -> 1.637881444e-07 | J123: =VLOOKUP($D123,Point_Sources_All!$A$5:$FS$205,((3*($E$17-1)+$C$4)+($D$8)))/1000*365.25 -> 5.725932937e-06 | K123: =VLOOKUP($D123,Point_Sources_All!$A$5:$FS$205,((3*($E$18-1)+$C$4)+($D$8)))/1000*365.25 -> 0 | L123: =VLOOKUP($D123,Point_Sources_All!$A$5:$FS$205,((3*($E$19-1)+$C$4)+($D$8)))/1000*365.25 -> 0 | M123: =VLOOKUP($D123,Point_Sources_All!$A$5:$FS$205,((3*($E$20-1)+$C$4)+($D$8)))/1000*365.25 -> 1.049600662e-05 | N123: =VLOOKUP($D123,Point_Sources_All!$A$5:$FS$205,((3*($E$21-1)+$C$4)+($D$8)))/1000*365.25 -> 2.306535487e-06 | O123: =VLOOKUP($D123,Point_Sources_All!$A$5:$FS$205,((3*($E$22-1)+$C$4)+($D$8)))/1000*365.25 -> 5.576667437e-06 | P123: =VLOOKUP($D123,Point_Sources_All!$A$5:$FS$205,((3*($E$23-1)+$C$4)+($D$8)))/1000*365.25 -> 0 | Q123: =VLOOKUP($D123,Point_Sources_All!$A$5:$FS$205,((3*($E$24-1)+$C$4)+($D$8)))/1000*365.25 -> 6.962456375e-08 | R123: =VLOOKUP($D123,Point_Sources_All!$A$5:$FS$205,((3*($E$25-1)+$C$4)+($D$8)))/1000*365.25 -> 0
D124: 96 | E124: =VLOOKUP($D124,Point_Sources_All!$A$5:$FS$205,((3*($E$12-1)+$C$4)+($D$8)))/1000*365.25 -> 0.0001132682863 | F124: =VLOOKUP($D124,Point_Sources_All!$A$5:$FS$205,((3*($E$13-1)+$C$4)+($D$8)))/1000*365.25 -> 0 | G124: =VLOOKUP($D124,Point_Sources_All!$A$5:$FS$205,((3*($E$14-1)+$C$4)+($D$8)))/1000*365.25 -> 1.704028219e-06 | H124: =VLOOKUP($D124,Point_Sources_All!$A$5:$FS$205,((3*($E$15-1)+$C$4)+($D$8)))/1000*365.25 -> 1.148829956e-05 | I124: =VLOOKUP($D124,Point_Sources_All!$A$5:$FS$205,((3*($E$16-1)+$C$4)+($D$8)))/1000*365.25 -> 1.614274119e-07 | J124: =VLOOKUP($D124,Point_Sources_All!$A$5:$FS$205,((3*($E$17-1)+$C$4)+($D$8)))/1000*365.25 -> 5.725872062e-06 | K124: =VLOOKUP($D124,Point_Sources_All!$A$5:$FS$205,((3*($E$18-1)+$C$4)+($D$8)))/1000*365.25 -> 0 | L124: =VLOOKUP($D124,Point_Sources_All!$A$5:$FS$205,((3*($E$19-1)+$C$4)+($D$8)))/1000*365.25 -> 0 | M124: =VLOOKUP($D124,Point_Sources_All!$A$5:$FS$205,((3*($E$20-1)+$C$4)+($D$8)))/1000*365.25 -> 1.049591531e-05 | N124: =VLOOKUP($D124,Point_Sources_All!$A$5:$FS$205,((3*($E$21-1)+$C$4)+($D$8)))/1000*365.25 -> 2.344284075e-06 | O124: =VLOOKUP($D124,Point_Sources_All!$A$5:$FS$205,((3*($E$22-1)+$C$4)+($D$8)))/1000*365.25 -> 5.67050625e-06 | P124: =VLOOKUP($D124,Point_Sources_All!$A$5:$FS$205,((3*($E$23-1)+$C$4)+($D$8)))/1000*365.25 -> 0 | Q124: =VLOOKUP($D124,Point_Sources_All!$A$5:$FS$205,((3*($E$24-1)+$C$4)+($D$8)))/1000*365.25 -> 7.079792938e-08 | R124: =VLOOKUP($D124,Point_Sources_All!$A$5:$FS$205,((3*($E$25-1)+$C$4)+($D$8)))/1000*365.25 -> 0
D125: 97 | E125: =VLOOKUP($D125,Point_Sources_All!$A$5:$FS$205,((3*($E$12-1)+$C$4)+($D$8)))/1000*365.25 -> 0.0001132716344 | F125: =VLOOKUP($D125,Point_Sources_All!$A$5:$FS$205,((3*($E$13-1)+$C$4)+($D$8)))/1000*365.25 -> 0 | G125: =VLOOKUP($D125,Point_Sources_All!$A$5:$FS$205,((3*($E$14-1)+$C$4)+($D$8)))/1000*365.25 -> 1.682234969e-06 | H125: =VLOOKUP($D125,Point_Sources_All!$A$5:$FS$205,((3*($E$15-1)+$C$4)+($D$8)))/1000*365.25 -> 1.150899706e-05 | I125: =VLOOKUP($D125,Point_Sources_All!$A$5:$FS$205,((3*($E$16-1)+$C$4)+($D$8)))/1000*365.25 -> 1.626330412e-07 | J125: =VLOOKUP($D125,Point_Sources_All!$A$5:$FS$205,((3*($E$17-1)+$C$4)+($D$8)))/1000*365.25 -> 5.736220812e-06 | K125: =VLOOKUP($D125,Point_Sources_All!$A$5:$FS$205,((3*($E$18-1)+$C$4)+($D$8)))/1000*365.25 -> 0 | L125: =VLOOKUP($D125,Point_Sources_All!$A$5:$FS$205,((3*($E$19-1)+$C$4)+($D$8)))/1000*365.25 -> 0 | M125: =VLOOKUP($D125,Point_Sources_All!$A$5:$FS$205,((3*($E$20-1)+$C$4)+($D$8)))/1000*365.25 -> 1.051484744e-05 | N125: =VLOOKUP($D125,Point_Sources_All!$A$5:$FS$205,((3*($E$21-1)+$C$4)+($D$8)))/1000*365.25 -> 2.316105038e-06 | O125: =VLOOKUP($D125,Point_Sources_All!$A$5:$FS$205,((3*($E$22-1)+$C$4)+($D$8)))/1000*365.25 -> 5.6893775e-06 | P125: =VLOOKUP($D125,Point_Sources_All!$A$5:$FS$205,((3*($E$23-1)+$C$4)+($D$8)))/1000*365.25 -> 0 | Q125: =VLOOKUP($D125,Point_Sources_All!$A$5:$FS$205,((3*($E$24-1)+$C$4)+($D$8)))/1000*365.25 -> 6.226842875e-08 | R125: =VLOOKUP($D125,Point_Sources_All!$A$5:$FS$205,((3*($E$25-1)+$C$4)+($D$8)))/1000*365.25 -> 0
D126: 98 | E126: =VLOOKUP($D126,Point_Sources_All!$A$5:$FS$205,((3*($E$12-1)+$C$4)+($D$8)))/1000*365.25 -> 0.00011327133 | F126: =VLOOKUP($D126,Point_Sources_All!$A$5:$FS$205,((3*($E$13-1)+$C$4)+($D$8)))/1000*365.25 -> 0 | G126: =VLOOKUP($D126,Point_Sources_All!$A$5:$FS$205,((3*($E$14-1)+$C$4)+($D$8)))/1000*365.25 -> 1.644139394e-06 | H126: =VLOOKUP($D126,Point_Sources_All!$A$5:$FS$205,((3*($E$15-1)+$C$4)+($D$8)))/1000*365.25 -> 1.134092119e-05 | I126: =VLOOKUP($D126,Point_Sources_All!$A$5:$FS$205,((3*($E$16-1)+$C$4)+($D$8)))/1000*365.25 -> 1.680810494e-07 | J126: =VLOOKUP($D126,Point_Sources_All!$A$5:$FS$205,((3*($E$17-1)+$C$4)+($D$8)))/1000*365.25 -> 5.652426375e-06 | K126: =VLOOKUP($D126,Point_Sources_All!$A$5:$FS$205,((3*($E$18-1)+$C$4)+($D$8)))/1000*365.25 -> 0 | L126: =VLOOKUP($D126,Point_Sources_All!$A$5:$FS$205,((3*($E$19-1)+$C$4)+($D$8)))/1000*365.25 -> 0 | M126: =VLOOKUP($D126,Point_Sources_All!$A$5:$FS$205,((3*($E$20-1)+$C$4)+($D$8)))/1000*365.25 -> 1.036122938e-05 | N126: =VLOOKUP($D126,Point_Sources_All!$A$5:$FS$205,((3*($E$21-1)+$C$4)+($D$8)))/1000*365.25 -> 2.308410438e-06 | O126: =VLOOKUP($D126,Point_Sources_All!$A$5:$FS$205,((3*($E$22-1)+$C$4)+($D$8)))/1000*365.25 -> 5.671449813e-06 | P126: =VLOOKUP($D126,Point_Sources_All!$A$5:$FS$205,((3*($E$23-1)+$C$4)+($D$8)))/1000*365.25 -> 0 | Q126: =VLOOKUP($D126,Point_Sources_All!$A$5:$FS$205,((3*($E$24-1)+$C$4)+($D$8)))/1000*365.25 -> 5.643508188e-08 | R126: =VLOOKUP($D126,Point_Sources_All!$A$5:$FS$205,((3*($E$25-1)+$C$4)+($D$8)))/1000*365.25 -> 0
D127: 99 | E127: =VLOOKUP($D127,Point_Sources_All!$A$5:$FS$205,((3*($E$12-1)+$C$4)+($D$8)))/1000*365.25 -> 0.0001132719388 | F127: =VLOOKUP($D127,Point_Sources_All!$A$5:$FS$205,((3*($E$13-1)+$C$4)+($D$8)))/1000*365.25 -> 0 | G127: =VLOOKUP($D127,Point_Sources_All!$A$5:$FS$205,((3*($E$14-1)+$C$4)+($D$8)))/1000*365.25 -> 1.623454069e-06 | H127: =VLOOKUP($D127,Point_Sources_All!$A$5:$FS$205,((3*($E$15-1)+$C$4)+($D$8)))/1000*365.25 -> 1.134420844e-05 | I127: =VLOOKUP($D127,Point_Sources_All!$A$5:$FS$205,((3*($E$16-1)+$C$4)+($D$8)))/1000*365.25 -> 1.6729424e-07 | J127: =VLOOKUP($D127,Point_Sources_All!$A$5:$FS$205,((3*($E$17-1)+$C$4)+($D$8)))/1000*365.25 -> 5.654039562e-06 | K127: =VLOOKUP($D127,Point_Sources_All!$A$5:$FS$205,((3*($E$18-1)+$C$4)+($D$8)))/1000*365.25 -> 0 | L127: =VLOOKUP($D127,Point_Sources_All!$A$5:$FS$205,((3*($E$19-1)+$C$4)+($D$8)))/1000*365.25 -> 0 | M127: =VLOOKUP($D127,Point_Sources_All!$A$5:$FS$205,((3*($E$20-1)+$C$4)+($D$8)))/1000*365.25 -> 1.036424269e-05 | N127: =VLOOKUP($D127,Point_Sources_All!$A$5:$FS$205,((3*($E$21-1)+$C$4)+($D$8)))/1000*365.25 -> 2.307445569e-06 | O127: =VLOOKUP($D127,Point_Sources_All!$A$5:$FS$205,((3*($E$22-1)+$C$4)+($D$8)))/1000*365.25 -> 5.61230975e-06 | P127: =VLOOKUP($D127,Point_Sources_All!$A$5:$FS$205,((3*($E$23-1)+$C$4)+($D$8)))/1000*365.25 -> 0 | Q127: =VLOOKUP($D127,Point_Sources_All!$A$5:$FS$205,((3*($E$24-1)+$C$4)+($D$8)))/1000*365.25 -> 6.1442355e-08 | R127: =VLOOKUP($D127,Point_Sources_All!$A$5:$FS$205,((3*($E$25-1)+$C$4)+($D$8)))/1000*365.25 -> 0
D128: 100 | E128: =VLOOKUP($D128,Point_Sources_All!$A$5:$FS$205,((3*($E$12-1)+$C$4)+($D$8)))/1000*365.25 -> 0.0001132719388 | F128: =VLOOKUP($D128,Point_Sources_All!$A$5:$FS$205,((3*($E$13-1)+$C$4)+($D$8)))/1000*365.25 -> 0 | G128: =VLOOKUP($D128,Point_Sources_All!$A$5:$FS$205,((3*($E$14-1)+$C$4)+($D$8)))/1000*365.25 -> 1.608144006e-06 | H128: =VLOOKUP($D128,Point_Sources_All!$A$5:$FS$205,((3*($E$15-1)+$C$4)+($D$8)))/1000*365.25 -> 1.138563388e-05 | I128: =VLOOKUP($D128,Point_Sources_All!$A$5:$FS$205,((3*($E$16-1)+$C$4)+($D$8)))/1000*365.25 -> 1.671807081e-07 | J128: =VLOOKUP($D128,Point_Sources_All!$A$5:$FS$205,((3*($E$17-1)+$C$4)+($D$8)))/1000*365.25 -> 5.6747675e-06 | K128: =VLOOKUP($D128,Point_Sources_All!$A$5:$FS$205,((3*($E$18-1)+$C$4)+($D$8)))/1000*365.25 -> 0 | L128: =VLOOKUP($D128,Point_Sources_All!$A$5:$FS$205,((3*($E$19-1)+$C$4)+($D$8)))/1000*365.25 -> 0 | M128: =VLOOKUP($D128,Point_Sources_All!$A$5:$FS$205,((3*($E$20-1)+$C$4)+($D$8)))/1000*365.25 -> 1.040213737e-05 | N128: =VLOOKUP($D128,Point_Sources_All!$A$5:$FS$205,((3*($E$21-1)+$C$4)+($D$8)))/1000*365.25 -> 2.30144025e-06 | O128: =VLOOKUP($D128,Point_Sources_All!$A$5:$FS$205,((3*($E$22-1)+$C$4)+($D$8)))/1000*365.25 -> 5.560079e-06 | P128: =VLOOKUP($D128,Point_Sources_All!$A$5:$FS$205,((3*($E$23-1)+$C$4)+($D$8)))/1000*365.25 -> 0 | Q128: =VLOOKUP($D128,Point_Sources_All!$A$5:$FS$205,((3*($E$24-1)+$C$4)+($D$8)))/1000*365.25 -> 6.418203438e-08 | R128: =VLOOKUP($D128,Point_Sources_All!$A$5:$FS$205,((3*($E$25-1)+$C$4)+($D$8)))/1000*365.25 -> 0
D129: 101 | E129: =VLOOKUP($D129,Point_Sources_All!$A$5:$FS$205,((3*($E$12-1)+$C$4)+($D$8)))/1000*365.25 -> 0.0001132661556 | F129: =VLOOKUP($D129,Point_Sources_All!$A$5:$FS$205,((3*($E$13-1)+$C$4)+($D$8)))/1000*365.25 -> 0 | G129: =VLOOKUP($D129,Point_Sources_All!$A$5:$FS$205,((3*($E$14-1)+$C$4)+($D$8)))/1000*365.25 -> 1.604448894e-06 | H129: =VLOOKUP($D129,Point_Sources_All!$A$5:$FS$205,((3*($E$15-1)+$C$4)+($D$8)))/1000*365.25 -> 1.14846775e-05 | I129: =VLOOKUP($D129,Point_Sources_All!$A$5:$FS$205,((3*($E$16-1)+$C$4)+($D$8)))/1000*365.25 -> 1.651675719e-07 | J129: =VLOOKUP($D129,Point_Sources_All!$A$5:$FS$205,((3*($E$17-1)+$C$4)+($D$8)))/1000*365.25 -> 5.724137125e-06 | K129: =VLOOKUP($D129,Point_Sources_All!$A$5:$FS$205,((3*($E$18-1)+$C$4)+($D$8)))/1000*365.25 -> 0 | L129: =VLOOKUP($D129,Point_Sources_All!$A$5:$FS$205,((3*($E$19-1)+$C$4)+($D$8)))/1000*365.25 -> 0 | M129: =VLOOKUP($D129,Point_Sources_All!$A$5:$FS$205,((3*($E$20-1)+$C$4)+($D$8)))/1000*365.25 -> 1.049259763e-05 | N129: =VLOOKUP($D129,Point_Sources_All!$A$5:$FS$205,((3*($E$21-1)+$C$4)+($D$8)))/1000*365.25 -> 2.292999931e-06 | O129: =VLOOKUP($D129,Point_Sources_All!$A$5:$FS$205,((3*($E$22-1)+$C$4)+($D$8)))/1000*365.25 -> 5.5325635e-06 | P129: =VLOOKUP($D129,Point_Sources_All!$A$5:$FS$205,((3*($E$23-1)+$C$4)+($D$8)))/1000*365.25 -> 0 | Q129: =VLOOKUP($D129,Point_Sources_All!$A$5:$FS$205,((3*($E$24-1)+$C$4)+($D$8)))/1000*365.25 -> 7.557479063e-08 | R129: =VLOOKUP($D129,Point_Sources_All!$A$5:$FS$205,((3*($E$25-1)+$C$4)+($D$8)))/1000*365.25 -> 0
D130: 102 | E130: =VLOOKUP($D130,Point_Sources_All!$A$5:$FS$205,((3*($E$12-1)+$C$4)+($D$8)))/1000*365.25 -> 0.0001132643294 | F130: =VLOOKUP($D130,Point_Sources_All!$A$5:$FS$205,((3*($E$13-1)+$C$4)+($D$8)))/1000*365.25 -> 0 | G130: =VLOOKUP($D130,Point_Sources_All!$A$5:$FS$205,((3*($E$14-1)+$C$4)+($D$8)))/1000*365.25 -> 1.5723282e-06 | H130: =VLOOKUP($D130,Point_Sources_All!$A$5:$FS$205,((3*($E$15-1)+$C$4)+($D$8)))/1000*365.25 -> 1.138061169e-05 | I130: =VLOOKUP($D130,Point_Sources_All!$A$5:$FS$205,((3*($E$16-1)+$C$4)+($D$8)))/1000*365.25 -> 1.673091544e-07 | J130: =VLOOKUP($D130,Point_Sources_All!$A$5:$FS$205,((3*($E$17-1)+$C$4)+($D$8)))/1000*365.25 -> 5.672241188e-06 | K130: =VLOOKUP($D130,Point_Sources_All!$A$5:$FS$205,((3*($E$18-1)+$C$4)+($D$8)))/1000*365.25 -> 0 | L130: =VLOOKUP($D130,Point_Sources_All!$A$5:$FS$205,((3*($E$19-1)+$C$4)+($D$8)))/1000*365.25 -> 0 | M130: =VLOOKUP($D130,Point_Sources_All!$A$5:$FS$205,((3*($E$20-1)+$C$4)+($D$8)))/1000*365.25 -> 1.039751088e-05 | N130: =VLOOKUP($D130,Point_Sources_All!$A$5:$FS$205,((3*($E$21-1)+$C$4)+($D$8)))/1000*365.25 -> 2.288416044e-06 | O130: =VLOOKUP($D130,Point_Sources_All!$A$5:$FS$205,((3*($E$22-1)+$C$4)+($D$8)))/1000*365.25 -> 5.547234375e-06 | P130: =VLOOKUP($D130,Point_Sources_All!$A$5:$FS$205,((3*($E$23-1)+$C$4)+($D$8)))/1000*365.25 -> 0 | Q130: =VLOOKUP($D130,Point_Sources_All!$A$5:$FS$205,((3*($E$24-1)+$C$4)+($D$8)))/1000*365.25 -> 6.002183687e-08 | R130: =VLOOKUP($D130,Point_Sources_All!$A$5:$FS$205,((3*($E$25-1)+$C$4)+($D$8)))/1000*365.25 -> 0
D131: 103 | E131: =VLOOKUP($D131,Point_Sources_All!$A$5:$FS$205,((3*($E$12-1)+$C$4)+($D$8)))/1000*365.25 -> 0.0001132637206 | F131: =VLOOKUP($D131,Point_Sources_All!$A$5:$FS$205,((3*($E$13-1)+$C$4)+($D$8)))/1000*365.25 -> 0 | G131: =VLOOKUP($D131,Point_Sources_All!$A$5:$FS$205,((3*($E$14-1)+$C$4)+($D$8)))/1000*365.25 -> 1.559355737e-06 | H131: =VLOOKUP($D131,Point_Sources_All!$A$5:$FS$205,((3*($E$15-1)+$C$4)+($D$8)))/1000*365.25 -> 1.135863581e-05 | I131: =VLOOKUP($D131,Point_Sources_All!$A$5:$FS$205,((3*($E$16-1)+$C$4)+($D$8)))/1000*365.25 -> 1.686563181e-07 | J131: =VLOOKUP($D131,Point_Sources_All!$A$5:$FS$205,((3*($E$17-1)+$C$4)+($D$8)))/1000*365.25 -> 5.66125325e-06 | K131: =VLOOKUP($D131,Point_Sources_All!$A$5:$FS$205,((3*($E$18-1)+$C$4)+($D$8)))/1000*365.25 -> 0 | L131: =VLOOKUP($D131,Point_Sources_All!$A$5:$FS$205,((3*($E$19-1)+$C$4)+($D$8)))/1000*365.25 -> 0 | M131: =VLOOKUP($D131,Point_Sources_All!$A$5:$FS$205,((3*($E$20-1)+$C$4)+($D$8)))/1000*365.25 -> 1.037742213e-05 | N131: =VLOOKUP($D131,Point_Sources_All!$A$5:$FS$205,((3*($E$21-1)+$C$4)+($D$8)))/1000*365.25 -> 2.270887088e-06 | O131: =VLOOKUP($D131,Point_Sources_All!$A$5:$FS$205,((3*($E$22-1)+$C$4)+($D$8)))/1000*365.25 -> 5.492294687e-06 | P131: =VLOOKUP($D131,Point_Sources_All!$A$5:$FS$205,((3*($E$23-1)+$C$4)+($D$8)))/1000*365.25 -> 0 | Q131: =VLOOKUP($D131,Point_Sources_All!$A$5:$FS$205,((3*($E$24-1)+$C$4)+($D$8)))/1000*365.25 -> 5.803487688e-08 | R131: =VLOOKUP($D131,Point_Sources_All!$A$5:$FS$205,((3*($E$25-1)+$C$4)+($D$8)))/1000*365.25 -> 0
D132: 104 | E132: =VLOOKUP($D132,Point_Sources_All!$A$5:$FS$205,((3*($E$12-1)+$C$4)+($D$8)))/1000*365.25 -> 0.0001132637206 | F132: =VLOOKUP($D132,Point_Sources_All!$A$5:$FS$205,((3*($E$13-1)+$C$4)+($D$8)))/1000*365.25 -> 0 | G132: =VLOOKUP($D132,Point_Sources_All!$A$5:$FS$205,((3*($E$14-1)+$C$4)+($D$8)))/1000*365.25 -> 1.569856675e-06 | H132: =VLOOKUP($D132,Point_Sources_All!$A$5:$FS$205,((3*($E$15-1)+$C$4)+($D$8)))/1000*365.25 -> 1.1385573e-05 | I132: =VLOOKUP($D132,Point_Sources_All!$A$5:$FS$205,((3*($E$16-1)+$C$4)+($D$8)))/1000*365.25 -> 1.714112163e-07 | J132: =VLOOKUP($D132,Point_Sources_All!$A$5:$FS$205,((3*($E$17-1)+$C$4)+($D$8)))/1000*365.25 -> 5.67464575e-06 | K132: =VLOOKUP($D132,Point_Sources_All!$A$5:$FS$205,((3*($E$18-1)+$C$4)+($D$8)))/1000*365.25 -> 0 | L132: =VLOOKUP($D132,Point_Sources_All!$A$5:$FS$205,((3*($E$19-1)+$C$4)+($D$8)))/1000*365.25 -> 0 | M132: =VLOOKUP($D132,Point_Sources_All!$A$5:$FS$205,((3*($E$20-1)+$C$4)+($D$8)))/1000*365.25 -> 1.040204606e-05 | N132: =VLOOKUP($D132,Point_Sources_All!$A$5:$FS$205,((3*($E$21-1)+$C$4)+($D$8)))/1000*365.25 -> 2.265590963e-06 | O132: =VLOOKUP($D132,Point_Sources_All!$A$5:$FS$205,((3*($E$22-1)+$C$4)+($D$8)))/1000*365.25 -> 5.477958625e-06 | P132: =VLOOKUP($D132,Point_Sources_All!$A$5:$FS$205,((3*($E$23-1)+$C$4)+($D$8)))/1000*365.25 -> 0 | Q132: =VLOOKUP($D132,Point_Sources_All!$A$5:$FS$205,((3*($E$24-1)+$C$4)+($D$8)))/1000*365.25 -> 6.210711e-08 | R132: =VLOOKUP($D132,Point_Sources_All!$A$5:$FS$205,((3*($E$25-1)+$C$4)+($D$8)))/1000*365.25 -> 0
D133: 105 | E133: =VLOOKUP($D133,Point_Sources_All!$A$5:$FS$205,((3*($E$12-1)+$C$4)+($D$8)))/1000*365.25 -> 0.000113264025 | F133: =VLOOKUP($D133,Point_Sources_All!$A$5:$FS$205,((3*($E$13-1)+$C$4)+($D$8)))/1000*365.25 -> 0 | G133: =VLOOKUP($D133,Point_Sources_All!$A$5:$FS$205,((3*($E$14-1)+$C$4)+($D$8)))/1000*365.25 -> 1.59480325e-06 | H133: =VLOOKUP($D133,Point_Sources_All!$A$5:$FS$205,((3*($E$15-1)+$C$4)+($D$8)))/1000*365.25 -> 1.1388982e-05 | I133: =VLOOKUP($D133,Point_Sources_All!$A$5:$FS$205,((3*($E$16-1)+$C$4)+($D$8)))/1000*365.25 -> 1.719052169e-07 | J133: =VLOOKUP($D133,Point_Sources_All!$A$5:$FS$205,((3*($E$17-1)+$C$4)+($D$8)))/1000*365.25 -> 5.676319812e-06 | K133: =VLOOKUP($D133,Point_Sources_All!$A$5:$FS$205,((3*($E$18-1)+$C$4)+($D$8)))/1000*365.25 -> 0 | L133: =VLOOKUP($D133,Point_Sources_All!$A$5:$FS$205,((3*($E$19-1)+$C$4)+($D$8)))/1000*365.25 -> 0 | M133: =VLOOKUP($D133,Point_Sources_All!$A$5:$FS$205,((3*($E$20-1)+$C$4)+($D$8)))/1000*365.25 -> 1.040518112e-05 | N133: =VLOOKUP($D133,Point_Sources_All!$A$5:$FS$205,((3*($E$21-1)+$C$4)+($D$8)))/1000*365.25 -> 2.255583113e-06 | O133: =VLOOKUP($D133,Point_Sources_All!$A$5:$FS$205,((3*($E$22-1)+$C$4)+($D$8)))/1000*365.25 -> 5.574628125e-06 | P133: =VLOOKUP($D133,Point_Sources_All!$A$5:$FS$205,((3*($E$23-1)+$C$4)+($D$8)))/1000*365.25 -> 0 | Q133: =VLOOKUP($D133,Point_Sources_All!$A$5:$FS$205,((3*($E$24-1)+$C$4)+($D$8)))/1000*365.25 -> 5.194342e-08 | R133: =VLOOKUP($D133,Point_Sources_All!$A$5:$FS$205,((3*($E$25-1)+$C$4)+($D$8)))/1000*365.25 -> 0
D134: 106 | E134: =VLOOKUP($D134,Point_Sources_All!$A$5:$FS$205,((3*($E$12-1)+$C$4)+($D$8)))/1000*365.25 -> 0.000113264025 | F134: =VLOOKUP($D134,Point_Sources_All!$A$5:$FS$205,((3*($E$13-1)+$C$4)+($D$8)))/1000*365.25 -> 0 | G134: =VLOOKUP($D134,Point_Sources_All!$A$5:$FS$205,((3*($E$14-1)+$C$4)+($D$8)))/1000*365.25 -> 1.5614681e-06 | H134: =VLOOKUP($D134,Point_Sources_All!$A$5:$FS$205,((3*($E$15-1)+$C$4)+($D$8)))/1000*365.25 -> 1.14038355e-05 | I134: =VLOOKUP($D134,Point_Sources_All!$A$5:$FS$205,((3*($E$16-1)+$C$4)+($D$8)))/1000*365.25 -> 1.700126131e-07 | J134: =VLOOKUP($D134,Point_Sources_All!$A$5:$FS$205,((3*($E$17-1)+$C$4)+($D$8)))/1000*365.25 -> 5.683746562e-06 | K134: =VLOOKUP($D134,Point_Sources_All!$A$5:$FS$205,((3*($E$18-1)+$C$4)+($D$8)))/1000*365.25 -> 0 | L134: =VLOOKUP($D134,Point_Sources_All!$A$5:$FS$205,((3*($E$19-1)+$C$4)+($D$8)))/1000*365.25 -> 0 | M134: =VLOOKUP($D134,Point_Sources_All!$A$5:$FS$205,((3*($E$20-1)+$C$4)+($D$8)))/1000*365.25 -> 1.041866494e-05 | N134: =VLOOKUP($D134,Point_Sources_All!$A$5:$FS$205,((3*($E$21-1)+$C$4)+($D$8)))/1000*365.25 -> 2.2824716e-06 | O134: =VLOOKUP($D134,Point_Sources_All!$A$5:$FS$205,((3*($E$22-1)+$C$4)+($D$8)))/1000*365.25 -> 5.50468275e-06 | P134: =VLOOKUP($D134,Point_Sources_All!$A$5:$FS$205,((3*($E$23-1)+$C$4)+($D$8)))/1000*365.25 -> 0 | Q134: =VLOOKUP($D134,Point_Sources_All!$A$5:$FS$205,((3*($E$24-1)+$C$4)+($D$8)))/1000*365.25 -> 6.717982375e-08 | R134: =VLOOKUP($D134,Point_Sources_All!$A$5:$FS$205,((3*($E$25-1)+$C$4)+($D$8)))/1000*365.25 -> 0
D135: 107 | E135: =VLOOKUP($D135,Point_Sources_All!$A$5:$FS$205,((3*($E$12-1)+$C$4)+($D$8)))/1000*365.25 -> 0.000113264025 | F135: =VLOOKUP($D135,Point_Sources_All!$A$5:$FS$205,((3*($E$13-1)+$C$4)+($D$8)))/1000*365.25 -> 0 | G135: =VLOOKUP($D135,Point_Sources_All!$A$5:$FS$205,((3*($E$14-1)+$C$4)+($D$8)))/1000*365.25 -> 1.562725169e-06 | H135: =VLOOKUP($D135,Point_Sources_All!$A$5:$FS$205,((3*($E$15-1)+$C$4)+($D$8)))/1000*365.25 -> 1.141010562e-05 | I135: =VLOOKUP($D135,Point_Sources_All!$A$5:$FS$205,((3*($E$16-1)+$C$4)+($D$8)))/1000*365.25 -> 1.697012375e-07 | J135: =VLOOKUP($D135,Point_Sources_All!$A$5:$FS$205,((3*($E$17-1)+$C$4)+($D$8)))/1000*365.25 -> 5.686881625e-06 | K135: =VLOOKUP($D135,Point_Sources_All!$A$5:$FS$205,((3*($E$18-1)+$C$4)+($D$8)))/1000*365.25 -> 0 | L135: =VLOOKUP($D135,Point_Sources_All!$A$5:$FS$205,((3*($E$19-1)+$C$4)+($D$8)))/1000*365.25 -> 0 | M135: =VLOOKUP($D135,Point_Sources_All!$A$5:$FS$205,((3*($E$20-1)+$C$4)+($D$8)))/1000*365.25 -> 1.042453938e-05 | N135: =VLOOKUP($D135,Point_Sources_All!$A$5:$FS$205,((3*($E$21-1)+$C$4)+($D$8)))/1000*365.25 -> 2.3023412e-06 | O135: =VLOOKUP($D135,Point_Sources_All!$A$5:$FS$205,((3*($E$22-1)+$C$4)+($D$8)))/1000*365.25 -> 5.510892e-06 | P135: =VLOOKUP($D135,Point_Sources_All!$A$5:$FS$205,((3*($E$23-1)+$C$4)+($D$8)))/1000*365.25 -> 0 | Q135: =VLOOKUP($D135,Point_Sources_All!$A$5:$FS$205,((3*($E$24-1)+$C$4)+($D$8)))/1000*365.25 -> 6.785218812e-08 | R135: =VLOOKUP($D135,Point_Sources_All!$A$5:$FS$205,((3*($E$25-1)+$C$4)+($D$8)))/1000*365.25 -> 0
D136: 108 | E136: =VLOOKUP($D136,Point_Sources_All!$A$5:$FS$205,((3*($E$12-1)+$C$4)+($D$8)))/1000*365.25 -> 0.000113264025 | F136: =VLOOKUP($D136,Point_Sources_All!$A$5:$FS$205,((3*($E$13-1)+$C$4)+($D$8)))/1000*365.25 -> 0 | G136: =VLOOKUP($D136,Point_Sources_All!$A$5:$FS$205,((3*($E$14-1)+$C$4)+($D$8)))/1000*365.25 -> 1.524882225e-06 | H136: =VLOOKUP($D136,Point_Sources_All!$A$5:$FS$205,((3*($E$15-1)+$C$4)+($D$8)))/1000*365.25 -> 1.150625769e-05 | I136: =VLOOKUP($D136,Point_Sources_All!$A$5:$FS$205,((3*($E$16-1)+$C$4)+($D$8)))/1000*365.25 -> 1.691080106e-07 | J136: =VLOOKUP($D136,Point_Sources_All!$A$5:$FS$205,((3*($E$17-1)+$C$4)+($D$8)))/1000*365.25 -> 5.734820687e-06 | K136: =VLOOKUP($D136,Point_Sources_All!$A$5:$FS$205,((3*($E$18-1)+$C$4)+($D$8)))/1000*365.25 -> 0 | L136: =VLOOKUP($D136,Point_Sources_All!$A$5:$FS$205,((3*($E$19-1)+$C$4)+($D$8)))/1000*365.25 -> 0 | M136: =VLOOKUP($D136,Point_Sources_All!$A$5:$FS$205,((3*($E$20-1)+$C$4)+($D$8)))/1000*365.25 -> 1.051229069e-05 | N136: =VLOOKUP($D136,Point_Sources_All!$A$5:$FS$205,((3*($E$21-1)+$C$4)+($D$8)))/1000*365.25 -> 2.305254069e-06 | O136: =VLOOKUP($D136,Point_Sources_All!$A$5:$FS$205,((3*($E$22-1)+$C$4)+($D$8)))/1000*365.25 -> 5.491442438e-06 | P136: =VLOOKUP($D136,Point_Sources_All!$A$5:$FS$205,((3*($E$23-1)+$C$4)+($D$8)))/1000*365.25 -> 0 | Q136: =VLOOKUP($D136,Point_Sources_All!$A$5:$FS$205,((3*($E$24-1)+$C$4)+($D$8)))/1000*365.25 -> 6.413637813e-08 | R136: =VLOOKUP($D136,Point_Sources_All!$A$5:$FS$205,((3*($E$25-1)+$C$4)+($D$8)))/1000*365.25 -> 0
D137: 109 | E137: =VLOOKUP($D137,Point_Sources_All!$A$5:$FS$205,((3*($E$12-1)+$C$4)+($D$8)))/1000*365.25 -> 0.0001132658513 | F137: =VLOOKUP($D137,Point_Sources_All!$A$5:$FS$205,((3*($E$13-1)+$C$4)+($D$8)))/1000*365.25 -> 0 | G137: =VLOOKUP($D137,Point_Sources_All!$A$5:$FS$205,((3*($E$14-1)+$C$4)+($D$8)))/1000*365.25 -> 1.487124506e-06 | H137: =VLOOKUP($D137,Point_Sources_All!$A$5:$FS$205,((3*($E$15-1)+$C$4)+($D$8)))/1000*365.25 -> 1.154835275e-05 | I137: =VLOOKUP($D137,Point_Sources_All!$A$5:$FS$205,((3*($E$16-1)+$C$4)+($D$8)))/1000*365.25 -> 1.669965612e-07 | J137: =VLOOKUP($D137,Point_Sources_All!$A$5:$FS$205,((3*($E$17-1)+$C$4)+($D$8)))/1000*365.25 -> 5.755822562e-06 | K137: =VLOOKUP($D137,Point_Sources_All!$A$5:$FS$205,((3*($E$18-1)+$C$4)+($D$8)))/1000*365.25 -> 0 | L137: =VLOOKUP($D137,Point_Sources_All!$A$5:$FS$205,((3*($E$19-1)+$C$4)+($D$8)))/1000*365.25 -> 0 | M137: =VLOOKUP($D137,Point_Sources_All!$A$5:$FS$205,((3*($E$20-1)+$C$4)+($D$8)))/1000*365.25 -> 1.055076369e-05 | N137: =VLOOKUP($D137,Point_Sources_All!$A$5:$FS$205,((3*($E$21-1)+$C$4)+($D$8)))/1000*365.25 -> 2.295626687e-06 | O137: =VLOOKUP($D137,Point_Sources_All!$A$5:$FS$205,((3*($E$22-1)+$C$4)+($D$8)))/1000*365.25 -> 5.4414945e-06 | P137: =VLOOKUP($D137,Point_Sources_All!$A$5:$FS$205,((3*($E$23-1)+$C$4)+($D$8)))/1000*365.25 -> 0 | Q137: =VLOOKUP($D137,Point_Sources_All!$A$5:$FS$205,((3*($E$24-1)+$C$4)+($D$8)))/1000*365.25 -> 5.951322625e-08 | R137: =VLOOKUP($D137,Point_Sources_All!$A$5:$FS$205,((3*($E$25-1)+$C$4)+($D$8)))/1000*365.25 -> 0
D138: 110 | E138: =VLOOKUP($D138,Point_Sources_All!$A$5:$FS$205,((3*($E$12-1)+$C$4)+($D$8)))/1000*365.25 -> 0.0001132670688 | F138: =VLOOKUP($D138,Point_Sources_All!$A$5:$FS$205,((3*($E$13-1)+$C$4)+($D$8)))/1000*365.25 -> 0 | G138: =VLOOKUP($D138,Point_Sources_All!$A$5:$FS$205,((3*($E$14-1)+$C$4)+($D$8)))/1000*365.25 -> 1.452249219e-06 | H138: =VLOOKUP($D138,Point_Sources_All!$A$5:$FS$205,((3*($E$15-1)+$C$4)+($D$8)))/1000*365.25 -> 1.147417656e-05 | I138: =VLOOKUP($D138,Point_Sources_All!$A$5:$FS$205,((3*($E$16-1)+$C$4)+($D$8)))/1000*365.25 -> 1.663604175e-07 | J138: =VLOOKUP($D138,Point_Sources_All!$A$5:$FS$205,((3*($E$17-1)+$C$4)+($D$8)))/1000*365.25 -> 5.718841e-06 | K138: =VLOOKUP($D138,Point_Sources_All!$A$5:$FS$205,((3*($E$18-1)+$C$4)+($D$8)))/1000*365.25 -> 0 | L138: =VLOOKUP($D138,Point_Sources_All!$A$5:$FS$205,((3*($E$19-1)+$C$4)+($D$8)))/1000*365.25 -> 0 | M138: =VLOOKUP($D138,Point_Sources_All!$A$5:$FS$205,((3*($E$20-1)+$C$4)+($D$8)))/1000*365.25 -> 1.048300981e-05 | N138: =VLOOKUP($D138,Point_Sources_All!$A$5:$FS$205,((3*($E$21-1)+$C$4)+($D$8)))/1000*365.25 -> 2.26739895e-06 | O138: =VLOOKUP($D138,Point_Sources_All!$A$5:$FS$205,((3*($E$22-1)+$C$4)+($D$8)))/1000*365.25 -> 5.43065875e-06 | P138: =VLOOKUP($D138,Point_Sources_All!$A$5:$FS$205,((3*($E$23-1)+$C$4)+($D$8)))/1000*365.25 -> 0 | Q138: =VLOOKUP($D138,Point_Sources_All!$A$5:$FS$205,((3*($E$24-1)+$C$4)+($D$8)))/1000*365.25 -> 6.593006e-08 | R138: =VLOOKUP($D138,Point_Sources_All!$A$5:$FS$205,((3*($E$25-1)+$C$4)+($D$8)))/1000*365.25 -> 0
D139: 111 | E139: =VLOOKUP($D139,Point_Sources_All!$A$5:$FS$205,((3*($E$12-1)+$C$4)+($D$8)))/1000*365.25 -> 0.0001132655469 | F139: =VLOOKUP($D139,Point_Sources_All!$A$5:$FS$205,((3*($E$13-1)+$C$4)+($D$8)))/1000*365.25 -> 0 | G139: =VLOOKUP($D139,Point_Sources_All!$A$5:$FS$205,((3*($E$14-1)+$C$4)+($D$8)))/1000*365.25 -> 1.432397881e-06 | H139: =VLOOKUP($D139,Point_Sources_All!$A$5:$FS$205,((3*($E$15-1)+$C$4)+($D$8)))/1000*365.25 -> 1.140277019e-05 | I139: =VLOOKUP($D139,Point_Sources_All!$A$5:$FS$205,((3*($E$16-1)+$C$4)+($D$8)))/1000*365.25 -> 1.673359394e-07 | J139: =VLOOKUP($D139,Point_Sources_All!$A$5:$FS$205,((3*($E$17-1)+$C$4)+($D$8)))/1000*365.25 -> 5.683229125e-06 | K139: =VLOOKUP($D139,Point_Sources_All!$A$5:$FS$205,((3*($E$18-1)+$C$4)+($D$8)))/1000*365.25 -> 0 | L139: =VLOOKUP($D139,Point_Sources_All!$A$5:$FS$205,((3*($E$19-1)+$C$4)+($D$8)))/1000*365.25 -> 0 | M139: =VLOOKUP($D139,Point_Sources_All!$A$5:$FS$205,((3*($E$20-1)+$C$4)+($D$8)))/1000*365.25 -> 1.041775181e-05 | N139: =VLOOKUP($D139,Point_Sources_All!$A$5:$FS$205,((3*($E$21-1)+$C$4)+($D$8)))/1000*365.25 -> 2.271511056e-06 | O139: =VLOOKUP($D139,Point_Sources_All!$A$5:$FS$205,((3*($E$22-1)+$C$4)+($D$8)))/1000*365.25 -> 5.483833062e-06 | P139: =VLOOKUP($D139,Point_Sources_All!$A$5:$FS$205,((3*($E$23-1)+$C$4)+($D$8)))/1000*365.25 -> 0 | Q139: =VLOOKUP($D139,Point_Sources_All!$A$5:$FS$205,((3*($E$24-1)+$C$4)+($D$8)))/1000*365.25 -> 6.21424175e-08 | R139: =VLOOKUP($D139,Point_Sources_All!$A$5:$FS$205,((3*($E$25-1)+$C$4)+($D$8)))/1000*365.25 -> 0
D140: 112 | E140: =VLOOKUP($D140,Point_Sources_All!$A$5:$FS$205,((3*($E$12-1)+$C$4)+($D$8)))/1000*365.25 -> 0.0001132673731 | F140: =VLOOKUP($D140,Point_Sources_All!$A$5:$FS$205,((3*($E$13-1)+$C$4)+($D$8)))/1000*365.25 -> 0 | G140: =VLOOKUP($D140,Point_Sources_All!$A$5:$FS$205,((3*($E$14-1)+$C$4)+($D$8)))/1000*365.25 -> 1.451147381e-06 | H140: =VLOOKUP($D140,Point_Sources_All!$A$5:$FS$205,((3*($E$15-1)+$C$4)+($D$8)))/1000*365.25 -> 1.151347137e-05 | I140: =VLOOKUP($D140,Point_Sources_All!$A$5:$FS$205,((3*($E$16-1)+$C$4)+($D$8)))/1000*365.25 -> 1.6604752e-07 | J140: =VLOOKUP($D140,Point_Sources_All!$A$5:$FS$205,((3*($E$17-1)+$C$4)+($D$8)))/1000*365.25 -> 5.738473187e-06 | K140: =VLOOKUP($D140,Point_Sources_All!$A$5:$FS$205,((3*($E$18-1)+$C$4)+($D$8)))/1000*365.25 -> 0 | L140: =VLOOKUP($D140,Point_Sources_All!$A$5:$FS$205,((3*($E$19-1)+$C$4)+($D$8)))/1000*365.25 -> 0 | M140: =VLOOKUP($D140,Point_Sources_All!$A$5:$FS$205,((3*($E$20-1)+$C$4)+($D$8)))/1000*365.25 -> 1.051889563e-05 | N140: =VLOOKUP($D140,Point_Sources_All!$A$5:$FS$205,((3*($E$21-1)+$C$4)+($D$8)))/1000*365.25 -> 2.296357187e-06 | O140: =VLOOKUP($D140,Point_Sources_All!$A$5:$FS$205,((3*($E$22-1)+$C$4)+($D$8)))/1000*365.25 -> 5.4838635e-06 | P140: =VLOOKUP($D140,Point_Sources_All!$A$5:$FS$205,((3*($E$23-1)+$C$4)+($D$8)))/1000*365.25 -> 0 | Q140: =VLOOKUP($D140,Point_Sources_All!$A$5:$FS$205,((3*($E$24-1)+$C$4)+($D$8)))/1000*365.25 -> 6.162102312e-08 | R140: =VLOOKUP($D140,Point_Sources_All!$A$5:$FS$205,((3*($E$25-1)+$C$4)+($D$8)))/1000*365.25 -> 0
D141: 113 | E141: =VLOOKUP($D141,Point_Sources_All!$A$5:$FS$205,((3*($E$12-1)+$C$4)+($D$8)))/1000*365.25 -> 0.0001132682863 | F141: =VLOOKUP($D141,Point_Sources_All!$A$5:$FS$205,((3*($E$13-1)+$C$4)+($D$8)))/1000*365.25 -> 0 | G141: =VLOOKUP($D141,Point_Sources_All!$A$5:$FS$205,((3*($E$14-1)+$C$4)+($D$8)))/1000*365.25 -> 1.452934063e-06 | H141: =VLOOKUP($D141,Point_Sources_All!$A$5:$FS$205,((3*($E$15-1)+$C$4)+($D$8)))/1000*365.25 -> 1.159583525e-05 | I141: =VLOOKUP($D141,Point_Sources_All!$A$5:$FS$205,((3*($E$16-1)+$C$4)+($D$8)))/1000*365.25 -> 1.663637656e-07 | J141: =VLOOKUP($D141,Point_Sources_All!$A$5:$FS$205,((3*($E$17-1)+$C$4)+($D$8)))/1000*365.25 -> 5.779442062e-06 | K141: =VLOOKUP($D141,Point_Sources_All!$A$5:$FS$205,((3*($E$18-1)+$C$4)+($D$8)))/1000*365.25 -> 0 | L141: =VLOOKUP($D141,Point_Sources_All!$A$5:$FS$205,((3*($E$19-1)+$C$4)+($D$8)))/1000*365.25 -> 0 | M141: =VLOOKUP($D141,Point_Sources_All!$A$5:$FS$205,((3*($E$20-1)+$C$4)+($D$8)))/1000*365.25 -> 1.059413713e-05 | N141: =VLOOKUP($D141,Point_Sources_All!$A$5:$FS$205,((3*($E$21-1)+$C$4)+($D$8)))/1000*365.25 -> 2.296868537e-06 | O141: =VLOOKUP($D141,Point_Sources_All!$A$5:$FS$205,((3*($E$22-1)+$C$4)+($D$8)))/1000*365.25 -> 5.475371438e-06 | P141: =VLOOKUP($D141,Point_Sources_All!$A$5:$FS$205,((3*($E$23-1)+$C$4)+($D$8)))/1000*365.25 -> 0 | Q141: =VLOOKUP($D141,Point_Sources_All!$A$5:$FS$205,((3*($E$24-1)+$C$4)+($D$8)))/1000*365.25 -> 5.828598625e-08 | R141: =VLOOKUP($D141,Point_Sources_All!$A$5:$FS$205,((3*($E$25-1)+$C$4)+($D$8)))/1000*365.25 -> 0
D142: 114 | E142: =VLOOKUP($D142,Point_Sources_All!$A$5:$FS$205,((3*($E$12-1)+$C$4)+($D$8)))/1000*365.25 -> 0.0001132691994 | F142: =VLOOKUP($D142,Point_Sources_All!$A$5:$FS$205,((3*($E$13-1)+$C$4)+($D$8)))/1000*365.25 -> 0 | G142: =VLOOKUP($D142,Point_Sources_All!$A$5:$FS$205,((3*($E$14-1)+$C$4)+($D$8)))/1000*365.25 -> 1.444941175e-06 | H142: =VLOOKUP($D142,Point_Sources_All!$A$5:$FS$205,((3*($E$15-1)+$C$4)+($D$8)))/1000*365.25 -> 1.165384912e-05 | I142: =VLOOKUP($D142,Point_Sources_All!$A$5:$FS$205,((3*($E$16-1)+$C$4)+($D$8)))/1000*365.25 -> 1.680618737e-07 | J142: =VLOOKUP($D142,Point_Sources_All!$A$5:$FS$205,((3*($E$17-1)+$C$4)+($D$8)))/1000*365.25 -> 5.808388125e-06 | K142: =VLOOKUP($D142,Point_Sources_All!$A$5:$FS$205,((3*($E$18-1)+$C$4)+($D$8)))/1000*365.25 -> 0 | L142: =VLOOKUP($D142,Point_Sources_All!$A$5:$FS$205,((3*($E$19-1)+$C$4)+($D$8)))/1000*365.25 -> 0 | M142: =VLOOKUP($D142,Point_Sources_All!$A$5:$FS$205,((3*($E$20-1)+$C$4)+($D$8)))/1000*365.25 -> 1.064715925e-05 | N142: =VLOOKUP($D142,Point_Sources_All!$A$5:$FS$205,((3*($E$21-1)+$C$4)+($D$8)))/1000*365.25 -> 2.288367344e-06 | O142: =VLOOKUP($D142,Point_Sources_All!$A$5:$FS$205,((3*($E$22-1)+$C$4)+($D$8)))/1000*365.25 -> 5.467762062e-06 | P142: =VLOOKUP($D142,Point_Sources_All!$A$5:$FS$205,((3*($E$23-1)+$C$4)+($D$8)))/1000*365.25 -> 0 | Q142: =VLOOKUP($D142,Point_Sources_All!$A$5:$FS$205,((3*($E$24-1)+$C$4)+($D$8)))/1000*365.25 -> 5.323792688e-08 | R142: =VLOOKUP($D142,Point_Sources_All!$A$5:$FS$205,((3*($E$25-1)+$C$4)+($D$8)))/1000*365.25 -> 0
D143: 115 | E143: =VLOOKUP($D143,Point_Sources_All!$A$5:$FS$205,((3*($E$12-1)+$C$4)+($D$8)))/1000*365.25 -> 0.0001132667644 | F143: =VLOOKUP($D143,Point_Sources_All!$A$5:$FS$205,((3*($E$13-1)+$C$4)+($D$8)))/1000*365.25 -> 0 | G143: =VLOOKUP($D143,Point_Sources_All!$A$5:$FS$205,((3*($E$14-1)+$C$4)+($D$8)))/1000*365.25 -> 1.428416656e-06 | H143: =VLOOKUP($D143,Point_Sources_All!$A$5:$FS$205,((3*($E$15-1)+$C$4)+($D$8)))/1000*365.25 -> 1.164006094e-05 | I143: =VLOOKUP($D143,Point_Sources_All!$A$5:$FS$205,((3*($E$16-1)+$C$4)+($D$8)))/1000*365.25 -> 1.6697282e-07 | J143: =VLOOKUP($D143,Point_Sources_All!$A$5:$FS$205,((3*($E$17-1)+$C$4)+($D$8)))/1000*365.25 -> 5.80150925e-06 | K143: =VLOOKUP($D143,Point_Sources_All!$A$5:$FS$205,((3*($E$18-1)+$C$4)+($D$8)))/1000*365.25 -> 0 | L143: =VLOOKUP($D143,Point_Sources_All!$A$5:$FS$205,((3*($E$19-1)+$C$4)+($D$8)))/1000*365.25 -> 0 | M143: =VLOOKUP($D143,Point_Sources_All!$A$5:$FS$205,((3*($E$20-1)+$C$4)+($D$8)))/1000*365.25 -> 1.063455812e-05 | N143: =VLOOKUP($D143,Point_Sources_All!$A$5:$FS$205,((3*($E$21-1)+$C$4)+($D$8)))/1000*365.25 -> 2.297255094e-06 | O143: =VLOOKUP($D143,Point_Sources_All!$A$5:$FS$205,((3*($E$22-1)+$C$4)+($D$8)))/1000*365.25 -> 5.499264875e-06 | P143: =VLOOKUP($D143,Point_Sources_All!$A$5:$FS$205,((3*($E$23-1)+$C$4)+($D$8)))/1000*365.25 -> 0 | Q143: =VLOOKUP($D143,Point_Sources_All!$A$5:$FS$205,((3*($E$24-1)+$C$4)+($D$8)))/1000*365.25 -> 6.441975125e-08 | R143: =VLOOKUP($D143,Point_Sources_All!$A$5:$FS$205,((3*($E$25-1)+$C$4)+($D$8)))/1000*365.25 -> 0
D144: 116 | E144: =VLOOKUP($D144,Point_Sources_All!$A$5:$FS$205,((3*($E$12-1)+$C$4)+($D$8)))/1000*365.25 -> 0.000113264025 | F144: =VLOOKUP($D144,Point_Sources_All!$A$5:$FS$205,((3*($E$13-1)+$C$4)+($D$8)))/1000*365.25 -> 0 | G144: =VLOOKUP($D144,Point_Sources_All!$A$5:$FS$205,((3*($E$14-1)+$C$4)+($D$8)))/1000*365.25 -> 1.410924225e-06 | H144: =VLOOKUP($D144,Point_Sources_All!$A$5:$FS$205,((3*($E$15-1)+$C$4)+($D$8)))/1000*365.25 -> 1.1575016e-05 | I144: =VLOOKUP($D144,Point_Sources_All!$A$5:$FS$205,((3*($E$16-1)+$C$4)+($D$8)))/1000*365.25 -> 1.651258725e-07 | J144: =VLOOKUP($D144,Point_Sources_All!$A$5:$FS$205,((3*($E$17-1)+$C$4)+($D$8)))/1000*365.25 -> 5.769062875e-06 | K144: =VLOOKUP($D144,Point_Sources_All!$A$5:$FS$205,((3*($E$18-1)+$C$4)+($D$8)))/1000*365.25 -> 0 | L144: =VLOOKUP($D144,Point_Sources_All!$A$5:$FS$205,((3*($E$19-1)+$C$4)+($D$8)))/1000*365.25 -> 0 | M144: =VLOOKUP($D144,Point_Sources_All!$A$5:$FS$205,((3*($E$20-1)+$C$4)+($D$8)))/1000*365.25 -> 1.057517456e-05 | N144: =VLOOKUP($D144,Point_Sources_All!$A$5:$FS$205,((3*($E$21-1)+$C$4)+($D$8)))/1000*365.25 -> 2.288139062e-06 | O144: =VLOOKUP($D144,Point_Sources_All!$A$5:$FS$205,((3*($E$22-1)+$C$4)+($D$8)))/1000*365.25 -> 5.562027e-06 | P144: =VLOOKUP($D144,Point_Sources_All!$A$5:$FS$205,((3*($E$23-1)+$C$4)+($D$8)))/1000*365.25 -> 0 | Q144: =VLOOKUP($D144,Point_Sources_All!$A$5:$FS$205,((3*($E$24-1)+$C$4)+($D$8)))/1000*365.25 -> 7.549047875e-08 | R144: =VLOOKUP($D144,Point_Sources_All!$A$5:$FS$205,((3*($E$25-1)+$C$4)+($D$8)))/1000*365.25 -> 0
D145: 117 | E145: =VLOOKUP($D145,Point_Sources_All!$A$5:$FS$205,((3*($E$12-1)+$C$4)+($D$8)))/1000*365.25 -> 0.0001132655469 | F145: =VLOOKUP($D145,Point_Sources_All!$A$5:$FS$205,((3*($E$13-1)+$C$4)+($D$8)))/1000*365.25 -> 0 | G145: =VLOOKUP($D145,Point_Sources_All!$A$5:$FS$205,((3*($E$14-1)+$C$4)+($D$8)))/1000*365.25 -> 1.407387387e-06 | H145: =VLOOKUP($D145,Point_Sources_All!$A$5:$FS$205,((3*($E$15-1)+$C$4)+($D$8)))/1000*365.25 -> 1.14155235e-05 | I145: =VLOOKUP($D145,Point_Sources_All!$A$5:$FS$205,((3*($E$16-1)+$C$4)+($D$8)))/1000*365.25 -> 1.640438194e-07 | J145: =VLOOKUP($D145,Point_Sources_All!$A$5:$FS$205,((3*($E$17-1)+$C$4)+($D$8)))/1000*365.25 -> 5.689681875e-06 | K145: =VLOOKUP($D145,Point_Sources_All!$A$5:$FS$205,((3*($E$18-1)+$C$4)+($D$8)))/1000*365.25 -> 0 | L145: =VLOOKUP($D145,Point_Sources_All!$A$5:$FS$205,((3*($E$19-1)+$C$4)+($D$8)))/1000*365.25 -> 0 | M145: =VLOOKUP($D145,Point_Sources_All!$A$5:$FS$205,((3*($E$20-1)+$C$4)+($D$8)))/1000*365.25 -> 1.042943981e-05 | N145: =VLOOKUP($D145,Point_Sources_All!$A$5:$FS$205,((3*($E$21-1)+$C$4)+($D$8)))/1000*365.25 -> 2.293410837e-06 | O145: =VLOOKUP($D145,Point_Sources_All!$A$5:$FS$205,((3*($E$22-1)+$C$4)+($D$8)))/1000*365.25 -> 5.55922675e-06 | P145: =VLOOKUP($D145,Point_Sources_All!$A$5:$FS$205,((3*($E$23-1)+$C$4)+($D$8)))/1000*365.25 -> 0 | Q145: =VLOOKUP($D145,Point_Sources_All!$A$5:$FS$205,((3*($E$24-1)+$C$4)+($D$8)))/1000*365.25 -> 6.217529e-08 | R145: =VLOOKUP($D145,Point_Sources_All!$A$5:$FS$205,((3*($E$25-1)+$C$4)+($D$8)))/1000*365.25 -> 0
D146: 118 | E146: =VLOOKUP($D146,Point_Sources_All!$A$5:$FS$205,((3*($E$12-1)+$C$4)+($D$8)))/1000*365.25 -> 0.0001132649381 | F146: =VLOOKUP($D146,Point_Sources_All!$A$5:$FS$205,((3*($E$13-1)+$C$4)+($D$8)))/1000*365.25 -> 0 | G146: =VLOOKUP($D146,Point_Sources_All!$A$5:$FS$205,((3*($E$14-1)+$C$4)+($D$8)))/1000*365.25 -> 1.395769394e-06 | H146: =VLOOKUP($D146,Point_Sources_All!$A$5:$FS$205,((3*($E$15-1)+$C$4)+($D$8)))/1000*365.25 -> 1.134591294e-05 | I146: =VLOOKUP($D146,Point_Sources_All!$A$5:$FS$205,((3*($E$16-1)+$C$4)+($D$8)))/1000*365.25 -> 1.6795656e-07 | J146: =VLOOKUP($D146,Point_Sources_All!$A$5:$FS$205,((3*($E$17-1)+$C$4)+($D$8)))/1000*365.25 -> 5.65492225e-06 | K146: =VLOOKUP($D146,Point_Sources_All!$A$5:$FS$205,((3*($E$18-1)+$C$4)+($D$8)))/1000*365.25 -> 0 | L146: =VLOOKUP($D146,Point_Sources_All!$A$5:$FS$205,((3*($E$19-1)+$C$4)+($D$8)))/1000*365.25 -> 0 | M146: =VLOOKUP($D146,Point_Sources_All!$A$5:$FS$205,((3*($E$20-1)+$C$4)+($D$8)))/1000*365.25 -> 1.036582544e-05 | N146: =VLOOKUP($D146,Point_Sources_All!$A$5:$FS$205,((3*($E$21-1)+$C$4)+($D$8)))/1000*365.25 -> 2.293773044e-06 | O146: =VLOOKUP($D146,Point_Sources_All!$A$5:$FS$205,((3*($E$22-1)+$C$4)+($D$8)))/1000*365.25 -> 5.544890687e-06 | P146: =VLOOKUP($D146,Point_Sources_All!$A$5:$FS$205,((3*($E$23-1)+$C$4)+($D$8)))/1000*365.25 -> 0 | Q146: =VLOOKUP($D146,Point_Sources_All!$A$5:$FS$205,((3*($E$24-1)+$C$4)+($D$8)))/1000*365.25 -> 6.142226625e-08 | R146: =VLOOKUP($D146,Point_Sources_All!$A$5:$FS$205,((3*($E$25-1)+$C$4)+($D$8)))/1000*365.25 -> 0
D147: 119 | E147: =VLOOKUP($D147,Point_Sources_All!$A$5:$FS$205,((3*($E$12-1)+$C$4)+($D$8)))/1000*365.25 -> 0.0001132658513 | F147: =VLOOKUP($D147,Point_Sources_All!$A$5:$FS$205,((3*($E$13-1)+$C$4)+($D$8)))/1000*365.25 -> 0 | G147: =VLOOKUP($D147,Point_Sources_All!$A$5:$FS$205,((3*($E$14-1)+$C$4)+($D$8)))/1000*365.25 -> 1.388540487e-06 | H147: =VLOOKUP($D147,Point_Sources_All!$A$5:$FS$205,((3*($E$15-1)+$C$4)+($D$8)))/1000*365.25 -> 1.140867506e-05 | I147: =VLOOKUP($D147,Point_Sources_All!$A$5:$FS$205,((3*($E$16-1)+$C$4)+($D$8)))/1000*365.25 -> 1.700960119e-07 | J147: =VLOOKUP($D147,Point_Sources_All!$A$5:$FS$205,((3*($E$17-1)+$C$4)+($D$8)))/1000*365.25 -> 5.686181562e-06 | K147: =VLOOKUP($D147,Point_Sources_All!$A$5:$FS$205,((3*($E$18-1)+$C$4)+($D$8)))/1000*365.25 -> 0 | L147: =VLOOKUP($D147,Point_Sources_All!$A$5:$FS$205,((3*($E$19-1)+$C$4)+($D$8)))/1000*365.25 -> 0 | M147: =VLOOKUP($D147,Point_Sources_All!$A$5:$FS$205,((3*($E$20-1)+$C$4)+($D$8)))/1000*365.25 -> 1.042313925e-05 | N147: =VLOOKUP($D147,Point_Sources_All!$A$5:$FS$205,((3*($E$21-1)+$C$4)+($D$8)))/1000*365.25 -> 2.311186338e-06 | O147: =VLOOKUP($D147,Point_Sources_All!$A$5:$FS$205,((3*($E$22-1)+$C$4)+($D$8)))/1000*365.25 -> 5.542760062e-06 | P147: =VLOOKUP($D147,Point_Sources_All!$A$5:$FS$205,((3*($E$23-1)+$C$4)+($D$8)))/1000*365.25 -> 0 | Q147: =VLOOKUP($D147,Point_Sources_All!$A$5:$FS$205,((3*($E$24-1)+$C$4)+($D$8)))/1000*365.25 -> 6.772008937e-08 | R147: =VLOOKUP($D147,Point_Sources_All!$A$5:$FS$205,((3*($E$25-1)+$C$4)+($D$8)))/1000*365.25 -> 0
D148: 120 | E148: =VLOOKUP($D148,Point_Sources_All!$A$5:$FS$205,((3*($E$12-1)+$C$4)+($D$8)))/1000*365.25 -> 0.0001132704169 | F148: =VLOOKUP($D148,Point_Sources_All!$A$5:$FS$205,((3*($E$13-1)+$C$4)+($D$8)))/1000*365.25 -> 0 | G148: =VLOOKUP($D148,Point_Sources_All!$A$5:$FS$205,((3*($E$14-1)+$C$4)+($D$8)))/1000*365.25 -> 1.380264531e-06 | H148: =VLOOKUP($D148,Point_Sources_All!$A$5:$FS$205,((3*($E$15-1)+$C$4)+($D$8)))/1000*365.25 -> 1.142015e-05 | I148: =VLOOKUP($D148,Point_Sources_All!$A$5:$FS$205,((3*($E$16-1)+$C$4)+($D$8)))/1000*365.25 -> 1.689652588e-07 | J148: =VLOOKUP($D148,Point_Sources_All!$A$5:$FS$205,((3*($E$17-1)+$C$4)+($D$8)))/1000*365.25 -> 5.69193425e-06 | K148: =VLOOKUP($D148,Point_Sources_All!$A$5:$FS$205,((3*($E$18-1)+$C$4)+($D$8)))/1000*365.25 -> 0 | L148: =VLOOKUP($D148,Point_Sources_All!$A$5:$FS$205,((3*($E$19-1)+$C$4)+($D$8)))/1000*365.25 -> 0 | M148: =VLOOKUP($D148,Point_Sources_All!$A$5:$FS$205,((3*($E$20-1)+$C$4)+($D$8)))/1000*365.25 -> 1.043357931e-05 | N148: =VLOOKUP($D148,Point_Sources_All!$A$5:$FS$205,((3*($E$21-1)+$C$4)+($D$8)))/1000*365.25 -> 2.315770225e-06 | O148: =VLOOKUP($D148,Point_Sources_All!$A$5:$FS$205,((3*($E$22-1)+$C$4)+($D$8)))/1000*365.25 -> 5.592251438e-06 | P148: =VLOOKUP($D148,Point_Sources_All!$A$5:$FS$205,((3*($E$23-1)+$C$4)+($D$8)))/1000*365.25 -> 0 | Q148: =VLOOKUP($D148,Point_Sources_All!$A$5:$FS$205,((3*($E$24-1)+$C$4)+($D$8)))/1000*365.25 -> 6.234969687e-08 | R148: =VLOOKUP($D148,Point_Sources_All!$A$5:$FS$205,((3*($E$25-1)+$C$4)+($D$8)))/1000*365.25 -> 0
D149: 121 | E149: =VLOOKUP($D149,Point_Sources_All!$A$5:$FS$205,((3*($E$12-1)+$C$4)+($D$8)))/1000*365.25 -> 0.0001132695038 | F149: =VLOOKUP($D149,Point_Sources_All!$A$5:$FS$205,((3*($E$13-1)+$C$4)+($D$8)))/1000*365.25 -> 0 | G149: =VLOOKUP($D149,Point_Sources_All!$A$5:$FS$205,((3*($E$14-1)+$C$4)+($D$8)))/1000*365.25 -> 1.373747863e-06 | H149: =VLOOKUP($D149,Point_Sources_All!$A$5:$FS$205,((3*($E$15-1)+$C$4)+($D$8)))/1000*365.25 -> 1.151158425e-05 | I149: =VLOOKUP($D149,Point_Sources_All!$A$5:$FS$205,((3*($E$16-1)+$C$4)+($D$8)))/1000*365.25 -> 1.689771294e-07 | J149: =VLOOKUP($D149,Point_Sources_All!$A$5:$FS$205,((3*($E$17-1)+$C$4)+($D$8)))/1000*365.25 -> 5.737499187e-06 | K149: =VLOOKUP($D149,Point_Sources_All!$A$5:$FS$205,((3*($E$18-1)+$C$4)+($D$8)))/1000*365.25 -> 0 | L149: =VLOOKUP($D149,Point_Sources_All!$A$5:$FS$205,((3*($E$19-1)+$C$4)+($D$8)))/1000*365.25 -> 0 | M149: =VLOOKUP($D149,Point_Sources_All!$A$5:$FS$205,((3*($E$20-1)+$C$4)+($D$8)))/1000*365.25 -> 1.0517252e-05 | N149: =VLOOKUP($D149,Point_Sources_All!$A$5:$FS$205,((3*($E$21-1)+$C$4)+($D$8)))/1000*365.25 -> 2.342168669e-06 | O149: =VLOOKUP($D149,Point_Sources_All!$A$5:$FS$205,((3*($E$22-1)+$C$4)+($D$8)))/1000*365.25 -> 5.575845625e-06 | P149: =VLOOKUP($D149,Point_Sources_All!$A$5:$FS$205,((3*($E$23-1)+$C$4)+($D$8)))/1000*365.25 -> 0 | Q149: =VLOOKUP($D149,Point_Sources_All!$A$5:$FS$205,((3*($E$24-1)+$C$4)+($D$8)))/1000*365.25 -> 6.009549562e-08 | R149: =VLOOKUP($D149,Point_Sources_All!$A$5:$FS$205,((3*($E$25-1)+$C$4)+($D$8)))/1000*365.25 -> 0
D150: 122 | E150: =VLOOKUP($D150,Point_Sources_All!$A$5:$FS$205,((3*($E$12-1)+$C$4)+($D$8)))/1000*365.25 -> 0.0001132661556 | F150: =VLOOKUP($D150,Point_Sources_All!$A$5:$FS$205,((3*($E$13-1)+$C$4)+($D$8)))/1000*365.25 -> 0 | G150: =VLOOKUP($D150,Point_Sources_All!$A$5:$FS$205,((3*($E$14-1)+$C$4)+($D$8)))/1000*365.25 -> 1.378541769e-06 | H150: =VLOOKUP($D150,Point_Sources_All!$A$5:$FS$205,((3*($E$15-1)+$C$4)+($D$8)))/1000*365.25 -> 1.161157144e-05 | I150: =VLOOKUP($D150,Point_Sources_All!$A$5:$FS$205,((3*($E$16-1)+$C$4)+($D$8)))/1000*365.25 -> 1.685226975e-07 | J150: =VLOOKUP($D150,Point_Sources_All!$A$5:$FS$205,((3*($E$17-1)+$C$4)+($D$8)))/1000*365.25 -> 5.787325375e-06 | K150: =VLOOKUP($D150,Point_Sources_All!$A$5:$FS$205,((3*($E$18-1)+$C$4)+($D$8)))/1000*365.25 -> 0 | L150: =VLOOKUP($D150,Point_Sources_All!$A$5:$FS$205,((3*($E$19-1)+$C$4)+($D$8)))/1000*365.25 -> 0 | M150: =VLOOKUP($D150,Point_Sources_All!$A$5:$FS$205,((3*($E$20-1)+$C$4)+($D$8)))/1000*365.25 -> 1.060850362e-05 | N150: =VLOOKUP($D150,Point_Sources_All!$A$5:$FS$205,((3*($E$21-1)+$C$4)+($D$8)))/1000*365.25 -> 2.32208905e-06 | O150: =VLOOKUP($D150,Point_Sources_All!$A$5:$FS$205,((3*($E$22-1)+$C$4)+($D$8)))/1000*365.25 -> 5.6017175e-06 | P150: =VLOOKUP($D150,Point_Sources_All!$A$5:$FS$205,((3*($E$23-1)+$C$4)+($D$8)))/1000*365.25 -> 0 | Q150: =VLOOKUP($D150,Point_Sources_All!$A$5:$FS$205,((3*($E$24-1)+$C$4)+($D$8)))/1000*365.25 -> 6.89969425e-08 | R150: =VLOOKUP($D150,Point_Sources_All!$A$5:$FS$205,((3*($E$25-1)+$C$4)+($D$8)))/1000*365.25 -> 0
D151: 123 | E151: =VLOOKUP($D151,Point_Sources_All!$A$5:$FS$205,((3*($E$12-1)+$C$4)+($D$8)))/1000*365.25 -> 0.00011326646 | F151: =VLOOKUP($D151,Point_Sources_All!$A$5:$FS$205,((3*($E$13-1)+$C$4)+($D$8)))/1000*365.25 -> 0 | G151: =VLOOKUP($D151,Point_Sources_All!$A$5:$FS$205,((3*($E$14-1)+$C$4)+($D$8)))/1000*365.25 -> 1.374481406e-06 | H151: =VLOOKUP($D151,Point_Sources_All!$A$5:$FS$205,((3*($E$15-1)+$C$4)+($D$8)))/1000*365.25 -> 1.172799488e-05 | I151: =VLOOKUP($D151,Point_Sources_All!$A$5:$FS$205,((3*($E$16-1)+$C$4)+($D$8)))/1000*365.25 -> 1.684953037e-07 | J151: =VLOOKUP($D151,Point_Sources_All!$A$5:$FS$205,((3*($E$17-1)+$C$4)+($D$8)))/1000*365.25 -> 5.84533925e-06 | K151: =VLOOKUP($D151,Point_Sources_All!$A$5:$FS$205,((3*($E$18-1)+$C$4)+($D$8)))/1000*365.25 -> 0 | L151: =VLOOKUP($D151,Point_Sources_All!$A$5:$FS$205,((3*($E$19-1)+$C$4)+($D$8)))/1000*365.25 -> 0 | M151: =VLOOKUP($D151,Point_Sources_All!$A$5:$FS$205,((3*($E$20-1)+$C$4)+($D$8)))/1000*365.25 -> 1.071491313e-05 | N151: =VLOOKUP($D151,Point_Sources_All!$A$5:$FS$205,((3*($E$21-1)+$C$4)+($D$8)))/1000*365.25 -> 2.313262175e-06 | O151: =VLOOKUP($D151,Point_Sources_All!$A$5:$FS$205,((3*($E$22-1)+$C$4)+($D$8)))/1000*365.25 -> 5.583394125e-06 | P151: =VLOOKUP($D151,Point_Sources_All!$A$5:$FS$205,((3*($E$23-1)+$C$4)+($D$8)))/1000*365.25 -> 0 | Q151: =VLOOKUP($D151,Point_Sources_All!$A$5:$FS$205,((3*($E$24-1)+$C$4)+($D$8)))/1000*365.25 -> 5.431571875e-08 | R151: =VLOOKUP($D151,Point_Sources_All!$A$5:$FS$205,((3*($E$25-1)+$C$4)+($D$8)))/1000*365.25 -> 0
D152: 124 | E152: =VLOOKUP($D152,Point_Sources_All!$A$5:$FS$205,((3*($E$12-1)+$C$4)+($D$8)))/1000*365.25 -> 0.0001132655469 | F152: =VLOOKUP($D152,Point_Sources_All!$A$5:$FS$205,((3*($E$13-1)+$C$4)+($D$8)))/1000*365.25 -> 0 | G152: =VLOOKUP($D152,Point_Sources_All!$A$5:$FS$205,((3*($E$14-1)+$C$4)+($D$8)))/1000*365.25 -> 1.376965106e-06 | H152: =VLOOKUP($D152,Point_Sources_All!$A$5:$FS$205,((3*($E$15-1)+$C$4)+($D$8)))/1000*365.25 -> 1.174723137e-05 | I152: =VLOOKUP($D152,Point_Sources_All!$A$5:$FS$205,((3*($E$16-1)+$C$4)+($D$8)))/1000*365.25 -> 1.672902831e-07 | J152: =VLOOKUP($D152,Point_Sources_All!$A$5:$FS$205,((3*($E$17-1)+$C$4)+($D$8)))/1000*365.25 -> 5.854896625e-06 | K152: =VLOOKUP($D152,Point_Sources_All!$A$5:$FS$205,((3*($E$18-1)+$C$4)+($D$8)))/1000*365.25 -> 0 | L152: =VLOOKUP($D152,Point_Sources_All!$A$5:$FS$205,((3*($E$19-1)+$C$4)+($D$8)))/1000*365.25 -> 0 | M152: =VLOOKUP($D152,Point_Sources_All!$A$5:$FS$205,((3*($E$20-1)+$C$4)+($D$8)))/1000*365.25 -> 1.073244513e-05 | N152: =VLOOKUP($D152,Point_Sources_All!$A$5:$FS$205,((3*($E$21-1)+$C$4)+($D$8)))/1000*365.25 -> 2.340722888e-06 | O152: =VLOOKUP($D152,Point_Sources_All!$A$5:$FS$205,((3*($E$22-1)+$C$4)+($D$8)))/1000*365.25 -> 5.523523563e-06 | P152: =VLOOKUP($D152,Point_Sources_All!$A$5:$FS$205,((3*($E$23-1)+$C$4)+($D$8)))/1000*365.25 -> 0 | Q152: =VLOOKUP($D152,Point_Sources_All!$A$5:$FS$205,((3*($E$24-1)+$C$4)+($D$8)))/1000*365.25 -> 6.919783e-08 | R152: =VLOOKUP($D152,Point_Sources_All!$A$5:$FS$205,((3*($E$25-1)+$C$4)+($D$8)))/1000*365.25 -> 0
D153: 125 | E153: =VLOOKUP($D153,Point_Sources_All!$A$5:$FS$205,((3*($E$12-1)+$C$4)+($D$8)))/1000*365.25 -> 0.000113264025 | F153: =VLOOKUP($D153,Point_Sources_All!$A$5:$FS$205,((3*($E$13-1)+$C$4)+($D$8)))/1000*365.25 -> 0 | G153: =VLOOKUP($D153,Point_Sources_All!$A$5:$FS$205,((3*($E$14-1)+$C$4)+($D$8)))/1000*365.25 -> 1.363201269e-06 | H153: =VLOOKUP($D153,Point_Sources_All!$A$5:$FS$205,((3*($E$15-1)+$C$4)+($D$8)))/1000*365.25 -> 1.169381356e-05 | I153: =VLOOKUP($D153,Point_Sources_All!$A$5:$FS$205,((3*($E$16-1)+$C$4)+($D$8)))/1000*365.25 -> 1.665762194e-07 | J153: =VLOOKUP($D153,Point_Sources_All!$A$5:$FS$205,((3*($E$17-1)+$C$4)+($D$8)))/1000*365.25 -> 5.82829425e-06 | K153: =VLOOKUP($D153,Point_Sources_All!$A$5:$FS$205,((3*($E$18-1)+$C$4)+($D$8)))/1000*365.25 -> 0 | L153: =VLOOKUP($D153,Point_Sources_All!$A$5:$FS$205,((3*($E$19-1)+$C$4)+($D$8)))/1000*365.25 -> 0 | M153: =VLOOKUP($D153,Point_Sources_All!$A$5:$FS$205,((3*($E$20-1)+$C$4)+($D$8)))/1000*365.25 -> 1.068371469e-05 | N153: =VLOOKUP($D153,Point_Sources_All!$A$5:$FS$205,((3*($E$21-1)+$C$4)+($D$8)))/1000*365.25 -> 2.367386137e-06 | O153: =VLOOKUP($D153,Point_Sources_All!$A$5:$FS$205,((3*($E$22-1)+$C$4)+($D$8)))/1000*365.25 -> 5.590973062e-06 | P153: =VLOOKUP($D153,Point_Sources_All!$A$5:$FS$205,((3*($E$23-1)+$C$4)+($D$8)))/1000*365.25 -> 0 | Q153: =VLOOKUP($D153,Point_Sources_All!$A$5:$FS$205,((3*($E$24-1)+$C$4)+($D$8)))/1000*365.25 -> 6.309511125e-08 | R153: =VLOOKUP($D153,Point_Sources_All!$A$5:$FS$205,((3*($E$25-1)+$C$4)+($D$8)))/1000*365.25 -> 0
D154: 126 | E154: =VLOOKUP($D154,Point_Sources_All!$A$5:$FS$205,((3*($E$12-1)+$C$4)+($D$8)))/1000*365.25 -> 0.000113264025 | F154: =VLOOKUP($D154,Point_Sources_All!$A$5:$FS$205,((3*($E$13-1)+$C$4)+($D$8)))/1000*365.25 -> 0 | G154: =VLOOKUP($D154,Point_Sources_All!$A$5:$FS$205,((3*($E$14-1)+$C$4)+($D$8)))/1000*365.25 -> 1.338236431e-06 | H154: =VLOOKUP($D154,Point_Sources_All!$A$5:$FS$205,((3*($E$15-1)+$C$4)+($D$8)))/1000*365.25 -> 1.164706156e-05 | I154: =VLOOKUP($D154,Point_Sources_All!$A$5:$FS$205,((3*($E$16-1)+$C$4)+($D$8)))/1000*365.25 -> 1.650592144e-07 | J154: =VLOOKUP($D154,Point_Sources_All!$A$5:$FS$205,((3*($E$17-1)+$C$4)+($D$8)))/1000*365.25 -> 5.805009562e-06 | K154: =VLOOKUP($D154,Point_Sources_All!$A$5:$FS$205,((3*($E$18-1)+$C$4)+($D$8)))/1000*365.25 -> 0 | L154: =VLOOKUP($D154,Point_Sources_All!$A$5:$FS$205,((3*($E$19-1)+$C$4)+($D$8)))/1000*365.25 -> 0 | M154: =VLOOKUP($D154,Point_Sources_All!$A$5:$FS$205,((3*($E$20-1)+$C$4)+($D$8)))/1000*365.25 -> 1.064098044e-05 | N154: =VLOOKUP($D154,Point_Sources_All!$A$5:$FS$205,((3*($E$21-1)+$C$4)+($D$8)))/1000*365.25 -> 2.368077069e-06 | O154: =VLOOKUP($D154,Point_Sources_All!$A$5:$FS$205,((3*($E$22-1)+$C$4)+($D$8)))/1000*365.25 -> 5.624028187e-06 | P154: =VLOOKUP($D154,Point_Sources_All!$A$5:$FS$205,((3*($E$23-1)+$C$4)+($D$8)))/1000*365.25 -> 0 | Q154: =VLOOKUP($D154,Point_Sources_All!$A$5:$FS$205,((3*($E$24-1)+$C$4)+($D$8)))/1000*365.25 -> 5.926820438e-08 | R154: =VLOOKUP($D154,Point_Sources_All!$A$5:$FS$205,((3*($E$25-1)+$C$4)+($D$8)))/1000*365.25 -> 0
D155: 127 | E155: =VLOOKUP($D155,Point_Sources_All!$A$5:$FS$205,((3*($E$12-1)+$C$4)+($D$8)))/1000*365.25 -> 0.00011326646 | F155: =VLOOKUP($D155,Point_Sources_All!$A$5:$FS$205,((3*($E$13-1)+$C$4)+($D$8)))/1000*365.25 -> 0 | G155: =VLOOKUP($D155,Point_Sources_All!$A$5:$FS$205,((3*($E$14-1)+$C$4)+($D$8)))/1000*365.25 -> 1.321577988e-06 | H155: =VLOOKUP($D155,Point_Sources_All!$A$5:$FS$205,((3*($E$15-1)+$C$4)+($D$8)))/1000*365.25 -> 1.163044269e-05 | I155: =VLOOKUP($D155,Point_Sources_All!$A$5:$FS$205,((3*($E$16-1)+$C$4)+($D$8)))/1000*365.25 -> 1.661297013e-07 | J155: =VLOOKUP($D155,Point_Sources_All!$A$5:$FS$205,((3*($E$17-1)+$C$4)+($D$8)))/1000*365.25 -> 5.796700125e-06 | K155: =VLOOKUP($D155,Point_Sources_All!$A$5:$FS$205,((3*($E$18-1)+$C$4)+($D$8)))/1000*365.25 -> 0 | L155: =VLOOKUP($D155,Point_Sources_All!$A$5:$FS$205,((3*($E$19-1)+$C$4)+($D$8)))/1000*365.25 -> 0 | M155: =VLOOKUP($D155,Point_Sources_All!$A$5:$FS$205,((3*($E$20-1)+$C$4)+($D$8)))/1000*365.25 -> 1.062576169e-05 | N155: =VLOOKUP($D155,Point_Sources_All!$A$5:$FS$205,((3*($E$21-1)+$C$4)+($D$8)))/1000*365.25 -> 2.366351262e-06 | O155: =VLOOKUP($D155,Point_Sources_All!$A$5:$FS$205,((3*($E$22-1)+$C$4)+($D$8)))/1000*365.25 -> 5.59696925e-06 | P155: =VLOOKUP($D155,Point_Sources_All!$A$5:$FS$205,((3*($E$23-1)+$C$4)+($D$8)))/1000*365.25 -> 0 | Q155: =VLOOKUP($D155,Point_Sources_All!$A$5:$FS$205,((3*($E$24-1)+$C$4)+($D$8)))/1000*365.25 -> 6.292709625e-08 | R155: =VLOOKUP($D155,Point_Sources_All!$A$5:$FS$205,((3*($E$25-1)+$C$4)+($D$8)))/1000*365.25 -> 0
D156: 128 | E156: =VLOOKUP($D156,Point_Sources_All!$A$5:$FS$205,((3*($E$12-1)+$C$4)+($D$8)))/1000*365.25 -> 0.0001132676775 | F156: =VLOOKUP($D156,Point_Sources_All!$A$5:$FS$205,((3*($E$13-1)+$C$4)+($D$8)))/1000*365.25 -> 0 | G156: =VLOOKUP($D156,Point_Sources_All!$A$5:$FS$205,((3*($E$14-1)+$C$4)+($D$8)))/1000*365.25 -> 1.326837587e-06 | H156: =VLOOKUP($D156,Point_Sources_All!$A$5:$FS$205,((3*($E$15-1)+$C$4)+($D$8)))/1000*365.25 -> 1.166669375e-05 | I156: =VLOOKUP($D156,Point_Sources_All!$A$5:$FS$205,((3*($E$16-1)+$C$4)+($D$8)))/1000*365.25 -> 1.699998294e-07 | J156: =VLOOKUP($D156,Point_Sources_All!$A$5:$FS$205,((3*($E$17-1)+$C$4)+($D$8)))/1000*365.25 -> 5.81478e-06 | K156: =VLOOKUP($D156,Point_Sources_All!$A$5:$FS$205,((3*($E$18-1)+$C$4)+($D$8)))/1000*365.25 -> 0 | L156: =VLOOKUP($D156,Point_Sources_All!$A$5:$FS$205,((3*($E$19-1)+$C$4)+($D$8)))/1000*365.25 -> 0 | M156: =VLOOKUP($D156,Point_Sources_All!$A$5:$FS$205,((3*($E$20-1)+$C$4)+($D$8)))/1000*365.25 -> 1.065884725e-05 | N156: =VLOOKUP($D156,Point_Sources_All!$A$5:$FS$205,((3*($E$21-1)+$C$4)+($D$8)))/1000*365.25 -> 2.327649981e-06 | O156: =VLOOKUP($D156,Point_Sources_All!$A$5:$FS$205,((3*($E$22-1)+$C$4)+($D$8)))/1000*365.25 -> 5.645791e-06 | P156: =VLOOKUP($D156,Point_Sources_All!$A$5:$FS$205,((3*($E$23-1)+$C$4)+($D$8)))/1000*365.25 -> 0 | Q156: =VLOOKUP($D156,Point_Sources_All!$A$5:$FS$205,((3*($E$24-1)+$C$4)+($D$8)))/1000*365.25 -> 5.591551375e-08 | R156: =VLOOKUP($D156,Point_Sources_All!$A$5:$FS$205,((3*($E$25-1)+$C$4)+($D$8)))/1000*365.25 -> 0
D157: 129 | E157: =VLOOKUP($D157,Point_Sources_All!$A$5:$FS$205,((3*($E$12-1)+$C$4)+($D$8)))/1000*365.25 -> 0.0001132676775 | F157: =VLOOKUP($D157,Point_Sources_All!$A$5:$FS$205,((3*($E$13-1)+$C$4)+($D$8)))/1000*365.25 -> 0 | G157: =VLOOKUP($D157,Point_Sources_All!$A$5:$FS$205,((3*($E$14-1)+$C$4)+($D$8)))/1000*365.25 -> 1.341134081e-06 | H157: =VLOOKUP($D157,Point_Sources_All!$A$5:$FS$205,((3*($E$15-1)+$C$4)+($D$8)))/1000*365.25 -> 1.161896775e-05 | I157: =VLOOKUP($D157,Point_Sources_All!$A$5:$FS$205,((3*($E$16-1)+$C$4)+($D$8)))/1000*365.25 -> 1.6895004e-07 | J157: =VLOOKUP($D157,Point_Sources_All!$A$5:$FS$205,((3*($E$17-1)+$C$4)+($D$8)))/1000*365.25 -> 5.790947437e-06 | K157: =VLOOKUP($D157,Point_Sources_All!$A$5:$FS$205,((3*($E$18-1)+$C$4)+($D$8)))/1000*365.25 -> 0 | L157: =VLOOKUP($D157,Point_Sources_All!$A$5:$FS$205,((3*($E$19-1)+$C$4)+($D$8)))/1000*365.25 -> 0 | M157: =VLOOKUP($D157,Point_Sources_All!$A$5:$FS$205,((3*($E$20-1)+$C$4)+($D$8)))/1000*365.25 -> 1.061529119e-05 | N157: =VLOOKUP($D157,Point_Sources_All!$A$5:$FS$205,((3*($E$21-1)+$C$4)+($D$8)))/1000*365.25 -> 2.274025194e-06 | O157: =VLOOKUP($D157,Point_Sources_All!$A$5:$FS$205,((3*($E$22-1)+$C$4)+($D$8)))/1000*365.25 -> 5.607500625e-06 | P157: =VLOOKUP($D157,Point_Sources_All!$A$5:$FS$205,((3*($E$23-1)+$C$4)+($D$8)))/1000*365.25 -> 0 | Q157: =VLOOKUP($D157,Point_Sources_All!$A$5:$FS$205,((3*($E$24-1)+$C$4)+($D$8)))/1000*365.25 -> 6.596506312e-08 | R157: =VLOOKUP($D157,Point_Sources_All!$A$5:$FS$205,((3*($E$25-1)+$C$4)+($D$8)))/1000*365.25 -> 0
D158: 130 | E158: =VLOOKUP($D158,Point_Sources_All!$A$5:$FS$205,((3*($E$12-1)+$C$4)+($D$8)))/1000*365.25 -> 0.0001132682863 | F158: =VLOOKUP($D158,Point_Sources_All!$A$5:$FS$205,((3*($E$13-1)+$C$4)+($D$8)))/1000*365.25 -> 0 | G158: =VLOOKUP($D158,Point_Sources_All!$A$5:$FS$205,((3*($E$14-1)+$C$4)+($D$8)))/1000*365.25 -> 1.335147025e-06 | H158: =VLOOKUP($D158,Point_Sources_All!$A$5:$FS$205,((3*($E$15-1)+$C$4)+($D$8)))/1000*365.25 -> 1.142295025e-05 | I158: =VLOOKUP($D158,Point_Sources_All!$A$5:$FS$205,((3*($E$16-1)+$C$4)+($D$8)))/1000*365.25 -> 1.692468056e-07 | J158: =VLOOKUP($D158,Point_Sources_All!$A$5:$FS$205,((3*($E$17-1)+$C$4)+($D$8)))/1000*365.25 -> 5.693303938e-06 | K158: =VLOOKUP($D158,Point_Sources_All!$A$5:$FS$205,((3*($E$18-1)+$C$4)+($D$8)))/1000*365.25 -> 0 | L158: =VLOOKUP($D158,Point_Sources_All!$A$5:$FS$205,((3*($E$19-1)+$C$4)+($D$8)))/1000*365.25 -> 0 | M158: =VLOOKUP($D158,Point_Sources_All!$A$5:$FS$205,((3*($E$20-1)+$C$4)+($D$8)))/1000*365.25 -> 1.04361665e-05 | N158: =VLOOKUP($D158,Point_Sources_All!$A$5:$FS$205,((3*($E$21-1)+$C$4)+($D$8)))/1000*365.25 -> 2.252998969e-06 | O158: =VLOOKUP($D158,Point_Sources_All!$A$5:$FS$205,((3*($E$22-1)+$C$4)+($D$8)))/1000*365.25 -> 5.601413125e-06 | P158: =VLOOKUP($D158,Point_Sources_All!$A$5:$FS$205,((3*($E$23-1)+$C$4)+($D$8)))/1000*365.25 -> 0 | Q158: =VLOOKUP($D158,Point_Sources_All!$A$5:$FS$205,((3*($E$24-1)+$C$4)+($D$8)))/1000*365.25 -> 6.064032688e-08 | R158: =VLOOKUP($D158,Point_Sources_All!$A$5:$FS$205,((3*($E$25-1)+$C$4)+($D$8)))/1000*365.25 -> 0
D159: 131 | E159: =VLOOKUP($D159,Point_Sources_All!$A$5:$FS$205,((3*($E$12-1)+$C$4)+($D$8)))/1000*365.25 -> 0.0001132676775 | F159: =VLOOKUP($D159,Point_Sources_All!$A$5:$FS$205,((3*($E$13-1)+$C$4)+($D$8)))/1000*365.25 -> 0 | G159: =VLOOKUP($D159,Point_Sources_All!$A$5:$FS$205,((3*($E$14-1)+$C$4)+($D$8)))/1000*365.25 -> 1.340869275e-06 | H159: =VLOOKUP($D159,Point_Sources_All!$A$5:$FS$205,((3*($E$15-1)+$C$4)+($D$8)))/1000*365.25 -> 1.136015769e-05 | I159: =VLOOKUP($D159,Point_Sources_All!$A$5:$FS$205,((3*($E$16-1)+$C$4)+($D$8)))/1000*365.25 -> 1.704926125e-07 | J159: =VLOOKUP($D159,Point_Sources_All!$A$5:$FS$205,((3*($E$17-1)+$C$4)+($D$8)))/1000*365.25 -> 5.66198375e-06 | K159: =VLOOKUP($D159,Point_Sources_All!$A$5:$FS$205,((3*($E$18-1)+$C$4)+($D$8)))/1000*365.25 -> 0 | L159: =VLOOKUP($D159,Point_Sources_All!$A$5:$FS$205,((3*($E$19-1)+$C$4)+($D$8)))/1000*365.25 -> 0 | M159: =VLOOKUP($D159,Point_Sources_All!$A$5:$FS$205,((3*($E$20-1)+$C$4)+($D$8)))/1000*365.25 -> 1.037885269e-05 | N159: =VLOOKUP($D159,Point_Sources_All!$A$5:$FS$205,((3*($E$21-1)+$C$4)+($D$8)))/1000*365.25 -> 2.254861744e-06 | O159: =VLOOKUP($D159,Point_Sources_All!$A$5:$FS$205,((3*($E$22-1)+$C$4)+($D$8)))/1000*365.25 -> 5.627558937e-06 | P159: =VLOOKUP($D159,Point_Sources_All!$A$5:$FS$205,((3*($E$23-1)+$C$4)+($D$8)))/1000*365.25 -> 0 | Q159: =VLOOKUP($D159,Point_Sources_All!$A$5:$FS$205,((3*($E$24-1)+$C$4)+($D$8)))/1000*365.25 -> 6.846428625e-08 | R159: =VLOOKUP($D159,Point_Sources_All!$A$5:$FS$205,((3*($E$25-1)+$C$4)+($D$8)))/1000*365.25 -> 0
D160: 132 | E160: =VLOOKUP($D160,Point_Sources_All!$A$5:$FS$205,((3*($E$12-1)+$C$4)+($D$8)))/1000*365.25 -> 0.0001132679819 | F160: =VLOOKUP($D160,Point_Sources_All!$A$5:$FS$205,((3*($E$13-1)+$C$4)+($D$8)))/1000*365.25 -> 0 | G160: =VLOOKUP($D160,Point_Sources_All!$A$5:$FS$205,((3*($E$14-1)+$C$4)+($D$8)))/1000*365.25 -> 1.324448244e-06 | H160: =VLOOKUP($D160,Point_Sources_All!$A$5:$FS$205,((3*($E$15-1)+$C$4)+($D$8)))/1000*365.25 -> 1.138700356e-05 | I160: =VLOOKUP($D160,Point_Sources_All!$A$5:$FS$205,((3*($E$16-1)+$C$4)+($D$8)))/1000*365.25 -> 1.686137056e-07 | J160: =VLOOKUP($D160,Point_Sources_All!$A$5:$FS$205,((3*($E$17-1)+$C$4)+($D$8)))/1000*365.25 -> 5.675437125e-06 | K160: =VLOOKUP($D160,Point_Sources_All!$A$5:$FS$205,((3*($E$18-1)+$C$4)+($D$8)))/1000*365.25 -> 0 | L160: =VLOOKUP($D160,Point_Sources_All!$A$5:$FS$205,((3*($E$19-1)+$C$4)+($D$8)))/1000*365.25 -> 0 | M160: =VLOOKUP($D160,Point_Sources_All!$A$5:$FS$205,((3*($E$20-1)+$C$4)+($D$8)))/1000*365.25 -> 1.040338531e-05 | N160: =VLOOKUP($D160,Point_Sources_All!$A$5:$FS$205,((3*($E$21-1)+$C$4)+($D$8)))/1000*365.25 -> 2.297863844e-06 | O160: =VLOOKUP($D160,Point_Sources_All!$A$5:$FS$205,((3*($E$22-1)+$C$4)+($D$8)))/1000*365.25 -> 5.610179125e-06 | P160: =VLOOKUP($D160,Point_Sources_All!$A$5:$FS$205,((3*($E$23-1)+$C$4)+($D$8)))/1000*365.25 -> 0 | Q160: =VLOOKUP($D160,Point_Sources_All!$A$5:$FS$205,((3*($E$24-1)+$C$4)+($D$8)))/1000*365.25 -> 6.352945438e-08 | R160: =VLOOKUP($D160,Point_Sources_All!$A$5:$FS$205,((3*($E$25-1)+$C$4)+($D$8)))/1000*365.25 -> 0
D161: 133 | E161: =VLOOKUP($D161,Point_Sources_All!$A$5:$FS$205,((3*($E$12-1)+$C$4)+($D$8)))/1000*365.25 -> 0.0001132679819 | F161: =VLOOKUP($D161,Point_Sources_All!$A$5:$FS$205,((3*($E$13-1)+$C$4)+($D$8)))/1000*365.25 -> 0 | G161: =VLOOKUP($D161,Point_Sources_All!$A$5:$FS$205,((3*($E$14-1)+$C$4)+($D$8)))/1000*365.25 -> 1.314586494e-06 | H161: =VLOOKUP($D161,Point_Sources_All!$A$5:$FS$205,((3*($E$15-1)+$C$4)+($D$8)))/1000*365.25 -> 1.15411695e-05 | I161: =VLOOKUP($D161,Point_Sources_All!$A$5:$FS$205,((3*($E$16-1)+$C$4)+($D$8)))/1000*365.25 -> 1.699633044e-07 | J161: =VLOOKUP($D161,Point_Sources_All!$A$5:$FS$205,((3*($E$17-1)+$C$4)+($D$8)))/1000*365.25 -> 5.752261375e-06 | K161: =VLOOKUP($D161,Point_Sources_All!$A$5:$FS$205,((3*($E$18-1)+$C$4)+($D$8)))/1000*365.25 -> 0 | L161: =VLOOKUP($D161,Point_Sources_All!$A$5:$FS$205,((3*($E$19-1)+$C$4)+($D$8)))/1000*365.25 -> 0 | M161: =VLOOKUP($D161,Point_Sources_All!$A$5:$FS$205,((3*($E$20-1)+$C$4)+($D$8)))/1000*365.25 -> 1.05442805e-05 | N161: =VLOOKUP($D161,Point_Sources_All!$A$5:$FS$205,((3*($E$21-1)+$C$4)+($D$8)))/1000*365.25 -> 2.290984969e-06 | O161: =VLOOKUP($D161,Point_Sources_All!$A$5:$FS$205,((3*($E$22-1)+$C$4)+($D$8)))/1000*365.25 -> 5.57943725e-06 | P161: =VLOOKUP($D161,Point_Sources_All!$A$5:$FS$205,((3*($E$23-1)+$C$4)+($D$8)))/1000*365.25 -> 0 | Q161: =VLOOKUP($D161,Point_Sources_All!$A$5:$FS$205,((3*($E$24-1)+$C$4)+($D$8)))/1000*365.25 -> 6.266137687e-08 | R161: =VLOOKUP($D161,Point_Sources_All!$A$5:$FS$205,((3*($E$25-1)+$C$4)+($D$8)))/1000*365.25 -> 0
D162: 134 | E162: =VLOOKUP($D162,Point_Sources_All!$A$5:$FS$205,((3*($E$12-1)+$C$4)+($D$8)))/1000*365.25 -> 0.0001132679819 | F162: =VLOOKUP($D162,Point_Sources_All!$A$5:$FS$205,((3*($E$13-1)+$C$4)+($D$8)))/1000*365.25 -> 0 | G162: =VLOOKUP($D162,Point_Sources_All!$A$5:$FS$205,((3*($E$14-1)+$C$4)+($D$8)))/1000*365.25 -> 1.310583963e-06 | H162: =VLOOKUP($D162,Point_Sources_All!$A$5:$FS$205,((3*($E$15-1)+$C$4)+($D$8)))/1000*365.25 -> 1.1650988e-05 | I162: =VLOOKUP($D162,Point_Sources_All!$A$5:$FS$205,((3*($E$16-1)+$C$4)+($D$8)))/1000*365.25 -> 1.685309156e-07 | J162: =VLOOKUP($D162,Point_Sources_All!$A$5:$FS$205,((3*($E$17-1)+$C$4)+($D$8)))/1000*365.25 -> 5.806927125e-06 | K162: =VLOOKUP($D162,Point_Sources_All!$A$5:$FS$205,((3*($E$18-1)+$C$4)+($D$8)))/1000*365.25 -> 0 | L162: =VLOOKUP($D162,Point_Sources_All!$A$5:$FS$205,((3*($E$19-1)+$C$4)+($D$8)))/1000*365.25 -> 0 | M162: =VLOOKUP($D162,Point_Sources_All!$A$5:$FS$205,((3*($E$20-1)+$C$4)+($D$8)))/1000*365.25 -> 1.064448075e-05 | N162: =VLOOKUP($D162,Point_Sources_All!$A$5:$FS$205,((3*($E$21-1)+$C$4)+($D$8)))/1000*365.25 -> 2.297188131e-06 | O162: =VLOOKUP($D162,Point_Sources_All!$A$5:$FS$205,((3*($E$22-1)+$C$4)+($D$8)))/1000*365.25 -> 5.62740675e-06 | P162: =VLOOKUP($D162,Point_Sources_All!$A$5:$FS$205,((3*($E$23-1)+$C$4)+($D$8)))/1000*365.25 -> 0 | Q162: =VLOOKUP($D162,Point_Sources_All!$A$5:$FS$205,((3*($E$24-1)+$C$4)+($D$8)))/1000*365.25 -> 7.120883562e-08 | R162: =VLOOKUP($D162,Point_Sources_All!$A$5:$FS$205,((3*($E$25-1)+$C$4)+($D$8)))/1000*365.25 -> 0
D163: 135 | E163: =VLOOKUP($D163,Point_Sources_All!$A$5:$FS$205,((3*($E$12-1)+$C$4)+($D$8)))/1000*365.25 -> 0.000113264025 | F163: =VLOOKUP($D163,Point_Sources_All!$A$5:$FS$205,((3*($E$13-1)+$C$4)+($D$8)))/1000*365.25 -> 0 | G163: =VLOOKUP($D163,Point_Sources_All!$A$5:$FS$205,((3*($E$14-1)+$C$4)+($D$8)))/1000*365.25 -> 1.309165575e-06 | H163: =VLOOKUP($D163,Point_Sources_All!$A$5:$FS$205,((3*($E$15-1)+$C$4)+($D$8)))/1000*365.25 -> 1.176938987e-05 | I163: =VLOOKUP($D163,Point_Sources_All!$A$5:$FS$205,((3*($E$16-1)+$C$4)+($D$8)))/1000*365.25 -> 1.677967631e-07 | J163: =VLOOKUP($D163,Point_Sources_All!$A$5:$FS$205,((3*($E$17-1)+$C$4)+($D$8)))/1000*365.25 -> 5.866006312e-06 | K163: =VLOOKUP($D163,Point_Sources_All!$A$5:$FS$205,((3*($E$18-1)+$C$4)+($D$8)))/1000*365.25 -> 0 | L163: =VLOOKUP($D163,Point_Sources_All!$A$5:$FS$205,((3*($E$19-1)+$C$4)+($D$8)))/1000*365.25 -> 0 | M163: =VLOOKUP($D163,Point_Sources_All!$A$5:$FS$205,((3*($E$20-1)+$C$4)+($D$8)))/1000*365.25 -> 1.075268606e-05 | N163: =VLOOKUP($D163,Point_Sources_All!$A$5:$FS$205,((3*($E$21-1)+$C$4)+($D$8)))/1000*365.25 -> 2.304316594e-06 | O163: =VLOOKUP($D163,Point_Sources_All!$A$5:$FS$205,((3*($E$22-1)+$C$4)+($D$8)))/1000*365.25 -> 5.608748563e-06 | P163: =VLOOKUP($D163,Point_Sources_All!$A$5:$FS$205,((3*($E$23-1)+$C$4)+($D$8)))/1000*365.25 -> 0 | Q163: =VLOOKUP($D163,Point_Sources_All!$A$5:$FS$205,((3*($E$24-1)+$C$4)+($D$8)))/1000*365.25 -> 5.653856937e-08 | R163: =VLOOKUP($D163,Point_Sources_All!$A$5:$FS$205,((3*($E$25-1)+$C$4)+($D$8)))/1000*365.25 -> 0
D164: 136 | E164: =VLOOKUP($D164,Point_Sources_All!$A$5:$FS$205,((3*($E$12-1)+$C$4)+($D$8)))/1000*365.25 -> 0.0001132631119 | F164: =VLOOKUP($D164,Point_Sources_All!$A$5:$FS$205,((3*($E$13-1)+$C$4)+($D$8)))/1000*365.25 -> 0 | G164: =VLOOKUP($D164,Point_Sources_All!$A$5:$FS$205,((3*($E$14-1)+$C$4)+($D$8)))/1000*365.25 -> 1.301550112e-06 | H164: =VLOOKUP($D164,Point_Sources_All!$A$5:$FS$205,((3*($E$15-1)+$C$4)+($D$8)))/1000*365.25 -> 1.175261881e-05 | I164: =VLOOKUP($D164,Point_Sources_All!$A$5:$FS$205,((3*($E$16-1)+$C$4)+($D$8)))/1000*365.25 -> 1.693165075e-07 | J164: =VLOOKUP($D164,Point_Sources_All!$A$5:$FS$205,((3*($E$17-1)+$C$4)+($D$8)))/1000*365.25 -> 5.857575125e-06 | K164: =VLOOKUP($D164,Point_Sources_All!$A$5:$FS$205,((3*($E$18-1)+$C$4)+($D$8)))/1000*365.25 -> 0 | L164: =VLOOKUP($D164,Point_Sources_All!$A$5:$FS$205,((3*($E$19-1)+$C$4)+($D$8)))/1000*365.25 -> 0 | M164: =VLOOKUP($D164,Point_Sources_All!$A$5:$FS$205,((3*($E$20-1)+$C$4)+($D$8)))/1000*365.25 -> 1.073740644e-05 | N164: =VLOOKUP($D164,Point_Sources_All!$A$5:$FS$205,((3*($E$21-1)+$C$4)+($D$8)))/1000*365.25 -> 2.312979106e-06 | O164: =VLOOKUP($D164,Point_Sources_All!$A$5:$FS$205,((3*($E$22-1)+$C$4)+($D$8)))/1000*365.25 -> 5.627680688e-06 | P164: =VLOOKUP($D164,Point_Sources_All!$A$5:$FS$205,((3*($E$23-1)+$C$4)+($D$8)))/1000*365.25 -> 0 | Q164: =VLOOKUP($D164,Point_Sources_All!$A$5:$FS$205,((3*($E$24-1)+$C$4)+($D$8)))/1000*365.25 -> 7.267683625e-08 | R164: =VLOOKUP($D164,Point_Sources_All!$A$5:$FS$205,((3*($E$25-1)+$C$4)+($D$8)))/1000*365.25 -> 0
D165: 137 | E165: =VLOOKUP($D165,Point_Sources_All!$A$5:$FS$205,((3*($E$12-1)+$C$4)+($D$8)))/1000*365.25 -> 0.0001132603725 | F165: =VLOOKUP($D165,Point_Sources_All!$A$5:$FS$205,((3*($E$13-1)+$C$4)+($D$8)))/1000*365.25 -> 0 | G165: =VLOOKUP($D165,Point_Sources_All!$A$5:$FS$205,((3*($E$14-1)+$C$4)+($D$8)))/1000*365.25 -> 1.304666913e-06 | H165: =VLOOKUP($D165,Point_Sources_All!$A$5:$FS$205,((3*($E$15-1)+$C$4)+($D$8)))/1000*365.25 -> 1.168723906e-05 | I165: =VLOOKUP($D165,Point_Sources_All!$A$5:$FS$205,((3*($E$16-1)+$C$4)+($D$8)))/1000*365.25 -> 1.686855381e-07 | J165: =VLOOKUP($D165,Point_Sources_All!$A$5:$FS$205,((3*($E$17-1)+$C$4)+($D$8)))/1000*365.25 -> 5.825037438e-06 | K165: =VLOOKUP($D165,Point_Sources_All!$A$5:$FS$205,((3*($E$18-1)+$C$4)+($D$8)))/1000*365.25 -> 0 | L165: =VLOOKUP($D165,Point_Sources_All!$A$5:$FS$205,((3*($E$19-1)+$C$4)+($D$8)))/1000*365.25 -> 0 | M165: =VLOOKUP($D165,Point_Sources_All!$A$5:$FS$205,((3*($E$20-1)+$C$4)+($D$8)))/1000*365.25 -> 1.067759675e-05 | N165: =VLOOKUP($D165,Point_Sources_All!$A$5:$FS$205,((3*($E$21-1)+$C$4)+($D$8)))/1000*365.25 -> 2.340001519e-06 | O165: =VLOOKUP($D165,Point_Sources_All!$A$5:$FS$205,((3*($E$22-1)+$C$4)+($D$8)))/1000*365.25 -> 5.626737125e-06 | P165: =VLOOKUP($D165,Point_Sources_All!$A$5:$FS$205,((3*($E$23-1)+$C$4)+($D$8)))/1000*365.25 -> 0 | Q165: =VLOOKUP($D165,Point_Sources_All!$A$5:$FS$205,((3*($E$24-1)+$C$4)+($D$8)))/1000*365.25 -> 5.86579325e-08 | R165: =VLOOKUP($D165,Point_Sources_All!$A$5:$FS$205,((3*($E$25-1)+$C$4)+($D$8)))/1000*365.25 -> 0
D166: 138 | E166: =VLOOKUP($D166,Point_Sources_All!$A$5:$FS$205,((3*($E$12-1)+$C$4)+($D$8)))/1000*365.25 -> 0.0001132631119 | F166: =VLOOKUP($D166,Point_Sources_All!$A$5:$FS$205,((3*($E$13-1)+$C$4)+($D$8)))/1000*365.25 -> 0 | G166: =VLOOKUP($D166,Point_Sources_All!$A$5:$FS$205,((3*($E$14-1)+$C$4)+($D$8)))/1000*365.25 -> 1.329598269e-06 | H166: =VLOOKUP($D166,Point_Sources_All!$A$5:$FS$205,((3*($E$15-1)+$C$4)+($D$8)))/1000*365.25 -> 1.168818263e-05 | I166: =VLOOKUP($D166,Point_Sources_All!$A$5:$FS$205,((3*($E$16-1)+$C$4)+($D$8)))/1000*365.25 -> 1.664648181e-07 | J166: =VLOOKUP($D166,Point_Sources_All!$A$5:$FS$205,((3*($E$17-1)+$C$4)+($D$8)))/1000*365.25 -> 5.825463563e-06 | K166: =VLOOKUP($D166,Point_Sources_All!$A$5:$FS$205,((3*($E$18-1)+$C$4)+($D$8)))/1000*365.25 -> 0 | L166: =VLOOKUP($D166,Point_Sources_All!$A$5:$FS$205,((3*($E$19-1)+$C$4)+($D$8)))/1000*365.25 -> 0 | M166: =VLOOKUP($D166,Point_Sources_All!$A$5:$FS$205,((3*($E$20-1)+$C$4)+($D$8)))/1000*365.25 -> 1.0678449e-05 | N166: =VLOOKUP($D166,Point_Sources_All!$A$5:$FS$205,((3*($E$21-1)+$C$4)+($D$8)))/1000*365.25 -> 2.332669125e-06 | O166: =VLOOKUP($D166,Point_Sources_All!$A$5:$FS$205,((3*($E$22-1)+$C$4)+($D$8)))/1000*365.25 -> 5.54899975e-06 | P166: =VLOOKUP($D166,Point_Sources_All!$A$5:$FS$205,((3*($E$23-1)+$C$4)+($D$8)))/1000*365.25 -> 0 | Q166: =VLOOKUP($D166,Point_Sources_All!$A$5:$FS$205,((3*($E$24-1)+$C$4)+($D$8)))/1000*365.25 -> 6.536970562e-08 | R166: =VLOOKUP($D166,Point_Sources_All!$A$5:$FS$205,((3*($E$25-1)+$C$4)+($D$8)))/1000*365.25 -> 0
D167: 139 | E167: =VLOOKUP($D167,Point_Sources_All!$A$5:$FS$205,((3*($E$12-1)+$C$4)+($D$8)))/1000*365.25 -> 0.0001132667644 | F167: =VLOOKUP($D167,Point_Sources_All!$A$5:$FS$205,((3*($E$13-1)+$C$4)+($D$8)))/1000*365.25 -> 0 | G167: =VLOOKUP($D167,Point_Sources_All!$A$5:$FS$205,((3*($E$14-1)+$C$4)+($D$8)))/1000*365.25 -> 1.302524112e-06 | H167: =VLOOKUP($D167,Point_Sources_All!$A$5:$FS$205,((3*($E$15-1)+$C$4)+($D$8)))/1000*365.25 -> 1.155651e-05 | I167: =VLOOKUP($D167,Point_Sources_All!$A$5:$FS$205,((3*($E$16-1)+$C$4)+($D$8)))/1000*365.25 -> 1.667819769e-07 | J167: =VLOOKUP($D167,Point_Sources_All!$A$5:$FS$205,((3*($E$17-1)+$C$4)+($D$8)))/1000*365.25 -> 5.759840313e-06 | K167: =VLOOKUP($D167,Point_Sources_All!$A$5:$FS$205,((3*($E$18-1)+$C$4)+($D$8)))/1000*365.25 -> 0 | L167: =VLOOKUP($D167,Point_Sources_All!$A$5:$FS$205,((3*($E$19-1)+$C$4)+($D$8)))/1000*365.25 -> 0 | M167: =VLOOKUP($D167,Point_Sources_All!$A$5:$FS$205,((3*($E$20-1)+$C$4)+($D$8)))/1000*365.25 -> 1.055822087e-05 | N167: =VLOOKUP($D167,Point_Sources_All!$A$5:$FS$205,((3*($E$21-1)+$C$4)+($D$8)))/1000*365.25 -> 2.322831725e-06 | O167: =VLOOKUP($D167,Point_Sources_All!$A$5:$FS$205,((3*($E$22-1)+$C$4)+($D$8)))/1000*365.25 -> 5.495460187e-06 | P167: =VLOOKUP($D167,Point_Sources_All!$A$5:$FS$205,((3*($E$23-1)+$C$4)+($D$8)))/1000*365.25 -> 0 | Q167: =VLOOKUP($D167,Point_Sources_All!$A$5:$FS$205,((3*($E$24-1)+$C$4)+($D$8)))/1000*365.25 -> 7.115039563e-08 | R167: =VLOOKUP($D167,Point_Sources_All!$A$5:$FS$205,((3*($E$25-1)+$C$4)+($D$8)))/1000*365.25 -> 0
D168: 140 | E168: =VLOOKUP($D168,Point_Sources_All!$A$5:$FS$205,((3*($E$12-1)+$C$4)+($D$8)))/1000*365.25 -> 0.0001132682863 | F168: =VLOOKUP($D168,Point_Sources_All!$A$5:$FS$205,((3*($E$13-1)+$C$4)+($D$8)))/1000*365.25 -> 0 | G168: =VLOOKUP($D168,Point_Sources_All!$A$5:$FS$205,((3*($E$14-1)+$C$4)+($D$8)))/1000*365.25 -> 1.27328585e-06 | H168: =VLOOKUP($D168,Point_Sources_All!$A$5:$FS$205,((3*($E$15-1)+$C$4)+($D$8)))/1000*365.25 -> 1.152865969e-05 | I168: =VLOOKUP($D168,Point_Sources_All!$A$5:$FS$205,((3*($E$16-1)+$C$4)+($D$8)))/1000*365.25 -> 1.659696e-07 | J168: =VLOOKUP($D168,Point_Sources_All!$A$5:$FS$205,((3*($E$17-1)+$C$4)+($D$8)))/1000*365.25 -> 5.74599125e-06 | K168: =VLOOKUP($D168,Point_Sources_All!$A$5:$FS$205,((3*($E$18-1)+$C$4)+($D$8)))/1000*365.25 -> 0 | L168: =VLOOKUP($D168,Point_Sources_All!$A$5:$FS$205,((3*($E$19-1)+$C$4)+($D$8)))/1000*365.25 -> 0 | M168: =VLOOKUP($D168,Point_Sources_All!$A$5:$FS$205,((3*($E$20-1)+$C$4)+($D$8)))/1000*365.25 -> 1.053274469e-05 | N168: =VLOOKUP($D168,Point_Sources_All!$A$5:$FS$205,((3*($E$21-1)+$C$4)+($D$8)))/1000*365.25 -> 2.327756512e-06 | O168: =VLOOKUP($D168,Point_Sources_All!$A$5:$FS$205,((3*($E$22-1)+$C$4)+($D$8)))/1000*365.25 -> 5.480515375e-06 | P168: =VLOOKUP($D168,Point_Sources_All!$A$5:$FS$205,((3*($E$23-1)+$C$4)+($D$8)))/1000*365.25 -> 0 | Q168: =VLOOKUP($D168,Point_Sources_All!$A$5:$FS$205,((3*($E$24-1)+$C$4)+($D$8)))/1000*365.25 -> 6.040321875e-08 | R168: =VLOOKUP($D168,Point_Sources_All!$A$5:$FS$205,((3*($E$25-1)+$C$4)+($D$8)))/1000*365.25 -> 0
D169: 141 | E169: =VLOOKUP($D169,Point_Sources_All!$A$5:$FS$205,((3*($E$12-1)+$C$4)+($D$8)))/1000*365.25 -> 0.0001132676775 | F169: =VLOOKUP($D169,Point_Sources_All!$A$5:$FS$205,((3*($E$13-1)+$C$4)+($D$8)))/1000*365.25 -> 0 | G169: =VLOOKUP($D169,Point_Sources_All!$A$5:$FS$205,((3*($E$14-1)+$C$4)+($D$8)))/1000*365.25 -> 1.255425125e-06 | H169: =VLOOKUP($D169,Point_Sources_All!$A$5:$FS$205,((3*($E$15-1)+$C$4)+($D$8)))/1000*365.25 -> 1.1442552e-05 | I169: =VLOOKUP($D169,Point_Sources_All!$A$5:$FS$205,((3*($E$16-1)+$C$4)+($D$8)))/1000*365.25 -> 1.657525806e-07 | J169: =VLOOKUP($D169,Point_Sources_All!$A$5:$FS$205,((3*($E$17-1)+$C$4)+($D$8)))/1000*365.25 -> 5.703104812e-06 | K169: =VLOOKUP($D169,Point_Sources_All!$A$5:$FS$205,((3*($E$18-1)+$C$4)+($D$8)))/1000*365.25 -> 0 | L169: =VLOOKUP($D169,Point_Sources_All!$A$5:$FS$205,((3*($E$19-1)+$C$4)+($D$8)))/1000*365.25 -> 0 | M169: =VLOOKUP($D169,Point_Sources_All!$A$5:$FS$205,((3*($E$20-1)+$C$4)+($D$8)))/1000*365.25 -> 1.045409419e-05 | N169: =VLOOKUP($D169,Point_Sources_All!$A$5:$FS$205,((3*($E$21-1)+$C$4)+($D$8)))/1000*365.25 -> 2.34648775e-06 | O169: =VLOOKUP($D169,Point_Sources_All!$A$5:$FS$205,((3*($E$22-1)+$C$4)+($D$8)))/1000*365.25 -> 5.496008062e-06 | P169: =VLOOKUP($D169,Point_Sources_All!$A$5:$FS$205,((3*($E$23-1)+$C$4)+($D$8)))/1000*365.25 -> 0 | Q169: =VLOOKUP($D169,Point_Sources_All!$A$5:$FS$205,((3*($E$24-1)+$C$4)+($D$8)))/1000*365.25 -> 6.565033937e-08 | R169: =VLOOKUP($D169,Point_Sources_All!$A$5:$FS$205,((3*($E$25-1)+$C$4)+($D$8)))/1000*365.25 -> 0
D170: 142 | E170: =VLOOKUP($D170,Point_Sources_All!$A$5:$FS$205,((3*($E$12-1)+$C$4)+($D$8)))/1000*365.25 -> 0.000113268895 | F170: =VLOOKUP($D170,Point_Sources_All!$A$5:$FS$205,((3*($E$13-1)+$C$4)+($D$8)))/1000*365.25 -> 0 | G170: =VLOOKUP($D170,Point_Sources_All!$A$5:$FS$205,((3*($E$14-1)+$C$4)+($D$8)))/1000*365.25 -> 1.242583544e-06 | H170: =VLOOKUP($D170,Point_Sources_All!$A$5:$FS$205,((3*($E$15-1)+$C$4)+($D$8)))/1000*365.25 -> 1.147332431e-05 | I170: =VLOOKUP($D170,Point_Sources_All!$A$5:$FS$205,((3*($E$16-1)+$C$4)+($D$8)))/1000*365.25 -> 1.6500047e-07 | J170: =VLOOKUP($D170,Point_Sources_All!$A$5:$FS$205,((3*($E$17-1)+$C$4)+($D$8)))/1000*365.25 -> 5.718354e-06 | K170: =VLOOKUP($D170,Point_Sources_All!$A$5:$FS$205,((3*($E$18-1)+$C$4)+($D$8)))/1000*365.25 -> 0 | L170: =VLOOKUP($D170,Point_Sources_All!$A$5:$FS$205,((3*($E$19-1)+$C$4)+($D$8)))/1000*365.25 -> 0 | M170: =VLOOKUP($D170,Point_Sources_All!$A$5:$FS$205,((3*($E$20-1)+$C$4)+($D$8)))/1000*365.25 -> 1.048221844e-05 | N170: =VLOOKUP($D170,Point_Sources_All!$A$5:$FS$205,((3*($E$21-1)+$C$4)+($D$8)))/1000*365.25 -> 2.341517306e-06 | O170: =VLOOKUP($D170,Point_Sources_All!$A$5:$FS$205,((3*($E$22-1)+$C$4)+($D$8)))/1000*365.25 -> 5.519018813e-06 | P170: =VLOOKUP($D170,Point_Sources_All!$A$5:$FS$205,((3*($E$23-1)+$C$4)+($D$8)))/1000*365.25 -> 0 | Q170: =VLOOKUP($D170,Point_Sources_All!$A$5:$FS$205,((3*($E$24-1)+$C$4)+($D$8)))/1000*365.25 -> 6.087834812e-08 | R170: =VLOOKUP($D170,Point_Sources_All!$A$5:$FS$205,((3*($E$25-1)+$C$4)+($D$8)))/1000*365.25 -> 0
D171: 143 | E171: =VLOOKUP($D171,Point_Sources_All!$A$5:$FS$205,((3*($E$12-1)+$C$4)+($D$8)))/1000*365.25 -> 0.0001132658512 | F171: =VLOOKUP($D171,Point_Sources_All!$A$5:$FS$205,((3*($E$13-1)+$C$4)+($D$8)))/1000*365.25 -> 0 | G171: =VLOOKUP($D171,Point_Sources_All!$A$5:$FS$205,((3*($E$14-1)+$C$4)+($D$8)))/1000*365.25 -> 1.247222219e-06 | H171: =VLOOKUP($D171,Point_Sources_All!$A$5:$FS$205,((3*($E$15-1)+$C$4)+($D$8)))/1000*365.25 -> 1.154193044e-05 | I171: =VLOOKUP($D171,Point_Sources_All!$A$5:$FS$205,((3*($E$16-1)+$C$4)+($D$8)))/1000*365.25 -> 1.662255794e-07 | J171: =VLOOKUP($D171,Point_Sources_All!$A$5:$FS$205,((3*($E$17-1)+$C$4)+($D$8)))/1000*365.25 -> 5.752596188e-06 | K171: =VLOOKUP($D171,Point_Sources_All!$A$5:$FS$205,((3*($E$18-1)+$C$4)+($D$8)))/1000*365.25 -> 0 | L171: =VLOOKUP($D171,Point_Sources_All!$A$5:$FS$205,((3*($E$19-1)+$C$4)+($D$8)))/1000*365.25 -> 0 | M171: =VLOOKUP($D171,Point_Sources_All!$A$5:$FS$205,((3*($E$20-1)+$C$4)+($D$8)))/1000*365.25 -> 1.054498056e-05 | N171: =VLOOKUP($D171,Point_Sources_All!$A$5:$FS$205,((3*($E$21-1)+$C$4)+($D$8)))/1000*365.25 -> 2.3308307e-06 | O171: =VLOOKUP($D171,Point_Sources_All!$A$5:$FS$205,((3*($E$22-1)+$C$4)+($D$8)))/1000*365.25 -> 5.618032e-06 | P171: =VLOOKUP($D171,Point_Sources_All!$A$5:$FS$205,((3*($E$23-1)+$C$4)+($D$8)))/1000*365.25 -> 0 | Q171: =VLOOKUP($D171,Point_Sources_All!$A$5:$FS$205,((3*($E$24-1)+$C$4)+($D$8)))/1000*365.25 -> 7.157104188e-08 | R171: =VLOOKUP($D171,Point_Sources_All!$A$5:$FS$205,((3*($E$25-1)+$C$4)+($D$8)))/1000*365.25 -> 0
D172: 144 | E172: =VLOOKUP($D172,Point_Sources_All!$A$5:$FS$205,((3*($E$12-1)+$C$4)+($D$8)))/1000*365.25 -> 0.000113264025 | F172: =VLOOKUP($D172,Point_Sources_All!$A$5:$FS$205,((3*($E$13-1)+$C$4)+($D$8)))/1000*365.25 -> 0 | G172: =VLOOKUP($D172,Point_Sources_All!$A$5:$FS$205,((3*($E$14-1)+$C$4)+($D$8)))/1000*365.25 -> 1.2491063e-06 | H172: =VLOOKUP($D172,Point_Sources_All!$A$5:$FS$205,((3*($E$15-1)+$C$4)+($D$8)))/1000*365.25 -> 1.157848587e-05 | I172: =VLOOKUP($D172,Point_Sources_All!$A$5:$FS$205,((3*($E$16-1)+$C$4)+($D$8)))/1000*365.25 -> 1.683659444e-07 | J172: =VLOOKUP($D172,Point_Sources_All!$A$5:$FS$205,((3*($E$17-1)+$C$4)+($D$8)))/1000*365.25 -> 5.77082825e-06 | K172: =VLOOKUP($D172,Point_Sources_All!$A$5:$FS$205,((3*($E$18-1)+$C$4)+($D$8)))/1000*365.25 -> 0 | L172: =VLOOKUP($D172,Point_Sources_All!$A$5:$FS$205,((3*($E$19-1)+$C$4)+($D$8)))/1000*365.25 -> 0 | M172: =VLOOKUP($D172,Point_Sources_All!$A$5:$FS$205,((3*($E$20-1)+$C$4)+($D$8)))/1000*365.25 -> 1.057834006e-05 | N172: =VLOOKUP($D172,Point_Sources_All!$A$5:$FS$205,((3*($E$21-1)+$C$4)+($D$8)))/1000*365.25 -> 2.322387337e-06 | O172: =VLOOKUP($D172,Point_Sources_All!$A$5:$FS$205,((3*($E$22-1)+$C$4)+($D$8)))/1000*365.25 -> 5.70118725e-06 | P172: =VLOOKUP($D172,Point_Sources_All!$A$5:$FS$205,((3*($E$23-1)+$C$4)+($D$8)))/1000*365.25 -> 0 | Q172: =VLOOKUP($D172,Point_Sources_All!$A$5:$FS$205,((3*($E$24-1)+$C$4)+($D$8)))/1000*365.25 -> 6.01603275e-08 | R172: =VLOOKUP($D172,Point_Sources_All!$A$5:$FS$205,((3*($E$25-1)+$C$4)+($D$8)))/1000*365.25 -> 0
D173: 145 | E173: =VLOOKUP($D173,Point_Sources_All!$A$5:$FS$205,((3*($E$12-1)+$C$4)+($D$8)))/1000*365.25 -> 0.0001132631119 | F173: =VLOOKUP($D173,Point_Sources_All!$A$5:$FS$205,((3*($E$13-1)+$C$4)+($D$8)))/1000*365.25 -> 0 | G173: =VLOOKUP($D173,Point_Sources_All!$A$5:$FS$205,((3*($E$14-1)+$C$4)+($D$8)))/1000*365.25 -> 1.249973769e-06 | H173: =VLOOKUP($D173,Point_Sources_All!$A$5:$FS$205,((3*($E$15-1)+$C$4)+($D$8)))/1000*365.25 -> 1.165406219e-05 | I173: =VLOOKUP($D173,Point_Sources_All!$A$5:$FS$205,((3*($E$16-1)+$C$4)+($D$8)))/1000*365.25 -> 1.678068075e-07 | J173: =VLOOKUP($D173,Point_Sources_All!$A$5:$FS$205,((3*($E$17-1)+$C$4)+($D$8)))/1000*365.25 -> 5.80857075e-06 | K173: =VLOOKUP($D173,Point_Sources_All!$A$5:$FS$205,((3*($E$18-1)+$C$4)+($D$8)))/1000*365.25 -> 0 | L173: =VLOOKUP($D173,Point_Sources_All!$A$5:$FS$205,((3*($E$19-1)+$C$4)+($D$8)))/1000*365.25 -> 0 | M173: =VLOOKUP($D173,Point_Sources_All!$A$5:$FS$205,((3*($E$20-1)+$C$4)+($D$8)))/1000*365.25 -> 1.064734187e-05 | N173: =VLOOKUP($D173,Point_Sources_All!$A$5:$FS$205,((3*($E$21-1)+$C$4)+($D$8)))/1000*365.25 -> 2.337049081e-06 | O173: =VLOOKUP($D173,Point_Sources_All!$A$5:$FS$205,((3*($E$22-1)+$C$4)+($D$8)))/1000*365.25 -> 5.693182188e-06 | P173: =VLOOKUP($D173,Point_Sources_All!$A$5:$FS$205,((3*($E$23-1)+$C$4)+($D$8)))/1000*365.25 -> 0 | Q173: =VLOOKUP($D173,Point_Sources_All!$A$5:$FS$205,((3*($E$24-1)+$C$4)+($D$8)))/1000*365.25 -> 5.954975125e-08 | R173: =VLOOKUP($D173,Point_Sources_All!$A$5:$FS$205,((3*($E$25-1)+$C$4)+($D$8)))/1000*365.25 -> 0
D174: 146 | E174: =VLOOKUP($D174,Point_Sources_All!$A$5:$FS$205,((3*($E$12-1)+$C$4)+($D$8)))/1000*365.25 -> 0.0001132621987 | F174: =VLOOKUP($D174,Point_Sources_All!$A$5:$FS$205,((3*($E$13-1)+$C$4)+($D$8)))/1000*365.25 -> 0 | G174: =VLOOKUP($D174,Point_Sources_All!$A$5:$FS$205,((3*($E$14-1)+$C$4)+($D$8)))/1000*365.25 -> 1.266026506e-06 | H174: =VLOOKUP($D174,Point_Sources_All!$A$5:$FS$205,((3*($E$15-1)+$C$4)+($D$8)))/1000*365.25 -> 1.1617385e-05 | I174: =VLOOKUP($D174,Point_Sources_All!$A$5:$FS$205,((3*($E$16-1)+$C$4)+($D$8)))/1000*365.25 -> 1.672172331e-07 | J174: =VLOOKUP($D174,Point_Sources_All!$A$5:$FS$205,((3*($E$17-1)+$C$4)+($D$8)))/1000*365.25 -> 5.790216938e-06 | K174: =VLOOKUP($D174,Point_Sources_All!$A$5:$FS$205,((3*($E$18-1)+$C$4)+($D$8)))/1000*365.25 -> 0 | L174: =VLOOKUP($D174,Point_Sources_All!$A$5:$FS$205,((3*($E$19-1)+$C$4)+($D$8)))/1000*365.25 -> 0 | M174: =VLOOKUP($D174,Point_Sources_All!$A$5:$FS$205,((3*($E$20-1)+$C$4)+($D$8)))/1000*365.25 -> 1.061379975e-05 | N174: =VLOOKUP($D174,Point_Sources_All!$A$5:$FS$205,((3*($E$21-1)+$C$4)+($D$8)))/1000*365.25 -> 2.368259694e-06 | O174: =VLOOKUP($D174,Point_Sources_All!$A$5:$FS$205,((3*($E$22-1)+$C$4)+($D$8)))/1000*365.25 -> 5.73284225e-06 | P174: =VLOOKUP($D174,Point_Sources_All!$A$5:$FS$205,((3*($E$23-1)+$C$4)+($D$8)))/1000*365.25 -> 0 | Q174: =VLOOKUP($D174,Point_Sources_All!$A$5:$FS$205,((3*($E$24-1)+$C$4)+($D$8)))/1000*365.25 -> 5.98194275e-08 | R174: =VLOOKUP($D174,Point_Sources_All!$A$5:$FS$205,((3*($E$25-1)+$C$4)+($D$8)))/1000*365.25 -> 0
D175: 147 | E175: =VLOOKUP($D175,Point_Sources_All!$A$5:$FS$205,((3*($E$12-1)+$C$4)+($D$8)))/1000*365.25 -> 0.000113264025 | F175: =VLOOKUP($D175,Point_Sources_All!$A$5:$FS$205,((3*($E$13-1)+$C$4)+($D$8)))/1000*365.25 -> 0 | G175: =VLOOKUP($D175,Point_Sources_All!$A$5:$FS$205,((3*($E$14-1)+$C$4)+($D$8)))/1000*365.25 -> 1.2709239e-06 | H175: =VLOOKUP($D175,Point_Sources_All!$A$5:$FS$205,((3*($E$15-1)+$C$4)+($D$8)))/1000*365.25 -> 1.156695006e-05 | I175: =VLOOKUP($D175,Point_Sources_All!$A$5:$FS$205,((3*($E$16-1)+$C$4)+($D$8)))/1000*365.25 -> 1.684505606e-07 | J175: =VLOOKUP($D175,Point_Sources_All!$A$5:$FS$205,((3*($E$17-1)+$C$4)+($D$8)))/1000*365.25 -> 5.765045125e-06 | K175: =VLOOKUP($D175,Point_Sources_All!$A$5:$FS$205,((3*($E$18-1)+$C$4)+($D$8)))/1000*365.25 -> 0 | L175: =VLOOKUP($D175,Point_Sources_All!$A$5:$FS$205,((3*($E$19-1)+$C$4)+($D$8)))/1000*365.25 -> 0 | M175: =VLOOKUP($D175,Point_Sources_All!$A$5:$FS$205,((3*($E$20-1)+$C$4)+($D$8)))/1000*365.25 -> 1.056771737e-05 | N175: =VLOOKUP($D175,Point_Sources_All!$A$5:$FS$205,((3*($E$21-1)+$C$4)+($D$8)))/1000*365.25 -> 2.387767088e-06 | O175: =VLOOKUP($D175,Point_Sources_All!$A$5:$FS$205,((3*($E$22-1)+$C$4)+($D$8)))/1000*365.25 -> 5.690381938e-06 | P175: =VLOOKUP($D175,Point_Sources_All!$A$5:$FS$205,((3*($E$23-1)+$C$4)+($D$8)))/1000*365.25 -> 0 | Q175: =VLOOKUP($D175,Point_Sources_All!$A$5:$FS$205,((3*($E$24-1)+$C$4)+($D$8)))/1000*365.25 -> 6.9063905e-08 | R175: =VLOOKUP($D175,Point_Sources_All!$A$5:$FS$205,((3*($E$25-1)+$C$4)+($D$8)))/1000*365.25 -> 0
D176: 148 | E176: =VLOOKUP($D176,Point_Sources_All!$A$5:$FS$205,((3*($E$12-1)+$C$4)+($D$8)))/1000*365.25 -> 0.000113264025 | F176: =VLOOKUP($D176,Point_Sources_All!$A$5:$FS$205,((3*($E$13-1)+$C$4)+($D$8)))/1000*365.25 -> 0 | G176: =VLOOKUP($D176,Point_Sources_All!$A$5:$FS$205,((3*($E$14-1)+$C$4)+($D$8)))/1000*365.25 -> 1.256295637e-06 | H176: =VLOOKUP($D176,Point_Sources_All!$A$5:$FS$205,((3*($E$15-1)+$C$4)+($D$8)))/1000*365.25 -> 1.1597905e-05 | I176: =VLOOKUP($D176,Point_Sources_All!$A$5:$FS$205,((3*($E$16-1)+$C$4)+($D$8)))/1000*365.25 -> 1.690048275e-07 | J176: =VLOOKUP($D176,Point_Sources_All!$A$5:$FS$205,((3*($E$17-1)+$C$4)+($D$8)))/1000*365.25 -> 5.780476938e-06 | K176: =VLOOKUP($D176,Point_Sources_All!$A$5:$FS$205,((3*($E$18-1)+$C$4)+($D$8)))/1000*365.25 -> 0 | L176: =VLOOKUP($D176,Point_Sources_All!$A$5:$FS$205,((3*($E$19-1)+$C$4)+($D$8)))/1000*365.25 -> 0 | M176: =VLOOKUP($D176,Point_Sources_All!$A$5:$FS$205,((3*($E$20-1)+$C$4)+($D$8)))/1000*365.25 -> 1.059602425e-05 | N176: =VLOOKUP($D176,Point_Sources_All!$A$5:$FS$205,((3*($E$21-1)+$C$4)+($D$8)))/1000*365.25 -> 2.377877944e-06 | O176: =VLOOKUP($D176,Point_Sources_All!$A$5:$FS$205,((3*($E$22-1)+$C$4)+($D$8)))/1000*365.25 -> 5.650752313e-06 | P176: =VLOOKUP($D176,Point_Sources_All!$A$5:$FS$205,((3*($E$23-1)+$C$4)+($D$8)))/1000*365.25 -> 0 | Q176: =VLOOKUP($D176,Point_Sources_All!$A$5:$FS$205,((3*($E$24-1)+$C$4)+($D$8)))/1000*365.25 -> 6.251923375e-08 | R176: =VLOOKUP($D176,Point_Sources_All!$A$5:$FS$205,((3*($E$25-1)+$C$4)+($D$8)))/1000*365.25 -> 0
D177: 149 | E177: =VLOOKUP($D177,Point_Sources_All!$A$5:$FS$205,((3*($E$12-1)+$C$4)+($D$8)))/1000*365.25 -> 0.000113264025 | F177: =VLOOKUP($D177,Point_Sources_All!$A$5:$FS$205,((3*($E$13-1)+$C$4)+($D$8)))/1000*365.25 -> 0 | G177: =VLOOKUP($D177,Point_Sources_All!$A$5:$FS$205,((3*($E$14-1)+$C$4)+($D$8)))/1000*365.25 -> 1.258149281e-06 | H177: =VLOOKUP($D177,Point_Sources_All!$A$5:$FS$205,((3*($E$15-1)+$C$4)+($D$8)))/1000*365.25 -> 1.148893875e-05 | I177: =VLOOKUP($D177,Point_Sources_All!$A$5:$FS$205,((3*($E$16-1)+$C$4)+($D$8)))/1000*365.25 -> 1.694233431e-07 | J177: =VLOOKUP($D177,Point_Sources_All!$A$5:$FS$205,((3*($E$17-1)+$C$4)+($D$8)))/1000*365.25 -> 5.726085125e-06 | K177: =VLOOKUP($D177,Point_Sources_All!$A$5:$FS$205,((3*($E$18-1)+$C$4)+($D$8)))/1000*365.25 -> 0 | L177: =VLOOKUP($D177,Point_Sources_All!$A$5:$FS$205,((3*($E$19-1)+$C$4)+($D$8)))/1000*365.25 -> 0 | M177: =VLOOKUP($D177,Point_Sources_All!$A$5:$FS$205,((3*($E$20-1)+$C$4)+($D$8)))/1000*365.25 -> 1.049646319e-05 | N177: =VLOOKUP($D177,Point_Sources_All!$A$5:$FS$205,((3*($E$21-1)+$C$4)+($D$8)))/1000*365.25 -> 2.373236225e-06 | O177: =VLOOKUP($D177,Point_Sources_All!$A$5:$FS$205,((3*($E$22-1)+$C$4)+($D$8)))/1000*365.25 -> 5.628898188e-06 | P177: =VLOOKUP($D177,Point_Sources_All!$A$5:$FS$205,((3*($E$23-1)+$C$4)+($D$8)))/1000*365.25 -> 0 | Q177: =VLOOKUP($D177,Point_Sources_All!$A$5:$FS$205,((3*($E$24-1)+$C$4)+($D$8)))/1000*365.25 -> 6.433422187e-08 | R177: =VLOOKUP($D177,Point_Sources_All!$A$5:$FS$205,((3*($E$25-1)+$C$4)+($D$8)))/1000*365.25 -> 0
D178: 150 | E178: =VLOOKUP($D178,Point_Sources_All!$A$5:$FS$205,((3*($E$12-1)+$C$4)+($D$8)))/1000*365.25 -> 0.0001132625031 | F178: =VLOOKUP($D178,Point_Sources_All!$A$5:$FS$205,((3*($E$13-1)+$C$4)+($D$8)))/1000*365.25 -> 0 | G178: =VLOOKUP($D178,Point_Sources_All!$A$5:$FS$205,((3*($E$14-1)+$C$4)+($D$8)))/1000*365.25 -> 1.266945719e-06 | H178: =VLOOKUP($D178,Point_Sources_All!$A$5:$FS$205,((3*($E$15-1)+$C$4)+($D$8)))/1000*365.25 -> 1.15601625e-05 | I178: =VLOOKUP($D178,Point_Sources_All!$A$5:$FS$205,((3*($E$16-1)+$C$4)+($D$8)))/1000*365.25 -> 1.67540175e-07 | J178: =VLOOKUP($D178,Point_Sources_All!$A$5:$FS$205,((3*($E$17-1)+$C$4)+($D$8)))/1000*365.25 -> 5.761697e-06 | K178: =VLOOKUP($D178,Point_Sources_All!$A$5:$FS$205,((3*($E$18-1)+$C$4)+($D$8)))/1000*365.25 -> 0 | L178: =VLOOKUP($D178,Point_Sources_All!$A$5:$FS$205,((3*($E$19-1)+$C$4)+($D$8)))/1000*365.25 -> 0 | M178: =VLOOKUP($D178,Point_Sources_All!$A$5:$FS$205,((3*($E$20-1)+$C$4)+($D$8)))/1000*365.25 -> 1.0561569e-05 | N178: =VLOOKUP($D178,Point_Sources_All!$A$5:$FS$205,((3*($E$21-1)+$C$4)+($D$8)))/1000*365.25 -> 2.383865e-06 | O178: =VLOOKUP($D178,Point_Sources_All!$A$5:$FS$205,((3*($E$22-1)+$C$4)+($D$8)))/1000*365.25 -> 5.611914063e-06 | P178: =VLOOKUP($D178,Point_Sources_All!$A$5:$FS$205,((3*($E$23-1)+$C$4)+($D$8)))/1000*365.25 -> 0 | Q178: =VLOOKUP($D178,Point_Sources_All!$A$5:$FS$205,((3*($E$24-1)+$C$4)+($D$8)))/1000*365.25 -> 5.985443063e-08 | R178: =VLOOKUP($D178,Point_Sources_All!$A$5:$FS$205,((3*($E$25-1)+$C$4)+($D$8)))/1000*365.25 -> 0
D179: 151 | E179: =VLOOKUP($D179,Point_Sources_All!$A$5:$FS$205,((3*($E$12-1)+$C$4)+($D$8)))/1000*365.25 -> 0.0001132625031 | F179: =VLOOKUP($D179,Point_Sources_All!$A$5:$FS$205,((3*($E$13-1)+$C$4)+($D$8)))/1000*365.25 -> 0 | G179: =VLOOKUP($D179,Point_Sources_All!$A$5:$FS$205,((3*($E$14-1)+$C$4)+($D$8)))/1000*365.25 -> 1.254709844e-06 | H179: =VLOOKUP($D179,Point_Sources_All!$A$5:$FS$205,((3*($E$15-1)+$C$4)+($D$8)))/1000*365.25 -> 1.159750931e-05 | I179: =VLOOKUP($D179,Point_Sources_All!$A$5:$FS$205,((3*($E$16-1)+$C$4)+($D$8)))/1000*365.25 -> 1.679617344e-07 | J179: =VLOOKUP($D179,Point_Sources_All!$A$5:$FS$205,((3*($E$17-1)+$C$4)+($D$8)))/1000*365.25 -> 5.780294313e-06 | K179: =VLOOKUP($D179,Point_Sources_All!$A$5:$FS$205,((3*($E$18-1)+$C$4)+($D$8)))/1000*365.25 -> 0 | L179: =VLOOKUP($D179,Point_Sources_All!$A$5:$FS$205,((3*($E$19-1)+$C$4)+($D$8)))/1000*365.25 -> 0 | M179: =VLOOKUP($D179,Point_Sources_All!$A$5:$FS$205,((3*($E$20-1)+$C$4)+($D$8)))/1000*365.25 -> 1.059559813e-05 | N179: =VLOOKUP($D179,Point_Sources_All!$A$5:$FS$205,((3*($E$21-1)+$C$4)+($D$8)))/1000*365.25 -> 2.360312463e-06 | O179: =VLOOKUP($D179,Point_Sources_All!$A$5:$FS$205,((3*($E$22-1)+$C$4)+($D$8)))/1000*365.25 -> 5.513357438e-06 | P179: =VLOOKUP($D179,Point_Sources_All!$A$5:$FS$205,((3*($E$23-1)+$C$4)+($D$8)))/1000*365.25 -> 0 | Q179: =VLOOKUP($D179,Point_Sources_All!$A$5:$FS$205,((3*($E$24-1)+$C$4)+($D$8)))/1000*365.25 -> 6.310515562e-08 | R179: =VLOOKUP($D179,Point_Sources_All!$A$5:$FS$205,((3*($E$25-1)+$C$4)+($D$8)))/1000*365.25 -> 0
D180: 152 | E180: =VLOOKUP($D180,Point_Sources_All!$A$5:$FS$205,((3*($E$12-1)+$C$4)+($D$8)))/1000*365.25 -> 0.000113264025 | F180: =VLOOKUP($D180,Point_Sources_All!$A$5:$FS$205,((3*($E$13-1)+$C$4)+($D$8)))/1000*365.25 -> 0 | G180: =VLOOKUP($D180,Point_Sources_All!$A$5:$FS$205,((3*($E$14-1)+$C$4)+($D$8)))/1000*365.25 -> 1.251580869e-06 | H180: =VLOOKUP($D180,Point_Sources_All!$A$5:$FS$205,((3*($E$15-1)+$C$4)+($D$8)))/1000*365.25 -> 1.164334819e-05 | I180: =VLOOKUP($D180,Point_Sources_All!$A$5:$FS$205,((3*($E$16-1)+$C$4)+($D$8)))/1000*365.25 -> 1.657337094e-07 | J180: =VLOOKUP($D180,Point_Sources_All!$A$5:$FS$205,((3*($E$17-1)+$C$4)+($D$8)))/1000*365.25 -> 5.803183312e-06 | K180: =VLOOKUP($D180,Point_Sources_All!$A$5:$FS$205,((3*($E$18-1)+$C$4)+($D$8)))/1000*365.25 -> 0 | L180: =VLOOKUP($D180,Point_Sources_All!$A$5:$FS$205,((3*($E$19-1)+$C$4)+($D$8)))/1000*365.25 -> 0 | M180: =VLOOKUP($D180,Point_Sources_All!$A$5:$FS$205,((3*($E$20-1)+$C$4)+($D$8)))/1000*365.25 -> 1.063757144e-05 | N180: =VLOOKUP($D180,Point_Sources_All!$A$5:$FS$205,((3*($E$21-1)+$C$4)+($D$8)))/1000*365.25 -> 2.342652625e-06 | O180: =VLOOKUP($D180,Point_Sources_All!$A$5:$FS$205,((3*($E$22-1)+$C$4)+($D$8)))/1000*365.25 -> 5.576454375e-06 | P180: =VLOOKUP($D180,Point_Sources_All!$A$5:$FS$205,((3*($E$23-1)+$C$4)+($D$8)))/1000*365.25 -> 0 | Q180: =VLOOKUP($D180,Point_Sources_All!$A$5:$FS$205,((3*($E$24-1)+$C$4)+($D$8)))/1000*365.25 -> 6.431139375e-08 | R180: =VLOOKUP($D180,Point_Sources_All!$A$5:$FS$205,((3*($E$25-1)+$C$4)+($D$8)))/1000*365.25 -> 0
D181: 153 | E181: =VLOOKUP($D181,Point_Sources_All!$A$5:$FS$205,((3*($E$12-1)+$C$4)+($D$8)))/1000*365.25 -> 0.0001132646337 | F181: =VLOOKUP($D181,Point_Sources_All!$A$5:$FS$205,((3*($E$13-1)+$C$4)+($D$8)))/1000*365.25 -> 0 | G181: =VLOOKUP($D181,Point_Sources_All!$A$5:$FS$205,((3*($E$14-1)+$C$4)+($D$8)))/1000*365.25 -> 1.240407262e-06 | H181: =VLOOKUP($D181,Point_Sources_All!$A$5:$FS$205,((3*($E$15-1)+$C$4)+($D$8)))/1000*365.25 -> 1.160289675e-05 | I181: =VLOOKUP($D181,Point_Sources_All!$A$5:$FS$205,((3*($E$16-1)+$C$4)+($D$8)))/1000*365.25 -> 1.669448175e-07 | J181: =VLOOKUP($D181,Point_Sources_All!$A$5:$FS$205,((3*($E$17-1)+$C$4)+($D$8)))/1000*365.25 -> 5.78300325e-06 | K181: =VLOOKUP($D181,Point_Sources_All!$A$5:$FS$205,((3*($E$18-1)+$C$4)+($D$8)))/1000*365.25 -> 0 | L181: =VLOOKUP($D181,Point_Sources_All!$A$5:$FS$205,((3*($E$19-1)+$C$4)+($D$8)))/1000*365.25 -> 0 | M181: =VLOOKUP($D181,Point_Sources_All!$A$5:$FS$205,((3*($E$20-1)+$C$4)+($D$8)))/1000*365.25 -> 1.060062031e-05 | N181: =VLOOKUP($D181,Point_Sources_All!$A$5:$FS$205,((3*($E$21-1)+$C$4)+($D$8)))/1000*365.25 -> 2.326952962e-06 | O181: =VLOOKUP($D181,Point_Sources_All!$A$5:$FS$205,((3*($E$22-1)+$C$4)+($D$8)))/1000*365.25 -> 5.565496875e-06 | P181: =VLOOKUP($D181,Point_Sources_All!$A$5:$FS$205,((3*($E$23-1)+$C$4)+($D$8)))/1000*365.25 -> 0 | Q181: =VLOOKUP($D181,Point_Sources_All!$A$5:$FS$205,((3*($E$24-1)+$C$4)+($D$8)))/1000*365.25 -> 5.45671325e-08 | R181: =VLOOKUP($D181,Point_Sources_All!$A$5:$FS$205,((3*($E$25-1)+$C$4)+($D$8)))/1000*365.25 -> 0
D182: 154 | E182: =VLOOKUP($D182,Point_Sources_All!$A$5:$FS$205,((3*($E$12-1)+$C$4)+($D$8)))/1000*365.25 -> 0.0001132649381 | F182: =VLOOKUP($D182,Point_Sources_All!$A$5:$FS$205,((3*($E$13-1)+$C$4)+($D$8)))/1000*365.25 -> 0 | G182: =VLOOKUP($D182,Point_Sources_All!$A$5:$FS$205,((3*($E$14-1)+$C$4)+($D$8)))/1000*365.25 -> 1.235044175e-06 | H182: =VLOOKUP($D182,Point_Sources_All!$A$5:$FS$205,((3*($E$15-1)+$C$4)+($D$8)))/1000*365.25 -> 1.159601788e-05 | I182: =VLOOKUP($D182,Point_Sources_All!$A$5:$FS$205,((3*($E$16-1)+$C$4)+($D$8)))/1000*365.25 -> 1.647682319e-07 | J182: =VLOOKUP($D182,Point_Sources_All!$A$5:$FS$205,((3*($E$17-1)+$C$4)+($D$8)))/1000*365.25 -> 5.779563812e-06 | K182: =VLOOKUP($D182,Point_Sources_All!$A$5:$FS$205,((3*($E$18-1)+$C$4)+($D$8)))/1000*365.25 -> 0 | L182: =VLOOKUP($D182,Point_Sources_All!$A$5:$FS$205,((3*($E$19-1)+$C$4)+($D$8)))/1000*365.25 -> 0 | M182: =VLOOKUP($D182,Point_Sources_All!$A$5:$FS$205,((3*($E$20-1)+$C$4)+($D$8)))/1000*365.25 -> 1.059428931e-05 | N182: =VLOOKUP($D182,Point_Sources_All!$A$5:$FS$205,((3*($E$21-1)+$C$4)+($D$8)))/1000*365.25 -> 2.309162244e-06 | O182: =VLOOKUP($D182,Point_Sources_All!$A$5:$FS$205,((3*($E$22-1)+$C$4)+($D$8)))/1000*365.25 -> 5.586894437e-06 | P182: =VLOOKUP($D182,Point_Sources_All!$A$5:$FS$205,((3*($E$23-1)+$C$4)+($D$8)))/1000*365.25 -> 0 | Q182: =VLOOKUP($D182,Point_Sources_All!$A$5:$FS$205,((3*($E$24-1)+$C$4)+($D$8)))/1000*365.25 -> 6.092765688e-08 | R182: =VLOOKUP($D182,Point_Sources_All!$A$5:$FS$205,((3*($E$25-1)+$C$4)+($D$8)))/1000*365.25 -> 0
D183: 155 | E183: =VLOOKUP($D183,Point_Sources_All!$A$5:$FS$205,((3*($E$12-1)+$C$4)+($D$8)))/1000*365.25 -> 0.0001132655469 | F183: =VLOOKUP($D183,Point_Sources_All!$A$5:$FS$205,((3*($E$13-1)+$C$4)+($D$8)))/1000*365.25 -> 0 | G183: =VLOOKUP($D183,Point_Sources_All!$A$5:$FS$205,((3*($E$14-1)+$C$4)+($D$8)))/1000*365.25 -> 1.228381406e-06 | H183: =VLOOKUP($D183,Point_Sources_All!$A$5:$FS$205,((3*($E$15-1)+$C$4)+($D$8)))/1000*365.25 -> 1.162441606e-05 | I183: =VLOOKUP($D183,Point_Sources_All!$A$5:$FS$205,((3*($E$16-1)+$C$4)+($D$8)))/1000*365.25 -> 1.647864944e-07 | J183: =VLOOKUP($D183,Point_Sources_All!$A$5:$FS$205,((3*($E$17-1)+$C$4)+($D$8)))/1000*365.25 -> 5.793656375e-06 | K183: =VLOOKUP($D183,Point_Sources_All!$A$5:$FS$205,((3*($E$18-1)+$C$4)+($D$8)))/1000*365.25 -> 0 | L183: =VLOOKUP($D183,Point_Sources_All!$A$5:$FS$205,((3*($E$19-1)+$C$4)+($D$8)))/1000*365.25 -> 0 | M183: =VLOOKUP($D183,Point_Sources_All!$A$5:$FS$205,((3*($E$20-1)+$C$4)+($D$8)))/1000*365.25 -> 1.062022206e-05 | N183: =VLOOKUP($D183,Point_Sources_All!$A$5:$FS$205,((3*($E$21-1)+$C$4)+($D$8)))/1000*365.25 -> 2.286394994e-06 | O183: =VLOOKUP($D183,Point_Sources_All!$A$5:$FS$205,((3*($E$22-1)+$C$4)+($D$8)))/1000*365.25 -> 5.6479825e-06 | P183: =VLOOKUP($D183,Point_Sources_All!$A$5:$FS$205,((3*($E$23-1)+$C$4)+($D$8)))/1000*365.25 -> 0 | Q183: =VLOOKUP($D183,Point_Sources_All!$A$5:$FS$205,((3*($E$24-1)+$C$4)+($D$8)))/1000*365.25 -> 6.021846313e-08 | R183: =VLOOKUP($D183,Point_Sources_All!$A$5:$FS$205,((3*($E$25-1)+$C$4)+($D$8)))/1000*365.25 -> 0
D184: 156 | E184: =VLOOKUP($D184,Point_Sources_All!$A$5:$FS$205,((3*($E$12-1)+$C$4)+($D$8)))/1000*365.25 -> 0.0001132643294 | F184: =VLOOKUP($D184,Point_Sources_All!$A$5:$FS$205,((3*($E$13-1)+$C$4)+($D$8)))/1000*365.25 -> 0 | G184: =VLOOKUP($D184,Point_Sources_All!$A$5:$FS$205,((3*($E$14-1)+$C$4)+($D$8)))/1000*365.25 -> 1.209479719e-06 | H184: =VLOOKUP($D184,Point_Sources_All!$A$5:$FS$205,((3*($E$15-1)+$C$4)+($D$8)))/1000*365.25 -> 1.15591885e-05 | I184: =VLOOKUP($D184,Point_Sources_All!$A$5:$FS$205,((3*($E$16-1)+$C$4)+($D$8)))/1000*365.25 -> 1.677550638e-07 | J184: =VLOOKUP($D184,Point_Sources_All!$A$5:$FS$205,((3*($E$17-1)+$C$4)+($D$8)))/1000*365.25 -> 5.761240438e-06 | K184: =VLOOKUP($D184,Point_Sources_All!$A$5:$FS$205,((3*($E$18-1)+$C$4)+($D$8)))/1000*365.25 -> 0 | L184: =VLOOKUP($D184,Point_Sources_All!$A$5:$FS$205,((3*($E$19-1)+$C$4)+($D$8)))/1000*365.25 -> 0 | M184: =VLOOKUP($D184,Point_Sources_All!$A$5:$FS$205,((3*($E$20-1)+$C$4)+($D$8)))/1000*365.25 -> 1.056071675e-05 | N184: =VLOOKUP($D184,Point_Sources_All!$A$5:$FS$205,((3*($E$21-1)+$C$4)+($D$8)))/1000*365.25 -> 2.296874625e-06 | O184: =VLOOKUP($D184,Point_Sources_All!$A$5:$FS$205,((3*($E$22-1)+$C$4)+($D$8)))/1000*365.25 -> 5.590546938e-06 | P184: =VLOOKUP($D184,Point_Sources_All!$A$5:$FS$205,((3*($E$23-1)+$C$4)+($D$8)))/1000*365.25 -> 0 | Q184: =VLOOKUP($D184,Point_Sources_All!$A$5:$FS$205,((3*($E$24-1)+$C$4)+($D$8)))/1000*365.25 -> 5.24559875e-08 | R184: =VLOOKUP($D184,Point_Sources_All!$A$5:$FS$205,((3*($E$25-1)+$C$4)+($D$8)))/1000*365.25 -> 0
D185: 157 | E185: =VLOOKUP($D185,Point_Sources_All!$A$5:$FS$205,((3*($E$12-1)+$C$4)+($D$8)))/1000*365.25 -> 0.0001132643294 | F185: =VLOOKUP($D185,Point_Sources_All!$A$5:$FS$205,((3*($E$13-1)+$C$4)+($D$8)))/1000*365.25 -> 0 | G185: =VLOOKUP($D185,Point_Sources_All!$A$5:$FS$205,((3*($E$14-1)+$C$4)+($D$8)))/1000*365.25 -> 1.230691613e-06 | H185: =VLOOKUP($D185,Point_Sources_All!$A$5:$FS$205,((3*($E$15-1)+$C$4)+($D$8)))/1000*365.25 -> 1.154594819e-05 | I185: =VLOOKUP($D185,Point_Sources_All!$A$5:$FS$205,((3*($E$16-1)+$C$4)+($D$8)))/1000*365.25 -> 1.705364425e-07 | J185: =VLOOKUP($D185,Point_Sources_All!$A$5:$FS$205,((3*($E$17-1)+$C$4)+($D$8)))/1000*365.25 -> 5.754605063e-06 | K185: =VLOOKUP($D185,Point_Sources_All!$A$5:$FS$205,((3*($E$18-1)+$C$4)+($D$8)))/1000*365.25 -> 0 | L185: =VLOOKUP($D185,Point_Sources_All!$A$5:$FS$205,((3*($E$19-1)+$C$4)+($D$8)))/1000*365.25 -> 0 | M185: =VLOOKUP($D185,Point_Sources_All!$A$5:$FS$205,((3*($E$20-1)+$C$4)+($D$8)))/1000*365.25 -> 1.054857219e-05 | N185: =VLOOKUP($D185,Point_Sources_All!$A$5:$FS$205,((3*($E$21-1)+$C$4)+($D$8)))/1000*365.25 -> 2.287165062e-06 | O185: =VLOOKUP($D185,Point_Sources_All!$A$5:$FS$205,((3*($E$22-1)+$C$4)+($D$8)))/1000*365.25 -> 5.496495063e-06 | P185: =VLOOKUP($D185,Point_Sources_All!$A$5:$FS$205,((3*($E$23-1)+$C$4)+($D$8)))/1000*365.25 -> 0 | Q185: =VLOOKUP($D185,Point_Sources_All!$A$5:$FS$205,((3*($E$24-1)+$C$4)+($D$8)))/1000*365.25 -> 5.852431187e-08 | R185: =VLOOKUP($D185,Point_Sources_All!$A$5:$FS$205,((3*($E$25-1)+$C$4)+($D$8)))/1000*365.25 -> 0
D186: 158 | E186: =VLOOKUP($D186,Point_Sources_All!$A$5:$FS$205,((3*($E$12-1)+$C$4)+($D$8)))/1000*365.25 -> 0.0001132643294 | F186: =VLOOKUP($D186,Point_Sources_All!$A$5:$FS$205,((3*($E$13-1)+$C$4)+($D$8)))/1000*365.25 -> 0 | G186: =VLOOKUP($D186,Point_Sources_All!$A$5:$FS$205,((3*($E$14-1)+$C$4)+($D$8)))/1000*365.25 -> 1.235339419e-06 | H186: =VLOOKUP($D186,Point_Sources_All!$A$5:$FS$205,((3*($E$15-1)+$C$4)+($D$8)))/1000*365.25 -> 1.146486269e-05 | I186: =VLOOKUP($D186,Point_Sources_All!$A$5:$FS$205,((3*($E$16-1)+$C$4)+($D$8)))/1000*365.25 -> 1.713034675e-07 | J186: =VLOOKUP($D186,Point_Sources_All!$A$5:$FS$205,((3*($E$17-1)+$C$4)+($D$8)))/1000*365.25 -> 5.714244937e-06 | K186: =VLOOKUP($D186,Point_Sources_All!$A$5:$FS$205,((3*($E$18-1)+$C$4)+($D$8)))/1000*365.25 -> 0 | L186: =VLOOKUP($D186,Point_Sources_All!$A$5:$FS$205,((3*($E$19-1)+$C$4)+($D$8)))/1000*365.25 -> 0 | M186: =VLOOKUP($D186,Point_Sources_All!$A$5:$FS$205,((3*($E$20-1)+$C$4)+($D$8)))/1000*365.25 -> 1.047445688e-05 | N186: =VLOOKUP($D186,Point_Sources_All!$A$5:$FS$205,((3*($E$21-1)+$C$4)+($D$8)))/1000*365.25 -> 2.302411206e-06 | O186: =VLOOKUP($D186,Point_Sources_All!$A$5:$FS$205,((3*($E$22-1)+$C$4)+($D$8)))/1000*365.25 -> 5.436289687e-06 | P186: =VLOOKUP($D186,Point_Sources_All!$A$5:$FS$205,((3*($E$23-1)+$C$4)+($D$8)))/1000*365.25 -> 0 | Q186: =VLOOKUP($D186,Point_Sources_All!$A$5:$FS$205,((3*($E$24-1)+$C$4)+($D$8)))/1000*365.25 -> 5.9611235e-08 | R186: =VLOOKUP($D186,Point_Sources_All!$A$5:$FS$205,((3*($E$25-1)+$C$4)+($D$8)))/1000*365.25 -> 0
D187: 159 | E187: =VLOOKUP($D187,Point_Sources_All!$A$5:$FS$205,((3*($E$12-1)+$C$4)+($D$8)))/1000*365.25 -> 0.000113264025 | F187: =VLOOKUP($D187,Point_Sources_All!$A$5:$FS$205,((3*($E$13-1)+$C$4)+($D$8)))/1000*365.25 -> 0 | G187: =VLOOKUP($D187,Point_Sources_All!$A$5:$FS$205,((3*($E$14-1)+$C$4)+($D$8)))/1000*365.25 -> 1.255720369e-06 | H187: =VLOOKUP($D187,Point_Sources_All!$A$5:$FS$205,((3*($E$15-1)+$C$4)+($D$8)))/1000*365.25 -> 1.1501966e-05 | I187: =VLOOKUP($D187,Point_Sources_All!$A$5:$FS$205,((3*($E$16-1)+$C$4)+($D$8)))/1000*365.25 -> 1.728226031e-07 | J187: =VLOOKUP($D187,Point_Sources_All!$A$5:$FS$205,((3*($E$17-1)+$C$4)+($D$8)))/1000*365.25 -> 5.7327205e-06 | K187: =VLOOKUP($D187,Point_Sources_All!$A$5:$FS$205,((3*($E$18-1)+$C$4)+($D$8)))/1000*365.25 -> 0 | L187: =VLOOKUP($D187,Point_Sources_All!$A$5:$FS$205,((3*($E$19-1)+$C$4)+($D$8)))/1000*365.25 -> 0 | M187: =VLOOKUP($D187,Point_Sources_All!$A$5:$FS$205,((3*($E$20-1)+$C$4)+($D$8)))/1000*365.25 -> 1.050845556e-05 | N187: =VLOOKUP($D187,Point_Sources_All!$A$5:$FS$205,((3*($E$21-1)+$C$4)+($D$8)))/1000*365.25 -> 2.312434275e-06 | O187: =VLOOKUP($D187,Point_Sources_All!$A$5:$FS$205,((3*($E$22-1)+$C$4)+($D$8)))/1000*365.25 -> 5.431724062e-06 | P187: =VLOOKUP($D187,Point_Sources_All!$A$5:$FS$205,((3*($E$23-1)+$C$4)+($D$8)))/1000*365.25 -> 0 | Q187: =VLOOKUP($D187,Point_Sources_All!$A$5:$FS$205,((3*($E$24-1)+$C$4)+($D$8)))/1000*365.25 -> 5.163174e-08 | R187: =VLOOKUP($D187,Point_Sources_All!$A$5:$FS$205,((3*($E$25-1)+$C$4)+($D$8)))/1000*365.25 -> 0
D188: 160 | E188: =VLOOKUP($D188,Point_Sources_All!$A$5:$FS$205,((3*($E$12-1)+$C$4)+($D$8)))/1000*365.25 -> 0.000113264025 | F188: =VLOOKUP($D188,Point_Sources_All!$A$5:$FS$205,((3*($E$13-1)+$C$4)+($D$8)))/1000*365.25 -> 0 | G188: =VLOOKUP($D188,Point_Sources_All!$A$5:$FS$205,((3*($E$14-1)+$C$4)+($D$8)))/1000*365.25 -> 1.267429675e-06 | H188: =VLOOKUP($D188,Point_Sources_All!$A$5:$FS$205,((3*($E$15-1)+$C$4)+($D$8)))/1000*365.25 -> 1.156317581e-05 | I188: =VLOOKUP($D188,Point_Sources_All!$A$5:$FS$205,((3*($E$16-1)+$C$4)+($D$8)))/1000*365.25 -> 1.725605362e-07 | J188: =VLOOKUP($D188,Point_Sources_All!$A$5:$FS$205,((3*($E$17-1)+$C$4)+($D$8)))/1000*365.25 -> 5.763188437e-06 | K188: =VLOOKUP($D188,Point_Sources_All!$A$5:$FS$205,((3*($E$18-1)+$C$4)+($D$8)))/1000*365.25 -> 0 | L188: =VLOOKUP($D188,Point_Sources_All!$A$5:$FS$205,((3*($E$19-1)+$C$4)+($D$8)))/1000*365.25 -> 0 | M188: =VLOOKUP($D188,Point_Sources_All!$A$5:$FS$205,((3*($E$20-1)+$C$4)+($D$8)))/1000*365.25 -> 1.056427794e-05 | N188: =VLOOKUP($D188,Point_Sources_All!$A$5:$FS$205,((3*($E$21-1)+$C$4)+($D$8)))/1000*365.25 -> 2.32749475e-06 | O188: =VLOOKUP($D188,Point_Sources_All!$A$5:$FS$205,((3*($E$22-1)+$C$4)+($D$8)))/1000*365.25 -> 5.486755063e-06 | P188: =VLOOKUP($D188,Point_Sources_All!$A$5:$FS$205,((3*($E$23-1)+$C$4)+($D$8)))/1000*365.25 -> 0 | Q188: =VLOOKUP($D188,Point_Sources_All!$A$5:$FS$205,((3*($E$24-1)+$C$4)+($D$8)))/1000*365.25 -> 6.584057375e-08 | R188: =VLOOKUP($D188,Point_Sources_All!$A$5:$FS$205,((3*($E$25-1)+$C$4)+($D$8)))/1000*365.25 -> 0
D189: 161 | E189: =VLOOKUP($D189,Point_Sources_All!$A$5:$FS$205,((3*($E$12-1)+$C$4)+($D$8)))/1000*365.25 -> 0.0001132637206 | F189: =VLOOKUP($D189,Point_Sources_All!$A$5:$FS$205,((3*($E$13-1)+$C$4)+($D$8)))/1000*365.25 -> 0 | G189: =VLOOKUP($D189,Point_Sources_All!$A$5:$FS$205,((3*($E$14-1)+$C$4)+($D$8)))/1000*365.25 -> 1.2557295e-06 | H189: =VLOOKUP($D189,Point_Sources_All!$A$5:$FS$205,((3*($E$15-1)+$C$4)+($D$8)))/1000*365.25 -> 1.157096781e-05 | I189: =VLOOKUP($D189,Point_Sources_All!$A$5:$FS$205,((3*($E$16-1)+$C$4)+($D$8)))/1000*365.25 -> 1.715801444e-07 | J189: =VLOOKUP($D189,Point_Sources_All!$A$5:$FS$205,((3*($E$17-1)+$C$4)+($D$8)))/1000*365.25 -> 5.767145313e-06 | K189: =VLOOKUP($D189,Point_Sources_All!$A$5:$FS$205,((3*($E$18-1)+$C$4)+($D$8)))/1000*365.25 -> 0 | L189: =VLOOKUP($D189,Point_Sources_All!$A$5:$FS$205,((3*($E$19-1)+$C$4)+($D$8)))/1000*365.25 -> 0 | M189: =VLOOKUP($D189,Point_Sources_All!$A$5:$FS$205,((3*($E$20-1)+$C$4)+($D$8)))/1000*365.25 -> 1.057149162e-05 | N189: =VLOOKUP($D189,Point_Sources_All!$A$5:$FS$205,((3*($E$21-1)+$C$4)+($D$8)))/1000*365.25 -> 2.324545356e-06 | O189: =VLOOKUP($D189,Point_Sources_All!$A$5:$FS$205,((3*($E$22-1)+$C$4)+($D$8)))/1000*365.25 -> 5.568845e-06 | P189: =VLOOKUP($D189,Point_Sources_All!$A$5:$FS$205,((3*($E$23-1)+$C$4)+($D$8)))/1000*365.25 -> 0 | Q189: =VLOOKUP($D189,Point_Sources_All!$A$5:$FS$205,((3*($E$24-1)+$C$4)+($D$8)))/1000*365.25 -> 7.585177187e-08 | R189: =VLOOKUP($D189,Point_Sources_All!$A$5:$FS$205,((3*($E$25-1)+$C$4)+($D$8)))/1000*365.25 -> 0
D190: 162 | E190: =VLOOKUP($D190,Point_Sources_All!$A$5:$FS$205,((3*($E$12-1)+$C$4)+($D$8)))/1000*365.25 -> 0.0001132646337 | F190: =VLOOKUP($D190,Point_Sources_All!$A$5:$FS$205,((3*($E$13-1)+$C$4)+($D$8)))/1000*365.25 -> 0 | G190: =VLOOKUP($D190,Point_Sources_All!$A$5:$FS$205,((3*($E$14-1)+$C$4)+($D$8)))/1000*365.25 -> 1.244622856e-06 | H190: =VLOOKUP($D190,Point_Sources_All!$A$5:$FS$205,((3*($E$15-1)+$C$4)+($D$8)))/1000*365.25 -> 1.161288025e-05 | I190: =VLOOKUP($D190,Point_Sources_All!$A$5:$FS$205,((3*($E$16-1)+$C$4)+($D$8)))/1000*365.25 -> 1.709866131e-07 | J190: =VLOOKUP($D190,Point_Sources_All!$A$5:$FS$205,((3*($E$17-1)+$C$4)+($D$8)))/1000*365.25 -> 5.788025437e-06 | K190: =VLOOKUP($D190,Point_Sources_All!$A$5:$FS$205,((3*($E$18-1)+$C$4)+($D$8)))/1000*365.25 -> 0 | L190: =VLOOKUP($D190,Point_Sources_All!$A$5:$FS$205,((3*($E$19-1)+$C$4)+($D$8)))/1000*365.25 -> 0 | M190: =VLOOKUP($D190,Point_Sources_All!$A$5:$FS$205,((3*($E$20-1)+$C$4)+($D$8)))/1000*365.25 -> 1.060972112e-05 | N190: =VLOOKUP($D190,Point_Sources_All!$A$5:$FS$205,((3*($E$21-1)+$C$4)+($D$8)))/1000*365.25 -> 2.329966275e-06 | O190: =VLOOKUP($D190,Point_Sources_All!$A$5:$FS$205,((3*($E$22-1)+$C$4)+($D$8)))/1000*365.25 -> 5.590577375e-06 | P190: =VLOOKUP($D190,Point_Sources_All!$A$5:$FS$205,((3*($E$23-1)+$C$4)+($D$8)))/1000*365.25 -> 0 | Q190: =VLOOKUP($D190,Point_Sources_All!$A$5:$FS$205,((3*($E$24-1)+$C$4)+($D$8)))/1000*365.25 -> 6.659390187e-08 | R190: =VLOOKUP($D190,Point_Sources_All!$A$5:$FS$205,((3*($E$25-1)+$C$4)+($D$8)))/1000*365.25 -> 0
D191: 163 | E191: =VLOOKUP($D191,Point_Sources_All!$A$5:$FS$205,((3*($E$12-1)+$C$4)+($D$8)))/1000*365.25 -> 0.0001132658513 | F191: =VLOOKUP($D191,Point_Sources_All!$A$5:$FS$205,((3*($E$13-1)+$C$4)+($D$8)))/1000*365.25 -> 0 | G191: =VLOOKUP($D191,Point_Sources_All!$A$5:$FS$205,((3*($E$14-1)+$C$4)+($D$8)))/1000*365.25 -> 1.213424419e-06 | H191: =VLOOKUP($D191,Point_Sources_All!$A$5:$FS$205,((3*($E$15-1)+$C$4)+($D$8)))/1000*365.25 -> 1.161549788e-05 | I191: =VLOOKUP($D191,Point_Sources_All!$A$5:$FS$205,((3*($E$16-1)+$C$4)+($D$8)))/1000*365.25 -> 1.681906244e-07 | J191: =VLOOKUP($D191,Point_Sources_All!$A$5:$FS$205,((3*($E$17-1)+$C$4)+($D$8)))/1000*365.25 -> 5.789242937e-06 | K191: =VLOOKUP($D191,Point_Sources_All!$A$5:$FS$205,((3*($E$18-1)+$C$4)+($D$8)))/1000*365.25 -> 0 | L191: =VLOOKUP($D191,Point_Sources_All!$A$5:$FS$205,((3*($E$19-1)+$C$4)+($D$8)))/1000*365.25 -> 0 | M191: =VLOOKUP($D191,Point_Sources_All!$A$5:$FS$205,((3*($E$20-1)+$C$4)+($D$8)))/1000*365.25 -> 1.061215613e-05 | N191: =VLOOKUP($D191,Point_Sources_All!$A$5:$FS$205,((3*($E$21-1)+$C$4)+($D$8)))/1000*365.25 -> 2.310154506e-06 | O191: =VLOOKUP($D191,Point_Sources_All!$A$5:$FS$205,((3*($E$22-1)+$C$4)+($D$8)))/1000*365.25 -> 5.56093125e-06 | P191: =VLOOKUP($D191,Point_Sources_All!$A$5:$FS$205,((3*($E$23-1)+$C$4)+($D$8)))/1000*365.25 -> 0 | Q191: =VLOOKUP($D191,Point_Sources_All!$A$5:$FS$205,((3*($E$24-1)+$C$4)+($D$8)))/1000*365.25 -> 6.971131063e-08 | R191: =VLOOKUP($D191,Point_Sources_All!$A$5:$FS$205,((3*($E$25-1)+$C$4)+($D$8)))/1000*365.25 -> 0
D192: 164 | E192: =VLOOKUP($D192,Point_Sources_All!$A$5:$FS$205,((3*($E$12-1)+$C$4)+($D$8)))/1000*365.25 -> 0.0001132676775 | F192: =VLOOKUP($D192,Point_Sources_All!$A$5:$FS$205,((3*($E$13-1)+$C$4)+($D$8)))/1000*365.25 -> 0 | G192: =VLOOKUP($D192,Point_Sources_All!$A$5:$FS$205,((3*($E$14-1)+$C$4)+($D$8)))/1000*365.25 -> 1.204232294e-06 | H192: =VLOOKUP($D192,Point_Sources_All!$A$5:$FS$205,((3*($E$15-1)+$C$4)+($D$8)))/1000*365.25 -> 1.15674675e-05 | I192: =VLOOKUP($D192,Point_Sources_All!$A$5:$FS$205,((3*($E$16-1)+$C$4)+($D$8)))/1000*365.25 -> 1.688164194e-07 | J192: =VLOOKUP($D192,Point_Sources_All!$A$5:$FS$205,((3*($E$17-1)+$C$4)+($D$8)))/1000*365.25 -> 5.765258188e-06 | K192: =VLOOKUP($D192,Point_Sources_All!$A$5:$FS$205,((3*($E$18-1)+$C$4)+($D$8)))/1000*365.25 -> 0 | L192: =VLOOKUP($D192,Point_Sources_All!$A$5:$FS$205,((3*($E$19-1)+$C$4)+($D$8)))/1000*365.25 -> 0 | M192: =VLOOKUP($D192,Point_Sources_All!$A$5:$FS$205,((3*($E$20-1)+$C$4)+($D$8)))/1000*365.25 -> 1.056820438e-05 | N192: =VLOOKUP($D192,Point_Sources_All!$A$5:$FS$205,((3*($E$21-1)+$C$4)+($D$8)))/1000*365.25 -> 2.300773669e-06 | O192: =VLOOKUP($D192,Point_Sources_All!$A$5:$FS$205,((3*($E$22-1)+$C$4)+($D$8)))/1000*365.25 -> 5.499295313e-06 | P192: =VLOOKUP($D192,Point_Sources_All!$A$5:$FS$205,((3*($E$23-1)+$C$4)+($D$8)))/1000*365.25 -> 0 | Q192: =VLOOKUP($D192,Point_Sources_All!$A$5:$FS$205,((3*($E$24-1)+$C$4)+($D$8)))/1000*365.25 -> 6.353493312e-08 | R192: =VLOOKUP($D192,Point_Sources_All!$A$5:$FS$205,((3*($E$25-1)+$C$4)+($D$8)))/1000*365.25 -> 0
D193: 165 | E193: =VLOOKUP($D193,Point_Sources_All!$A$5:$FS$205,((3*($E$12-1)+$C$4)+($D$8)))/1000*365.25 -> 0.0001132655469 | F193: =VLOOKUP($D193,Point_Sources_All!$A$5:$FS$205,((3*($E$13-1)+$C$4)+($D$8)))/1000*365.25 -> 0 | G193: =VLOOKUP($D193,Point_Sources_All!$A$5:$FS$205,((3*($E$14-1)+$C$4)+($D$8)))/1000*365.25 -> 1.216054219e-06 | H193: =VLOOKUP($D193,Point_Sources_All!$A$5:$FS$205,((3*($E$15-1)+$C$4)+($D$8)))/1000*365.25 -> 1.156661525e-05 | I193: =VLOOKUP($D193,Point_Sources_All!$A$5:$FS$205,((3*($E$16-1)+$C$4)+($D$8)))/1000*365.25 -> 1.690623544e-07 | J193: =VLOOKUP($D193,Point_Sources_All!$A$5:$FS$205,((3*($E$17-1)+$C$4)+($D$8)))/1000*365.25 -> 5.764892938e-06 | K193: =VLOOKUP($D193,Point_Sources_All!$A$5:$FS$205,((3*($E$18-1)+$C$4)+($D$8)))/1000*365.25 -> 0 | L193: =VLOOKUP($D193,Point_Sources_All!$A$5:$FS$205,((3*($E$19-1)+$C$4)+($D$8)))/1000*365.25 -> 0 | M193: =VLOOKUP($D193,Point_Sources_All!$A$5:$FS$205,((3*($E$20-1)+$C$4)+($D$8)))/1000*365.25 -> 1.056744344e-05 | N193: =VLOOKUP($D193,Point_Sources_All!$A$5:$FS$205,((3*($E$21-1)+$C$4)+($D$8)))/1000*365.25 -> 2.310696294e-06 | O193: =VLOOKUP($D193,Point_Sources_All!$A$5:$FS$205,((3*($E$22-1)+$C$4)+($D$8)))/1000*365.25 -> 5.44599925e-06 | P193: =VLOOKUP($D193,Point_Sources_All!$A$5:$FS$205,((3*($E$23-1)+$C$4)+($D$8)))/1000*365.25 -> 0 | Q193: =VLOOKUP($D193,Point_Sources_All!$A$5:$FS$205,((3*($E$24-1)+$C$4)+($D$8)))/1000*365.25 -> 6.247753438e-08 | R193: =VLOOKUP($D193,Point_Sources_All!$A$5:$FS$205,((3*($E$25-1)+$C$4)+($D$8)))/1000*365.25 -> 0
D194: 166 | E194: =VLOOKUP($D194,Point_Sources_All!$A$5:$FS$205,((3*($E$12-1)+$C$4)+($D$8)))/1000*365.25 -> 0.0001132670688 | F194: =VLOOKUP($D194,Point_Sources_All!$A$5:$FS$205,((3*($E$13-1)+$C$4)+($D$8)))/1000*365.25 -> 0 | G194: =VLOOKUP($D194,Point_Sources_All!$A$5:$FS$205,((3*($E$14-1)+$C$4)+($D$8)))/1000*365.25 -> 1.222875263e-06 | H194: =VLOOKUP($D194,Point_Sources_All!$A$5:$FS$205,((3*($E$15-1)+$C$4)+($D$8)))/1000*365.25 -> 1.148117719e-05 | I194: =VLOOKUP($D194,Point_Sources_All!$A$5:$FS$205,((3*($E$16-1)+$C$4)+($D$8)))/1000*365.25 -> 1.674564719e-07 | J194: =VLOOKUP($D194,Point_Sources_All!$A$5:$FS$205,((3*($E$17-1)+$C$4)+($D$8)))/1000*365.25 -> 5.722341313e-06 | K194: =VLOOKUP($D194,Point_Sources_All!$A$5:$FS$205,((3*($E$18-1)+$C$4)+($D$8)))/1000*365.25 -> 0 | L194: =VLOOKUP($D194,Point_Sources_All!$A$5:$FS$205,((3*($E$19-1)+$C$4)+($D$8)))/1000*365.25 -> 0 | M194: =VLOOKUP($D194,Point_Sources_All!$A$5:$FS$205,((3*($E$20-1)+$C$4)+($D$8)))/1000*365.25 -> 1.048940169e-05 | N194: =VLOOKUP($D194,Point_Sources_All!$A$5:$FS$205,((3*($E$21-1)+$C$4)+($D$8)))/1000*365.25 -> 2.331835138e-06 | O194: =VLOOKUP($D194,Point_Sources_All!$A$5:$FS$205,((3*($E$22-1)+$C$4)+($D$8)))/1000*365.25 -> 5.5549655e-06 | P194: =VLOOKUP($D194,Point_Sources_All!$A$5:$FS$205,((3*($E$23-1)+$C$4)+($D$8)))/1000*365.25 -> 0 | Q194: =VLOOKUP($D194,Point_Sources_All!$A$5:$FS$205,((3*($E$24-1)+$C$4)+($D$8)))/1000*365.25 -> 5.984803875e-08 | R194: =VLOOKUP($D194,Point_Sources_All!$A$5:$FS$205,((3*($E$25-1)+$C$4)+($D$8)))/1000*365.25 -> 0
D195: 167 | E195: =VLOOKUP($D195,Point_Sources_All!$A$5:$FS$205,((3*($E$12-1)+$C$4)+($D$8)))/1000*365.25 -> 0.0001132691994 | F195: =VLOOKUP($D195,Point_Sources_All!$A$5:$FS$205,((3*($E$13-1)+$C$4)+($D$8)))/1000*365.25 -> 0 | G195: =VLOOKUP($D195,Point_Sources_All!$A$5:$FS$205,((3*($E$14-1)+$C$4)+($D$8)))/1000*365.25 -> 1.220157194e-06 | H195: =VLOOKUP($D195,Point_Sources_All!$A$5:$FS$205,((3*($E$15-1)+$C$4)+($D$8)))/1000*365.25 -> 1.146845431e-05 | I195: =VLOOKUP($D195,Point_Sources_All!$A$5:$FS$205,((3*($E$16-1)+$C$4)+($D$8)))/1000*365.25 -> 1.655465187e-07 | J195: =VLOOKUP($D195,Point_Sources_All!$A$5:$FS$205,((3*($E$17-1)+$C$4)+($D$8)))/1000*365.25 -> 5.715979875e-06 | K195: =VLOOKUP($D195,Point_Sources_All!$A$5:$FS$205,((3*($E$18-1)+$C$4)+($D$8)))/1000*365.25 -> 0 | L195: =VLOOKUP($D195,Point_Sources_All!$A$5:$FS$205,((3*($E$19-1)+$C$4)+($D$8)))/1000*365.25 -> 0 | M195: =VLOOKUP($D195,Point_Sources_All!$A$5:$FS$205,((3*($E$20-1)+$C$4)+($D$8)))/1000*365.25 -> 1.047771369e-05 | N195: =VLOOKUP($D195,Point_Sources_All!$A$5:$FS$205,((3*($E$21-1)+$C$4)+($D$8)))/1000*365.25 -> 2.301717231e-06 | O195: =VLOOKUP($D195,Point_Sources_All!$A$5:$FS$205,((3*($E$22-1)+$C$4)+($D$8)))/1000*365.25 -> 5.564188063e-06 | P195: =VLOOKUP($D195,Point_Sources_All!$A$5:$FS$205,((3*($E$23-1)+$C$4)+($D$8)))/1000*365.25 -> 0 | Q195: =VLOOKUP($D195,Point_Sources_All!$A$5:$FS$205,((3*($E$24-1)+$C$4)+($D$8)))/1000*365.25 -> 5.983251562e-08 | R195: =VLOOKUP($D195,Point_Sources_All!$A$5:$FS$205,((3*($E$25-1)+$C$4)+($D$8)))/1000*365.25 -> 0
D196: 168 | E196: =VLOOKUP($D196,Point_Sources_All!$A$5:$FS$205,((3*($E$12-1)+$C$4)+($D$8)))/1000*365.25 -> 0.0001132667644 | F196: =VLOOKUP($D196,Point_Sources_All!$A$5:$FS$205,((3*($E$13-1)+$C$4)+($D$8)))/1000*365.25 -> 0 | G196: =VLOOKUP($D196,Point_Sources_All!$A$5:$FS$205,((3*($E$14-1)+$C$4)+($D$8)))/1000*365.25 -> 1.20072285e-06 | H196: =VLOOKUP($D196,Point_Sources_All!$A$5:$FS$205,((3*($E$15-1)+$C$4)+($D$8)))/1000*365.25 -> 1.146066231e-05 | I196: =VLOOKUP($D196,Point_Sources_All!$A$5:$FS$205,((3*($E$16-1)+$C$4)+($D$8)))/1000*365.25 -> 1.66916815e-07 | J196: =VLOOKUP($D196,Point_Sources_All!$A$5:$FS$205,((3*($E$17-1)+$C$4)+($D$8)))/1000*365.25 -> 5.712083875e-06 | K196: =VLOOKUP($D196,Point_Sources_All!$A$5:$FS$205,((3*($E$18-1)+$C$4)+($D$8)))/1000*365.25 -> 0 | L196: =VLOOKUP($D196,Point_Sources_All!$A$5:$FS$205,((3*($E$19-1)+$C$4)+($D$8)))/1000*365.25 -> 0 | M196: =VLOOKUP($D196,Point_Sources_All!$A$5:$FS$205,((3*($E$20-1)+$C$4)+($D$8)))/1000*365.25 -> 1.047059131e-05 | N196: =VLOOKUP($D196,Point_Sources_All!$A$5:$FS$205,((3*($E$21-1)+$C$4)+($D$8)))/1000*365.25 -> 2.304036569e-06 | O196: =VLOOKUP($D196,Point_Sources_All!$A$5:$FS$205,((3*($E$22-1)+$C$4)+($D$8)))/1000*365.25 -> 5.560870375e-06 | P196: =VLOOKUP($D196,Point_Sources_All!$A$5:$FS$205,((3*($E$23-1)+$C$4)+($D$8)))/1000*365.25 -> 0 | Q196: =VLOOKUP($D196,Point_Sources_All!$A$5:$FS$205,((3*($E$24-1)+$C$4)+($D$8)))/1000*365.25 -> 7.041137312e-08 | R196: =VLOOKUP($D196,Point_Sources_All!$A$5:$FS$205,((3*($E$25-1)+$C$4)+($D$8)))/1000*365.25 -> 0
D197: 169 | E197: =VLOOKUP($D197,Point_Sources_All!$A$5:$FS$205,((3*($E$12-1)+$C$4)+($D$8)))/1000*365.25 -> 0.0001132679819 | F197: =VLOOKUP($D197,Point_Sources_All!$A$5:$FS$205,((3*($E$13-1)+$C$4)+($D$8)))/1000*365.25 -> 0 | G197: =VLOOKUP($D197,Point_Sources_All!$A$5:$FS$205,((3*($E$14-1)+$C$4)+($D$8)))/1000*365.25 -> 1.199913213e-06 | H197: =VLOOKUP($D197,Point_Sources_All!$A$5:$FS$205,((3*($E$15-1)+$C$4)+($D$8)))/1000*365.25 -> 1.153009025e-05 | I197: =VLOOKUP($D197,Point_Sources_All!$A$5:$FS$205,((3*($E$16-1)+$C$4)+($D$8)))/1000*365.25 -> 1.653027144e-07 | J197: =VLOOKUP($D197,Point_Sources_All!$A$5:$FS$205,((3*($E$17-1)+$C$4)+($D$8)))/1000*365.25 -> 5.74672175e-06 | K197: =VLOOKUP($D197,Point_Sources_All!$A$5:$FS$205,((3*($E$18-1)+$C$4)+($D$8)))/1000*365.25 -> 0 | L197: =VLOOKUP($D197,Point_Sources_All!$A$5:$FS$205,((3*($E$19-1)+$C$4)+($D$8)))/1000*365.25 -> 0 | M197: =VLOOKUP($D197,Point_Sources_All!$A$5:$FS$205,((3*($E$20-1)+$C$4)+($D$8)))/1000*365.25 -> 1.053411437e-05 | N197: =VLOOKUP($D197,Point_Sources_All!$A$5:$FS$205,((3*($E$21-1)+$C$4)+($D$8)))/1000*365.25 -> 2.308361737e-06 | O197: =VLOOKUP($D197,Point_Sources_All!$A$5:$FS$205,((3*($E$22-1)+$C$4)+($D$8)))/1000*365.25 -> 5.533476625e-06 | P197: =VLOOKUP($D197,Point_Sources_All!$A$5:$FS$205,((3*($E$23-1)+$C$4)+($D$8)))/1000*365.25 -> 0 | Q197: =VLOOKUP($D197,Point_Sources_All!$A$5:$FS$205,((3*($E$24-1)+$C$4)+($D$8)))/1000*365.25 -> 5.827137625e-08 | R197: =VLOOKUP($D197,Point_Sources_All!$A$5:$FS$205,((3*($E$25-1)+$C$4)+($D$8)))/1000*365.25 -> 0
D198: 170 | E198: =VLOOKUP($D198,Point_Sources_All!$A$5:$FS$205,((3*($E$12-1)+$C$4)+($D$8)))/1000*365.25 -> 0.00011326646 | F198: =VLOOKUP($D198,Point_Sources_All!$A$5:$FS$205,((3*($E$13-1)+$C$4)+($D$8)))/1000*365.25 -> 0 | G198: =VLOOKUP($D198,Point_Sources_All!$A$5:$FS$205,((3*($E$14-1)+$C$4)+($D$8)))/1000*365.25 -> 1.233217925e-06 | H198: =VLOOKUP($D198,Point_Sources_All!$A$5:$FS$205,((3*($E$15-1)+$C$4)+($D$8)))/1000*365.25 -> 1.157041994e-05 | I198: =VLOOKUP($D198,Point_Sources_All!$A$5:$FS$205,((3*($E$16-1)+$C$4)+($D$8)))/1000*365.25 -> 1.650129494e-07 | J198: =VLOOKUP($D198,Point_Sources_All!$A$5:$FS$205,((3*($E$17-1)+$C$4)+($D$8)))/1000*365.25 -> 5.7668105e-06 | K198: =VLOOKUP($D198,Point_Sources_All!$A$5:$FS$205,((3*($E$18-1)+$C$4)+($D$8)))/1000*365.25 -> 0 | L198: =VLOOKUP($D198,Point_Sources_All!$A$5:$FS$205,((3*($E$19-1)+$C$4)+($D$8)))/1000*365.25 -> 0 | M198: =VLOOKUP($D198,Point_Sources_All!$A$5:$FS$205,((3*($E$20-1)+$C$4)+($D$8)))/1000*365.25 -> 1.057091331e-05 | N198: =VLOOKUP($D198,Point_Sources_All!$A$5:$FS$205,((3*($E$21-1)+$C$4)+($D$8)))/1000*365.25 -> 2.317088169e-06 | O198: =VLOOKUP($D198,Point_Sources_All!$A$5:$FS$205,((3*($E$22-1)+$C$4)+($D$8)))/1000*365.25 -> 5.595934375e-06 | P198: =VLOOKUP($D198,Point_Sources_All!$A$5:$FS$205,((3*($E$23-1)+$C$4)+($D$8)))/1000*365.25 -> 0 | Q198: =VLOOKUP($D198,Point_Sources_All!$A$5:$FS$205,((3*($E$24-1)+$C$4)+($D$8)))/1000*365.25 -> 7.911315e-08 | R198: =VLOOKUP($D198,Point_Sources_All!$A$5:$FS$205,((3*($E$25-1)+$C$4)+($D$8)))/1000*365.25 -> 0
D199: 171 | E199: =VLOOKUP($D199,Point_Sources_All!$A$5:$FS$205,((3*($E$12-1)+$C$4)+($D$8)))/1000*365.25 -> 0.000113264025 | F199: =VLOOKUP($D199,Point_Sources_All!$A$5:$FS$205,((3*($E$13-1)+$C$4)+($D$8)))/1000*365.25 -> 0 | G199: =VLOOKUP($D199,Point_Sources_All!$A$5:$FS$205,((3*($E$14-1)+$C$4)+($D$8)))/1000*365.25 -> 1.218519656e-06 | H199: =VLOOKUP($D199,Point_Sources_All!$A$5:$FS$205,((3*($E$15-1)+$C$4)+($D$8)))/1000*365.25 -> 1.146839344e-05 | I199: =VLOOKUP($D199,Point_Sources_All!$A$5:$FS$205,((3*($E$16-1)+$C$4)+($D$8)))/1000*365.25 -> 1.670793513e-07 | J199: =VLOOKUP($D199,Point_Sources_All!$A$5:$FS$205,((3*($E$17-1)+$C$4)+($D$8)))/1000*365.25 -> 5.715949438e-06 | K199: =VLOOKUP($D199,Point_Sources_All!$A$5:$FS$205,((3*($E$18-1)+$C$4)+($D$8)))/1000*365.25 -> 0 | L199: =VLOOKUP($D199,Point_Sources_All!$A$5:$FS$205,((3*($E$19-1)+$C$4)+($D$8)))/1000*365.25 -> 0 | M199: =VLOOKUP($D199,Point_Sources_All!$A$5:$FS$205,((3*($E$20-1)+$C$4)+($D$8)))/1000*365.25 -> 1.047768325e-05 | N199: =VLOOKUP($D199,Point_Sources_All!$A$5:$FS$205,((3*($E$21-1)+$C$4)+($D$8)))/1000*365.25 -> 2.321538131e-06 | O199: =VLOOKUP($D199,Point_Sources_All!$A$5:$FS$205,((3*($E$22-1)+$C$4)+($D$8)))/1000*365.25 -> 5.625245687e-06 | P199: =VLOOKUP($D199,Point_Sources_All!$A$5:$FS$205,((3*($E$23-1)+$C$4)+($D$8)))/1000*365.25 -> 0 | Q199: =VLOOKUP($D199,Point_Sources_All!$A$5:$FS$205,((3*($E$24-1)+$C$4)+($D$8)))/1000*365.25 -> 6.893454563e-08 | R199: =VLOOKUP($D199,Point_Sources_All!$A$5:$FS$205,((3*($E$25-1)+$C$4)+($D$8)))/1000*365.25 -> 0
D200: 172 | E200: =VLOOKUP($D200,Point_Sources_All!$A$5:$FS$205,((3*($E$12-1)+$C$4)+($D$8)))/1000*365.25 -> 0.0001132621987 | F200: =VLOOKUP($D200,Point_Sources_All!$A$5:$FS$205,((3*($E$13-1)+$C$4)+($D$8)))/1000*365.25 -> 0 | G200: =VLOOKUP($D200,Point_Sources_All!$A$5:$FS$205,((3*($E$14-1)+$C$4)+($D$8)))/1000*365.25 -> 1.215418075e-06 | H200: =VLOOKUP($D200,Point_Sources_All!$A$5:$FS$205,((3*($E$15-1)+$C$4)+($D$8)))/1000*365.25 -> 1.151551069e-05 | I200: =VLOOKUP($D200,Point_Sources_All!$A$5:$FS$205,((3*($E$16-1)+$C$4)+($D$8)))/1000*365.25 -> 1.680917025e-07 | J200: =VLOOKUP($D200,Point_Sources_All!$A$5:$FS$205,((3*($E$17-1)+$C$4)+($D$8)))/1000*365.25 -> 5.739477625e-06 | K200: =VLOOKUP($D200,Point_Sources_All!$A$5:$FS$205,((3*($E$18-1)+$C$4)+($D$8)))/1000*365.25 -> 0 | L200: =VLOOKUP($D200,Point_Sources_All!$A$5:$FS$205,((3*($E$19-1)+$C$4)+($D$8)))/1000*365.25 -> 0 | M200: =VLOOKUP($D200,Point_Sources_All!$A$5:$FS$205,((3*($E$20-1)+$C$4)+($D$8)))/1000*365.25 -> 1.052072188e-05 | N200: =VLOOKUP($D200,Point_Sources_All!$A$5:$FS$205,((3*($E$21-1)+$C$4)+($D$8)))/1000*365.25 -> 2.308422612e-06 | O200: =VLOOKUP($D200,Point_Sources_All!$A$5:$FS$205,((3*($E$22-1)+$C$4)+($D$8)))/1000*365.25 -> 5.610300875e-06 | P200: =VLOOKUP($D200,Point_Sources_All!$A$5:$FS$205,((3*($E$23-1)+$C$4)+($D$8)))/1000*365.25 -> 0 | Q200: =VLOOKUP($D200,Point_Sources_All!$A$5:$FS$205,((3*($E$24-1)+$C$4)+($D$8)))/1000*365.25 -> 5.951048687e-08 | R200: =VLOOKUP($D200,Point_Sources_All!$A$5:$FS$205,((3*($E$25-1)+$C$4)+($D$8)))/1000*365.25 -> 0
D201: 173 | E201: =VLOOKUP($D201,Point_Sources_All!$A$5:$FS$205,((3*($E$12-1)+$C$4)+($D$8)))/1000*365.25 -> 0.000113264025 | F201: =VLOOKUP($D201,Point_Sources_All!$A$5:$FS$205,((3*($E$13-1)+$C$4)+($D$8)))/1000*365.25 -> 0 | G201: =VLOOKUP($D201,Point_Sources_All!$A$5:$FS$205,((3*($E$14-1)+$C$4)+($D$8)))/1000*365.25 -> 1.218184844e-06 | H201: =VLOOKUP($D201,Point_Sources_All!$A$5:$FS$205,((3*($E$15-1)+$C$4)+($D$8)))/1000*365.25 -> 1.143725588e-05 | I201: =VLOOKUP($D201,Point_Sources_All!$A$5:$FS$205,((3*($E$16-1)+$C$4)+($D$8)))/1000*365.25 -> 1.660998725e-07 | J201: =VLOOKUP($D201,Point_Sources_All!$A$5:$FS$205,((3*($E$17-1)+$C$4)+($D$8)))/1000*365.25 -> 5.700365438e-06 | K201: =VLOOKUP($D201,Point_Sources_All!$A$5:$FS$205,((3*($E$18-1)+$C$4)+($D$8)))/1000*365.25 -> 0 | L201: =VLOOKUP($D201,Point_Sources_All!$A$5:$FS$205,((3*($E$19-1)+$C$4)+($D$8)))/1000*365.25 -> 0 | M201: =VLOOKUP($D201,Point_Sources_All!$A$5:$FS$205,((3*($E$20-1)+$C$4)+($D$8)))/1000*365.25 -> 1.044922419e-05 | N201: =VLOOKUP($D201,Point_Sources_All!$A$5:$FS$205,((3*($E$21-1)+$C$4)+($D$8)))/1000*365.25 -> 2.317605606e-06 | O201: =VLOOKUP($D201,Point_Sources_All!$A$5:$FS$205,((3*($E$22-1)+$C$4)+($D$8)))/1000*365.25 -> 5.576637e-06 | P201: =VLOOKUP($D201,Point_Sources_All!$A$5:$FS$205,((3*($E$23-1)+$C$4)+($D$8)))/1000*365.25 -> 0 | Q201: =VLOOKUP($D201,Point_Sources_All!$A$5:$FS$205,((3*($E$24-1)+$C$4)+($D$8)))/1000*365.25 -> 5.818493375e-08 | R201: =VLOOKUP($D201,Point_Sources_All!$A$5:$FS$205,((3*($E$25-1)+$C$4)+($D$8)))/1000*365.25 -> 0
D202: 174 | E202: =VLOOKUP($D202,Point_Sources_All!$A$5:$FS$205,((3*($E$12-1)+$C$4)+($D$8)))/1000*365.25 -> 0.0001132667644 | F202: =VLOOKUP($D202,Point_Sources_All!$A$5:$FS$205,((3*($E$13-1)+$C$4)+($D$8)))/1000*365.25 -> 0 | G202: =VLOOKUP($D202,Point_Sources_All!$A$5:$FS$205,((3*($E$14-1)+$C$4)+($D$8)))/1000*365.25 -> 1.2040101e-06 | H202: =VLOOKUP($D202,Point_Sources_All!$A$5:$FS$205,((3*($E$15-1)+$C$4)+($D$8)))/1000*365.25 -> 1.144690456e-05 | I202: =VLOOKUP($D202,Point_Sources_All!$A$5:$FS$205,((3*($E$16-1)+$C$4)+($D$8)))/1000*365.25 -> 1.649219413e-07 | J202: =VLOOKUP($D202,Point_Sources_All!$A$5:$FS$205,((3*($E$17-1)+$C$4)+($D$8)))/1000*365.25 -> 5.705205e-06 | K202: =VLOOKUP($D202,Point_Sources_All!$A$5:$FS$205,((3*($E$18-1)+$C$4)+($D$8)))/1000*365.25 -> 0 | L202: =VLOOKUP($D202,Point_Sources_All!$A$5:$FS$205,((3*($E$19-1)+$C$4)+($D$8)))/1000*365.25 -> 0 | M202: =VLOOKUP($D202,Point_Sources_All!$A$5:$FS$205,((3*($E$20-1)+$C$4)+($D$8)))/1000*365.25 -> 1.04580815e-05 | N202: =VLOOKUP($D202,Point_Sources_All!$A$5:$FS$205,((3*($E$21-1)+$C$4)+($D$8)))/1000*365.25 -> 2.321483344e-06 | O202: =VLOOKUP($D202,Point_Sources_All!$A$5:$FS$205,((3*($E$22-1)+$C$4)+($D$8)))/1000*365.25 -> 5.694156188e-06 | P202: =VLOOKUP($D202,Point_Sources_All!$A$5:$FS$205,((3*($E$23-1)+$C$4)+($D$8)))/1000*365.25 -> 0 | Q202: =VLOOKUP($D202,Point_Sources_All!$A$5:$FS$205,((3*($E$24-1)+$C$4)+($D$8)))/1000*365.25 -> 6.112032625e-08 | R202: =VLOOKUP($D202,Point_Sources_All!$A$5:$FS$205,((3*($E$25-1)+$C$4)+($D$8)))/1000*365.25 -> 0
D203: 175 | E203: =VLOOKUP($D203,Point_Sources_All!$A$5:$FS$205,((3*($E$12-1)+$C$4)+($D$8)))/1000*365.25 -> 0.0001132652425 | F203: =VLOOKUP($D203,Point_Sources_All!$A$5:$FS$205,((3*($E$13-1)+$C$4)+($D$8)))/1000*365.25 -> 0 | G203: =VLOOKUP($D203,Point_Sources_All!$A$5:$FS$205,((3*($E$14-1)+$C$4)+($D$8)))/1000*365.25 -> 1.191214175e-06 | H203: =VLOOKUP($D203,Point_Sources_All!$A$5:$FS$205,((3*($E$15-1)+$C$4)+($D$8)))/1000*365.25 -> 1.149624375e-05 | I203: =VLOOKUP($D203,Point_Sources_All!$A$5:$FS$205,((3*($E$16-1)+$C$4)+($D$8)))/1000*365.25 -> 1.665488256e-07 | J203: =VLOOKUP($D203,Point_Sources_All!$A$5:$FS$205,((3*($E$17-1)+$C$4)+($D$8)))/1000*365.25 -> 5.7297985e-06 | K203: =VLOOKUP($D203,Point_Sources_All!$A$5:$FS$205,((3*($E$18-1)+$C$4)+($D$8)))/1000*365.25 -> 0 | L203: =VLOOKUP($D203,Point_Sources_All!$A$5:$FS$205,((3*($E$19-1)+$C$4)+($D$8)))/1000*365.25 -> 0 | M203: =VLOOKUP($D203,Point_Sources_All!$A$5:$FS$205,((3*($E$20-1)+$C$4)+($D$8)))/1000*365.25 -> 1.050306812e-05 | N203: =VLOOKUP($D203,Point_Sources_All!$A$5:$FS$205,((3*($E$21-1)+$C$4)+($D$8)))/1000*365.25 -> 2.339898031e-06 | O203: =VLOOKUP($D203,Point_Sources_All!$A$5:$FS$205,((3*($E$22-1)+$C$4)+($D$8)))/1000*365.25 -> 5.72553725e-06 | P203: =VLOOKUP($D203,Point_Sources_All!$A$5:$FS$205,((3*($E$23-1)+$C$4)+($D$8)))/1000*365.25 -> 0 | Q203: =VLOOKUP($D203,Point_Sources_All!$A$5:$FS$205,((3*($E$24-1)+$C$4)+($D$8)))/1000*365.25 -> 6.06619375e-08 | R203: =VLOOKUP($D203,Point_Sources_All!$A$5:$FS$205,((3*($E$25-1)+$C$4)+($D$8)))/1000*365.25 -> 0
D204: 176 | E204: =VLOOKUP($D204,Point_Sources_All!$A$5:$FS$205,((3*($E$12-1)+$C$4)+($D$8)))/1000*365.25 -> 0.0001132658512 | F204: =VLOOKUP($D204,Point_Sources_All!$A$5:$FS$205,((3*($E$13-1)+$C$4)+($D$8)))/1000*365.25 -> 0 | G204: =VLOOKUP($D204,Point_Sources_All!$A$5:$FS$205,((3*($E$14-1)+$C$4)+($D$8)))/1000*365.25 -> 1.201298119e-06 | H204: =VLOOKUP($D204,Point_Sources_All!$A$5:$FS$205,((3*($E$15-1)+$C$4)+($D$8)))/1000*365.25 -> 1.152327225e-05 | I204: =VLOOKUP($D204,Point_Sources_All!$A$5:$FS$205,((3*($E$16-1)+$C$4)+($D$8)))/1000*365.25 -> 1.673663769e-07 | J204: =VLOOKUP($D204,Point_Sources_All!$A$5:$FS$205,((3*($E$17-1)+$C$4)+($D$8)))/1000*365.25 -> 5.743282313e-06 | K204: =VLOOKUP($D204,Point_Sources_All!$A$5:$FS$205,((3*($E$18-1)+$C$4)+($D$8)))/1000*365.25 -> 0 | L204: =VLOOKUP($D204,Point_Sources_All!$A$5:$FS$205,((3*($E$19-1)+$C$4)+($D$8)))/1000*365.25 -> 0 | M204: =VLOOKUP($D204,Point_Sources_All!$A$5:$FS$205,((3*($E$20-1)+$C$4)+($D$8)))/1000*365.25 -> 1.052787469e-05 | N204: =VLOOKUP($D204,Point_Sources_All!$A$5:$FS$205,((3*($E$21-1)+$C$4)+($D$8)))/1000*365.25 -> 2.334431456e-06 | O204: =VLOOKUP($D204,Point_Sources_All!$A$5:$FS$205,((3*($E$22-1)+$C$4)+($D$8)))/1000*365.25 -> 5.710105438e-06 | P204: =VLOOKUP($D204,Point_Sources_All!$A$5:$FS$205,((3*($E$23-1)+$C$4)+($D$8)))/1000*365.25 -> 0 | Q204: =VLOOKUP($D204,Point_Sources_All!$A$5:$FS$205,((3*($E$24-1)+$C$4)+($D$8)))/1000*365.25 -> 5.6492e-08 | R204: =VLOOKUP($D204,Point_Sources_All!$A$5:$FS$205,((3*($E$25-1)+$C$4)+($D$8)))/1000*365.25 -> 0
... 23 more rows

Sheet Point_Sources_All
B1: Values shown for constituent selected on PlotControl tab | AT1: Values shown for constituent selected on PlotControl tab | CL1: Values shown for constituent selected on PlotControl tab | ED1: Values shown for constituent selected on PlotControl tab
B2: =PlotControl!$B$12 -> FTB Pond | E2: =PlotControl!$B$13 -> Cell 1E Pond (Early Years) | H2: =PlotControl!$B$14 -> North Dam Seepage | K2: =PlotControl!$B$15 -> North Beach Seepage | N2: =PlotControl!$B$16 -> East Dam Seepage | Q2: =PlotControl!$B$17 -> East Beach Seepage | T2: =PlotControl!$B$18 -> South Dam Seepage | W2: =PlotControl!$B$19 -> South Beach Seepage | Z2: =PlotControl!$B$20 -> Closure Beach Seepage | AC2: =PlotControl!$B$21 -> Cell 2W LTVSMC Tailings | AF2: =PlotControl!$B$22 -> Cell 2E LTVSMC Tailings | AI2: =PlotControl!$B$23 -> Cell 1E LTVSMC Tailings | AL2: =PlotControl!$B$24 -> North Buttress | AO2: =PlotControl!$B$25 -> South Buttress | AT2: =PlotControl!$B$12 -> FTB Pond | AW2: =PlotControl!$B$13 -> Cell 1E Pond (Early Years) | AZ2: =PlotControl!$B$14 -> North Dam Seepage | BC2: =PlotControl!$B$15 -> North Beach Seepage | BF2: =PlotControl!$B$16 -> East Dam Seepage | BI2: =PlotControl!$B$17 -> East Beach Seepage | BL2: =PlotControl!$B$18 -> South Dam Seepage | BO2: =PlotControl!$B$19 -> South Beach Seepage | BR2: =PlotControl!$B$20 -> Closure Beach Seepage | BU2: =PlotControl!$B$21 -> Cell 2W LTVSMC Tailings | BX2: =PlotControl!$B$22 -> Cell 2E LTVSMC Tailings | CA2: =PlotControl!$B$23 -> Cell 1E LTVSMC Tailings | CD2: =PlotControl!$B$24 -> North Buttress | CG2: =PlotControl!$B$25 -> South Buttress | CL2: =PlotControl!$B$12 -> FTB Pond | CO2: =PlotControl!$B$13 -> Cell 1E Pond (Early Years) | CR2: =PlotControl!$B$14 -> North Dam Seepage | CU2: =PlotControl!$B$15 -> North Beach Seepage | CX2: =PlotControl!$B$16 -> East Dam Seepage | DA2: =PlotControl!$B$17 -> East Beach Seepage | DD2: =PlotControl!$B$18 -> South Dam Seepage | DG2: =PlotControl!$B$19 -> South Beach Seepage | DJ2: =PlotControl!$B$20 -> Closure Beach Seepage | DM2: =PlotControl!$B$21 -> Cell 2W LTVSMC Tailings | DP2: =PlotControl!$B$22 -> Cell 2E LTVSMC Tailings | DS2: =PlotControl!$B$23 -> Cell 1E LTVSMC Tailings | DV2: =PlotControl!$B$24 -> North Buttress | DY2: =PlotControl!$B$25 -> South Buttress | ED2: =PlotControl!$B$12 -> FTB Pond | EG2: =PlotControl!$B$13 -> Cell 1E Pond (Early Years) | EJ2: =PlotControl!$B$14 -> North Dam Seepage | EM2: =PlotControl!$B$15 -> North Beach Seepage | EP2: =PlotControl!$B$16 -> East Dam Seepage | ES2: =PlotControl!$B$17 -> East Beach Seepage | EV2: =PlotControl!$B$18 -> South Dam Seepage | EY2: =PlotControl!$B$19 -> South Beach Seepage | FB2: =PlotControl!$B$20 -> Closure Beach Seepage | FE2: =PlotControl!$B$21 -> Cell 2W LTVSMC Tailings | FH2: =PlotControl!$B$22 -> Cell 2E LTVSMC Tailings | FK2: =PlotControl!$B$23 -> Cell 1E LTVSMC Tailings | FN2: =PlotControl!$B$24 -> North Buttress | FQ2: =PlotControl!$B$25 -> South Buttress
B3: Annual North Toe Loading | E3: Annual North Toe Loading | H3: Annual North Toe Loading | K3: Annual North Toe Loading | N3: Annual North Toe Loading | Q3: Annual North Toe Loading | T3: Annual North Toe Loading | W3: Annual North Toe Loading | Z3: Annual North Toe Loading | AC3: Annual North Toe Loading | AF3: Annual North Toe Loading | AI3: Annual North Toe Loading | AL3: Annual North Toe Loading | AO3: Annual North Toe Loading | AT3: Annual Northwest Toe Loading | AW3: Annual Northwest Toe Loading | AZ3: Annual Northwest Toe Loading | BC3: Annual Northwest Toe Loading | BF3: Annual Northwest Toe Loading | BI3: Annual Northwest Toe Loading | BL3: Annual Northwest Toe Loading | BO3: Annual Northwest Toe Loading | BR3: Annual Northwest Toe Loading | BU3: Annual Northwest Toe Loading | BX3: Annual Northwest Toe Loading | CA3: Annual Northwest Toe Loading | CD3: Annual Northwest Toe Loading | CG3: Annual Northwest Toe Loading | CL3: Annual South Toe Loading | CO3: Annual South Toe Loading | CR3: Annual South Toe Loading | CU3: Annual South Toe Loading | CX3: Annual South Toe Loading | DA3: Annual South Toe Loading | DD3: Annual South Toe Loading | DG3: Annual South Toe Loading | DJ3: Annual South Toe Loading | DM3: Annual South Toe Loading | DP3: Annual South Toe Loading | DS3: Annual South Toe Loading | DV3: Annual South Toe Loading | DY3: Annual South Toe Loading | ED3: Annual West Toe Loading | EG3: Annual West Toe Loading | EJ3: Annual West Toe Loading | EM3: Annual West Toe Loading | EP3: Annual West Toe Loading | ES3: Annual West Toe Loading | EV3: Annual West Toe Loading | EY3: Annual West Toe Loading | FB3: Annual West Toe Loading | FE3: Annual West Toe Loading | FH3: Annual West Toe Loading | FK3: Annual West Toe Loading | FN3: Annual West Toe Loading | FQ3: Annual West Toe Loading
A4: Time | B4: P10 | C4: P50 | D4: P90 | E4: P10 | F4: P50 | G4: P90 | H4: P10 | I4: P50 | J4: P90 | K4: P10 | L4: P50 | M4: P90 | N4: P10 | O4: P50 | P4: P90 | Q4: P10 | R4: P50 | S4: P90 | T4: P10 | U4: P50 | V4: P90 | W4: P10 | X4: P50 | Y4: P90 | Z4: P10 | AA4: P50 | AB4: P90 | AC4: P10 | AD4: P50 | AE4: P90 | AF4: P10 | AG4: P50 | AH4: P90 | AI4: P10 | AJ4: P50 | AK4: P90 | AL4: P10 | AM4: P50 | AN4: P90 | AO4: P10 | AP4: P50 | AQ4: P90 | AS4: Time | AT4: P10 | AU4: P50 | AV4: P90 | AW4: P10 | AX4: P50 | AY4: P90 | AZ4: P10 | BA4: P50 | BB4: P90 | BC4: P10 | BD4: P50 | BE4: P90 | BF4: P10 | BG4: P50 | BH4: P90 | BI4: P10 | BJ4: P50 | BK4: P90 | BL4: P10 | BM4: P50 | BN4: P90 | BO4: P10 | BP4: P50 | BQ4: P90 | BR4: P10 | BS4: P50 | BT4: P90 | BU4: P10 | BV4: P50 | BW4: P90 | BX4: P10 | BY4: P50 | BZ4: P90 | CA4: P10 | CB4: P50 | CC4: P90 | CD4: P10 | CE4: P50 | CF4: P90 | CG4: P10 | CH4: P50 | CI4: P90 | CK4: Time | CL4: P10 | CM4: P50 | CN4: P90 | CO4: P10 | CP4: P50 | CQ4: P90 | CR4: P10 | CS4: P50 | CT4: P90 | CU4: P10 | CV4: P50 | CW4: P90 | CX4: P10 | CY4: P50 | CZ4: P90 | DA4: P10 | DB4: P50 | DC4: P90 | DD4: P10 | DE4: P50 | DF4: P90 | DG4: P10 | DH4: P50 | DI4: P90 | DJ4: P10 | DK4: P50 | DL4: P90 | DM4: P10 | DN4: P50 | DO4: P90 | DP4: P10 | DQ4: P50 | DR4: P90 | DS4: P10 | DT4: P50 | DU4: P90 | DV4: P10 | DW4: P50 | DX4: P90 | DY4: P10 | DZ4: P50 | EA4: P90 | EC4: Time | ED4: P10 | EE4: P50 | EF4: P90 | EG4: P10 | EH4: P50 | EI4: P90 | EJ4: P10 | EK4: P50 | EL4: P90 | EM4: P10 | EN4: P50 | EO4: P90 | EP4: P10 | EQ4: P50 | ER4: P90 | ES4: P10 | ET4: P50 | EU4: P90 | EV4: P10 | EW4: P50 | EX4: P90 | EY4: P10 | EZ4: P50 | FA4: P90 | FB4: P10 | FC4: P50 | FD4: P90 | FE4: P10 | FF4: P50 | FG4: P90 | FH4: P10 | FI4: P50 | FJ4: P90 | FK4: P10 | FL4: P50 | FM4: P90 | FN4: P10 | FO4: P50 | FP4: P90 | FQ4: P10 | FR4: P50 | FS4: P90
A5: 0 | B5: =AVERAGE(OFFSET(NToe_Ponds!$C$10,12*$A5,(4*(PlotControl!$C$6-1)),12,1)) -> 0.000333 | C5: =AVERAGE(OFFSET(NToe_Ponds!$D$10,12*$A5,(4*(PlotControl!$C$6-1)),12,1)) -> 0.000333 | D5: =AVERAGE(OFFSET(NToe_Ponds!$E$10,12*$A5,(4*(PlotControl!$C$6-1)),12,1)) -> 0.000333 | E5: =AVERAGE(OFFSET(NToe_Ponds!$DG$10,12*$A5,(4*(PlotControl!$C$6-1)),12,1)) -> 0.00039964 | F5: =AVERAGE(OFFSET(NToe_Ponds!$DH$10,12*$A5,(4*(PlotControl!$C$6-1)),12,1)) -> 0.00039964 | G5: =AVERAGE(OFFSET(NToe_Ponds!$DI$10,12*$A5,(4*(PlotControl!$C$6-1)),12,1)) -> 0.00039964 | H5: =AVERAGE(OFFSET(NToe_Dams!$C$10,12*$A5,(4*(PlotControl!$C$6-1)),12,1)) -> 0 | I5: =AVERAGE(OFFSET(NToe_Dams!$D$10,12*$A5,(4*(PlotControl!$C$6-1)),12,1)) -> 0 | J5: =AVERAGE(OFFSET(NToe_Dams!$E$10,12*$A5,(4*(PlotControl!$C$6-1)),12,1)) -> 0 | K5: =AVERAGE(OFFSET(NToe_Beaches!$C$10,12*$A5,(4*(PlotControl!$C$6-1)),12,1)) -> 0 | L5: =AVERAGE(OFFSET(NToe_Beaches!$D$10,12*$A5,(4*(PlotControl!$C$6-1)),12,1)) -> 0 | M5: =AVERAGE(OFFSET(NToe_Beaches!$E$10,12*$A5,(4*(PlotControl!$C$6-1)),12,1)) -> 0 | N5: =AVERAGE(OFFSET(NToe_Dams!$DG$10,12*$A5,(4*(PlotControl!$C$6-1)),12,1)) -> 0 | O5: =AVERAGE(OFFSET(NToe_Dams!$DH$10,12*$A5,(4*(PlotControl!$C$6-1)),12,1)) -> 0 | P5: =AVERAGE(OFFSET(NToe_Dams!$DI$10,12*$A5,(4*(PlotControl!$C$6-1)),12,1)) -> 0 | Q5: =AVERAGE(OFFSET(NToe_Beaches!$DG$10,12*$A5,(4*(PlotControl!$C$6-1)),12,1)) -> 0 | R5: =AVERAGE(OFFSET(NToe_Beaches!$DH$10,12*$A5,(4*(PlotControl!$C$6-1)),12,1)) -> 0 | S5: =AVERAGE(OFFSET(NToe_Beaches!$DI$10,12*$A5,(4*(PlotControl!$C$6-1)),12,1)) -> 0 | T5: =AVERAGE(OFFSET(NToe_Dams!$HK$10,12*$A5,(4*(PlotControl!$C$6-1)),12,1)) -> 0 | U5: =AVERAGE(OFFSET(NToe_Dams!$HL$10,12*$A5,(4*(PlotControl!$C$6-1)),12,1)) -> 0 | V5: =AVERAGE(OFFSET(NToe_Dams!$HM$10,12*$A5,(4*(PlotControl!$C$6-1)),12,1)) -> 0 | W5: =AVERAGE(OFFSET(NToe_Beaches!$HK$10,12*$A5,(4*(PlotControl!$C$6-1)),12,1)) -> 0 | X5: =AVERAGE(OFFSET(NToe_Beaches!$HL$10,12*$A5,(4*(PlotControl!$C$6-1)),12,1)) -> 0 | Y5: =AVERAGE(OFFSET(NToe_Beaches!$HM$10,12*$A5,(4*(PlotControl!$C$6-1)),12,1)) -> 0 | Z5: =AVERAGE(OFFSET(NToe_Beaches!$LO$10,12*$A5,(4*(PlotControl!$C$6-1)),12,1)) -> 0 | AA5: =AVERAGE(OFFSET(NToe_Beaches!$LP$10,12*$A5,(4*(PlotControl!$C$6-1)),12,1)) -> 0 | AB5: =AVERAGE(OFFSET(NToe_Beaches!$LQ$10,12*$A5,(4*(PlotControl!$C$6-1)),12,1)) -> 0 | AC5: =AVERAGE(OFFSET(NToe_LTVSMC!$C$10,12*$A5,(4*(PlotControl!$C$6-1)),12,1)) -> 6.317e-05 | AD5: =AVERAGE(OFFSET(NToe_LTVSMC!$D$10,12*$A5,(4*(PlotControl!$C$6-1)),12,1)) -> 6.317e-05 | AE5: =AVERAGE(OFFSET(NToe_LTVSMC!$E$10,12*$A5,(4*(PlotControl!$C$6-1)),12,1)) -> 6.317e-05 | AF5: =AVERAGE(OFFSET(NToe_LTVSMC!$DG$10,12*$A5,(4*(PlotControl!$C$6-1)),12,1)) -> 0.00020076 | AG5: =AVERAGE(OFFSET(NToe_LTVSMC!$DH$10,12*$A5,(4*(PlotControl!$C$6-1)),12,1)) -> 0.00020076 | AH5: =AVERAGE(OFFSET(NToe_LTVSMC!$DI$10,12*$A5,(4*(PlotControl!$C$6-1)),12,1)) -> 0.00020076 | AI5: =AVERAGE(OFFSET(NToe_LTVSMC!$HK$10,12*$A5,(4*(PlotControl!$C$6-1)),12,1)) -> 7.3383e-05 | AJ5: =AVERAGE(OFFSET(NToe_LTVSMC!$HL$10,12*$A5,(4*(PlotControl!$C$6-1)),12,1)) -> 7.3383e-05 | AK5: =AVERAGE(OFFSET(NToe_LTVSMC!$HM$10,12*$A5,(4*(PlotControl!$C$6-1)),12,1)) -> 7.3383e-05 | AL5: =AVERAGE(OFFSET(NToe_Buttress!$C$10,12*$A5,(4*(PlotControl!$C$6-1)),12,1)) -> 5.620975e-11 | AM5: =AVERAGE(OFFSET(NToe_Buttress!$D$10,12*$A5,(4*(PlotControl!$C$6-1)),12,1)) -> 1.114976667e-08 | AN5: =AVERAGE(OFFSET(NToe_Buttress!$E$10,12*$A5,(4*(PlotControl!$C$6-1)),12,1)) -> 2.201553333e-06 | AS5: 0 | AT5: =AVERAGE(OFFSET(NWToe_Ponds!$C$10,12*$A5,(4*(PlotControl!$C$6-1)),12,1)) -> 0 | AU5: =AVERAGE(OFFSET(NWToe_Ponds!$D$10,12*$A5,(4*(PlotControl!$C$6-1)),12,1)) -> 0 | AV5: =AVERAGE(OFFSET(NWToe_Ponds!$E$10,12*$A5,(4*(PlotControl!$C$6-1)),12,1)) -> 0 | AW5: =AVERAGE(OFFSET(NWToe_Ponds!$DG$10,12*$A5,(4*(PlotControl!$C$6-1)),12,1)) -> 1.551e-06 | AX5: =AVERAGE(OFFSET(NWToe_Ponds!$DH$10,12*$A5,(4*(PlotControl!$C$6-1)),12,1)) -> 1.551e-06 | AY5: =AVERAGE(OFFSET(NWToe_Ponds!$DI$10,12*$A5,(4*(PlotControl!$C$6-1)),12,1)) -> 1.551e-06 | AZ5: =AVERAGE(OFFSET(NWToe_Dams!$C$10,12*$A5,(4*(PlotControl!$C$6-1)),12,1)) -> 0 | BA5: =AVERAGE(OFFSET(NWToe_Dams!$D$10,12*$A5,(4*(PlotControl!$C$6-1)),12,1)) -> 0 | BB5: =AVERAGE(OFFSET(NWToe_Dams!$E$10,12*$A5,(4*(PlotControl!$C$6-1)),12,1)) -> 0 | BC5: =AVERAGE(OFFSET(NWToe_Beaches!$C$10,12*$A5,(4*(PlotControl!$C$6-1)),12,1)) -> 0 | BD5: =AVERAGE(OFFSET(NWToe_Beaches!$D$10,12*$A5,(4*(PlotControl!$C$6-1)),12,1)) -> 0 | BE5: =AVERAGE(OFFSET(NWToe_Beaches!$E$10,12*$A5,(4*(PlotControl!$C$6-1)),12,1)) -> 0 | BF5: =AVERAGE(OFFSET(NWToe_Dams!$DG$10,12*$A5,(4*(PlotControl!$C$6-1)),12,1)) -> 0 | BG5: =AVERAGE(OFFSET(NWToe_Dams!$DH$10,12*$A5,(4*(PlotControl!$C$6-1)),12,1)) -> 0 | BH5: =AVERAGE(OFFSET(NWToe_Dams!$DI$10,12*$A5,(4*(PlotControl!$C$6-1)),12,1)) -> 0 | BI5: =AVERAGE(OFFSET(NWToe_Beaches!$DG$10,12*$A5,(4*(PlotControl!$C$6-1)),12,1)) -> 0 | BJ5: =AVERAGE(OFFSET(NWToe_Beaches!$DH$10,12*$A5,(4*(PlotControl!$C$6-1)),12,1)) -> 0 | BK5: =AVERAGE(OFFSET(NWToe_Beaches!$DI$10,12*$A5,(4*(PlotControl!$C$6-1)),12,1)) -> 0 | BL5: =AVERAGE(OFFSET(NWToe_Dams!$HK$10,12*$A5,(4*(PlotControl!$C$6-1)),12,1)) -> 0 | BM5: =AVERAGE(OFFSET(NWToe_Dams!$HL$10,12*$A5,(4*(PlotControl!$C$6-1)),12,1)) -> 0 | BN5: =AVERAGE(OFFSET(NWToe_Dams!$HM$10,12*$A5,(4*(PlotControl!$C$6-1)),12,1)) -> 0 | BO5: =AVERAGE(OFFSET(NWToe_Beaches!$HK$10,12*$A5,(4*(PlotControl!$C$6-1)),12,1)) -> 0 | BP5: =AVERAGE(OFFSET(NWToe_Beaches!$HL$10,12*$A5,(4*(PlotControl!$C$6-1)),12,1)) -> 0 | BQ5: =AVERAGE(OFFSET(NWToe_Beaches!$HM$10,12*$A5,(4*(PlotControl!$C$6-1)),12,1)) -> 0 | BR5: =AVERAGE(OFFSET(NWToe_Beaches!$LO$10,12*$A5,(4*(PlotControl!$C$6-1)),12,1)) -> 0 | BS5: =AVERAGE(OFFSET(NWToe_Beaches!$LP$10,12*$A5,(4*(PlotControl!$C$6-1)),12,1)) -> 0 | BT5: =AVERAGE(OFFSET(NWToe_Beaches!$LQ$10,12*$A5,(4*(PlotControl!$C$6-1)),12,1)) -> 0 | BU5: =AVERAGE(OFFSET(NWToe_LTVSMC!$C$10,12*$A5,(4*(PlotControl!$C$6-1)),12,1)) -> 0.00023546 | BV5: =AVERAGE(OFFSET(NWToe_LTVSMC!$D$10,12*$A5,(4*(PlotControl!$C$6-1)),12,1)) -> 0.00023546 | BW5: =AVERAGE(OFFSET(NWToe_LTVSMC!$E$10,12*$A5,(4*(PlotControl!$C$6-1)),12,1)) -> 0.00023546 | BX5: =AVERAGE(OFFSET(NWToe_LTVSMC!$DG$10,12*$A5,(4*(PlotControl!$C$6-1)),12,1)) -> 1.7434e-06 | BY5: =AVERAGE(OFFSET(NWToe_LTVSMC!$DH$10,12*$A5,(4*(PlotControl!$C$6-1)),12,1)) -> 1.7434e-06 | BZ5: =AVERAGE(OFFSET(NWToe_LTVSMC!$DI$10,12*$A5,(4*(PlotControl!$C$6-1)),12,1)) -> 1.7434e-06 | CA5: =AVERAGE(OFFSET(NWToe_LTVSMC!$HK$10,12*$A5,(4*(PlotControl!$C$6-1)),12,1)) -> 0 | CB5: =AVERAGE(OFFSET(NWToe_LTVSMC!$HL$10,12*$A5,(4*(PlotControl!$C$6-1)),12,1)) -> 0 | CC5: =AVERAGE(OFFSET(NWToe_LTVSMC!$HM$10,12*$A5,(4*(PlotControl!$C$6-1)),12,1)) -> 0 | CK5: 0 | CL5: =AVERAGE(OFFSET(SToe_Ponds!$C$10,12*$A5,(4*(PlotControl!$C$6-1)),12,1)) -> 0 | CM5: =AVERAGE(OFFSET(SToe_Ponds!$D$10,12*$A5,(4*(PlotControl!$C$6-1)),12,1)) -> 0 | CN5: =AVERAGE(OFFSET(SToe_Ponds!$E$10,12*$A5,(4*(PlotControl!$C$6-1)),12,1)) -> 0 | CO5: =AVERAGE(OFFSET(SToe_Ponds!$DG$10,12*$A5,(4*(PlotControl!$C$6-1)),12,1)) -> 0.0001065 | CP5: =AVERAGE(OFFSET(SToe_Ponds!$DH$10,12*$A5,(4*(PlotControl!$C$6-1)),12,1)) -> 0.0001065 | CQ5: =AVERAGE(OFFSET(SToe_Ponds!$DI$10,12*$A5,(4*(PlotControl!$C$6-1)),12,1)) -> 0.0001065 | CR5: =AVERAGE(OFFSET(SToe_Dams!$C$10,12*$A5,(4*(PlotControl!$C$6-1)),12,1)) -> 0 | CS5: =AVERAGE(OFFSET(SToe_Dams!$D$10,12*$A5,(4*(PlotControl!$C$6-1)),12,1)) -> 0 | CT5: =AVERAGE(OFFSET(SToe_Dams!$E$10,12*$A5,(4*(PlotControl!$C$6-1)),12,1)) -> 0 | CU5: =AVERAGE(OFFSET(SToe_Beaches!$C$10,12*$A5,(4*(PlotControl!$C$6-1)),12,1)) -> 0 | CV5: =AVERAGE(OFFSET(SToe_Beaches!$D$10,12*$A5,(4*(PlotControl!$C$6-1)),12,1)) -> 0 | CW5: =AVERAGE(OFFSET(SToe_Beaches!$E$10,12*$A5,(4*(PlotControl!$C$6-1)),12,1)) -> 0 | CX5: =AVERAGE(OFFSET(SToe_Dams!$DG$10,12*$A5,(4*(PlotControl!$C$6-1)),12,1)) -> 0 | CY5: =AVERAGE(OFFSET(SToe_Dams!$DH$10,12*$A5,(4*(PlotControl!$C$6-1)),12,1)) -> 0 | CZ5: =AVERAGE(OFFSET(SToe_Dams!$DI$10,12*$A5,(4*(PlotControl!$C$6-1)),12,1)) -> 0 | DA5: =AVERAGE(OFFSET(SToe_Beaches!$DG$10,12*$A5,(4*(PlotControl!$C$6-1)),12,1)) -> 0 | DB5: =AVERAGE(OFFSET(SToe_Beaches!$DH$10,12*$A5,(4*(PlotControl!$C$6-1)),12,1)) -> 0 | DC5: =AVERAGE(OFFSET(SToe_Beaches!$DI$10,12*$A5,(4*(PlotControl!$C$6-1)),12,1)) -> 0 | DD5: =AVERAGE(OFFSET(SToe_Dams!$HK$10,12*$A5,(4*(PlotControl!$C$6-1)),12,1)) -> 0 | DE5: =AVERAGE(OFFSET(SToe_Dams!$HL$10,12*$A5,(4*(PlotControl!$C$6-1)),12,1)) -> 0 | DF5: =AVERAGE(OFFSET(SToe_Dams!$HM$10,12*$A5,(4*(PlotControl!$C$6-1)),12,1)) -> 0 | DG5: =AVERAGE(OFFSET(SToe_Beaches!$HK$10,12*$A5,(4*(PlotControl!$C$6-1)),12,1)) -> 0 | DH5: =AVERAGE(OFFSET(SToe_Beaches!$HL$10,12*$A5,(4*(PlotControl!$C$6-1)),12,1)) -> 0 | DI5: =AVERAGE(OFFSET(SToe_Beaches!$HM$10,12*$A5,(4*(PlotControl!$C$6-1)),12,1)) -> 0 | DJ5: =AVERAGE(OFFSET(SToe_Beaches!$LO$10,12*$A5,(4*(PlotControl!$C$6-1)),12,1)) -> 0 | DK5: =AVERAGE(OFFSET(SToe_Beaches!$LP$10,12*$A5,(4*(PlotControl!$C$6-1)),12,1)) -> 0 | DL5: =AVERAGE(OFFSET(SToe_Beaches!$LQ$10,12*$A5,(4*(PlotControl!$C$6-1)),12,1)) -> 0 | DM5: =AVERAGE(OFFSET(SToe_LTVSMC!$C$10,12*$A5,(4*(PlotControl!$C$6-1)),12,1)) -> 2.664e-06 | DN5: =AVERAGE(OFFSET(SToe_LTVSMC!$D$10,12*$A5,(4*(PlotControl!$C$6-1)),12,1)) -> 2.664e-06 | DO5: =AVERAGE(OFFSET(SToe_LTVSMC!$E$10,12*$A5,(4*(PlotControl!$C$6-1)),12,1)) -> 2.664e-06 | DP5: =AVERAGE(OFFSET(SToe_LTVSMC!$DG$10,12*$A5,(4*(PlotControl!$C$6-1)),12,1)) -> 0 | DQ5: =AVERAGE(OFFSET(SToe_LTVSMC!$DH$10,12*$A5,(4*(PlotControl!$C$6-1)),12,1)) -> 0 | DR5: =AVERAGE(OFFSET(SToe_LTVSMC!$DI$10,12*$A5,(4*(PlotControl!$C$6-1)),12,1)) -> 0 | DS5: =AVERAGE(OFFSET(SToe_LTVSMC!$HK$10,12*$A5,(4*(PlotControl!$C$6-1)),12,1)) -> 3.8157e-05 | DT5: =AVERAGE(OFFSET(SToe_LTVSMC!$HL$10,12*$A5,(4*(PlotControl!$C$6-1)),12,1)) -> 3.8157e-05 | DU5: =AVERAGE(OFFSET(SToe_LTVSMC!$HM$10,12*$A5,(4*(PlotControl!$C$6-1)),12,1)) -> 3.8157e-05 | DY5: =AVERAGE(OFFSET(SToe_Buttress!$C$10,12*$A5,(4*(PlotControl!$C$6-1)),12,1)) -> 0 | DZ5: =AVERAGE(OFFSET(SToe_Buttress!$D$10,12*$A5,(4*(PlotControl!$C$6-1)),12,1)) -> 0 | EA5: =AVERAGE(OFFSET(SToe_Buttress!$E$10,12*$A5,(4*(PlotControl!$C$6-1)),12,1)) -> 0 | EC5: 0 | ED5: =AVERAGE(OFFSET(WToe_Ponds!$C$10,12*$A5,(4*(PlotControl!$C$6-1)),12,1)) -> 0 | EE5: =AVERAGE(OFFSET(WToe_Ponds!$D$10,12*$A5,(4*(PlotControl!$C$6-1)),12,1)) -> 0 | EF5: =AVERAGE(OFFSET(WToe_Ponds!$E$10,12*$A5,(4*(PlotControl!$C$6-1)),12,1)) -> 0 | EG5: =AVERAGE(OFFSET(WToe_Ponds!$DG$10,12*$A5,(4*(PlotControl!$C$6-1)),12,1)) -> 9.306e-06 | EH5: =AVERAGE(OFFSET(WToe_Ponds!$DH$10,12*$A5,(4*(PlotControl!$C$6-1)),12,1)) -> 9.306e-06 | EI5: =AVERAGE(OFFSET(WToe_Ponds!$DI$10,12*$A5,(4*(PlotControl!$C$6-1)),12,1)) -> 9.306e-06 | EJ5: =AVERAGE(OFFSET(WToe_Dams!$C$10,12*$A5,(4*(PlotControl!$C$6-1)),12,1)) -> 0 | EK5: =AVERAGE(OFFSET(WToe_Dams!$D$10,12*$A5,(4*(PlotControl!$C$6-1)),12,1)) -> 0 | EL5: =AVERAGE(OFFSET(WToe_Dams!$E$10,12*$A5,(4*(PlotControl!$C$6-1)),12,1)) -> 0 | EM5: =AVERAGE(OFFSET(WToe_Beaches!$C$10,12*$A5,(4*(PlotControl!$C$6-1)),12,1)) -> 0 | EN5: =AVERAGE(OFFSET(WToe_Beaches!$D$10,12*$A5,(4*(PlotControl!$C$6-1)),12,1)) -> 0 | EO5: =AVERAGE(OFFSET(WToe_Beaches!$E$10,12*$A5,(4*(PlotControl!$C$6-1)),12,1)) -> 0 | EP5: =AVERAGE(OFFSET(WToe_Dams!$DG$10,12*$A5,(4*(PlotControl!$C$6-1)),12,1)) -> 0 | EQ5: =AVERAGE(OFFSET(WToe_Dams!$DH$10,12*$A5,(4*(PlotControl!$C$6-1)),12,1)) -> 0 | ER5: =AVERAGE(OFFSET(WToe_Dams!$DI$10,12*$A5,(4*(PlotControl!$C$6-1)),12,1)) -> 0 | ES5: =AVERAGE(OFFSET(WToe_Beaches!$DG$10,12*$A5,(4*(PlotControl!$C$6-1)),12,1)) -> 0 | ET5: =AVERAGE(OFFSET(WToe_Beaches!$DH$10,12*$A5,(4*(PlotControl!$C$6-1)),12,1)) -> 0 | EU5: =AVERAGE(OFFSET(WToe_Beaches!$DI$10,12*$A5,(4*(PlotControl!$C$6-1)),12,1)) -> 0 | EV5: =AVERAGE(OFFSET(WToe_Dams!$HK$10,12*$A5,(4*(PlotControl!$C$6-1)),12,1)) -> 0 | EW5: =AVERAGE(OFFSET(WToe_Dams!$HL$10,12*$A5,(4*(PlotControl!$C$6-1)),12,1)) -> 0 | EX5: =AVERAGE(OFFSET(WToe_Dams!$HM$10,12*$A5,(4*(PlotControl!$C$6-1)),12,1)) -> 0 | EY5: =AVERAGE(OFFSET(WToe_Beaches!$HK$10,12*$A5,(4*(PlotControl!$C$6-1)),12,1)) -> 0 | EZ5: =AVERAGE(OFFSET(WToe_Beaches!$HL$10,12*$A5,(4*(PlotControl!$C$6-1)),12,1)) -> 0 | FA5: =AVERAGE(OFFSET(WToe_Beaches!$HM$10,12*$A5,(4*(PlotControl!$C$6-1)),12,1)) -> 0 | FB5: =AVERAGE(OFFSET(WToe_Beaches!$LO$10,12*$A5,(4*(PlotControl!$C$6-1)),12,1)) -> 0 | FC5: =AVERAGE(OFFSET(WToe_Beaches!$LP$10,12*$A5,(4*(PlotControl!$C$6-1)),12,1)) -> 0 | FD5: =AVERAGE(OFFSET(WToe_Beaches!$LQ$10,12*$A5,(4*(PlotControl!$C$6-1)),12,1)) -> 0 | FE5: =AVERAGE(OFFSET(WToe_LTVSMC!$C$10,12*$A5,(4*(PlotControl!$C$6-1)),12,1)) -> 0.0003567 | FF5: =AVERAGE(OFFSET(WToe_LTVSMC!$D$10,12*$A5,(4*(PlotControl!$C$6-1)),12,1)) -> 0.0003567 | FG5: =AVERAGE(OFFSET(WToe_LTVSMC!$E$10,12*$A5,(4*(PlotControl!$C$6-1)),12,1)) -> 0.0003567 | FH5: =AVERAGE(OFFSET(WToe_LTVSMC!$DG$10,12*$A5,(4*(PlotControl!$C$6-1)),12,1)) -> 0 | FI5: =AVERAGE(OFFSET(WToe_LTVSMC!$DH$10,12*$A5,(4*(PlotControl!$C$6-1)),12,1)) -> 0 | FJ5: =AVERAGE(OFFSET(WToe_LTVSMC!$DI$10,12*$A5,(4*(PlotControl!$C$6-1)),12,1)) -> 0 | FK5: =AVERAGE(OFFSET(WToe_LTVSMC!$HK$10,12*$A5,(4*(PlotControl!$C$6-1)),12,1)) -> 9.6e-07 | FL5: =AVERAGE(OFFSET(WToe_LTVSMC!$HL$10,12*$A5,(4*(PlotControl!$C$6-1)),12,1)) -> 9.6e-07 | FM5: =AVERAGE(OFFSET(WToe_LTVSMC!$HM$10,12*$A5,(4*(PlotControl!$C$6-1)),12,1)) -> 9.6e-07
